Workbook

Sheet Instructions
A1: Instructions
A3: Purpose
A4: This rating model is prepared to determine the rates sought by each rating category/TA to cover funding requirements for the forthcoming year.
A6: Conventions
A7: All yellow cells are input cells.
A8: The majority of tabs in this spreadhseet have been protected to ensure that values aren't inadvertantly changed.
A9: Should a user need to amend the content of a tab the password required is "gwrcrates".
A11: Process
A12: To run the rates model the following actions should be completed
B13: 1) | C13: On each of the tabs shaded green in the structure diagram below delete all values in the shaded yellow cell
B14: 2) | C14: In the control tab;
C15: a) | D15: In cell B5 enter the current rating year in the YYYY/YY date format
C16: b) | D16: Adjust the WRS rating basis if required by the rates funding policy
C17: c) | D17: Obtain "Flood protection" and "Pest rate" information from the Landcare & Wairarapa Accountant and enter in the relevant cells
C18: d) | D18: Obtian Water levy split from the water supply accountant and enter in the relevant cells
B19: 3) | C19: Obtain Capital Values (CVs) & corresponding assessments from each Territorial Authority (TA) and Equalised Capital Values (ECVs) & corresponding assessments from Quotable Value and enter into the relevant yellow cells on the "UHCC Adjustments" and "Capital values" tab
B20: 4) | C20: Select the cells to be updated in the ESSBase tab and retrieve the information from the ESSbase system
B21: 5) | C21: Email the ESSBase extract to the respective management accountants and obtain confirmation that these rates values are correct before proceeding further.
B22: 6) | C22: Populate the "Class rates" tab with data provided by the Landcare & Wairarapa Accountant
B23: 7) | C23: Use the rating model from the previous year to populate the yellow cells using the PASTE SPECIAL>>VALUES comand in the "Comparison - TA" and "Comparison - Category" tabs.
B24: 8) | C24: On the "Check" tab if cell B7 says "Error" then a rounding/check total error occurs within the model and the error should be investigated and reconciled where possible. Explanations of the difference can be entered in the "Check" tab for future reference. If cell B7 reads "OK" then no rounding/check total errors have been found in the data that has been entered.
B25: 9) | C25: Once all checks have been completed the individual that has completed steps 1 through 9 above should forward the model to their manager for reivew and approval.
B26: 10) | C26: Once approval of the results is obtained the values can be used for distribution as required.
A28: Strucutre diagram
A29: The flow diagram below sets out the structure of this excel spreadsheet.

Sheet >>Input tabs

Sheet Control
A1: Control
A2: =check_total -> 0
A4: Years
A5: Current rating year | B5: 2021/22
A6: Previous rating year | B6: =VALUE(LEFT(year_current,4))-1&"/"&VALUE(RIGHT(year_current,2))-1 -> 2020/21
A9: GST
A10: GST % | B10: 0.15
A12: Error tolerance
A13: $ error tolerance | B13: 2
A15: TA's
A16: TA full name | B16: TA short name
A17: Wellington city | B17: Wellington
A18: Hutt city | B18: Hutt
A19: Upper Hutt city | B19: Upper Hutt
A20: Porirua city | B20: Porirua
A21: Kāpiti Coast district | B21: Kapiti
A22: Masterton district | B22: Masterton
A23: Carterton district | B23: Carterton
A24: South Wairarapa district | B24: South Wairarapa
A25: Tararua district | B25: Tararua
A28: TA's for rates check tab
A29: Excludes KCDC and UHC as they have their own rates check tab
A30: TA full name
A31: Wellington city
A32: Hutt city
A33: Porirua city
A34: Masterton district
A35: Carterton district
A36: South Wairarapa district
A37: Tararua district
A40: TA's
A41: TA full name | B41: Category group | C41: Concatenated row
A42: Wellington city | B42: District wide | C42: =A42&B42 -> Wellington cityDistrict wide
A43: Hutt city | B43: District wide | C43: =A43&B43 -> Hutt cityDistrict wide
A44: Upper Hutt city | B44: District wide | C44: Upper Hutt cityDistrict wide
A45: Porirua city | B45: District wide | C45: Porirua cityDistrict wide
A46: Kāpiti Coast district | B46: District wide | C46: Kāpiti Coast districtDistrict wide
A47: Masterton district | B47: District wide | C47: Masterton districtDistrict wide
A48: Carterton district | B48: District wide | C48: Carterton districtDistrict wide
A49: South Wairarapa district | B49: District wide | C49: South Wairarapa districtDistrict wide
A50: Tararua district | B50: District wide | C50: Tararua districtDistrict wide
A51: Region wide | C51: Region wide
A54: PT target differentials
A55: Category group | B55: Differential
A56: Regional CBD | B56: 7
A57: Business - excl Wairarapa | B57: 1.4
A58: Business - Wairarapa | B58: 1
A59: Residential - excl Wairarapa & Otaki | B59: 1
A60: Residential - Wairarapa & Otaki | B60: 0.5
A61: Rural | B61: 0.25
A62: Tararua | B62: 0
A65: TA & Category | H65: PT differentials to use for rating model transition | P65: Calculation of differentials using the 2017/18 Transport rate
A66: TA full name | B66: Rating area | C66: Category group | D66: Concatenated name | E66: PT differential category | F66: PT differential | H66: 2017/18 | I66: 2018/19 | J66: 2019/20 | K66: 2020/21 | L66: 2021/22 | M66: 2022/23 | N66: 2023/24 onwards | P66: Rate levied | Q66: ECV | R66: Cents/ECV$
A67: Wellington city | B67: Wellington city | C67: Regional CBD | D67: =B67&C67 -> Wellington cityRegional CBD | E67: Regional CBD | F67: =IF(VALUE(LEFT(year_current,4))>2022,N67,INDEX($H67:$M67,,MATCH(year_current,$H$66:$M$66,0))) -> 6.91440171 | H67: =R67/R$96 -> 6.743205131 | I67: =($N67-$H67)/6+H67 -> 6.786004276 | J67: 6.82880342 | K67: 6.871602565 | L67: 6.91440171 | M67: =($N67-$H67)/6+L67 -> 6.957200855 | N67: =INDEX($B$56:$B$62,MATCH(E67,$A$56:$A$62,0),) -> 7 | P67: 25019166.08 | Q67: 9699270191 | R67: =(P67*100)/Q67 -> 0.2579489548
A68: Wellington city | B68: Wellington city | C68: Business | D68: =B68&C68 -> Wellington cityBusiness | E68: Business - excl Wairarapa | F68: 1.153674074 | H68: 0.6610222218 | I68: 0.7841851849 | J68: 0.9073481479 | K68: 1.030511111 | L68: 1.153674074 | M68: 1.276837037 | N68: =INDEX($B$56:$B$62,MATCH(E68,$A$56:$A$62,0),) -> 1.4 | P68: 1192769.666 | Q68: 4717078733 | R68: =(P68*100)/Q68 -> 0.02528619372
A69: Wellington city | B69: Wellington city | C69: Residential | D69: Wellington cityResidential | E69: Residential - excl Wairarapa & Otaki | F69: 0.8870074073 | H69: 0.6610222218 | I69: 0.7175185182 | J69: 0.7740148146 | K69: 0.8305111109 | L69: 0.8870074073 | M69: 0.9435037036 | N69: 1 | P69: 12199002 | Q69: 4.824372595e+10 | R69: =(P69*100)/Q69 -> 0.02528619372
A70: Wellington city | B70: Wellington city | C70: Rural | D70: Wellington cityRural | E70: Rural | F70: 0.2232594069 | H70: 0.1697782208 | I70: 0.1831485174 | J70: 0.1965188139 | K70: 0.2098891104 | L70: 0.2232594069 | M70: 0.2366297035 | N70: 0.25 | P70: 46420.2668 | Q70: 714756729.4 | R70: 0.006494554705
A71: Hutt city | B71: Hutt city | C71: Business | D71: Hutt cityBusiness | E71: Business - excl Wairarapa | F71: 1.406777745 | H71: 1.420333234 | I71: 1.416944362 | J71: 1.413555489 | K71: 1.410166617 | L71: 1.406777745 | M71: 1.403388872 | N71: 1.4 | P71: 2092334.59 | Q71: 3850999697 | R71: 0.05433224499
A72: Hutt city | B72: Hutt city | C72: Residential | D72: Hutt cityResidential | E72: Residential - excl Wairarapa & Otaki | F72: 1.140111078 | H72: 1.420333234 | I72: 1.350277695 | J72: 1.280222156 | K72: 1.210166617 | L72: 1.140111078 | M72: 1.070055539 | N72: 1 | P72: 9399014.05 | Q72: 1.729914538e+10 | R72: 0.05433224499
A73: Hutt city | B73: Hutt city | C73: Rural | D73: Hutt cityRural | E73: Rural | F73: 0.2873211051 | H73: 0.3619633154 | I73: 0.3433027628 | J73: 0.3246422102 | K73: 0.3059816577 | L73: 0.2873211051 | M73: 0.2686605526 | N73: 0.25 | P73: 44664.56015 | Q73: 322575294.9 | R73: 0.0138462433
A74: Upper Hutt city | B74: Upper Hutt city | C74: Business | D74: Upper Hutt cityBusiness | E74: Business - excl Wairarapa | F74: 1.465595546 | H74: 1.596786638 | I74: 1.563988865 | J74: 1.531191092 | K74: 1.498393319 | L74: 1.465595546 | M74: 1.432797773 | N74: 1.4 | P74: 725473.2635 | Q74: 1187700996 | R74: 0.0610821466
A75: Upper Hutt city | B75: Upper Hutt city | C75: Residential | D75: Upper Hutt cityResidential | E75: Residential - excl Wairarapa & Otaki | F75: 1.198928879 | H75: 1.596786638 | I75: 1.497322199 | J75: 1.397857759 | K75: 1.298393319 | L75: 1.198928879 | M75: 1.09946444 | N75: 1 | P75: 3744588.865 | Q75: 6130414651 | R75: 0.0610821466
A76: Upper Hutt city | B76: Upper Hutt city | C76: Rural | D76: Upper Hutt cityRural | E76: Rural | F76: 0.302320235 | H76: 0.406960705 | I76: 0.3808005875 | J76: 0.35464047 | K76: 0.3284803525 | L76: 0.302320235 | M76: 0.2761601175 | N76: 0.25 | P76: 126321.4349 | Q76: 811441419.6 | R76: 0.01556753598
A77: Porirua city | B77: Porirua city | C77: Business | D77: Porirua cityBusiness | E77: Business - excl Wairarapa | F77: 1.482602772 | H77: 1.647808317 | I77: =($N77-$H77)/6+H77 -> 1.606506931 | J77: 1.565205544 | K77: 1.523904158 | L77: 1.482602772 | M77: 1.441301386 | N77: 1.4 | P77: 691972.2213 | Q77: 1097778116 | R77: 0.0630338874
A78: Porirua city | B78: Porirua city | C78: Residential | D78: Porirua cityResidential | E78: Residential - excl Wairarapa & Otaki | F78: 1.215936106 | H78: 1.647808317 | I78: 1.539840264 | J78: 1.431872211 | K78: 1.323904158 | L78: 1.215936106 | M78: 1.107968053 | N78: 1 | P78: 5277337.683 | Q78: 8372223102 | R78: 0.0630338874
A79: Porirua city | B79: Porirua city | C79: Rural | D79: Porirua cityRural | E79: Rural | F79: 0.3066172301 | H79: 0.4198516904 | I79: 0.3915430753 | J79: 0.3632344603 | K79: 0.3349258452 | L79: 0.3066172301 | M79: 0.2783086151 | N79: 0.25 | P79: 96761.34374 | Q79: 602474380.3 | R79: 0.016060657
A80: Kāpiti Coast district | B80: Kāpiti Coast district | C80: Business | D80: Kāpiti Coast districtBusiness | E80: Business - excl Wairarapa | F80: 1.16799219 | H80: 0.7039765706 | I80: 0.8199804755 | J80: 0.9359843804 | K80: 1.051988285 | L80: 1.16799219 | M80: 1.283996095 | N80: 1.4 | P80: 403085.5329 | Q80: 1496826987 | R80: 0.02692933361
A81: Kāpiti Coast district | B81: Kāpiti Coast district excl Ōtaki | C81: Residential | D81: Kāpiti Coast district excl Ōtaki Residential | E81: Residential - excl Wairarapa & Otaki | F81: 0.9013255235 | H81: 0.7039765706 | I81: 0.7533138088 | J81: 0.802651047 | K81: 0.8519882853 | L81: 0.9013255235 | M81: 0.9506627618 | N81: 1 | P81: 2549190.973 | Q81: 9466223746 | R81: =(P81*100)/Q81 -> 0.02692933361 | T81: Green cells not consistent with formulas above and below due to Otaki carveout
A82: Kāpiti Coast district | B82: Ōtaki rating area | C82: Residential | D82: Ōtaki rating areaResidential | E82: Residential - Wairarapa & Otaki | F82: 0.5679921902 | H82: =H81 -> 0.7039765706 | I82: 0.6699804755 | J82: 0.6359843804 | K82: 0.6019882853 | L82: 0.5679921902 | M82: 0.5339960951 | N82: 0.5
A83: Kāpiti Coast district | B83: Kāpiti Coast district | C83: Rural | D83: Kāpiti Coast districtRural | E83: Rural | F83: 0.2273746917 | H83: =R83/R$96 -> 0.1821240752 | I83: 0.1934367293 | J83: 0.2047493834 | K83: 0.2160620376 | L83: 0.2273746917 | M83: 0.2386873459 | N83: =INDEX($B$56:$B$62,MATCH(E83,$A$56:$A$62,0),) -> 0.25 | P83: 138343.5821 | Q83: 1985748559 | R83: =(P83*100)/Q83 -> 0.006966822737
A84: Masterton district | B84: Masterton district | C84: Business | D84: Masterton districtBusiness | E84: Business - Wairarapa | F84: 0.7496624742 | H84: =R84/R$96 -> 0.2489874227 | I84: 0.3741561856 | J84: 0.4993249485 | K84: 0.6244937114 | L84: 0.7496624742 | M84: 0.8748312371 | N84: 1 | P84: 38506.17602 | Q84: 404283094.1 | R84: 0.009524557565
A85: Masterton district | B85: Masterton district | C85: Residential | D85: Masterton districtResidential | E85: Residential - Wairarapa & Otaki | F85: 0.4163291409 | H85: =R85/R$96 -> 0.2489874227 | I85: 0.2908228523 | J85: 0.3326582818 | K85: 0.3744937114 | L85: 0.4163291409 | M85: 0.4581645705 | N85: 0.5 | P85: 199517.2283 | Q85: 2094766366 | R85: 0.009524557565
A86: Masterton district | B86: Masterton district | C86: Rural | D86: Masterton districtRural | E86: Rural | F86: 0.1905096665 | H86: 0.07152899945 | I86: 0.1012741662 | J86: 0.131019333 | K86: 0.1607644997 | L86: 0.1905096665 | M86: 0.2202548332 | N86: 0.25 | P86: 68725.16171 | Q86: 2511691056 | R86: 0.002736210791
A87: Carterton district | B87: Carterton district | C87: Business | D87: Carterton districtBusiness | E87: Business - Wairarapa | F87: 0.8155673748 | H87: 0.4467021244 | I87: =($N87-$H87)/6+H87 -> 0.538918437 | J87: 0.6311347496 | K87: 0.7233510622 | L87: 0.8155673748 | M87: 0.9077836874 | N87: 1 | P87: 16823.53518 | Q87: 98453654.54 | R87: 0.01708777115
A88: Carterton district | B88: Carterton district | C88: Residential | D88: Carterton districtResidential | E88: Residential - Wairarapa & Otaki | F88: 0.4822340415 | H88: 0.4467021244 | I88: 0.4555851037 | J88: 0.4644680829 | K88: 0.4733510622 | L88: 0.4822340415 | M88: 0.4911170207 | N88: 0.5 | P88: 109887.4071 | Q88: 643076303.8 | R88: 0.01708777115
A89: Carterton district | B89: Carterton district | C89: Rural | D89: Carterton districtRural | E89: Rural | F89: 0.2065722652 | H89: 0.1197167956 | I89: 0.141430663 | J89: 0.1631445304 | K89: 0.1848583978 | L89: 0.2065722652 | M89: 0.2282861326 | N89: 0.25 | P89: 72077.97135 | Q89: 1573910635 | R89: 0.004579546625
A90: South Wairarapa district | B90: South Wairarapa district | C90: Business | D90: South Wairarapa districtBusiness | E90: Business - Wairarapa | F90: 0.8634165756 | H90: 0.5902497269 | I90: 0.6585414391 | J90: 0.7268331513 | K90: 0.7951248635 | L90: 0.8634165756 | M90: 0.9317082878 | N90: 1 | P90: 44332.49903 | Q90: 196344625.2 | R90: 0.02257892162
A91: South Wairarapa district | B91: South Wairarapa district | C91: Residential | D91: South Wairarapa districtResidential | E91: Residential - Wairarapa & Otaki | F91: 0.5300832423 | H91: 0.5902497269 | I91: 0.5752081058 | J91: 0.5601664846 | K91: 0.5451248635 | L91: 0.5300832423 | M91: 0.5150416212 | N91: 0.5 | P91: 206694.8687 | Q91: 915432863.5 | R91: 0.02257892162
A92: South Wairarapa district | B92: South Wairarapa district | C92: Rural | D92: South Wairarapa districtRural | E92: Rural | F92: 0.2178142521 | H92: 0.1534427564 | I92: 0.1695356303 | J92: 0.1856285043 | K92: 0.2017213782 | L92: 0.2178142521 | M92: 0.2339071261 | N92: 0.25 | P92: 153385.1807 | Q92: 2613181710 | R92: 0.005869671448
A93: Tararua district | B93: Tararua district | C93: Rural | D93: Tararua districtRural | E93: Tararua | F93: 0 | H93: 0 | I93: 0 | J93: 0 | K93: 0 | L93: 0 | M93: 0 | N93: 0 | P93: 0 | Q93: 7041800 | R93: 0
A94: Region wide | D94: =A94&C94 -> Region wide | P94: =SUM(P67:P93) -> 64656396.14 | Q94: =SUM(Q67:Q93) -> 1.27056566e+11
P96: =SUMIF($C$67:$C$79,"Residential",P$67:P$79) -> 30619942.6 | Q96: =SUMIF($C$67:$C$79,"Residential",Q$67:Q$79) -> 8.004550909e+10 | R96: =(P96*100)/Q96 -> 0.03825316741
A99: WRS rates
A100: Category group | B100: Rating basis
A101: Regional CBD | B101: Remainder
A102: Business | B102: Remainder
A103: Residential | B103: 14
A104: Rural | B104: 28
A107: Flood protection
A108: From Essbase / Landcare & Wairarapa Accountant
A109: TA full name | B109: [not used] | C109: River management | D109: [not used] | E109: Total
A110: Wellington city | C110: 56927.23 | E110: =SUM(B110:D110) -> 56927.23
A111: Hutt city | C111: 4310872.977 | E111: =SUM(B111:D111) -> 4310872.977
A112: Upper Hutt city | C112: 1070771.132 | E112: 1070771.132
A113: Porirua city | C113: 56420.49595 | E113: 56420.49595
A114: Kāpiti Coast district | C114: 1282535.312 | E114: 1282535.312
A115: Masterton district | E115: 0
A116: Carterton district | C116: 24909.32 | E116: 24909.32
A117: South Wairarapa district | E117: 0
A118: Tararua district | E118: 0
A119: Non district Wide | E119: 0
A120: Special Rates | E120: 0
A121: External Revenue | E121: 0
A122: Total | C122: =SUM(C110:C121) -> 6802436.468 | E122: =SUM(B122:D122) -> 6802436.468
A124: Non district-wide breakdown
A125: Greytown River Management Rate | D125: 97250.86
A126: Donalds Creek Stopbank River Management Rate | D126: 2747.54
A127: South Wairarapa district River Management Rates | D127: =SUM(D125:D126) -> 99998.4
A130: Stadium Rate (ex-GST)
A131: Stadium rate allocations
A132: =B66 -> Rating area | B132: =C66 -> Category group | C132: Concatenated name | D132: CV | E132: Stadium allocation
A133: =B67 -> Wellington city | B133: Regional CBD | C133: Wellington cityRegional CBD | D133: =INDEX(capital_values,MATCH($C133,capital_values_rows,0),MATCH(D$132&" "&year_current,capital_values_header,0)) -> 9782829150 | E133: =0.2055*D133/SUM($D$133:$D$134) -> 0.1393258352
A134: =B68 -> Wellington city | B134: Business | C134: Wellington cityBusiness | D134: 4646450150 | E134: =0.2055*D134/SUM($D$133:$D$134) -> 0.06617416476
A135: =B69 -> Wellington city | B135: Residential | C135: Wellington cityResidential | D135: 58332994000 | E135: 0.3856
A136: =B70 -> Wellington city | B136: Rural | C136: Wellington cityRural | D136: 814886100 | E136: 0.0029
A137: =B71 -> Hutt city | B137: Business | C137: Hutt cityBusiness | D137: 4807328500 | E137: 0.0509
A138: =B72 -> Hutt city | B138: Residential | C138: Hutt cityResidential | D138: 23274334000 | E138: 0.142
A139: =B73 -> Hutt city | B139: Rural | C139: Hutt cityRural | D139: 419135000 | E139: 0.0023
A140: =B74 -> Upper Hutt city | B140: Business | C140: Upper Hutt cityBusiness | D140: 1423091700 | E140: 0.0079
A141: =B75 -> Upper Hutt city | B141: Residential | C141: Upper Hutt cityResidential | D141: 8885002100 | E141: 0.0427
A142: =B76 -> Upper Hutt city | B142: Rural | C142: Upper Hutt cityRural | D142: 1146160000 | E142: 0.002
A143: =B77 -> Porirua city | B143: Business | C143: Porirua cityBusiness | D143: 1437330000 | E143: 0.0124
A144: =B78 -> Porirua city | B144: Residential | C144: Porirua cityResidential | D144: 12059685950 | E144: 0.058
A145: =B79 -> Porirua city | B145: Rural | C145: Porirua cityRural | D145: 845020700 | E145: 0.0014
A146: =B80 -> Kāpiti Coast district | B146: Business | C146: Kāpiti Coast districtBusiness | D146: 1770722000 | E146: =0.0441*D146/SUM($D$146:$D$148) -> 0.004620956368
A147: =B81 -> Kāpiti Coast district excl Ōtaki | B147: Residential | C147: Kāpiti Coast district excl Ōtaki Residential | D147: 13489357800 | E147: =0.0441*D147/SUM($D$146:$D$148) -> 0.03520243936
A148: =B82 -> Ōtaki rating area | B148: Residential | C148: Ōtaki rating areaResidential | D148: 1638768400 | E148: =0.0441*D148/SUM($D$146:$D$148) -> 0.004276604274
A149: =B83 -> Kāpiti Coast district | B149: Rural | C149: Kāpiti Coast districtRural | D149: 2605985950 | E149: 0.0043
A150: =B84 -> Masterton district | B150: Business | C150: Masterton districtBusiness | D150: 734108600 | E150: =0.0147*D150/SUM($D$150:$D$151) -> 0.002308313671
A151: =B85 -> Masterton district | B151: Residential | C151: Masterton districtResidential | D151: 3940904400 | E151: =0.0147*D151/SUM($D$150:$D$151) -> 0.01239168633
A152: =B86 -> Masterton district | B152: Rural | C152: Masterton districtRural | D152: 3925894655 | E152: 0.0053
A153: =B87 -> Carterton district | B153: Business | C153: Carterton districtBusiness | D153: 126728500 | E153: =0.0039*D153/SUM($D$153:$D$154) -> 0.0003540683305
A154: =B88 -> Carterton district | B154: Residential | C154: Carterton districtResidential | D154: 1269163500 | E154: =0.0039*D154/SUM($D$153:$D$154) -> 0.003545931669
A155: =B89 -> Carterton district | B155: Rural | C155: Carterton districtRural | D155: 2224085800 | E155: 0.0031
A156: =B90 -> South Wairarapa district | B156: Business | C156: South Wairarapa districtBusiness | D156: 278760000 | E156: =0.0072*D156/SUM($D$156:$D$157) -> 0.0008557313075
A157: =B91 -> South Wairarapa district | B157: Residential | C157: South Wairarapa districtResidential | D157: 2066686500 | E157: =0.0072*D157/SUM($D$156:$D$157) -> 0.006344268693
A158: =B92 -> South Wairarapa district | B158: Rural | C158: South Wairarapa districtRural | D158: 3867990500 | E158: 0.0038
A159: =B93 -> Tararua district | B159: Rural | C159: Tararua districtRural | D159: 10673500 | E159: 0
A162: Pest Rate property areas
A163: TA full name | B163: TA code | C163: Range | D163: Area ha
A164: Wellington city | B164: WCC | C164: 16690 | D164: 16197.0445
A165: Hutt city | B165: HCC | C165: 15780 to 15890, 16031 to 16600 | D165: 15091.2191
A166: Upper Hutt city | B166: UHCC | C166: 15170 to 15230, 1590 to 16016 | D166: 54346.1582
A167: Porirua city | B167: PCC | D167: 12639
A168: Kāpiti Coast district | B168: KCDC | C168: 14860 to 15150, 15251 to 15410 | D168: 29020.7598
A169: Masterton district | B169: MDC | C169: 17870 to 18130 | D169: 206574.3888
A170: Carterton district | B170: CDC | C170: 18140 to 18190 | D170: 85878.6034
A171: South Wairarapa district | B171: SWDC | C171: 18230 to 18480 | D171: 177467.1272
A172: Tararua district | B172: TDC | C172: 11130 to 17750 | D172: 5306.2972
A173: Region wide | D173: =SUM(D164:D172) -> 602520.5982
A176: Water levy
A177: Need numbers for each city - March 31 comes from Wellington Water
A178: TA full name | B178: Share of levy | C178: =year_current -> 2021/22
A179: Wellington city | B179: 0.51 | C179: =+ESSbase!$G$22*Control!B179 -> 20106162.78
A180: Hutt city | B180: 0.2637 | C180: =+ESSbase!$G$22*Control!B180 -> 10396068.87
A181: Upper Hutt city | B181: 0.1087 | C181: =+ESSbase!$G$22*Control!B181 -> 4285372.342
A182: Porirua city | B182: 0.1176 | C182: =+ESSbase!$G$22*Control!B182 -> 4636244.594
A183: Kāpiti Coast district
A184: Masterton district
A185: Carterton district
A186: South Wairarapa district
A187: Tararua district
A188: Region wide | B188: =SUM(B179:B187) -> 1 | C188: =SUM(C179:C187) -> 39423848.59

Sheet UHCC Adjustments
A1: Wellington Regional Council
A2: ="UHCC Adjustments "&year_current -> UHCC Adjustments 2021/22
A3: Printed: | B3: =NOW() -> 2021-05-04T16:13:52.820
A4: =check_total -> 0
A6: TA full name | B6: Category group | C6: Sub category group | D6: CV | E6: Rateable Land Value
A8: Trentham Military Camp
A9: Upper Hutt city | B9: Business | C9: Trentham Military Camp | D9: 70490000 | E9: 29170000
A10: Upper Hutt city | B10: Residential | C10: Trentham Military Camp | D10: 32750000 | E10: 14855000
A11: Upper Hutt city | B11: Rural | C11: Trentham Military Camp | D11: 6114000 | E11: 4076000
A12: Upper Hutt city | B12: Business & Residential | C12: Trentham Military Camp | D12: =D10+D9 -> 103240000 | E12: =E10+E9 -> 44025000
A13: Upper Hutt | B13: Total | C13: Trentham Military Camp | D13: =+D9+D10+D11 -> 109354000 | E13: =+E9+E10+E11 -> 48101000
A15: Rest of Upper Hutt
A16: Upper Hutt city | B16: Business | C16: Rest of Upper Hutt city | D16: =+D23-D9 -> 1352601700 | E16: 368881600
A17: Upper Hutt city | B17: Residential | C17: Rest of Upper Hutt city | D17: 8852252100 | E17: 4766079500
A18: Upper Hutt city | B18: Rural | C18: Rest of Upper Hutt city | D18: 1140046000 | E18: 558811000
A19: Upper Hutt city | B19: Business & Residential | C19: Rest of Upper Hutt city | D19: 10204853800 | E19: 5134961100
A20: Upper Hutt | B20: Total | C20: Rest of Upper Hutt city | D20: =+D27-D13 -> 11344899800 | E20: 5693772100
A22: All Upper Hutt
A23: Upper Hutt city | B23: Business | C23: Total | D23: =INDEX(capital_values,MATCH($A16&B16,capital_values_rows,0),MATCH(D$6&" "&year_current,capital_values_header,0)) -> 1423091700 | E23: 398051600
A24: Upper Hutt city | B24: Residential | C24: Total | D24: =INDEX(capital_values,MATCH($A17&B17,capital_values_rows,0),MATCH(D$6&" "&year_current,capital_values_header,0)) -> 8885002100 | E24: 4780934500
A25: Upper Hutt city | B25: Rural | C25: Total | D25: =INDEX(capital_values,MATCH($A18&B18,capital_values_rows,0),MATCH(D$6&" "&year_current,capital_values_header,0)) -> 1146160000 | E25: 562887000
A26: Upper Hutt city | B26: Business & Residential | C26: Total | D26: =D24+D23 -> 10308093800 | E26: =E24+E23 -> 5178986100
A27: Upper Hutt | B27: All | C27: Total | D27: =+'Capital values'!F10 -> 11454253800 | E27: =+E23+E24+E25 -> 5741873100
A29: Trentham Military Camp share of rates
A30: Upper Hutt city | B30: Business | C30: Trentham % of Share | D30: =+D9/D23 -> 0.04953299917 | E30: =+E9/E23 -> 0.07328195641
A31: Upper Hutt city | B31: Residential | C31: Trentham % of Share | D31: =+D10/D24 -> 0.003685986748 | E31: 0.003107133135
A32: Upper Hutt city | B32: Rural | C32: Trentham % of Share | D32: =+D11/D25 -> 0.005334333775 | E32: 0.007241240249
A33: Upper Hutt city | B33: Business & Residential | C33: % of Share | D33: =+D12/D26 -> 0.01001543079 | E33: 0.008500698621
A34: Upper Hutt | B34: All | C34: % of Share | D34: =+D13/D27 -> 0.009547020863 | E34: =+E13/E27 -> 0.008377231465

Sheet Capital values
A1: Wellington Regional Council
A2: Rateable values
A3: =check_total -> 0
A5: Capital values | L5: ECV as a % of total ECV
A6: =Control!A41 -> TA full name | B6: Rating area | C6: =Control!B41 -> Category group | D6: =Control!C41 -> Concatenated row | E6: ="CV "&year_previous -> CV 2020/21 | F6: ="CV "&year_current -> CV 2021/22 | G6: ="ECV "&year_previous -> ECV 2020/21 | H6: ="ECV "&year_current -> ECV 2021/22 | J6: Check CV | K6: Check ECV | L6: ECV 2020/21 | M6: ECV 2021/22 | N6: change
A7: =Control!A52 -> 0 | C7: =Control!B52 -> 0 | D7: =Control!C52 -> 0
A8: =Control!A42 -> Wellington city | C8: =Control!B42 -> District wide | D8: =Control!C42 -> Wellington cityDistrict wide | E8: =SUMIF($A$19:$A$45,$A8,E$19:E$45) -> 73472412400 | F8: 73577159400 | G8: 78916163129 | H8: 87383049753 | K8: =ISBLANK(G8)+ISBLANK(H8) -> 0 | L8: =G8/G$17 -> 0.4740393269 | M8: =H8/H$17 -> 0.4684990642 | N8: =M8-L8 -> -0.005540262712
A9: =Control!A43 -> Hutt city | C9: =Control!B43 -> District wide | D9: =Control!C43 -> Hutt cityDistrict wide | E9: 28322072500 | F9: 28500797500 | G9: 28856396822 | H9: 32345787106 | K9: =ISBLANK(G9)+ISBLANK(H9) -> 0 | L9: =G9/G$17 -> 0.1733366953 | M9: =H9/H$17 -> 0.1734200286 | N9: =M9-L9 -> 8.333327855e-05
A10: =Control!A44 -> Upper Hutt city | C10: =Control!B44 -> District wide | D10: =Control!C44 -> Upper Hutt cityDistrict wide | E10: 11368717300 | F10: 11454253800 | G10: 11490862745 | H10: 13073239090 | K10: 0 | L10: 0.06902414696 | M10: 0.07009139984 | N10: 0.001067252883
A11: =Control!A45 -> Porirua city | C11: =Control!B45 -> District wide | D11: =Control!C45 -> Porirua cityDistrict wide | E11: 14056194050 | F11: 14342036650 | G11: 14075045457 | H11: 15695286062 | K11: 0 | L11: 0.08454700292 | M11: 0.08414934994 | N11: -0.0003976529835
A12: =Control!A46 -> Kāpiti Coast district | C12: =Control!B46 -> District wide | D12: =Control!C46 -> Kāpiti Coast districtDistrict wide | E12: 15080860600 | F12: 19504834150 | G12: 17343052084 | H12: 19536115796 | K12: 0 | L12: 0.1041775019 | M12: 0.1047417319 | N12: 0.0005642299572
A13: =Control!A47 -> Masterton district | C13: =Control!B47 -> District wide | D13: =Control!C47 -> Masterton districtDistrict wide | E13: 6087708500 | F13: 8600907655 | G13: 7210237560 | H13: 8631869241 | K13: 0 | L13: 0.04331097742 | M13: 0.04627925751 | N13: 0.002968280086
A14: =Control!A48 -> Carterton district | C14: =Control!B48 -> District wide | D14: =Control!C48 -> Carterton districtDistrict wide | E14: 2789361700 | F14: 3619977800 | G14: 3247279141 | H14: 3660511529 | K14: 0 | L14: 0.01950599164 | M14: 0.01962561653 | N14: 0.0001196248912
A15: =Control!A49 -> South Wairarapa district | C15: =Control!B49 -> District wide | D15: =Control!C49 -> South Wairarapa districtDistrict wide | E15: 4666483900 | F15: 6213437000 | G15: 5324430465 | H15: 6175185837 | K15: 0 | L15: 0.03198317472 | M15: 0.03310789443 | N15: 0.001124719704
A16: =Control!A50 -> Tararua district | C16: =Control!B50 -> District wide | D16: =Control!C50 -> Tararua districtDistrict wide | E16: 10673500 | F16: 10673500 | G16: 12516025 | H16: 15976500 | K16: 0 | L16: 7.518216587e-05 | M16: 8.565706187e-05 | N16: 1.0474896e-05
A17: =Control!A51 -> Region wide | C17: =Control!B51 -> 0 | D17: =Control!C51 -> Region wide | E17: =SUM(E8:E16) -> 155854484450 | F17: =SUM(F8:F16) -> 165824077455 | G17: =SUM(G8:G16) -> 166475983428 | H17: =SUM(H8:H16) -> 186517020914
L18: ECV change | M18: 2020/21 CV/ECV | N18: 2021/22 CV/ECV | O18: change
A19: =Control!A67 -> Wellington city | B19: =Control!B67 -> Wellington city | C19: =Control!C67 -> Regional CBD | D19: =Control!D67 -> Wellington cityRegional CBD | E19: 9794894150 | F19: 9782829150 | G19: =E19 * (INDEX(G$8:G$16,MATCH($A19&"District wide",$D$8:$D$16,0))/INDEX(E$8:E$16,MATCH($A19&"District wide",$D$8:$D$16,0))) -> 1.052062181e+10 | H19: =F19 * (INDEX(H$8:H$16,MATCH($A19&"District wide",$D$8:$D$16,0))/INDEX(F$8:F$16,MATCH($A19&"District wide",$D$8:$D$16,0))) -> 1.161846221e+10 | J19: =ISBLANK(E19)+ISBLANK(F19) -> 0 | L19: =H19-G19 -> 1097840401 | M19: =G19/$G$8 -> 0.1333139042 | N19: =H19/$H$8 -> 0.1329601364 | O19: =N19-M19 -> -0.0003537678233
A20: =Control!A68 -> Wellington city | B20: =Control!B68 -> Wellington city | C20: =Control!C68 -> Business | D20: =Control!D68 -> Wellington cityBusiness | E20: 4653653150 | F20: 4646450150 | G20: 4998453694 | H20: =F20 * (INDEX(H$8:H$16,MATCH($A20&"District wide",$D$8:$D$16,0))/INDEX(F$8:F$16,MATCH($A20&"District wide",$D$8:$D$16,0))) -> 5518301983 | J20: =ISBLANK(E20)+ISBLANK(F20) -> 0 | L20: 519848289.7 | M20: =G20/$G$8 -> 0.06333878252 | N20: =H20/$H$8 -> 0.063150714 | O20: =N20-M20 -> -0.0001880685197
A21: =Control!A69 -> Wellington city | B21: =Control!B69 -> Wellington city | C21: =Control!C69 -> Residential | D21: =Control!D69 -> Wellington cityResidential | E21: 58212754000 | F21: 58332994000 | G21: 6.252587932e+10 | H21: 6.927849564e+10 | J21: =ISBLANK(E21)+ISBLANK(F21) -> 0 | L21: 6752616326 | M21: =G21/$G$8 -> 0.7923076444 | N21: =H21/$H$8 -> 0.7928138906 | O21: =N21-M21 -> 0.0005062461159
A22: =Control!A70 -> Wellington city | B22: =Control!B70 -> Wellington city | C22: =Control!C70 -> Rural | D22: =Control!D70 -> Wellington cityRural | E22: 811111100 | F22: 814886100 | G22: 871208305.2 | H22: 967789912 | J22: =ISBLANK(E22)+ISBLANK(F22) -> 0 | L22: 96581606.81 | M22: =G22/$G$8 -> 0.01103966882 | N22: =H22/$H$8 -> 0.01107525904 | O22: 3.559022707e-05
A23: =Control!A71 -> Hutt city | B23: =Control!B71 -> Hutt city | C23: =Control!C71 -> Business | D23: =Control!D71 -> Hutt cityBusiness | E23: 4808893500 | F23: =857816000+3949512500 -> 4807328500 | G23: 4899618102 | H23: 5455876251 | J23: =ISBLANK(E23)+ISBLANK(F23) -> 0 | L23: 556258148.7 | M23: =G23/$G$9 -> 0.1697931357 | N23: =H23/$H$9 -> 0.1686734731 | O23: -0.00111966264
A24: =Control!A72 -> Hutt city | B24: =Control!B72 -> Hutt city | C24: =Control!C72 -> Residential | D24: =Control!D72 -> Hutt cityResidential | E24: 23093154000 | F24: 23274334000 | G24: 2.352882953e+10 | H24: 2.641423113e+10 | J24: =ISBLANK(E24)+ISBLANK(F24) -> 0 | L24: 2885401605 | M24: =G24/$G$9 -> 0.8153765583 | N24: =H24/$H$9 -> 0.8166204472 | O24: 0.001243888864
A25: =Control!A73 -> Hutt city | B25: =Control!B73 -> Hutt city | C25: =Control!C73 -> Rural | D25: =Control!D73 -> Hutt cityRural | E25: 420025000 | F25: 419135000 | G25: 427949193.2 | H25: 475679723.7 | J25: 0 | L25: 47730530.49 | M25: =G25/$G$9 -> 0.01483030594 | N25: =H25/$H$9 -> 0.01470607972 | O25: -0.0001242262231
A26: =Control!A74 -> Upper Hutt city | B26: =Control!B74 -> Upper Hutt city | C26: =Control!C74 -> Business | D26: =Control!D74 -> Upper Hutt cityBusiness | E26: 1403197700 | F26: 1423091700 | G26: 1418273649 | H26: 1624236582 | J26: =ISBLANK(E26)+ISBLANK(F26) -> 0 | L26: 205962932.5 | M26: =G26/G$10 -> 0.123426211 | N26: 0.1242413277 | O26: 0.0008151167302
A27: =Control!A75 -> Upper Hutt city | B27: =Control!B75 -> Upper Hutt city | C27: =Control!C75 -> Residential | D27: =Control!D75 -> Upper Hutt cityResidential | E27: 8839255600 | F27: 8885002100 | G27: 8934224520 | H27: 1.014084015e+10 | J27: =ISBLANK(E27)+ISBLANK(F27) -> 0 | L27: 1206615625 | M27: 0.7775068521 | N27: 0.7756945372 | O27: -0.001812314902
A28: =Control!A76 -> Upper Hutt city | B28: =Control!B76 -> Upper Hutt city | C28: =Control!C76 -> Rural | D28: =Control!D76 -> Upper Hutt cityRural | E28: 1126264000 | F28: 1146160000 | G28: 1138364575 | H28: 1308162363 | J28: 0 | L28: 169797787.7 | M28: 0.09906693695 | N28: 0.1000641351 | O28: 0.0009971981717
A29: =Control!A77 -> Porirua city | B29: =Control!B77 -> Porirua city | C29: =Control!C77 -> Business | D29: =Control!D77 -> Porirua cityBusiness | E29: 1392206000 | F29: 1437330000 | G29: 1394073151 | H29: 1572949928 | J29: =ISBLANK(E29)+ISBLANK(F29) -> 0 | L29: 178876776.6 | M29: =G29/G$11 -> 0.09904572995 | N29: 0.100217984 | O29: 0.001172254084
A30: =Control!A78 -> Porirua city | B30: =Control!B78 -> Porirua city | C30: =Control!C78 -> Residential | D30: =Control!D78 -> Porirua cityResidential | E30: 11827388450 | F30: 12059685950 | G30: 1.18432507e+10 | H30: 1.319758312e+10 | J30: =ISBLANK(E30)+ISBLANK(F30) -> 0 | L30: 1354332417 | M30: 0.8414360536 | N30: 0.8408628596 | O30: -0.0005731939957
A31: =Control!A79 -> Porirua city | B31: =Control!B79 -> Porirua city | C31: =Control!C79 -> Rural | D31: =Control!D79 -> Porirua cityRural | E31: 836599600 | F31: 845020700 | G31: 837721602.1 | H31: 924753013.7 | J31: 0 | L31: 87031411.59 | M31: 0.05951821645 | N31: 0.05891915637 | O31: -0.0005990600881
A32: =Control!A80 -> Kāpiti Coast district | B32: =Control!B80 -> Kāpiti Coast district | C32: =Control!C80 -> Business | D32: =Control!D80 -> Kāpiti Coast districtBusiness | E32: 1470171000 | F32: 1770722000 | G32: 1690702733 | H32: 1773561865 | J32: =ISBLANK(E32)+ISBLANK(F32) -> 0 | L32: 82859132.62 | M32: =G32/G$12 -> 0.0974858822 | N32: 0.09078375065 | O32: -0.006702131552
A33: =Control!A81 -> Kāpiti Coast district | B33: =Control!B81 -> Kāpiti Coast district excl Ōtaki | C33: =Control!C81 -> Residential | D33: =Control!D81 -> Kāpiti Coast district excl Ōtaki Residential | E33: 10434968000 | F33: 13489357800 | G33: 1.200025637e+10 | H33: 1.351099189e+10 | J33: =ISBLANK(E33)+ISBLANK(F33) -> 0 | L33: 1510735516 | M33: 0.6919345173 | N33: 0.6915904896 | O33: -0.0003440276854
A34: =Control!A82 -> Kāpiti Coast district | B34: =Control!B82 -> Ōtaki rating area | C34: =Control!C82 -> Residential | D34: =Control!D82 -> Ōtaki rating areaResidential | E34: 1148278900 | F34: 1638768400 | G34: 1320525486 | H34: 1641396639 | J34: 0 | L34: 320871153.6 | M34: 0.07614147033 | N34: 0.08401857649 | O34: 0.007877106157
A35: =Control!A83 -> Kāpiti Coast district | B35: =Control!B83 -> Kāpiti Coast district | C35: =Control!C83 -> Rural | D35: =Control!D83 -> Kāpiti Coast districtRural | E35: 2027442700 | F35: 2605985950 | G35: 2331567493 | H35: 2610165403 | J35: 0 | L35: 278597909.5 | M35: 0.1344381301 | N35: 0.1336071832 | O35: -0.0008309469199
A36: =Control!A84 -> Masterton district | B36: =Control!B84 -> Masterton district | C36: =Control!C84 -> Business | D36: =Control!D84 -> Masterton districtBusiness | E36: 440782600 | F36: =569018600+165090000 -> 734108600 | G36: 522059697.6 | H36: 736751247.4 | J36: =ISBLANK(E36)+ISBLANK(F36) -> 0 | L36: 214691549.9 | M36: =G36/G$13 -> 0.07240533938 | N36: 0.08535245691 | O36: 0.01294711753
A37: =Control!A85 -> Masterton district | B37: =Control!B85 -> Masterton district | C37: =Control!C85 -> Residential | D37: =Control!D85 -> Masterton districtResidential | E37: 2790174300 | F37: =3940904400 -> 3940904400 | G37: 3304662097 | H37: 3955090885 | J37: =ISBLANK(E37)+ISBLANK(F37) -> 0 | L37: 650428788.5 | M37: 0.4583291562 | N37: 0.458196339 | O37: -0.0001328171538
A38: =Control!A86 -> Masterton district | B38: =Control!B86 -> Masterton district | C38: =Control!C86 -> Rural | D38: =Control!D86 -> Masterton districtRural | E38: 2856751600 | F38: 3925894655 | G38: 3383515766 | H38: 3940027108 | J38: 0 | L38: 556511342.6 | M38: 0.4692655044 | N38: 0.456451204 | O38: -0.01281430037
A39: =Control!A87 -> Carterton district | B39: =Control!B87 -> Carterton district | C39: =Control!C87 -> Business | D39: =Control!D87 -> Carterton districtBusiness | E39: 100561500 | F39: 126728500 | G39: 117070246.3 | H39: 128147508.3 | J39: =ISBLANK(E39)+ISBLANK(F39) -> 0 | L39: 11077262 | M39: =G39/G$14 -> 0.03605179637 | N39: 0.03500808762 | O39: -0.001043708748
A40: =Control!A88 -> Carterton district | B40: =Control!B88 -> Carterton district | C40: =Control!C88 -> Residential | D40: =Control!D88 -> Carterton districtResidential | E40: 897977500 | F40: 1269163500 | G40: 1045394581 | H40: 1283374617 | J40: =ISBLANK(E40)+ISBLANK(F40) -> 0 | L40: 237980036.6 | M40: 0.3219293862 | N40: 0.350599802 | O40: 0.02867041581
A41: =Control!A89 -> Carterton district | B41: =Control!B89 -> Carterton district | C41: =Control!C89 -> Rural | D41: =Control!D89 -> Carterton districtRural | E41: 1790822700 | F41: 2224085800 | G41: 2084814314 | H41: 2248989403 | J41: 0 | L41: 164175089.4 | M41: 0.6420188174 | N41: 0.6143921104 | O41: -0.02762670706
A42: =Control!A90 -> South Wairarapa district | B42: =Control!B90 -> South Wairarapa district | C42: =Control!C90 -> Business | D42: =Control!D90 -> South Wairarapa districtBusiness | E42: 211218600 | F42: 278760000 | G42: 240999170.4 | H42: 277043897.6 | J42: =ISBLANK(E42)+ISBLANK(F42) -> 0 | L42: 36044727.19 | M42: =G42/G$15 -> 0.04526290126 | N42: 0.04486405833 | O42: -0.0003988429303
A43: =Control!A91 -> South Wairarapa district | B43: =Control!B91 -> South Wairarapa district | C43: =Control!C91 -> Residential | D43: =Control!D91 -> South Wairarapa districtResidential | E43: 1423101100 | F43: 2066686500 | G43: 1623749918 | H43: 2053963564 | J43: =ISBLANK(E43)+ISBLANK(F43) -> 0 | L43: 430213645.5 | M43: 0.3049621793 | N43: 0.3326156683 | O43: 0.02765348893
A44: =Control!A92 -> South Wairarapa district | B44: =Control!B92 -> South Wairarapa district | C44: =Control!C92 -> Rural | D44: =Control!D92 -> South Wairarapa districtRural | E44: 3032164200 | F44: 3867990500 | G44: 3459681376 | H44: 3844178376 | J44: 0 | L44: 384496999.3 | M44: 0.6497749194 | N44: 0.6225202734 | O44: -0.027254646
A45: =Control!A93 -> Tararua district | B45: =Control!B93 -> Tararua district | C45: =Control!C93 -> Rural | D45: =Control!D93 -> Tararua districtRural | E45: 10673500 | F45: 10673500 | G45: 12516025 | H45: 15976500 | J45: =ISBLANK(E45)+ISBLANK(F45) -> 0 | L45: 3460475 | M45: =G45/G16 -> 1 | N45: =H45/H16 -> 1 | O45: 0
A46: =Control!A94 -> Region wide | C46: =Control!C94 -> 0 | D46: =Control!D94 -> Region wide | E46: =SUM(E19:E45) -> 155854484450 | F46: =SUM(F19:F45) -> 165824077455 | G46: =SUM(G19:G45) -> 166475983428 | H46: =SUM(H19:H45) -> 186517020914 | L46: =SUM(L19:L45) -> 2.004103749e+10 | M46: Total ECV change
L47: =SUMIF($C$19:$C$45,$C$21,L19:L45) -> 1.534919511e+10 | M47: Resi ECV change
A48: Greytown Urban -CV | E48: 799792000 | F48: 1101349500 | J48: =ISBLANK(E48)+ISBLANK(F48) -> 0 | L48: =SUMIF($C$19:$C$45,$C$20,L19:L45) -> 1805618819 | M48: Busi ECV change
A49: Featherston Urban - LV | E49: 167290500 | F49: 281682500 | J49: =ISBLANK(E49)+ISBLANK(F49) -> 0 | L49: =SUMIF($C$19:$C$45,$C$22,$L$19:$L$45) -> 1788383152 | M49: Rural ECV change
L50: =L19 -> 1097840401 | M50: CBD ECV change
A51: Check totals | E51: =Total_CV-E17 -> 0 | F51: =F17-F46 -> 0 | L51: =SUM(L47:L50) -> 2.004103749e+10 | M51: Total
A54: No. of Assessments (#)
A55: =Control!A41 -> TA full name | B55: Rating area | C55: =Control!B41 -> Category group | D55: =Control!C41 -> Concatenated row | E55: ="CV assessments "&year_previous -> CV assessments 2020/21 | F55: ="CV assessments "&year_current -> CV assessments 2021/22 | G55: ="ECV assessments "&year_previous -> ECV assessments 2020/21 | H55: ="ECV assessments "&year_current -> ECV assessments 2021/22
A56: =Control!A52 -> 0 | C56: =Control!B52 -> 0 | D56: =Control!C52 -> 0
A57: =Control!A42 -> Wellington city | C57: =Control!B42 -> District wide | D57: =Control!C42 -> Wellington cityDistrict wide | E57: =SUMIF($A$68:$A$94,$A57,E$68:E$94) -> 78507 | F57: 78595 | G57: 78459 | H57: 78889 | K57: =ISBLANK(G57)+ISBLANK(H57) -> 0
A58: =Control!A43 -> Hutt city | C58: =Control!B43 -> District wide | D58: =Control!C43 -> Hutt cityDistrict wide | E58: 39650 | F58: 39700 | G58: 40095 | H58: 40266 | K58: 0
A59: =Control!A44 -> Upper Hutt city | C59: =Control!B44 -> District wide | D59: =Control!C44 -> Upper Hutt cityDistrict wide | E59: 17159 | F59: 17172 | G59: 16957 | H59: 17181 | K59: 0
A60: =Control!A45 -> Porirua city | C60: =Control!B45 -> District wide | D60: =Control!C45 -> Porirua cityDistrict wide | E60: 19075 | F60: 19337 | G60: 18885 | H60: 19120 | K60: 0
A61: =Control!A46 -> Kāpiti Coast district | C61: =Control!B46 -> District wide | D61: =Control!C46 -> Kāpiti Coast districtDistrict wide | E61: 25234 | F61: 25398 | G61: 24996 | H61: 25116 | K61: 0
A62: =Control!A47 -> Masterton district | C62: =Control!B47 -> District wide | D62: =Control!C47 -> Masterton districtDistrict wide | E62: 12750 | F62: 12816 | G62: 12460 | H62: 12678 | K62: 0
A63: =Control!A48 -> Carterton district | C63: =Control!B48 -> District wide | D63: =Control!C48 -> Carterton districtDistrict wide | E63: 4848 | F63: 4850 | G63: 4740 | H63: 4883 | K63: 0
A64: =Control!A49 -> South Wairarapa district | C64: =Control!B49 -> District wide | D64: =Control!C49 -> South Wairarapa districtDistrict wide | E64: 6883 | F64: 7010 | G64: 6715 | H64: 6785 | K64: 0
A65: =Control!A50 -> Tararua district | C65: =Control!B50 -> District wide | D65: =Control!C50 -> Tararua districtDistrict wide | E65: 10 | F65: 10 | G65: 11 | H65: 11 | K65: 0
A66: =Control!A51 -> Region wide | C66: =Control!B51 -> 0 | D66: =Control!C51 -> Region wide | E66: =SUM(E57:E65) -> 204116 | F66: =SUM(F57:F65) -> 204888 | G66: 203318 | H66: 204929
A68: =Control!A67 -> Wellington city | B68: =Control!B67 -> Wellington city | C68: =Control!C67 -> Regional CBD | D68: =Control!D67 -> Wellington cityRegional CBD | E68: 3324 | F68: 3283 | J68: =ISBLANK(E68)+ISBLANK(F68) -> 0
A69: =Control!A68 -> Wellington city | B69: =Control!B68 -> Wellington city | C69: =Control!C68 -> Business | D69: =Control!D68 -> Wellington cityBusiness | E69: 1890 | F69: 1892 | J69: =ISBLANK(E69)+ISBLANK(F69) -> 0
A70: =Control!A69 -> Wellington city | B70: =Control!B69 -> Wellington city | C70: =Control!C69 -> Residential | D70: =Control!D69 -> Wellington cityResidential | E70: 72498 | F70: 72617 | J70: 0
A71: =Control!A70 -> Wellington city | B71: =Control!B70 -> Wellington city | C71: =Control!C70 -> Rural | D71: =Control!D70 -> Wellington cityRural | E71: 795 | F71: 803 | J71: 0
A72: =Control!A71 -> Hutt city | B72: =Control!B71 -> Hutt city | C72: =Control!C71 -> Business | D72: =Control!D71 -> Hutt cityBusiness | E72: =1997+363 -> 2360 | F72: =364+1993 -> 2357 | J72: =ISBLANK(E72)+ISBLANK(F72) -> 0
A73: =Control!A72 -> Hutt city | B73: =Control!B72 -> Hutt city | C73: =Control!C72 -> Residential | D73: =Control!D72 -> Hutt cityResidential | E73: 36806 | F73: 36859 | J73: =ISBLANK(E73)+ISBLANK(F73) -> 0
A74: =Control!A73 -> Hutt city | B74: =Control!B73 -> Hutt city | C74: =Control!C73 -> Rural | D74: =Control!D73 -> Hutt cityRural | E74: 484 | F74: 484 | J74: 0
A75: =Control!A74 -> Upper Hutt city | B75: =Control!B74 -> Upper Hutt city | C75: =Control!C74 -> Business | D75: =Control!D74 -> Upper Hutt cityBusiness | E75: 748 | F75: 748 | J75: =ISBLANK(E75)+ISBLANK(F75) -> 0
A76: =Control!A75 -> Upper Hutt city | B76: =Control!B75 -> Upper Hutt city | C76: =Control!C75 -> Residential | D76: =Control!D75 -> Upper Hutt cityResidential | E76: 15106 | F76: 15105 | J76: =ISBLANK(E76)+ISBLANK(F76) -> 0
A77: =Control!A76 -> Upper Hutt city | B77: =Control!B76 -> Upper Hutt city | C77: =Control!C76 -> Rural | D77: =Control!D76 -> Upper Hutt cityRural | E77: 1305 | F77: 1319 | J77: 0
A78: =Control!A77 -> Porirua city | B78: =Control!B77 -> Porirua city | C78: =Control!C77 -> Business | D78: =Control!D77 -> Porirua cityBusiness | E78: 803 | F78: 805 | J78: =ISBLANK(E78)+ISBLANK(F78) -> 0
A79: =Control!A78 -> Porirua city | B79: =Control!B78 -> Porirua city | C79: =Control!C78 -> Residential | D79: =Control!D78 -> Porirua cityResidential | E79: 17655 | F79: 17908 | J79: =ISBLANK(E79)+ISBLANK(F79) -> 0
A80: =Control!A79 -> Porirua city | B80: =Control!B79 -> Porirua city | C80: =Control!C79 -> Rural | D80: =Control!D79 -> Porirua cityRural | E80: 617 | F80: 624 | J80: 0
A81: =Control!A80 -> Kāpiti Coast district | B81: =Control!B80 -> Kāpiti Coast district | C81: =Control!C80 -> Business | D81: =Control!D80 -> Kāpiti Coast districtBusiness | E81: 1329 | F81: 1317 | J81: 0
A82: =Control!A81 -> Kāpiti Coast district | B82: =Control!B81 -> Kāpiti Coast district excl Ōtaki | C82: =Control!C81 -> Residential | D82: =Control!D81 -> Kāpiti Coast district excl Ōtaki Residential | E82: 18012 | F82: 18189 | J82: 0
A83: =Control!A82 -> Kāpiti Coast district | B83: =Control!B82 -> Ōtaki rating area | C83: =Control!C82 -> Residential | D83: =Control!D82 -> Ōtaki rating areaResidential | E83: 3193 | F83: 3193 | J83: 0
A84: =Control!A83 -> Kāpiti Coast district | B84: =Control!B83 -> Kāpiti Coast district | C84: =Control!C83 -> Rural | D84: =Control!D83 -> Kāpiti Coast districtRural | E84: 2700 | F84: 2699 | J84: 0
A85: =Control!A84 -> Masterton district | B85: =Control!B84 -> Masterton district | C85: =Control!C84 -> Business | D85: =Control!D84 -> Masterton districtBusiness | E85: =556+20 -> 576 | F85: =550+20 -> 570 | J85: =ISBLANK(E85)+ISBLANK(F85) -> 0
A86: =Control!A85 -> Masterton district | B86: =Control!B85 -> Masterton district | C86: =Control!C85 -> Residential | D86: =Control!D85 -> Masterton districtResidential | E86: 8227 | F86: 8310 | J86: =ISBLANK(E86)+ISBLANK(F86) -> 0
A87: =Control!A86 -> Masterton district | B87: =Control!B86 -> Masterton district | C87: =Control!C86 -> Rural | D87: =Control!D86 -> Masterton districtRural | E87: 3947 | F87: 3936 | J87: 0
A88: =Control!A87 -> Carterton district | B88: =Control!B87 -> Carterton district | C88: =Control!C87 -> Business | D88: =Control!D87 -> Carterton districtBusiness | E88: 227 | F88: 228 | J88: =ISBLANK(E88)+ISBLANK(F88) -> 0
A89: =Control!A88 -> Carterton district | B89: =Control!B88 -> Carterton district | C89: =Control!C88 -> Residential | D89: =Control!D88 -> Carterton districtResidential | E89: 2529 | F89: 2550 | J89: =ISBLANK(E89)+ISBLANK(F89) -> 0
A90: =Control!A89 -> Carterton district | B90: =Control!B89 -> Carterton district | C90: =Control!C89 -> Rural | D90: =Control!D89 -> Carterton districtRural | E90: 2092 | F90: 2072 | J90: 0
A91: =Control!A90 -> South Wairarapa district | B91: =Control!B90 -> South Wairarapa district | C91: =Control!C90 -> Business | D91: =Control!D90 -> South Wairarapa districtBusiness | E91: 314 | F91: 313 | J91: =ISBLANK(E91)+ISBLANK(F91) -> 0
A92: =Control!A91 -> South Wairarapa district | B92: =Control!B91 -> South Wairarapa district | C92: =Control!C91 -> Residential | D92: =Control!D91 -> South Wairarapa districtResidential | E92: 3373 | F92: 3446 | J92: =ISBLANK(E92)+ISBLANK(F92) -> 0
A93: =Control!A92 -> South Wairarapa district | B93: =Control!B92 -> South Wairarapa district | C93: =Control!C92 -> Rural | D93: =Control!D92 -> South Wairarapa districtRural | E93: 3196 | F93: 3251 | J93: 0
A94: =Control!A93 -> Tararua district | B94: =Control!B93 -> Tararua district | C94: =Control!C93 -> Rural | D94: =Control!D93 -> Tararua districtRural | E94: 10 | F94: 10 | J94: =ISBLANK(E94)+ISBLANK(F94) -> 0
A95: =Control!A94 -> Region wide | C95: =Control!C94 -> 0 | D95: =Control!D94 -> Region wide | E95: =SUM(E68:E94) -> 204116 | F95: =SUM(F68:F94) -> 204888
A97: Check totals | E97: =Total_assessments-E66 -> 0 | F97: =F66-F95 -> 0
A100: Number of Assessments Contiguous for WRS
A101: =Control!A41 -> TA full name | C101: =Control!B41 -> Category group | D101: =Control!C41 -> Concatenated row | E101: ="Contiguous assements "&year_previous -> Contiguous assements 2020/21 | F101: ="Contiguous assements "&year_current -> Contiguous assements 2021/22
A102: =Control!A52 -> 0 | C102: =Control!B52 -> 0 | D102: =Control!C52 -> 0
A103: =Control!A42 -> Wellington city | C103: =Control!B42 -> District wide | D103: =Control!C42 -> Wellington cityDistrict wide | E103: =SUMIF($A$114:$A$140,$A103,E$114:E$140) -> 0 | F103: =SUMIF($A$114:$A$140,$A103,F$114:F$140) -> 0
A104: =Control!A43 -> Hutt city | C104: =Control!B43 -> District wide | D104: =Control!C43 -> Hutt cityDistrict wide | E104: =SUMIF($A$114:$A$140,$A104,E$114:E$140) -> 125 | F104: 125
A105: =Control!A44 -> Upper Hutt city | C105: =Control!B44 -> District wide | D105: =Control!C44 -> Upper Hutt cityDistrict wide | E105: 124 | F105: 99
A106: =Control!A45 -> Porirua city | C106: =Control!B45 -> District wide | D106: =Control!C45 -> Porirua cityDistrict wide | E106: 0 | F106: 0
A107: =Control!A46 -> Kāpiti Coast district | C107: =Control!B46 -> District wide | D107: =Control!C46 -> Kāpiti Coast districtDistrict wide | E107: 352 | F107: 339
A108: =Control!A47 -> Masterton district | C108: =Control!B47 -> District wide | D108: =Control!C47 -> Masterton districtDistrict wide | E108: 468 | F108: 465
A109: =Control!A48 -> Carterton district | C109: =Control!B48 -> District wide | D109: =Control!C48 -> Carterton districtDistrict wide | E109: 425 | F109: 337
A110: =Control!A49 -> South Wairarapa district | C110: =Control!B49 -> District wide | D110: =Control!C49 -> South Wairarapa districtDistrict wide | E110: 388 | F110: 386
A111: =Control!A50 -> Tararua district | C111: =Control!B50 -> District wide | D111: =Control!C50 -> Tararua districtDistrict wide | E111: 1 | F111: 1
A112: =Control!A51 -> Region wide | C112: =Control!B51 -> 0 | D112: =Control!C51 -> Region wide | E112: =SUM(E103:E111) -> 1883 | F112: =SUM(F103:F111) -> 1752
A114: =Control!A67 -> Wellington city | B114: =Control!B67 -> Wellington city | C114: =Control!C67 -> Regional CBD | D114: =Control!D67 -> Wellington cityRegional CBD
A115: =Control!A68 -> Wellington city | B115: =Control!B68 -> Wellington city | C115: =Control!C68 -> Business | D115: =Control!D68 -> Wellington cityBusiness
A116: =Control!A69 -> Wellington city | B116: =Control!B69 -> Wellington city | C116: =Control!C69 -> Residential | D116: =Control!D69 -> Wellington cityResidential
A117: =Control!A70 -> Wellington city | B117: =Control!B70 -> Wellington city | C117: =Control!C70 -> Rural | D117: =Control!D70 -> Wellington cityRural
A118: =Control!A71 -> Hutt city | B118: =Control!B71 -> Hutt city | C118: =Control!C71 -> Business | D118: =Control!D71 -> Hutt cityBusiness
A119: =Control!A72 -> Hutt city | B119: =Control!B72 -> Hutt city | C119: =Control!C72 -> Residential | D119: =Control!D72 -> Hutt cityResidential | E119: 125 | F119: 125
A120: =Control!A73 -> Hutt city | B120: =Control!B73 -> Hutt city | C120: =Control!C73 -> Rural | D120: =Control!D73 -> Hutt cityRural
A121: =Control!A74 -> Upper Hutt city | B121: =Control!B74 -> Upper Hutt city | C121: =Control!C74 -> Business | D121: =Control!D74 -> Upper Hutt cityBusiness | E121: 17 | F121: 19
A122: =Control!A75 -> Upper Hutt city | B122: =Control!B75 -> Upper Hutt city | C122: =Control!C75 -> Residential | D122: =Control!D75 -> Upper Hutt cityResidential | E122: 45 | F122: 29
A123: =Control!A76 -> Upper Hutt city | B123: =Control!B76 -> Upper Hutt city | C123: =Control!C76 -> Rural | D123: =Control!D76 -> Upper Hutt cityRural | E123: 62 | F123: 51
A124: =Control!A77 -> Porirua city | B124: =Control!B77 -> Porirua city | C124: =Control!C77 -> Business | D124: =Control!D77 -> Porirua cityBusiness
A125: =Control!A78 -> Porirua city | B125: =Control!B78 -> Porirua city | C125: =Control!C78 -> Residential | D125: =Control!D78 -> Porirua cityResidential
A126: =Control!A79 -> Porirua city | B126: =Control!B79 -> Porirua city | C126: =Control!C79 -> Rural | D126: =Control!D79 -> Porirua cityRural
A127: =Control!A80 -> Kāpiti Coast district | B127: =Control!B80 -> Kāpiti Coast district | C127: =Control!C80 -> Business | D127: =Control!D80 -> Kāpiti Coast districtBusiness
A128: =Control!A81 -> Kāpiti Coast district | B128: =Control!B81 -> Kāpiti Coast district excl Ōtaki | C128: =Control!C81 -> Residential | D128: =Control!D81 -> Kāpiti Coast district excl Ōtaki Residential | E128: 156 | F128: 146
A129: =Control!A82 -> Kāpiti Coast district | B129: =Control!B82 -> Ōtaki rating area | C129: =Control!C82 -> Residential | D129: =Control!D82 -> Ōtaki rating areaResidential | E129: 42 | F129: 42
A130: =Control!A83 -> Kāpiti Coast district | B130: =Control!B83 -> Kāpiti Coast district | C130: =Control!C83 -> Rural | D130: =Control!D83 -> Kāpiti Coast districtRural | E130: 154 | F130: 151
A131: =Control!A84 -> Masterton district | B131: =Control!B84 -> Masterton district | C131: =Control!C84 -> Business | D131: =Control!D84 -> Masterton districtBusiness
A132: =Control!A85 -> Masterton district | B132: =Control!B85 -> Masterton district | C132: =Control!C85 -> Residential | D132: =Control!D85 -> Masterton districtResidential | E132: 27 | F132: 31
A133: =Control!A86 -> Masterton district | B133: =Control!B86 -> Masterton district | C133: =Control!C86 -> Rural | D133: =Control!D86 -> Masterton districtRural | E133: 441 | F133: 434
A134: =Control!A87 -> Carterton district | B134: =Control!B87 -> Carterton district | C134: =Control!C87 -> Business | D134: =Control!D87 -> Carterton districtBusiness
A135: =Control!A88 -> Carterton district | B135: =Control!B88 -> Carterton district | C135: =Control!C88 -> Residential | D135: =Control!D88 -> Carterton districtResidential | E135: 112 | F135: 64
A136: =Control!A89 -> Carterton district | B136: =Control!B89 -> Carterton district | C136: =Control!C89 -> Rural | D136: =Control!D89 -> Carterton districtRural | E136: 313 | F136: 273
A137: =Control!A90 -> South Wairarapa district | B137: =Control!B90 -> South Wairarapa district | C137: =Control!C90 -> Business | D137: =Control!D90 -> South Wairarapa districtBusiness
A138: =Control!A91 -> South Wairarapa district | B138: =Control!B91 -> South Wairarapa district | C138: =Control!C91 -> Residential | D138: =Control!D91 -> South Wairarapa districtResidential | E138: 94 | F138: 90
A139: =Control!A92 -> South Wairarapa district | B139: =Control!B92 -> South Wairarapa district | C139: =Control!C92 -> Rural | D139: =Control!D92 -> South Wairarapa districtRural | E139: 294 | F139: 296
A140: =Control!A93 -> Tararua district | B140: =Control!B93 -> Tararua district | C140: =Control!C93 -> Rural | D140: =Control!D93 -> Tararua districtRural | E140: 1 | F140: 1
A141: =Control!A94 -> Region wide | C141: =Control!C94 -> 0 | D141: =Control!D94 -> Region wide | E141: =SUM(E114:E140) -> 1883 | F141: =SUM(F114:F140) -> 1752
A143: Check totals | E143: =E112-E141 -> 0 | F143: =F112-F141 -> 0

Sheet CV Analysis
A1: Greater Wellington Regional Council
A2: Analysis of Capital Value and Assessments
C5: Capital Values proposal | D5: Capital Values 2020/21 | F5: proposal | G5: ="CV assessments "&year_current -> CV assessments 2021/22 | I5: proposal | J5: ="Contiguous assements "&year_current -> Contiguous assements 2021/22 | L5: CV Average proposal | M5: CV Average 2020/21 | O5: CV Average movement | P5: change in CV | Q5: change in assessment | S5: Comments
A7: =Control!A67 -> Wellington city | B7: =Control!C67 -> Regional CBD | C7: 9921148650 | D7: ='Capital values'!F19 -> 9782829150 | F7: 3340 | G7: ='Capital values'!F68 -> 3283 | J7: ='Capital values'!F114 -> 0 | L7: =C7/F7 -> 2970403.787 | M7: =D7/G7 -> 2979844.395 | O7: =M7-L7 -> 9440.607945 | P7: =D7-C7 -> -138319500 | Q7: =G7-F7 -> -57
A8: =Control!A68 -> Wellington city | B8: =Control!C68 -> Business | C8: 4638515650 | D8: ='Capital values'!F20 -> 4646450150 | F8: 1897 | G8: ='Capital values'!F69 -> 1892 | J8: ='Capital values'!F115 -> 0 | L8: =C8/F8 -> 2445184.844 | M8: =D8/G8 -> 2455840.46 | O8: =M8-L8 -> 10655.61534 | P8: =D8-C8 -> 7934500 | Q8: =G8-F8 -> -5
A9: =Control!A69 -> Wellington city | B9: =Control!C69 -> Residential | C9: 57499964050 | D9: ='Capital values'!F21 -> 58332994000 | F9: 71826 | G9: ='Capital values'!F70 -> 72617 | J9: ='Capital values'!F116 -> 0 | L9: =C9/F9 -> 800545.2629 | M9: 803296.6661 | O9: 2751.403212 | P9: 833029950 | Q9: 791
A10: =Control!A70 -> Wellington city | B10: =Control!C70 -> Rural | C10: 794922100 | D10: ='Capital values'!F22 -> 814886100 | F10: 790 | G10: ='Capital values'!F71 -> 803 | J10: ='Capital values'!F117 -> 0 | L10: =C10/F10 -> 1006230.506 | M10: =D10/G10 -> 1014802.117 | O10: =M10-L10 -> 8571.610732 | P10: 19964000 | Q10: 13
A11: =Control!A71 -> Hutt city | B11: =Control!C71 -> Business | C11: 3813013500 | D11: ='Capital values'!F23 -> 4807328500 | F11: 2359 | G11: ='Capital values'!F72 -> 2357 | J11: ='Capital values'!F118 -> 0 | L11: 1616368.588 | M11: 2039596.309 | O11: 423227.7205 | P11: 994315000 | Q11: -2
A12: =Control!A72 -> Hutt city | B12: =Control!C72 -> Residential | C12: 17395848500 | D12: ='Capital values'!F24 -> 23274334000 | F12: 36551 | G12: ='Capital values'!F73 -> 36859 | I12: 125 | J12: ='Capital values'!F119 -> 125 | L12: 475933.5859 | M12: 631442.3614 | O12: =M12-L12 -> 155508.7755 | P12: 5878485500 | Q12: 308
A13: =Control!A73 -> Hutt city | B13: =Control!C73 -> Rural | C13: 316542000 | D13: ='Capital values'!F25 -> 419135000 | F13: 488 | G13: ='Capital values'!F74 -> 484 | J13: ='Capital values'!F120 -> 0 | L13: 648651.6393 | M13: 865981.405 | O13: 217329.7656 | P13: 102593000 | Q13: -4
A14: =Control!A74 -> Upper Hutt city | B14: =Control!C74 -> Business | C14: 1182339500 | D14: ='Capital values'!F26 -> 1423091700 | F14: 746 | G14: ='Capital values'!F75 -> 748 | J14: ='Capital values'!F121 -> 19 | L14: 1584905.496 | M14: 1902529.011 | O14: =M14-L14 -> 317623.5147 | P14: 240752200 | Q14: 2
A15: =Control!A75 -> Upper Hutt city | B15: =Control!C75 -> Residential | C15: 6233760420 | D15: ='Capital values'!F27 -> 8885002100 | F15: 14902 | G15: ='Capital values'!F76 -> 15105 | I15: 29 | J15: ='Capital values'!F122 -> 29 | L15: 418317.0326 | M15: 588215.9616 | O15: 169898.929 | P15: 2651241680 | Q15: 203
A16: =Control!A76 -> Upper Hutt city | B16: =Control!C76 -> Rural | C16: 861586340 | D16: ='Capital values'!F28 -> 1146160000 | F16: 1266 | G16: ='Capital values'!F77 -> 1319 | I16: 67 | J16: ='Capital values'!F123 -> 51 | L16: 680557.9305 | M16: 868961.3343 | O16: =M16-L16 -> 188403.4039 | P16: 284573660 | Q16: 53
A17: =Control!A77 -> Porirua city | B17: =Control!C77 -> Business | C17: 1101735500 | D17: ='Capital values'!F29 -> 1437330000 | F17: 798 | G17: ='Capital values'!F78 -> 805 | J17: ='Capital values'!F124 -> 0 | L17: 1380620.927 | M17: 1785503.106 | O17: =M17-L17 -> 404882.1783 | P17: 335594500 | Q17: 7
A18: =Control!A78 -> Porirua city | B18: =Control!C78 -> Residential | C18: 8642049050 | D18: ='Capital values'!F30 -> 12059685950 | F18: 17394 | G18: ='Capital values'!F79 -> 17908 | J18: ='Capital values'!F125 -> 0 | L18: 496840.81 | M18: 673424.5002 | O18: 176583.6902 | P18: 3417636900 | Q18: 514
A19: =Control!A79 -> Porirua city | B19: =Control!C79 -> Rural | C19: 623527750 | D19: ='Capital values'!F31 -> 845020700 | F19: 616 | G19: ='Capital values'!F80 -> 624 | J19: ='Capital values'!F126 -> 0 | L19: 1012220.373 | M19: 1354199.84 | O19: 341979.4664 | P19: 221492950 | Q19: 8
A20: =Control!A80 -> Kāpiti Coast district | B20: =Control!C80 -> Business | C20: 1476489000 | D20: ='Capital values'!F32 -> 1770722000 | F20: 1333 | G20: ='Capital values'!F81 -> 1317 | J20: ='Capital values'!F127 -> 0 | L20: 1107643.661 | M20: 1344511.769 | O20: 236868.1083 | P20: 294233000 | Q20: -16
A21: =Control!A81 -> Kāpiti Coast district | B21: =Control!C81 -> Residential | C21: 10311045500 | D21: ='Capital values'!F33 -> 13489357800 | F21: 17951 | G21: ='Capital values'!F82 -> 18189 | I21: 163 | J21: ='Capital values'!F128 -> 146 | L21: 574399.5042 | M21: 741621.7384 | O21: 167222.2342 | P21: 3178312300 | Q21: 238
A22: =Control!A82 -> Kāpiti Coast district | B22: =Control!C82 -> Residential | C22: 1121512900 | D22: ='Capital values'!F34 -> 1638768400 | F22: 3173 | G22: ='Capital values'!F83 -> 3193 | I22: 44 | J22: ='Capital values'!F129 -> 42 | L22: 353455.0583 | M22: 513237.8328 | O22: 159782.7745 | P22: 517255500 | Q22: 20
A23: =Control!A83 -> Kāpiti Coast district | B23: =Control!C83 -> Rural | C23: 1985010700 | D23: ='Capital values'!F35 -> 2605985950 | F23: 2647 | G23: ='Capital values'!F84 -> 2699 | I23: 155 | J23: ='Capital values'!F130 -> 151 | L23: 749909.5958 | M23: 965537.588 | O23: 215627.9922 | P23: 620975250 | Q23: 52
A24: =Control!A84 -> Masterton district | B24: =Control!C84 -> Business | C24: 433209100 | D24: ='Capital values'!F36 -> 734108600 | F24: 549 | G24: ='Capital values'!F85 -> 570 | J24: ='Capital values'!F131 -> 0 | L24: =C24/F24 -> 789087.6138 | M24: 1287909.825 | O24: 498822.2107 | P24: 300899500 | Q24: 21
A25: =Control!A85 -> Masterton district | B25: =Control!C85 -> Residential | C25: 2678795300 | D25: ='Capital values'!F37 -> 3940904400 | F25: 8086 | G25: ='Capital values'!F86 -> 8310 | I25: 19 | J25: ='Capital values'!F132 -> 31 | L25: 331288.0658 | M25: 474236.3899 | O25: 142948.3241 | P25: 1262109100 | Q25: 224
A26: =Control!A86 -> Masterton district | B26: =Control!C86 -> Rural | C26: 2808505600 | D26: ='Capital values'!F38 -> 3925894655 | F26: 3895 | G26: ='Capital values'!F87 -> 3936 | I26: 445 | J26: ='Capital values'!F133 -> 434 | L26: 721054.0693 | M26: 997432.5851 | O26: 276378.5158 | P26: 1117389055 | Q26: 41
A27: =Control!A87 -> Carterton district | B27: =Control!C87 -> Business | C27: 97126500 | D27: ='Capital values'!F39 -> 126728500 | F27: 226 | G27: ='Capital values'!F88 -> 228 | J27: ='Capital values'!F134 -> 0 | L27: 429763.2743 | M27: 555826.7544 | O27: 126063.48 | P27: 29602000 | Q27: 2
A28: =Control!A88 -> Carterton district | B28: =Control!C88 -> Residential | C28: 858895500 | D28: ='Capital values'!F40 -> 1269163500 | F28: 2397 | G28: ='Capital values'!F89 -> 2550 | I28: 70 | J28: ='Capital values'!F135 -> 64 | L28: 358321.0263 | M28: 497711.1765 | O28: 139390.1502 | P28: 410268000 | Q28: 153
A29: =Control!A89 -> Carterton district | B29: =Control!C89 -> Rural | C29: 1749109700 | D29: ='Capital values'!F41 -> 2224085800 | F29: 2048 | G29: ='Capital values'!F90 -> 2072 | I29: 303 | J29: ='Capital values'!F136 -> 273 | L29: 854057.4707 | M29: 1073400.483 | O29: 219343.0119 | P29: 474976100 | Q29: 24
A30: =Control!A90 -> South Wairarapa district | B30: =Control!C90 -> Business | C30: 211288600 | D30: ='Capital values'!F42 -> 278760000 | F30: 312 | G30: ='Capital values'!F91 -> 313 | J30: ='Capital values'!F137 -> 0 | L30: 677207.0513 | M30: 890607.0288 | O30: 213399.9775 | P30: 67471400 | Q30: 1
A31: =Control!A91 -> South Wairarapa district | B31: =Control!C91 -> Residential | C31: 1373326100 | D31: ='Capital values'!F43 -> 2066686500 | F31: 3307 | G31: ='Capital values'!F92 -> 3446 | I31: 102 | J31: ='Capital values'!F138 -> 90 | L31: 415278.5304 | M31: 599734.91 | O31: 184456.3797 | P31: 693360400 | Q31: 139
A32: =Control!A92 -> South Wairarapa district | B32: =Control!C92 -> Rural | C32: 2970196100 | D32: ='Capital values'!F44 -> 3867990500 | F32: 3127 | G32: ='Capital values'!F93 -> 3251 | I32: 300 | J32: ='Capital values'!F139 -> 296 | L32: 949854.8449 | M32: 1189784.835 | O32: 239929.9905 | P32: 897794400 | Q32: 124
A33: =Control!A93 -> Tararua district | B33: =Control!C93 -> Rural | C33: 10673500 | D33: ='Capital values'!F45 -> 10673500 | F33: 10 | G33: ='Capital values'!F94 -> 10 | I33: 1 | J33: ='Capital values'!F140 -> 1 | L33: =C33/F33 -> 1067350 | M33: =D33/G33 -> 1067350 | O33: =M33-L33 -> 0 | P33: 0 | Q33: 0
A34: =Control!A94 -> Region wide | B34: =Control!C94 -> 0 | C34: =SUM(C7:C33) -> 141110137110 | D34: =SUM(D7:D33) -> 165824077455 | F34: =SUM(F7:F33) -> 202034 | G34: =SUM(G7:G33) -> 204888 | I34: =SUM(I7:I33) -> 1823 | J34: =SUM(J7:J33) -> 1752 | L34: =C34/F34 -> 698447.4747 | M34: 809340.1149 | O34: =M34-L34 -> 110892.6401 | P34: =SUM(P7:P33) -> 24713940345 | Q34: =SUM(Q7:Q33) -> 2854
A36: Greytown Urban -CV | C36: 739130000 | D36: 770802000
A37: Featherston Urban - LV | C37: 162213500 | D37: 163379500
A39: Regional CBD | C39: =SUMIF($B$7:$B$33,$A39,C$7:C$33) -> 9921148650 | D39: =SUMIF($B$7:$B$33,$A39,D$7:D$33) -> 9782829150 | F39: =SUMIF($B$7:$B$33,$A39,F$7:F$33) -> 3340 | G39: 3283 | I39: 0 | J39: 0 | L39: 2970403.787 | M39: 2979844.395 | O39: =SUMIF($B$7:$B$33,$A39,O$7:O$33) -> 9440.607945 | P39: =SUMIF($B$7:$B$33,$A39,P$7:P$33) -> -138319500 | Q39: =SUMIF($B$7:$B$33,$A39,Q$7:Q$33) -> -57
A40: Business | C40: =SUMIF($B$7:$B$33,$A40,C$7:C$33) -> 12953717350 | D40: =SUMIF($B$7:$B$33,$A40,D$7:D$33) -> 15224519450 | F40: 8220 | G40: 8230 | I40: 0 | J40: 19 | L40: 10030781.46 | M40: 12262324.26 | O40: 2231542.805 | P40: 2270802100 | Q40: 10
A41: Residential | C41: 106115197320 | D41: 124956896650 | F41: 175587 | G41: 178177 | I41: 552 | J41: 527 | L41: 4224378.876 | M41: 5522921.537 | O41: 1298542.66 | P41: 18841699330 | Q41: 2590
A42: Rural | C42: 12120073790 | D42: 15859832205 | F42: 14887 | G42: 15198 | I42: 1271 | J42: 1206 | L42: 7689886.43 | M42: 9397450.187 | O42: 1707563.757 | P42: 3739758415 | Q42: 311
A43: Total | C43: =SUM(C39:C42) -> 141110137110 | D43: =SUM(D39:D42) -> 165824077455 | F43: =SUM(F39:F42) -> 202034 | G43: =SUM(G39:G42) -> 204888 | I43: 1823 | J43: =SUM(J39:J42) -> 1752 | L43: =C43/F43 -> 698447.4747 | M43: =D43/G43 -> 809340.1149 | O43: =M43-L43 -> 110892.6401 | P43: =SUM(P39:P42) -> 24713940345 | Q43: =SUM(Q39:Q42) -> 2854

Sheet ESSbase
A1: Wellington Regional Council
A2: ESSBase values
A3: =check_total -> 0
B5: Model naming convention | C5: Essbase name | D5: Essbase name | F5: Last Year Base | G5: Current Year Base | H5: Change | J5: Proposed Budget Base
F6: 2020/21 | G6: 2021/22 | H6: 2020/21 | J6: 2020/21
B8: General rate | C8: WRC - Mgmt | D8: General Rates | F8: 49631865 | G8: 62657213.28 | H8: =G8/F8-1 -> 0.2624392267 | J8: 0 | K8: 0 | N8: =J8-G8 -> -62657213.28 | Q8: =+G8-F8 -> 13025348.27 | R8: General Rate | S8: =+H8 -> 0.2624392267
B9: Remission of rates | D9: Remission of Regional Rates | F9: 0 | G9: 0 | H9: 0 | J9: 0 | K9: 0 | N9: 0 | Q9: =+G10-F10 -> 5012764.481 | R9: Transporrt Rate | S9: =+H10 -> 0.06527243921
B10: Public transport rate | D10: Transport Rate | F10: 76797566.35 | G10: 81810330.83 | H10: =G10/F10-1 -> 0.06527243921 | J10: 0 | K10: 0 | N10: =J10-G10 -> -81810330.83 | Q10: =+G11-F11 -> -70739.39249 | R10: River Rate | S10: =+H11 -> -0.01029209698
B11: River management rate | D11: River Rate | F11: 6873175.86 | G11: 6802436.468 | H11: =G11/F11-1 -> -0.01029209698 | J11: 0 | K11: 0 | N11: =J11-G11 -> -6802436.468 | Q11: =+G13-F13 -> -317101.7115 | R11: Regional Strategy | S11: =+H13 -> -0.06332025396
B12: Stadium purposes rate | D12: Stadium Rate | F12: 0 | G12: 0 | H12: 0 | J12: 0 | K12: 0 | N12: 0 | Q12: =+G17+G18+G19-F17-F18-F19 -> 120156.6453 | R12: Oither | S12: =+Q12/(F17+F18+F19) -> 0.05327037483
B13: Wellington regional strategy rate | D13: WRS Rate | F13: 5007903.344 | G13: 4690801.632 | H13: =G13/F13-1 -> -0.06332025396 | J13: 0 | K13: 0 | N13: -4690801.632 | Q13: =SUM(Q8:Q12) -> 17770428.3
B14: District-Wide Rates | D14: District-Wide Rates | F14: =SUM(F8:F13) -> 138310510.6 | G14: =SUM(G8:G13) -> 155960782.2 | H14: =G14/F14-1 -> 0.1276133793 | J14: 0 | K14: 0 | N14: -155960782.2 | P14: Check | Q14: =+G21-F21-Q13 -> 2.980232239e-08
B15: Rates penalties | D15: Rates Penalties | F15: 0 | G15: 0 | H15: 0 | J15: 0 | K15: 0 | N15: 0
B16: Remission of rates penalties | D16: Remission of Rates Penalties | F16: 0 | G16: 0 | H16: 0 | J16: 0 | K16: 0 | N16: 0 | R16: General Rate | S16: =+$S$21/$Q$13*Q8 -> 0.07183192828
B17: Pest management rate | D17: Pest Rate | F17: 596457.0061 | G17: 666799.94 | H17: =G17/F17-1 -> 0.1179346259 | J17: 0 | K17: 0 | N17: -666799.94 | R17: Transporrt Rate | S17: =+$S$21/$Q$13*Q9 -> 0.02764429258
B18: River management rate - Non district wide | D18: River Mgmt Rates - Non District Wide | F18: 98037.65 | G18: 99998.4 | H18: 0.0199999694 | J18: 0 | K18: 0 | N18: -99998.4 | R18: River Rate | S18: -0.0003901121767
B19: Special Rates | D19: Special Rates | F19: 1561105.115 | G19: =1609109.14605297-151.07 -> 1608958.076 | H19: 0.03065326025 | J19: 0 | K19: 0 | N19: -1608958.076 | R19: Regional Strategy | S19: -0.001748746131
B20: Total Other Rates | D20: Total Other Rates | F20: =SUM(F15:F19) -> 2255599.771 | G20: =SUM(G17:G19) -> 2375756.416 | H20: 0.05327037483 | J20: 0 | K20: 0 | N20: -2375756.416 | R20: Oither | S20: 0.0006626374468
B21: Total Regnl Rates | D21: Total Regnl Rates | F21: =SUM(F20,F14) -> 140566110.3 | G21: =G20+G14 -> 158336538.6 | H21: 0.1264204313 | J21: 0 | K21: 0 | N21: -158336538.6 | S21: 0.098
B22: Bulk water levies | D22: Bulk Water Levies | F22: 35859573.34 | G22: 39423848.59 | H22: 0.09939536138 | J22: 0 | K22: 0 | N22: -39423848.59
B23: Total Regnl Rates & levies | D23: Total Regnl Rates & levies | F23: =F22+F21 -> 176425683.7 | G23: 197760387.2 | H23: 0.1209274245 | N23: -197760387.2
B24: Warm Greater Wellington rate | D24: Warm Greater Wellington rate | F24: 3391733.324 | G24: 2868617.589 | H24: -0.1542325662 | J24: 0 | K24: 0 | N24: -2868617.589
B25: Total Rates & Levies | D25: Total Rates & Levies | F25: =SUM(F23:F24) -> 179817417 | G25: =G24+G23 -> 200629004.8 | H25: 0.1157373305 | J25: 0 | K25: 0 | N25: -200629004.8
B30: Total River, Drainage etc | D30: Total River, Drainage etc
B32: General Rates | C32: Te Hunga Whiriwhiri Department | D32: General Rates | F32: 1031337.367 | G32: 2416867.924 | H32: =G32/F32-1 -> 1.343430968 | J32: 0
B33: General Rates | C33: Managing Emergencies | D33: General Rates | F33: 1479808.4 | G33: 1079575.098 | H33: =G33/F33-1 -> -0.2704629211 | J33: 0
B34: General Rates | C34: Rates Collection.. | D34: General Rates | F34: 0 | G34: 0 | H34: 0 | J34: 0
B35: General Rates | C35: Old 30000 | D35: General Rates | F35: 0 | G35: 0 | H35: 0 | J35: 0
B36: General Rates | C36: Parks & Forests Group | D36: General Rates | F36: 4545629.392 | G36: 6871763.516 | H36: =G36/F36-1 -> 0.511729823 | J36: 0
B37: General Rates | C37: Wairarapa Water Use (was Env Edu) activity | D37: General Rates | F37: 284169.0477 | G37: 312971.0909 | H37: =G37/F37-1 -> 0.1013553145 | J37: 0
B38: General Rates | C38: Catchment Management (excluding forests) | D38: General Rates | F38: 23267451.52 | G38: 26401396.35 | H38: =G38/F38-1 -> 0.1346922255 | J38: 0
B39: General Rates | C39: Strategy Group | D39: General Rates | F39: 7037134.444 | G39: 8755752.932 | H39: =G39/F39-1 -> 0.2442213519 | J39: 0
B41: General Rates | C41: Investment Management. | D41: General Rates | F41: -7823505.454 | G41: -6425469.945 | H41: =G41/F41-1 -> -0.1786968153 | J41: 0
B43: General Rates | C43: WRC - Mgmt | D43: General Rates | F43: 49631865 | G43: 62657213.28 | H43: =G43/F43-1 -> 0.2624392267 | J43: 0
B51: Warm Greater Wellington rate | C51: Warm Greater Wellington management | D51: Warm Greater Wellington rate | F51: 3391733.324 | G51: 2868617.589 | H51: =G51/F51-1 -> -0.1542325662 | J51: 0
B52: External Income | C52: Warm Greater Wellington management | D52: External Income | F52: 0 | G52: 0 | H52: 0 | J52: 0

Sheet Class Rates
A1: Wellington Regional Council
A2: ="Class rates "&year_current -> Class rates 2021/22
A3: Printed : | B3: =NOW() -> 2021-05-04T16:13:52.820
A4: =check_total -> 0
A6: 2021-01-01 | B6: Revenue Required | D6: Class | E6: $ per Hectare | F6: Class Total | G6: Class Areas | H6: Scheme Total | I6: Var
A7: Draft | B7: ex gst | E7: ex gst | F7: ex gst | G7: Hectares | H7: ex gst | I7: $ | K7: Lookup index
A8: River Management | K8: Scheme | L8: Class | M8: Concat
A9: Waingawa | B9: 42699.42 | D9: A | E9: =151.197404*1.02 -> 154.2213521 | F9: =E9*G9 -> 5231.357906 | G9: 33.9211 | H9: =SUM(F9:F16) -> 42699.71552 | I9: =B9-H9 -> -0.2955163212 | K9: =A9 -> Waingawa | L9: =D9 -> A | M9: =K9&L9 -> WaingawaA
D10: B | E10: =98.278252*1.02 -> 100.243817 | F10: =E10*G10 -> 13062.91214 | G10: 130.3114 | K10: =K9 -> Waingawa | L10: B | M10: =K10&L10 -> WaingawaB
D11: C | E11: =75.598702*1.02 -> 77.11067604 | F11: =SUM(E11*G11) -> 8805.892693 | G11: 114.1981 | K11: Waingawa | L11: C | M11: WaingawaC
D12: D | E12: =68.038852*1.02 -> 69.39962904 | F12: =E12*G12 -> 161.7288955 | G12: 2.3304 | K12: Waingawa | L12: D | M12: WaingawaD
D13: E | E13: =60.478901*1.02 -> 61.68847902 | F13: =E13*G13 -> 10351.77711 | G13: 167.8073 | K13: Waingawa | L13: E | M13: WaingawaE
D14: F | E14: =52.919051*1.02 -> 53.97743202 | F14: =E14*G14 -> 1401.081407 | G14: 25.9568 | K14: Waingawa | L14: F | M14: WaingawaF
D15: G | E15: =22.679651*1.02 -> 23.13324402 | F15: =E15*G15 -> 1084.683112 | G15: 46.8885 | K15: Waingawa | L15: G | M15: WaingawaG
D16: H | E16: =15.1197*1.02 -> 15.422094 | F16: =E16*G16 -> 2600.282256 | G16: 168.6076 | K16: Waingawa | L16: H | M16: WaingawaH
A17: Lower Wairarapa Valley Development Scheme | B17: 864788.4245 | D17: A | E17: =0.2531*1.04 -> 0.263224 | F17: =E17*G17+J17 -> 760405.8756 | G17: 2888816.657 | H17: =SUM(F17:F19) -> 864788.0191 | I17: =B17-H17 -> 0.4054802733 | K17: =A17 -> Lower Wairarapa Valley Development Scheme | L17: A | M17: Lower Wairarapa Valley Development SchemeA
D18: Sa | E18: =20.3*1.04 -> 21.112 | F18: =E18*G18 -> 8803.704 | G18: 417 | K18: Lower Wairarapa Valley Development Scheme | L18: Sa | M18: Lower Wairarapa Valley Development SchemeSa
D19: Sb | E19: =40.6288*1.04 -> 42.253952 | F19: 95578.43942 | G19: 2262 | K19: Lower Wairarapa Valley Development Scheme | L19: Sb | M19: Lower Wairarapa Valley Development SchemeSb
A20: Upper Ruamahanga | B20: 48074.49 | D20: A | E20: =148.97388*1.02 -> 151.9533576 | F20: =E20*G20+J20 -> 13526.75231 | G20: 89.01910773 | H20: =SUM(F20:F26) -> 48074.3262 | I20: =B20-H20 -> 0.1638012037 | K20: =A20 -> Upper Ruamahanga | L20: A | M20: Upper RuamahangaA
A21: (Mt Bruce - Te Ore Ore) | D21: B | E21: =124.1449*1.02 -> 126.627798 | F21: 834.8739523 | G21: 6.593133305 | K21: =K20 -> Upper Ruamahanga | L21: B | M21: Upper RuamahangaB
D22: C | E22: =99.31592*1.02 -> 101.3022384 | F22: 12638.90388 | G22: 124.7643101 | K22: Upper Ruamahanga | L22: C | M22: Upper RuamahangaC
D23: D | E23: =74.48694*1.02 -> 75.9766788 | F23: 1338.336795 | G23: 17.6151 | K23: Upper Ruamahanga | L23: D | M23: Upper RuamahangaD
D24: E | E24: =49.65796*1.02 -> 50.6511192 | F24: 15027.2247 | G24: 296.681 | K24: Upper Ruamahanga | L24: E | M24: Upper RuamahangaE
D25: F | E25: =24.82898*1.02 -> 25.3255596 | F25: 998.4120687 | G25: 39.4231 | K25: Upper Ruamahanga | L25: F | M25: Upper RuamahangaF
D26: S | E26: =1398.87726*1.02 -> 1426.854805 | F26: 3709.822494 | G26: 2.6 | K26: Upper Ruamahanga | L26: S | M26: Upper RuamahangaS
A27: Middle Ruamahanga | B27: 31147.93 | D27: A | E27: =134.983571*1.02 -> 137.6832424 | F27: =E27*G27+J27 -> 5554.486207 | G27: 40.3425 | H27: =SUM(F27:F33) -> 31148.09217 | I27: =B27-H27 -> -0.1621715659 | K27: =A27 -> Middle Ruamahanga | L27: A | M27: Middle RuamahangaA
A28: (Te Ore Ore - Gladstone) | D28: B | E28: =112.486326*1.02 -> 114.7360525 | F28: 6257.394517 | G28: 54.5373 | K28: =K27 -> Middle Ruamahanga | L28: B | M28: Middle RuamahangaB
D29: C | E29: =89.989081*1.02 -> 91.78886262 | F29: 469.3439912 | G29: 5.1133 | K29: Middle Ruamahanga | L29: C | M29: Middle RuamahangaC
D30: D | E30: =67.491735*1.02 -> 68.8415697 | F30: 7788.769617 | G30: 113.1405 | K30: Middle Ruamahanga | L30: D | M30: Middle RuamahangaD
D31: E | E31: =44.99449*1.02 -> 45.8943798 | F31: 1383.908307 | G31: 30.1542 | K31: Middle Ruamahanga | L31: E | M31: Middle RuamahangaE
D32: F | E32: =22.497245*1.02 -> 22.9471899 | F32: 6778.319941 | G32: 295.3878 | K32: Middle Ruamahanga | L32: F | M32: Middle RuamahangaF
D33: S | E33: =1361.283656*1.02 -> 1388.509329 | F33: 2915.869591 | G33: 2.1 | K33: Middle Ruamahanga | L33: S | M33: Middle RuamahangaS
A34: Lower Ruamahanga | B34: 76357.42 | D34: A | E34: =68.868517*1.02 -> 70.24588734 | F34: =E34*G34+J34 -> 8814.137837 | G34: 125.4755 | H34: =SUM(F34:F41) -> 76357.64599 | I34: =B34-H34 -> -0.2259880808 | K34: =A34 -> Lower Ruamahanga | L34: A | M34: Lower RuamahangaA
A35: (Gladstone - Waiohine) | D35: B | E35: =59.030188*1.02 -> 60.21079176 | F35: 3241.213152 | G35: 53.8311 | K35: =K34 -> Lower Ruamahanga | L35: B | M35: Lower RuamahangaB
D36: C | E36: =49.191859*1.02 -> 50.17569618 | F36: 11247.57974 | G36: 224.1639 | K36: Lower Ruamahanga | L36: C | M36: Lower RuamahangaC
D37: D | E37: =39.353423*1.02 -> 40.14049146 | F37: 12753.63364 | G37: 317.7249 | K37: Lower Ruamahanga | L37: D | M37: Lower RuamahangaD
D38: E | E38: =29.515094*1.02 -> 30.10539588 | F38: 9739.806055 | G38: 323.5236 | K38: Lower Ruamahanga | L38: E | M38: Lower RuamahangaE
D39: F | E39: =19.676765*1.02 -> 20.0703003 | F39: 24572.53027 | G39: 1224.323 | K39: Lower Ruamahanga | L39: F | M39: Lower RuamahangaF
D40: SA | E40: =1726.858448*1.02 -> 1761.395617 | F40: 4403.489042 | G40: 2.5 | K40: Lower Ruamahanga | L40: SA | M40: Lower RuamahangaSA
D41: SB | E41: =863.429331*1.02 -> 880.6979176 | F41: 1585.256252 | G41: 1.8 | K41: Lower Ruamahanga | L41: =D41 -> SB | M41: Lower RuamahangaSB
A42: Waiohine Rural | B42: 97250.86 | D42: A | E42: 48.15010572 | F42: =E42*G42 -> 5415.538691 | G42: 112.472 | H42: =SUM(F42:F47) -> 97250.87276 | I42: =B42-H42 -> -0.01275747764 | K42: =A42 -> Waiohine Rural | L42: A | M42: Waiohine RuralA
D43: B | E43: 40.12505376 | F43: =E43*G43 -> 15359.36099 | G43: 382.7873 | K43: =K42 -> Waiohine Rural | L43: B | M43: Waiohine RuralB
D44: C | E44: 32.10010482 | F44: 41021.06421 | G44: 1277.9106 | K44: Waiohine Rural | L44: C | M44: Waiohine RuralC
D45: D | E45: 24.07505286 | F45: 8928.252613 | G45: 370.8508 | K45: Waiohine Rural | L45: D | M45: Waiohine RuralD
D46: E | E46: 16.0500009 | F46: 12803.87377 | G46: 797.7491 | K46: Waiohine Rural | L46: E | M46: Waiohine RuralE
D47: S | E47: 802.5018994 | F47: 13722.78248 | G47: 17.1 | K47: Waiohine Rural | L47: S | M47: Waiohine RuralS
A48: Mangatarere | B48: 10410.31 | D48: A | E48: 36.37213818 | F48: 780.4369689 | G48: 21.457 | H48: =SUM(F48:F51) -> 10410.1627 | I48: =B48-H48 -> 0.1473035562 | K48: =A48 -> Mangatarere | L48: A | M48: MangatarereA
D49: B | E49: 34.79067816 | F49: 7290.34486 | G49: 209.5488 | K49: =K48 -> Mangatarere | L49: B | M49: MangatarereB
D50: C | E50: 29.4817485 | F50: 464.880003 | G50: 15.7684 | K50: Mangatarere | L50: C | M50: MangatarereC
D51: D | E51: 26.09300862 | F51: 1874.500865 | G51: 71.8392 | K51: Mangatarere | L51: D | M51: MangatarereD
A52: Waipoua | B52: 54532.53 | D52: A | E52: 117.1419436 | F52: 10249.73264 | G52: 87.4984 | H52: =SUM(F52:F57) -> 54532.52438 | I52: =B52-H52 -> 0.005616000009 | K52: =A52 -> Waipoua | L52: A | M52: WaipouaA
D53: B | E53: 93.71355489 | F53: 28144.93571 | G53: 300.3294 | K53: =K52 -> Waipoua | L53: B | M53: WaipouaB
D54: C | E54: 70.28516617 | F54: 1578.021465 | G54: 22.4517 | K54: =K53 -> Waipoua | L54: C | M54: WaipouaC
D55: D | E55: 46.85677744 | F55: 13927.26807 | G55: 297.2306 | K55: Waipoua | L55: D | M55: WaipouaD
D56: SA | E56: 3959.397694 | F56: 395.9397694 | G56: 0.1 | K56: Waipoua | L56: SA | M56: WaipouaSA
D57: SC | E57: 2366.267261 | F57: 236.6267261 | G57: 0.1 | K57: Waipoua | L57: SC | M57: WaipouaSC
A58: Kopuaranga | B58: 22580.95 | D58: A2 | E58: 126.4661158 | F58: 3294.94818 | G58: 26.054 | H58: =SUM(F58:F69) -> 22580.70492 | I58: =B58-H58 -> 0.2450788531 | K58: =A58 -> Kopuaranga | L58: A2 | M58: KopuarangaA2
D59: A3 | E59: 113.8205036 | F59: 7843.279845 | G59: 68.9092 | K59: =K58 -> Kopuaranga | L59: A3 | M59: KopuarangaA3
D60: A4 | E60: 63.23305788 | F60: 713.5660883 | G60: 11.2847 | K60: Kopuaranga | L60: A4 | M60: KopuarangaA4
D61: A5 | E61: 44.26316112 | F61: 2555.046712 | G61: 57.724 | K61: Kopuaranga | L61: A5 | M61: KopuarangaA5
D62: A6 | E62: 25.29326436 | F62: =E62*G62 -> 2052.067831 | G62: 81.131 | K62: Kopuaranga | L62: A6 | M62: KopuarangaA6
D63: B2 | E63: 25.29326436 | F63: 1549.89789 | G63: 61.2771 | K63: Kopuaranga | L63: B2 | M63: KopuarangaB2
D64: B3 | E64: 22.77411732 | F64: 1672.560782 | G64: 73.4413 | K64: Kopuaranga | L64: B3 | M64: KopuarangaB3
D65: B4 | E65: 12.64663218 | F65: 117.3506293 | G65: 9.2792 | K65: Kopuaranga | L65: B4 | M65: KopuarangaB4
D66: B5 | E66: 8.85261162 | F66: 275.0417904 | G66: 31.069 | K66: Kopuaranga | L66: B5 | M66: KopuarangaB5
D67: B6 | E67: 5.05869408 | F67: 608.3792907 | G67: 120.2641 | K67: Kopuaranga | L67: B6 | M67: KopuarangaB6
D68: SA | E68: 158.207814 | F68: 791.03907 | G68: 5 | K68: Kopuaranga | L68: SA | M68: KopuarangaSA
D69: SB | E69: 79.109058 | F69: 1107.526812 | G69: 14 | K69: Kopuaranga | L69: SB | M69: KopuarangaSB
A70: Lower Taueru | B70: 2825.31 | D70: A | E70: 5.1641784 | F70: =E70*G70+J70 -> 2042.502274 | G70: 395.5135 | H70: =SUM(F70:F73) -> 2824.967231 | I70: =B70-H70 -> 0.3427691578 | K70: =A70 -> Lower Taueru | L70: =D70 -> A | M70: Lower TaueruA
D71: B | E71: 1.0328112 | F71: 291.665573 | G71: 282.3997 | K71: =K70 -> Lower Taueru | L71: B | M71: =K71&L71 -> Lower TaueruB
D72: C | E72: 0.5164056 | F72: =E72*G72 -> 98.83564239 | G72: 191.3915 | K72: Lower Taueru | L72: C | M72: Lower TaueruC
D73: S | E73: 258.2106336 | F73: 391.9637418 | G73: 1.518 | K73: Lower Taueru | L73: S | M73: Lower TaueruS
A74: Lower Whangaehu | B74: 4323 | D74: A | E74: 22.7045778 | F74: =E74*G74+J74 -> 758.4350691 | G74: 33.4045 | H74: =SUM(F74:F79) -> 4322.720481 | I74: =B74-H74 -> 0.279519482 | K74: =A74 -> Lower Whangaehu | L74: A | M74: Lower WhangaehuA
D75: B | E75: 18.16366224 | F75: =E75*G75 -> 1178.927029 | G75: 64.9058 | K75: =K74 -> Lower Whangaehu | L75: B | M75: Lower WhangaehuB
D76: C | E76: 13.62274668 | F76: =E76*G76 -> 741.140084 | G76: 54.4046 | K76: Lower Whangaehu | L76: C | M76: Lower WhangaehuC
D77: D | E77: 9.08183112 | F77: =E77*G77 -> 695.3849107 | G77: 76.5688 | K77: Lower Whangaehu | L77: D | M77: Lower WhangaehuD
D78: E | E78: 4.54091556 | F78: =E78*G78 -> 797.4733202 | G78: 175.6195 | K78: Lower Whangaehu | L78: E | M78: Lower WhangaehuE
D79: S | E79: 113.522889 | F79: =E79*G79 -> 151.3600679 | G79: 1.3333 | K79: Lower Whangaehu | L79: S | M79: Lower WhangaehuS
A80: Catchment Schemes | K80: Lower Whangaehu | L80: 0 | M80: Lower Whangaehu0
A81: Awhea-Opouawe | B81: 23246.6976 | D81: A | F81: =E81*G81 -> 0 | G81: 2224.6093 | H81: =H149 -> 23246.82 | I81: =B81-H81 -> -0.1224 | K81: =A81 -> Awhea-Opouawe | L81: A | M81: Awhea-OpouaweA
D82: B | F82: =E82*G82 -> 0 | G82: 1956.3707 | H82: see bottom of sheet | K82: =K81 -> Awhea-Opouawe | L82: B | M82: Awhea-OpouaweB
A83: see bottom of sheet | D83: C | F83: 0 | G83: 1789.5901 | K83: Awhea-Opouawe | L83: C | M83: Awhea-OpouaweC
D84: D | F84: 0 | G84: 685.6269 | K84: Awhea-Opouawe | L84: D | M84: Awhea-OpouaweD
D85: E | F85: 0 | G85: 31708.3607 | K85: Awhea-Opouawe | L85: E | M85: Awhea-OpouaweE
D86: F | F86: 0 | G86: 3356.5217 | K86: Awhea-Opouawe | L86: F | M86: Awhea-OpouaweF
D87: SA | F87: 0 | G87: 0.65 | K87: Awhea-Opouawe | L87: SA | M87: Awhea-OpouaweSA
D88: SB | F88: 0 | G88: 0.21 | K88: Awhea-Opouawe | L88: SB | M88: Awhea-OpouaweSB
A89: Whareama | B89: 19784.2464 | D89: A | E89: 4.639878 | F89: =E89*G89+J89 -> 3319.303936 | G89: 715.3860372 | H89: =SUM(F89:F94) -> 19784.27603 | I89: =B89-H89 -> -0.02962739626 | K89: =A89 -> Whareama | L89: A | M89: WhareamaA
D90: B | E90: 1.788264 | F90: 1703.43759 | G90: 952.5649402 | K90: =K89 -> Whareama | L90: B | M90: WhareamaB
D91: C | E91: 0.313038 | F91: 14266.9411 | G91: 45575.7483 | K91: Whareama | L91: C | M91: WhareamaC
D92: D | F92: 0 | G92: 0 | K92: Whareama | L92: D | M92: WhareamaD
D93: E | E93: 0.22287 | F93: 3.432755175 | G93: 15.4025 | K93: Whareama | L93: E | M93: WhareamaE
D94: F | E94: 0.17799 | F94: 491.1606502 | G94: 2759.484523 | K94: Whareama | L94: F | M94: WhareamaF
A95: Homewood | B95: 12033.2664 | D95: A | E95: 1.97915292 | F95: 4541.757746 | G95: 2294.7988 | H95: =SUM(F95:F98) -> 12033.36623 | I95: =B95-H95 -> -0.09982682363 | K95: =A95 -> Homewood | L95: A | M95: HomewoodA
D96: B | E96: 1.88489268 | F96: 1041.397928 | G96: 552.4972 | K96: =K95 -> Homewood | L96: B | M96: HomewoodB
D97: C | E97: 1.64924208 | F97: 6040.306043 | G97: 3662.473882 | K97: Homewood | L97: C | M97: HomewoodC
D98: D | E98: 0.2356506 | F98: 409.9045099 | G98: 1739.4588 | K98: Homewood | L98: D | M98: HomewoodD
A99: Mataikona-Whakataki | B99: 6817.7412 | D99: A | F99: 0 | G99: 4067.5168 | H99: =H153 -> 6817.68 | I99: =B99-H99 -> 0.0612 | K99: =A99 -> Mataikona-Whakataki | L99: A | M99: Mataikona-WhakatakiA
D100: B | F100: 0 | G100: 7767.279 | H100: see bottom of sheet | K100: =K99 -> Mataikona-Whakataki | L100: B | M100: Mataikona-WhakatakiB
A101: see bottom of sheet | D101: C | F101: 0 | G101: 11511.3636 | K101: Mataikona-Whakataki | L101: C | M101: Mataikona-WhakatakiC
D102: S | F102: 0 | G102: 12.2 | K102: Mataikona-Whakataki | L102: =D102 -> S | M102: Mataikona-WhakatakiS
A103: Maungaraki | B103: 7111.134 | D103: A | F103: - | G103: 3305.4718 | H103: =SUM(H155:H158) -> 7111.642458 | I103: =B103-H103 -> -0.50845776 | K103: =A103 -> Maungaraki | L103: A | M103: MaungarakiA
D104: B | F104: - | G104: 2971.2169 | H104: see bottom of sheet | K104: =K103 -> Maungaraki | L104: B | M104: MaungarakiB
D105: C | F105: - | K105: =K104 -> Maungaraki | L105: C | M105: MaungarakiC
A106: Upper Kaiwhata | B106: 2542.7376 | D106: A | E106: 10.63111932 | F106: =E106*G106 -> 346.7243886 | G106: 32.6141 | H106: =SUM(F106:F111) -> 2542.776973 | I106: =B106-H106 -> -0.03937324093 | K106: =A106 -> Upper Kaiwhata | L106: A | M106: Upper KaiwhataA
D107: B | E107: 4.6511082 | F107: 244.68457 | G107: 52.6078 | K107: =K106 -> Upper Kaiwhata | L107: B | M107: Upper KaiwhataB
D108: C | E108: 0.66439944 | F108: 636.6226269 | G108: 958.1926 | K108: Upper Kaiwhata | L108: C | M108: Upper KaiwhataC
D109: D | E109: 0.39868128 | F109: 818.3645715 | G109: 2052.6787 | K109: Upper Kaiwhata | L109: D | M109: Upper KaiwhataD
D110: E | E110: 0.2658222 | F110: 436.2732427 | G110: 1641.222 | K110: Upper Kaiwhata | L110: E | M110: Upper KaiwhataE
D111: F | E111: 0.13285908 | F111: 60.10757354 | G111: 452.416 | K111: Upper Kaiwhata | L111: F | M111: Upper KaiwhataF
A112: Lower Kaiwhata | B112: 4372.8012 | D112: A | E112: 17.27729856 | F112: 793.5601447 | G112: 45.9308 | H112: =SUM(F112:F117) -> 4372.690251 | I112: =B112-H112 -> 0.1109494733 | K112: =A112 -> Lower Kaiwhata | L112: A | M112: Lower KaiwhataA
D113: B | E113: 7.55881812 | F113: 335.6629245 | G113: 44.4068 | K113: =K112 -> Lower Kaiwhata | L113: B | M113: Lower KaiwhataB
D114: C | E114: 1.07983116 | F114: 1251.136547 | G114: 1158.6409 | K114: Lower Kaiwhata | L114: C | M114: Lower KaiwhataC
D115: D | E115: 0.64785708 | F115: 1917.100577 | G115: 2959.1412 | K115: Lower Kaiwhata | L115: D | M115: Lower KaiwhataD
D116: E | F116: 0 | G116: 0 | K116: Lower Kaiwhata | L116: E | M116: Lower KaiwhataE
D117: F | E117: 0.21598704 | F117: 75.23005713 | G117: 348.3082 | K117: Lower Kaiwhata | L117: F | M117: Lower KaiwhataF
A118: Pump Drainage | L118: 0 | M118: 0
A119: Te Hopai | B119: 54397.88 | D119: A | E119: 43.63662 | F119: =E119*G119 -> 54398.16541 | G119: 1246.6173 | H119: =F119 -> 54398.16541 | I119: =B119-H119 -> -0.285405526 | K119: =A119 -> Te Hopai | L119: A | M119: Te HopaiA
A120: Moonmoot Pump | B120: 27867.68 | D120: A | E120: 122.3745 | F120: =E120*G120 -> 27867.46195 | G120: 227.722785 | H120: =F120 -> 27867.46195 | I120: =B120-H120 -> 0.2180470175 | K120: =A120 -> Moonmoot Pump | L120: A | M120: Moonmoot PumpA
A121: Onoke Pump | B121: 50789.77 | D121: A | E121: 71.1909 | F121: =E121*G121 -> 50789.54937 | G121: 713.42755 | H121: =F121 -> 50789.54937 | I121: =B121-H121 -> 0.220630705 | K121: =A121 -> Onoke Pump | L121: A | M121: Onoke PumpA
A122: Pouawha Pump | B122: 101544.17 | D122: A | E122: 107.39682 | F122: =E122*G122 -> 101544.2088 | G122: 945.5048 | H122: =F122 -> 101544.2088 | I122: =B122-H122 -> -0.03881473601 | K122: =A122 -> Pouawha Pump | L122: A | M122: Pouawha PumpA
A123: Gravity Drainage | L123: 0 | M123: 0
A124: Okawa | B124: 2076.88 | D124: A | E124: 7.36479678 | F124: =E124*G124 -> 2076.880501 | G124: 282.0010603 | H124: =F124 -> 2076.880501 | I124: =B124-H124 -> -0.0005012032566 | K124: =A124 -> Okawa | L124: A | M124: OkawaA
A125: Taumata | B125: 1927.5 | D125: A | E125: 6.63366384 | F125: 1927.495276 | G125: 290.5627 | H125: =F125 -> 1927.495276 | I125: =B125-H125 -> 0.004723757232 | K125: =A125 -> Taumata | L125: A | M125: TaumataA
A126: East Pukio | B126: 3310.03 | D126: A | E126: 29.16207744 | F126: 3310.035767 | G126: 113.5048 | H126: =F126 -> 3310.035767 | I126: -0.005767411712 | K126: =A126 -> East Pukio | L126: A | M126: East PukioA
A127: Longbush | B127: 4652.38 | D127: A | E127: 16.5594348 | F127: 3612.379785 | G127: 218.1463214 | H127: =SUM(F127:F128) -> 4652.369421 | I127: 0.01057916015 | K127: =A127 -> Longbush | L127: A | M127: LongbushA
D128: B | E128: 8.2797174 | F128: 1039.989635 | G128: 125.6069 | I128: 0 | K128: =K127 -> Longbush | L128: B | M128: LongbushB
A129: Otahoua | B129: 3152.41 | D129: A | E129: 34.00133892 | F129: 3152.414662 | G129: 92.7144272 | H129: =F129 -> 3152.414662 | I129: =B129-H129 -> -0.004662096747 | K129: =A129 -> Otahoua | L129: A | M129: OtahouaA
A130: Te Whiti | B130: 1416.53 | D130: A | E130: 10.02683358 | F130: 1416.530887 | G130: 141.274 | H130: =F130 -> 1416.530887 | I130: -0.00088718092 | K130: =A130 -> Te Whiti | L130: A | M130: Te WhitiA
A131: Ahikouka | B131: 3202.89 | D131: A | E131: 28.54436952 | F131: 3202.893342 | G131: 112.207535 | H131: =F131 -> 3202.893342 | I131: -0.003341968334 | K131: =A131 -> Ahikouka | L131: A | M131: AhikoukaA
A132: Battersea | B132: 10857.28 | D132: A | E132: 15.87249744 | F132: =E132*G132 -> 2677.391915 | G132: 168.6812 | H132: =SUM(F132:F137) -> 10857.24726 | I132: 0.03273623804 | K132: =A132 -> Battersea | L132: A | M132: BatterseaA
D133: B | E133: 13.1417463 | F133: 2567.38141 | G133: 195.3607497 | K133: =K132 -> Battersea | L133: B | M133: BatterseaB
D134: C | E134: 10.24029102 | F134: 3239.890859 | G134: 316.3866 | K134: =K133 -> Battersea | L134: =D134 -> C | M134: BatterseaC
D135: D | E135: 6.14421582 | F135: =E135*G135 -> 938.4500163 | G135: 152.7371505 | K135: Battersea | L135: D | M135: =K135&L135 -> BatterseaD
D136: E | E136: 5.29079814 | F136: 1073.475602 | G136: 202.8948324 | K136: Battersea | L136: E | M136: BatterseaE
D137: F | E137: 5.12019702 | F137: 360.6574617 | G137: 70.4382 | K137: Battersea | L137: F | M137: BatterseaF
A138: Manaia | B138: 4170.25 | D138: A | E138: 23.89888866 | F138: 4170.241357 | G138: 174.4952 | H138: =F138 -> 4170.241357 | I138: =B138-H138 -> 0.008643495567 | K138: =A138 -> Manaia | L138: A | M138: ManaiaA
A139: Whakawiriwiri | B139: 8692.83 | D139: A | E139: 12.05880006 | F139: 8692.851554 | G139: 720.8720197 | H139: =F139 -> 8692.851554 | I139: =B139-H139 -> -0.02155449028 | K139: =A139 -> Whakawiriwiri | L139: A | M139: WhakawiriwiriA
A140: Total Scheme Rates | B140: =SUM(B9:B139) -> 1608957.749 | F140: =SUM(F8:F139)+H149+H153+H155+H156+H157+H158 -> 1608957.349 | H140: =SUM(H8:H139) -> 1608957.349 | I140: =SUM(I8:I139) -> 0.4000250932
A141: Checks | B141: =IF(ABS(INDEX(ESSbase!$G$8:$G$25,MATCH("Special Rates",ESSbase!$B$8:$B$25,0),)-B140)>tolerance_dollar,1,0) -> 0 | F141: =IF(ABS(INDEX(ESSbase!$G$8:$G$25,MATCH("Special Rates",ESSbase!$B$8:$B$25,0),)-F140)>tolerance_dollar,1,0) -> 0 | H141: =IF(ABS(INDEX(ESSbase!$G$8:$G$25,MATCH("Special Rates",ESSbase!$B$8:$B$25,0),)-H140)>tolerance_dollar,1,0) -> 0
A145: Revised
A146: Catchment Schemes | B146: $GST Excl | E146: Rate Base | K146: 67774000
A147: Awhea-Opouawe Catchment Scheme | B147: =B81 -> 23246.6976 | E147: land value | F147: $67,774,000 x 0.01615 cents | H147: 10948.68 | K147: =+O148 -> 0.01615450999 | O147: =+B147-H148 -> 10948.5576
E148: charge per dwelling | F148: $142.82 / $71.49 | H148: 12298.14 | K148: =K146*K147/100 -> 10948.5576 | O148: =+O147/K146*100 -> 0.01615450999
H149: =SUM(H147:H148) -> 23246.82
A151: Mataikona Whakataki Catchment Scheme | B151: =B99 -> 6817.7412 | E151: land value within scheme area | F151: $74,213,500 x 0.05407 cents | H151: 4012.68 | K151: 74213500
E152: charge per dwelling | F152: 22.99 | H152: 2805 | K152: =+O153 -> 0.00540702325 | O152: =+B151-H152 -> 4012.7412
H153: =SUM(H151:H152) -> 6817.68 | K153: =K151*K152/100 -> 4012.7412 | O153: =+O152/K151*100 -> 0.00540702325
A155: Maungaraki Catchment Scheme | B155: =B103 -> 7111.134 | E155: Class A | F155: =1.01*1.02 -> 1.0302 | G155: 3305.4718 | H155: =F155*G155 -> 3405.297048
E156: Class B | F156: =0.5*1.02 -> 0.51 | G156: 2971.2169 | H156: =F156*G156 -> 1515.320619
E157: Charge per dwelling | F157: =22.63*1.02 -> 23.0826 | G157: 19 | H157: 438.5694
E158: River frontage | F158: =0.03608*1.02 -> 0.0368016 | G158: 47619 | H158: =F158*G158 -> 1752.45539
A162: Notes
A163: All River Management schemes have hectare adjustments which in turn affect the $/ha and total columns
A164: Upper Mangatarere River scheme on rates holiday
A165: Bovine Tb rate has been deleted

Sheet >>District wide rates
L7: New category to be added in GL
L8: New category to be added in GL, was "River Mgmt Rates"

Sheet Gen
A1: Wellington Regional Council
A2: ="General rate "&year_current -> General rate 2021/22
A3: Printed: | B3: =NOW() -> 2021-05-04T16:13:52.820
A4: =check_total -> 0 | I4: Proposal
B6: CV | C6: ="ECV "&year_current -> ECV 2021/22 | D6: General Rate | E6: Rates sought | J6: CV | K6: ECV 2020/21 | L6: General Rate | M6: Rates sought
B7: $ | C7: $ | D7: $ | E7: Cents per $ | J7: $ | K7: $ | L7: $ | M7: Cents per $
A9: By TA | I9: By TA
A10: Wellington city | B10: =INDEX(capital_values,MATCH($A10&"district wide",capital_values_rows,0),MATCH(B$6&" "&year_current,capital_values_header,0)) -> 73577159400 | C10: =INDEX(capital_values,MATCH($A10&"district wide",capital_values_rows,0),MATCH(C$6,capital_values_header,0)) -> 87383049753 | D10: =C10/C$19*D$19 -> 29354845.78 | E10: =D10/B10*100 -> 0.03989668264 | I10: Wellington city | J10: 73472412400 | K10: 78916163129 | L10: 23527455.88 | M10: 0.0320221633
A11: Hutt city | B11: 28500797500 | C11: 32345787106 | D11: =C11/C$19*D$19 -> 10866015.72 | E11: =D11/B11*100 -> 0.03812530411 | I11: Hutt city | J11: 28322072500 | K11: 28856396822 | L11: 8603023.464 | M11: 0.03037568477
A12: Upper Hutt city | B12: 11454253800 | C12: 13073239090 | D12: 4391731.789 | E12: 0.03834149186 | I12: Upper Hutt city | J12: 11368717300 | K12: 11490862745 | L12: 3425797.144 | M12: 0.03013354148
A13: Porirua city | B13: 14342036650 | C13: 15695286062 | D13: 5272563.766 | E13: 0.0367630058 | I13: Porirua city | J13: 14056194050 | K13: 14075045457 | L13: 4196225.435 | M13: 0.02985321219
A14: Kāpiti Coast district | B14: 19504834150 | C14: 19536115796 | D14: 6562825.034 | E14: 0.03364717169 | I14: Kāpiti Coast district | J14: 15080860600 | K14: 17343052084 | L14: 5170523.712 | M14: 0.03428533589
A15: Masterton district | B15: 8600907655 | C15: 8631869241 | D15: 2899729.308 | E15: 0.03371422441 | I15: Masterton district | J15: 6087708500 | K15: 7210237560 | L15: 2149604.585 | M15: 0.03531057022
A16: Carterton district | B16: 3619977800 | C16: 3660511529 | D16: 1229686.441 | E16: 0.03396944701 | I16: Carterton district | J16: 2789361700 | K16: 3247279141 | L16: 968118.7438 | M16: 0.03470753699
A17: South Wairarapa district | B17: 6213437000 | C17: 6175185837 | D17: 2074448.402 | E17: 0.03338648806 | I17: South Wairarapa district | J17: 4666483900 | K17: 5324430465 | L17: 1587384.61 | M17: 0.03401671674
A18: Tararua district | B18: 10673500 | C18: 15976500 | D18: 5367.032794 | E18: 0.05028371944 | I18: Tararua district | J18: 10673500 | K18: 12516025 | L18: 3731.431107 | M18: 0.03495977053
A19: Region wide | B19: =SUM(B10:B18) -> 165824077455 | C19: =SUM(C10:C18) -> 186517020914 | D19: =+ESSbase!G8 -> 62657213.28 | E19: 0.03778535315 | I19: Region wide | J19: 155854484450 | K19: 166475983428 | L19: 49631865 | M19: 0.03184500284
B22: CV | C22: ECV | D22: differetial | E22: ECV multiplied | F22: General rate | G22: Rates sought | J22: CV | K22: ECV | L22: differetial | M22: ECV multiplied | N22: General rate | O22: Rates sought
A23: Wellington city differentials | B23: $ | C23: $ | E23: $ | F23: $ | G23: Cents/$ | I23: Wellington city differentials | J23: $ | K23: $ | M23: $ | N23: $ | O23: Cents/$
A24: Wellington cityRegional CBD | B24: ='Capital values'!F19 -> 9782829150 | C24: =B24/$B$28*$C$10 -> 1.161846221e+10 | D24: 1.7 | E24: =C24*D24 -> 1.975138576e+10 | F24: =E24/$E$28*$D$10 -> 5966760.815 | G24: =F24/B24*100 -> 0.06099218052 | I24: Wellington cityRegional CBD | J24: 9794894150 | K24: 1.052062181e+10 | L24: 1.7 | M24: 1.788505708e+10 | N24: 4793680.185 | O24: 0.04894060223
A25: Wellington cityBusiness | B25: ='Capital values'!F20 -> 4646450150 | C25: =B25/$B$28*$C$10 -> 5518301983 | D25: 1.3 | E25: =C25*D25 -> 7173792578 | F25: =E25/$E$28*$D$10 -> 2167154.496 | G25: =F25/B25*100 -> 0.04664107922 | I25: Wellington cityBusiness | J25: 4653653150 | K25: 4998453694 | L25: 1.3 | M25: 6497989802 | N25: 1741637.436 | O25: 0.03742516641
A26: Wellington cityResidential | B26: ='Capital values'!F21 -> 58332994000 | C26: =B26/$B$28*$C$10 -> 6.927849564e+10 | D26: 1 | E26: 6.927849564e+10 | F26: =E26/$E$28*$D$10 -> 20928567.65 | G26: 0.03587775325 | I26: Wellington cityResidential | J26: 58212754000 | K26: 6.252587932e+10 | L26: 1 | M26: 6.252587932e+10 | N26: 16758630.81 | O26: 0.02878858955
A27: Wellington cityRural | B27: ='Capital values'!F22 -> 814886100 | C27: =B27/$B$28*$C$10 -> 967789912 | D27: 1 | E27: 967789912 | F27: =E27/$E$28*$D$10 -> 292362.8242 | G27: 0.03587775325 | I27: Wellington cityRural | J27: 811111100 | K27: 871208305.2 | L27: 1 | M27: 871208305.2 | N27: 233507.4454 | O27: 0.02878858955
A28: Total Upper Hutt city | B28: =SUM(B24:B27) -> 73577159400 | C28: =SUM(C24:C27) -> 87383049753 | E28: =SUM(E24:E27) -> 9.71714639e+10 | F28: =SUM(F24:F27) -> 29354845.78 | G28: 0.03989668264 | I28: Total Upper Hutt city | J28: 73472412400 | K28: 78916163129 | M28: 8.778013451e+10 | N28: 23527455.88 | O28: 0.0320221633
A33: Upper Hutt breakdown | I33: Upper Hutt breakdown
A34: Trentham Military Camp | B34: =SUMIFS('UHCC Adjustments'!$D$9:$D$27,'UHCC Adjustments'!$B$9:$B$27,"Total",'UHCC Adjustments'!$C$9:$C$27,A34) -> 109354000 | D34: =+D12*'UHCC Adjustments'!$E$34 -> 36790.55373 | E34: =D34/B34*100 -> 0.03364353725 | I34: Trentham Military Camp | J34: 109354000 | L34: 28572.61654 | M34: 0.02612855181
A35: Rest of Upper Hutt city | B35: =SUMIFS('UHCC Adjustments'!$D$9:$D$27,'UHCC Adjustments'!$B$9:$B$27,"Total",'UHCC Adjustments'!$C$9:$C$27,A35) -> 11344899800 | D35: =+D12-D34 -> 4354941.235 | E35: =D35/B35*100 -> 0.03838677566 | I35: Rest of Upper Hutt city | J35: 11259363300 | L35: 3397224.527 | M35: 0.03017243903
A36: Total Upper Hutt city | B36: =+B35+B34 -> 11454253800 | D36: =+D35+D34 -> 4391731.789 | E36: =D36/B36*100 -> 0.03834149186 | I36: Total Upper Hutt city | J36: 11368717300 | L36: 3425797.144 | M36: 0.03013354148
A39: Check Upper Hutt total | B39: =B36-B12 -> 0 | D39: =D36-D12 -> 0 | I39: Check Upper Hutt total | J39: 0 | L39: 0
A40: Check totals | B40: =B19-SUM(B10:B18) -> 0 | C40: =C19-SUM(C10:C18) -> 0 | D40: =D19-SUM(D10:D18) -> 0 | I40: Check totals | J40: 0 | K40: 0 | L40: 0

Sheet River management
A1: Wellington Regional Council
A2: ="River management rate "&year_current -> River management rate 2021/22
A3: Printed: | B3: =NOW() -> 2021-05-04T16:13:52.820
A4: =check_total -> 0
B6: CV | C6: River management rate | D6: Rates sought
B7: $ | C7: $ | D7: Cents per $
A9: By TA
A10: Wellington city | B10: =INDEX(capital_values,MATCH($A10&"district wide",capital_values_rows,0),MATCH(B$6&" "&year_current,capital_values_header,0)) -> 73577159400 | C10: =INDEX(Control!$C$110:$C$121,MATCH(A10,Control!$A$110:$A$121,0),) -> 56927.23 | D10: =C10/B10*100 -> 7.73707907e-05
A11: Hutt city | B11: 28500797500 | C11: =INDEX(Control!$C$110:$C$121,MATCH(A11,Control!$A$110:$A$121,0),) -> 4310872.977 | D11: 0.01512544685
A12: Upper Hutt city | B12: 11454253800 | C12: =INDEX(Control!$C$110:$C$121,MATCH(A12,Control!$A$110:$A$121,0),) -> 1070771.132 | D12: 0.009348239973
A13: Porirua city | B13: 14342036650 | C13: =INDEX(Control!$C$110:$C$121,MATCH(A13,Control!$A$110:$A$121,0),) -> 56420.49595 | D13: 0.000393392496
A14: Kāpiti Coast district | B14: 19504834150 | C14: =INDEX(Control!$C$110:$C$121,MATCH(A14,Control!$A$110:$A$121,0),) -> 1282535.312 | D14: 0.00657547407
A15: Masterton district | B15: 8600907655 | C15: =INDEX(Control!$C$110:$C$121,MATCH(A15,Control!$A$110:$A$121,0),) -> 0 | D15: =C15/B15*100 -> 0
A16: Carterton district | B16: 3619977800 | C16: =INDEX(Control!$C$110:$C$121,MATCH(A16,Control!$A$110:$A$121,0),) -> 24909.32 | D16: 0.0006881069823
A17: South Wairarapa district | B17: 6213437000 | C17: =INDEX(Control!$C$110:$C$121,MATCH(A17,Control!$A$110:$A$121,0),) -> 0 | D17: 0
A18: Tararua district | B18: 10673500 | C18: =INDEX(Control!$C$110:$C$121,MATCH(A18,Control!$A$110:$A$121,0),) -> 0 | D18: 0
A19: Region wide | B19: =SUM(B10:B18) -> 165824077455 | C19: =INDEX(ess_base_estract,MATCH(C6,ESSbase!$B$8:$B$25,0),MATCH(year_current,ESSbase!$F$6:$G$6,0)) -> 6802436.468 | D19: 0.004102200701
A22: Upper Hutt breakdown
A23: Trentham Military Camp | B23: =SUMIFS('UHCC Adjustments'!$D$9:$D$27,'UHCC Adjustments'!$B$9:$B$27,"Total",'UHCC Adjustments'!$C$9:$C$27,A23) -> 109354000 | C23: =+C12*'UHCC Adjustments'!$E$34 -> 8970.097622 | D23: =C23/B23*100 -> 0.00820280705
A24: Rest of Upper Hutt city | B24: =SUMIFS('UHCC Adjustments'!$D$9:$D$27,'UHCC Adjustments'!$B$9:$B$27,"Total",'UHCC Adjustments'!$C$9:$C$27,A24) -> 11344899800 | C24: =+C12-C23 -> 1061801.035 | D24: =C24/B24*100 -> 0.009359280853
A25: Total Upper Hutt city | B25: =+B24+B23 -> 11454253800 | C25: =+C24+C23 -> 1070771.132 | D25: =C25/B25*100 -> 0.009348239973
A28: Non district wide
A29: Greytown River Management Rate | B29: =INDEX('Capital values'!$F$48:$F$49,MATCH("Greytown Urban -CV",'Capital values'!$A$48:$A$49,0),) -> 1101349500 | C29: =INDEX(Control!$D$125:$D$126,MATCH(A29,Control!$A$125:$A$126,0),) -> 97250.86 | D29: =C29/B29*100 -> 0.008830154279
A30: Donalds Creek Stopbank River Management Rate | B30: =INDEX('Capital values'!$F$48:$F$49,MATCH("Featherston Urban - LV",'Capital values'!$A$48:$A$49,0),) -> 281682500 | C30: =INDEX(Control!$D$125:$D$126,MATCH(A30,Control!$A$125:$A$126,0),) -> 2747.54 | D30: =C30/B30*100 -> 0.0009754031578
A31: Total non-district wide rates | C31: =INDEX(ess_base_estract,MATCH(C6&" - Non district Wide",ESSbase!$B$8:$B$25,0),MATCH(year_current,ESSbase!$F$6:$G$6,0)) -> 99998.4
A34: Check Upper Hutt total | B34: =B25-B12 -> 0 | C34: =C25-C12 -> 0
A35: Check Non district Wide total | C35: =IF(ABS(C31-SUM(C29:C30))>tolerance_dollar,1,0) -> 0
A36: Check totals | B36: =B19-SUM(B10:B18) -> 0 | C36: =IF(ABS(C19-SUM(C10:C18))>tolerance_dollar,1,0) -> 0

Sheet Stadium
A1: Wellington Regional Council
A2: ="Stadium purposes rate "&year_current -> Stadium purposes rate 2021/22
A3: Printed: | C3: =NOW() -> 2021-05-04T16:13:52.820
A4: =check_total -> 0
A6: =Control!A66 -> TA full name | B6: =Control!B66 -> Rating area | C6: =Control!C66 -> Category group | D6: =Control!D66 -> Concatenated name | E6: ="Allocation "&year_current -> Allocation 2021/22 | F6: CV | G6: Stadium purposes rate | H6: Rates sought
A7: =Control!A52 -> 0 | C7: =Control!B52 -> 0 | D7: =Control!C52 -> 0 | E7: % | F7: $ | G7: $ | H7: Cents per $
A9: By TA
A10: =Control!A42 -> Wellington city | C10: =Control!B42 -> District wide | D10: =Control!C42 -> Wellington cityDistrict wide | E10: =SUMIF($A$23:$A$49,$A10,$E$23:$E$49) -> 0.594 | F10: =INDEX(capital_values,MATCH($D10,capital_values_rows,0),MATCH(F$6&" "&year_current,capital_values_header,0)) -> 73577159400 | G10: =SUMIF($A$23:$A$49,$A10,$G$23:$G$49) -> 0
A11: =Control!A43 -> Hutt city | C11: =Control!B43 -> District wide | D11: =Control!C43 -> Hutt cityDistrict wide | E11: 0.1952 | F11: 28500797500 | G11: =SUMIF($A$23:$A$49,$A11,$G$23:$G$49) -> 0
A12: =Control!A44 -> Upper Hutt city | C12: =Control!B44 -> District wide | D12: =Control!C44 -> Upper Hutt cityDistrict wide | E12: 0.0526 | F12: 11454253800 | G12: 0
A13: =Control!A45 -> Porirua city | C13: =Control!B45 -> District wide | D13: =Control!C45 -> Porirua cityDistrict wide | E13: 0.0718 | F13: 14342036650 | G13: 0
A14: =Control!A46 -> Kāpiti Coast district | C14: =Control!B46 -> District wide | D14: =Control!C46 -> Kāpiti Coast districtDistrict wide | E14: 0.0484 | F14: 19504834150 | G14: 0
A15: =Control!A47 -> Masterton district | C15: =Control!B47 -> District wide | D15: =Control!C47 -> Masterton districtDistrict wide | E15: 0.02 | F15: 8600907655 | G15: 0
A16: =Control!A48 -> Carterton district | C16: =Control!B48 -> District wide | D16: =Control!C48 -> Carterton districtDistrict wide | E16: 0.007 | F16: 3619977800 | G16: 0
A17: =Control!A49 -> South Wairarapa district | C17: =Control!B49 -> District wide | D17: =Control!C49 -> South Wairarapa districtDistrict wide | E17: 0.011 | F17: 6213437000 | G17: 0
A18: =Control!A50 -> Tararua district | C18: =Control!B50 -> District wide | D18: =Control!C50 -> Tararua districtDistrict wide | E18: 0 | F18: 10673500 | G18: =SUMIF($A$23:$A$49,$A18,$G$23:$G$49) -> 0
A19: Region wide | E19: =SUM(E10:E18) -> 1 | F19: =SUM(F10:F18) -> 165824077455 | G19: =SUM(G10:G18) -> 0
A22: By TA & Category
A23: =Control!A67 -> Wellington city | B23: =Control!B67 -> Wellington city | C23: =Control!C67 -> Regional CBD | D23: =Control!D67 -> Wellington cityRegional CBD | E23: =INDEX(stadium_rate_allocation,MATCH(D23,Control!$C$133:$C$159,0),) -> 0.1393258352 | F23: =INDEX(capital_values,MATCH($D23,capital_values_rows,0),MATCH(F$6&" "&year_current,capital_values_header,0)) -> 9782829150 | G23: =$G$50*E23 -> 0 | H23: =G23/F23*100 -> 0
A24: =Control!A68 -> Wellington city | B24: =Control!B68 -> Wellington city | C24: =Control!C68 -> Business | D24: =Control!D68 -> Wellington cityBusiness | E24: =INDEX(stadium_rate_allocation,MATCH(D24,Control!$C$133:$C$159,0),) -> 0.06617416476 | F24: 4646450150 | G24: 0 | H24: 0
A25: =Control!A69 -> Wellington city | B25: =Control!B69 -> Wellington city | C25: =Control!C69 -> Residential | D25: =Control!D69 -> Wellington cityResidential | E25: =INDEX(stadium_rate_allocation,MATCH(D25,Control!$C$133:$C$159,0),) -> 0.3856 | F25: 58332994000 | G25: 0 | H25: 0
A26: =Control!A70 -> Wellington city | B26: =Control!B70 -> Wellington city | C26: =Control!C70 -> Rural | D26: =Control!D70 -> Wellington cityRural | E26: =INDEX(stadium_rate_allocation,MATCH(D26,Control!$C$133:$C$159,0),) -> 0.0029 | F26: 814886100 | G26: 0 | H26: 0
A27: =Control!A71 -> Hutt city | B27: =Control!B71 -> Hutt city | C27: =Control!C71 -> Business | D27: =Control!D71 -> Hutt cityBusiness | E27: =INDEX(stadium_rate_allocation,MATCH(D27,Control!$C$133:$C$159,0),) -> 0.0509 | F27: 4807328500 | G27: 0 | H27: 0
A28: =Control!A72 -> Hutt city | B28: =Control!B72 -> Hutt city | C28: =Control!C72 -> Residential | D28: =Control!D72 -> Hutt cityResidential | E28: =INDEX(stadium_rate_allocation,MATCH(D28,Control!$C$133:$C$159,0),) -> 0.142 | F28: 23274334000 | G28: 0 | H28: 0
A29: =Control!A73 -> Hutt city | B29: =Control!B73 -> Hutt city | C29: =Control!C73 -> Rural | D29: =Control!D73 -> Hutt cityRural | E29: =INDEX(stadium_rate_allocation,MATCH(D29,Control!$C$133:$C$159,0),) -> 0.0023 | F29: 419135000 | G29: 0 | H29: 0
A30: =Control!A74 -> Upper Hutt city | B30: =Control!B74 -> Upper Hutt city | C30: =Control!C74 -> Business | D30: =Control!D74 -> Upper Hutt cityBusiness | E30: =INDEX(stadium_rate_allocation,MATCH(D30,Control!$C$133:$C$159,0),) -> 0.0079 | F30: 1423091700 | G30: 0 | H30: 0
A31: =Control!A75 -> Upper Hutt city | B31: =Control!B75 -> Upper Hutt city | C31: =Control!C75 -> Residential | D31: =Control!D75 -> Upper Hutt cityResidential | E31: =INDEX(stadium_rate_allocation,MATCH(D31,Control!$C$133:$C$159,0),) -> 0.0427 | F31: 8885002100 | G31: 0 | H31: 0
A32: =Control!A76 -> Upper Hutt city | B32: =Control!B76 -> Upper Hutt city | C32: =Control!C76 -> Rural | D32: =Control!D76 -> Upper Hutt cityRural | E32: =INDEX(stadium_rate_allocation,MATCH(D32,Control!$C$133:$C$159,0),) -> 0.002 | F32: 1146160000 | G32: 0 | H32: 0
A33: =Control!A77 -> Porirua city | B33: =Control!B77 -> Porirua city | C33: =Control!C77 -> Business | D33: =Control!D77 -> Porirua cityBusiness | E33: =INDEX(stadium_rate_allocation,MATCH(D33,Control!$C$133:$C$159,0),) -> 0.0124 | F33: 1437330000 | G33: 0 | H33: 0
A34: =Control!A78 -> Porirua city | B34: =Control!B78 -> Porirua city | C34: =Control!C78 -> Residential | D34: =Control!D78 -> Porirua cityResidential | E34: =INDEX(stadium_rate_allocation,MATCH(D34,Control!$C$133:$C$159,0),) -> 0.058 | F34: 12059685950 | G34: =$G$50*E34 -> 0 | H34: =G34/F34*100 -> 0
A35: =Control!A79 -> Porirua city | B35: =Control!B79 -> Porirua city | C35: =Control!C79 -> Rural | D35: =Control!D79 -> Porirua cityRural | E35: =INDEX(stadium_rate_allocation,MATCH(D35,Control!$C$133:$C$159,0),) -> 0.0014 | F35: 845020700 | G35: 0 | H35: 0
A36: =Control!A80 -> Kāpiti Coast district | B36: =Control!B80 -> Kāpiti Coast district | C36: =Control!C80 -> Business | D36: =Control!D80 -> Kāpiti Coast districtBusiness | E36: =INDEX(stadium_rate_allocation,MATCH(D36,Control!$C$133:$C$159,0),) -> 0.004620956368 | F36: 1770722000 | G36: 0 | H36: 0
A37: =Control!A81 -> Kāpiti Coast district | B37: =Control!B81 -> Kāpiti Coast district excl Ōtaki | C37: =Control!C81 -> Residential | D37: =Control!D81 -> Kāpiti Coast district excl Ōtaki Residential | E37: =INDEX(stadium_rate_allocation,MATCH(D37,Control!$C$133:$C$159,0),) -> 0.03520243936 | F37: 13489357800 | G37: 0 | H37: 0
A38: =Control!A82 -> Kāpiti Coast district | B38: =Control!B82 -> Ōtaki rating area | C38: =Control!C82 -> Residential | D38: =Control!D82 -> Ōtaki rating areaResidential | E38: =INDEX(stadium_rate_allocation,MATCH(D38,Control!$C$133:$C$159,0),) -> 0.004276604274 | F38: 1638768400 | G38: 0 | H38: 0
A39: =Control!A83 -> Kāpiti Coast district | B39: =Control!B83 -> Kāpiti Coast district | C39: =Control!C83 -> Rural | D39: =Control!D83 -> Kāpiti Coast districtRural | E39: =INDEX(stadium_rate_allocation,MATCH(D39,Control!$C$133:$C$159,0),) -> 0.0043 | F39: 2605985950 | G39: 0 | H39: 0
A40: =Control!A84 -> Masterton district | B40: =Control!B84 -> Masterton district | C40: =Control!C84 -> Business | D40: =Control!D84 -> Masterton districtBusiness | E40: =INDEX(stadium_rate_allocation,MATCH(D40,Control!$C$133:$C$159,0),) -> 0.002308313671 | F40: 734108600 | G40: 0 | H40: 0
A41: =Control!A85 -> Masterton district | B41: =Control!B85 -> Masterton district | C41: =Control!C85 -> Residential | D41: =Control!D85 -> Masterton districtResidential | E41: =INDEX(stadium_rate_allocation,MATCH(D41,Control!$C$133:$C$159,0),) -> 0.01239168633 | F41: 3940904400 | G41: 0 | H41: 0
A42: =Control!A86 -> Masterton district | B42: =Control!B86 -> Masterton district | C42: =Control!C86 -> Rural | D42: =Control!D86 -> Masterton districtRural | E42: =INDEX(stadium_rate_allocation,MATCH(D42,Control!$C$133:$C$159,0),) -> 0.0053 | F42: 3925894655 | G42: 0 | H42: 0
A43: =Control!A87 -> Carterton district | B43: =Control!B87 -> Carterton district | C43: =Control!C87 -> Business | D43: =Control!D87 -> Carterton districtBusiness | E43: =INDEX(stadium_rate_allocation,MATCH(D43,Control!$C$133:$C$159,0),) -> 0.0003540683305 | F43: 126728500 | G43: 0 | H43: 0
A44: =Control!A88 -> Carterton district | B44: =Control!B88 -> Carterton district | C44: =Control!C88 -> Residential | D44: =Control!D88 -> Carterton districtResidential | E44: =INDEX(stadium_rate_allocation,MATCH(D44,Control!$C$133:$C$159,0),) -> 0.003545931669 | F44: 1269163500 | G44: 0 | H44: 0
A45: =Control!A89 -> Carterton district | B45: =Control!B89 -> Carterton district | C45: =Control!C89 -> Rural | D45: =Control!D89 -> Carterton districtRural | E45: =INDEX(stadium_rate_allocation,MATCH(D45,Control!$C$133:$C$159,0),) -> 0.0031 | F45: 2224085800 | G45: 0 | H45: 0
A46: =Control!A90 -> South Wairarapa district | B46: =Control!B90 -> South Wairarapa district | C46: =Control!C90 -> Business | D46: =Control!D90 -> South Wairarapa districtBusiness | E46: =INDEX(stadium_rate_allocation,MATCH(D46,Control!$C$133:$C$159,0),) -> 0.0008557313075 | F46: 278760000 | G46: 0 | H46: 0
A47: =Control!A91 -> South Wairarapa district | B47: =Control!B91 -> South Wairarapa district | C47: =Control!C91 -> Residential | D47: =Control!D91 -> South Wairarapa districtResidential | E47: =INDEX(stadium_rate_allocation,MATCH(D47,Control!$C$133:$C$159,0),) -> 0.006344268693 | F47: 2066686500 | G47: 0 | H47: 0
A48: =Control!A92 -> South Wairarapa district | B48: =Control!B92 -> South Wairarapa district | C48: =Control!C92 -> Rural | D48: =Control!D92 -> South Wairarapa districtRural | E48: =INDEX(stadium_rate_allocation,MATCH(D48,Control!$C$133:$C$159,0),) -> 0.0038 | F48: 3867990500 | G48: 0 | H48: 0
A49: =Control!A93 -> Tararua district | B49: =Control!B93 -> Tararua district | C49: =Control!C93 -> Rural | D49: =Control!D93 -> Tararua districtRural | E49: =INDEX(stadium_rate_allocation,MATCH(D49,Control!$C$133:$C$159,0),) -> 0 | F49: 10673500 | G49: 0 | H49: 0
A50: Region wide | E50: =SUM(E23:E49) -> 1 | F50: =SUM(F23:F49) -> 165824077455 | G50: =INDEX(ess_base_estract,MATCH(G6,ESSbase!$B$8:$B$25,0),MATCH(year_current,ESSbase!$F$6:$G$6,0)) -> 0
A53: Upper Hutt breakdown
A54: =$A$12 -> Upper Hutt city | B54: Trentham Military Camp | C54: Business | D54: =B54&C54 -> Trentham Military CampBusiness | E54: =SUMIFS($E$23:$E$49,$A$23:$A$49,A54,$C$23:$C$49,C54) * IF(B54="Trentham Military Camp", INDEX('UHCC Adjustments'!$E$30:$E$32,MATCH(C54,'UHCC Adjustments'!$B$30:$B$32,0),), 1-INDEX('UHCC Adjustments'!$E$30:$E$32,MATCH(C54,'UHCC Adjustments'!$B$30:$B$32,0),)) -> 0.0005789274556 | F54: =SUMIFS('UHCC Adjustments'!$D$9:$D$27,'UHCC Adjustments'!$B$9:$B$27,C54,'UHCC Adjustments'!$C$9:$C$27,B54) -> 70490000 | G54: =$G$50*E54 -> 0 | H54: =G54/F54*100 -> 0
A55: Upper Hutt city | B55: Rest of Upper Hutt City | C55: Business | D55: =B55&C55 -> Rest of Upper Hutt CityBusiness | E55: =SUMIFS($E$23:$E$49,$A$23:$A$49,A55,$C$23:$C$49,C55) * IF(B55="Trentham Military Camp", INDEX('UHCC Adjustments'!$E$30:$E$32,MATCH(C55,'UHCC Adjustments'!$B$30:$B$32,0),), 1-INDEX('UHCC Adjustments'!$E$30:$E$32,MATCH(C55,'UHCC Adjustments'!$B$30:$B$32,0),)) -> 0.007321072544 | F55: =SUMIFS('UHCC Adjustments'!$D$9:$D$27,'UHCC Adjustments'!$B$9:$B$27,C55,'UHCC Adjustments'!$C$9:$C$27,B55) -> 1352601700 | G55: =$G$50*E55 -> 0 | H55: 0
A56: Upper Hutt city | B56: Trentham Military Camp | C56: Residential | D56: Trentham Military CampResidential | E56: =SUMIFS($E$23:$E$49,$A$23:$A$49,A56,$C$23:$C$49,C56) * IF(B56="Trentham Military Camp", INDEX('UHCC Adjustments'!$E$30:$E$32,MATCH(C56,'UHCC Adjustments'!$B$30:$B$32,0),), 1-INDEX('UHCC Adjustments'!$E$30:$E$32,MATCH(C56,'UHCC Adjustments'!$B$30:$B$32,0),)) -> 0.0001326745849 | F56: =SUMIFS('UHCC Adjustments'!$D$9:$D$27,'UHCC Adjustments'!$B$9:$B$27,C56,'UHCC Adjustments'!$C$9:$C$27,B56) -> 32750000 | G56: 0 | H56: 0
A57: Upper Hutt city | B57: Rest of Upper Hutt City | C57: Residential | D57: Rest of Upper Hutt CityResidential | E57: =SUMIFS($E$23:$E$49,$A$23:$A$49,A57,$C$23:$C$49,C57) * IF(B57="Trentham Military Camp", INDEX('UHCC Adjustments'!$E$30:$E$32,MATCH(C57,'UHCC Adjustments'!$B$30:$B$32,0),), 1-INDEX('UHCC Adjustments'!$E$30:$E$32,MATCH(C57,'UHCC Adjustments'!$B$30:$B$32,0),)) -> 0.04256732542 | F57: =SUMIFS('UHCC Adjustments'!$D$9:$D$27,'UHCC Adjustments'!$B$9:$B$27,C57,'UHCC Adjustments'!$C$9:$C$27,B57) -> 8852252100 | G57: 0 | H57: 0
A58: Upper Hutt city | B58: Trentham Military Camp | C58: Rural | D58: Trentham Military CampRural | E58: =SUMIFS($E$23:$E$49,$A$23:$A$49,A58,$C$23:$C$49,C58) * IF(B58="Trentham Military Camp", INDEX('UHCC Adjustments'!$E$30:$E$32,MATCH(C58,'UHCC Adjustments'!$B$30:$B$32,0),), 1-INDEX('UHCC Adjustments'!$E$30:$E$32,MATCH(C58,'UHCC Adjustments'!$B$30:$B$32,0),)) -> 1.44824805e-05 | F58: =SUMIFS('UHCC Adjustments'!$D$9:$D$27,'UHCC Adjustments'!$B$9:$B$27,C58,'UHCC Adjustments'!$C$9:$C$27,B58) -> 6114000 | G58: 0 | H58: 0
A59: Upper Hutt city | B59: Rest of Upper Hutt City | C59: Rural | D59: Rest of Upper Hutt CityRural | E59: =SUMIFS($E$23:$E$49,$A$23:$A$49,A59,$C$23:$C$49,C59) * IF(B59="Trentham Military Camp", INDEX('UHCC Adjustments'!$E$30:$E$32,MATCH(C59,'UHCC Adjustments'!$B$30:$B$32,0),), 1-INDEX('UHCC Adjustments'!$E$30:$E$32,MATCH(C59,'UHCC Adjustments'!$B$30:$B$32,0),)) -> 0.00198551752 | F59: =SUMIFS('UHCC Adjustments'!$D$9:$D$27,'UHCC Adjustments'!$B$9:$B$27,C59,'UHCC Adjustments'!$C$9:$C$27,B59) -> 1140046000 | G59: 0 | H59: 0
A60: Total | E60: =SUM(E54:E59) -> 0.0526 | F60: =SUM(F54:F59) -> 11454253800 | G60: =SUM(G54:G59) -> 0
A63: Check Upper Hutt total | E63: =E60-E12 -> 0 | F63: =F60-F12 -> 0 | G63: =G60-G12 -> 0
A64: Check TA totals | E64: =E19-SUM(E10:E18) -> 0 | F64: =F19-SUM(F10:F18) -> 0 | G64: =G19-SUM(G10:G18) -> 0
A65: Check category totals | E65: =E50-SUM(E23:E49) -> 0 | F65: =F50-SUM(F23:F49) -> 0 | G65: =G50-SUM(G23:G49) -> 0
A66: Category matches TA | F66: =F50-F19 -> 0 | G66: =G50-G19 -> 0

Sheet WRS
A1: Wellington Regional Council
A2: ="Wellington regional strategy rate "&year_current -> Wellington regional strategy rate 2021/22
A3: Printed: | B3: =NOW() -> 2021-05-04T16:13:52.820
A4: =check_total -> 0
A6: =Control!A66 -> TA full name | B6: =Control!B66 -> Rating area | C6: =Control!C66 -> Category group | D6: =Control!D66 -> Concatenated name | E6: CV assessments | F6: Contiguous assements | G6: Rateable properties | H6: Rating basis | I6: CV | J6: ECV | K6: Wellington regional strategy rate | L6: Rates sought
A7: =Control!A52 -> 0 | C7: =Control!B52 -> 0 | D7: =Control!C52 -> 0 | E7: # | F7: # | G7: # | H7: $ | I7: $ | J7: $ | K7: $ | L7: Cents per $
A9: By TA
A10: =Control!A42 -> Wellington city | C10: =Control!B42 -> District wide | D10: =Control!C42 -> Wellington cityDistrict wide | I10: =INDEX(capital_values,MATCH($D10,capital_values_rows,0),MATCH(I$6&" "&year_current,capital_values_header,0)) -> 73577159400 | J10: 87383049753 | K10: =SUMIF($A$23:$A$49,$A10,$K$23:$K$49) -> 2120821.486
A11: =Control!A43 -> Hutt city | C11: =Control!B43 -> District wide | D11: =Control!C43 -> Hutt cityDistrict wide | I11: 28500797500 | J11: 32345787106 | K11: =SUMIF($A$23:$A$49,$A11,$K$23:$K$49) -> 872211.4827
A12: =Control!A44 -> Upper Hutt city | C12: =Control!B44 -> District wide | D12: =Control!C44 -> Upper Hutt cityDistrict wide | I12: 11454253800 | J12: 13073239090 | K12: 349092.3655
A13: =Control!A45 -> Porirua city | C13: =Control!B45 -> District wide | D13: =Control!C45 -> Porirua cityDistrict wide | I13: 14342036650 | J13: 15695286062 | K13: 367471.0713
A14: =Control!A46 -> Kāpiti Coast district | C14: =Control!B46 -> District wide | D14: =Control!C46 -> Kāpiti Coast districtDistrict wide | I14: 19504834150 | J14: 19536115796 | K14: 480010.012
A15: =Control!A47 -> Masterton district | C15: =Control!B47 -> District wide | D15: =Control!C47 -> Masterton districtDistrict wide | I15: 8600907655 | J15: 8631869241 | K15: 260466.8965
A16: =Control!A48 -> Carterton district | C16: =Control!B48 -> District wide | D16: =Control!C48 -> Carterton districtDistrict wide | I16: 3619977800 | J16: 3660511529 | K16: 93264.87211
A17: =Control!A49 -> South Wairarapa district | C17: =Control!B49 -> District wide | D17: =Control!C49 -> South Wairarapa districtDistrict wide | I17: 6213437000 | J17: 6175185837 | K17: 147211.4462
A18: =Control!A50 -> Tararua district | C18: =Control!B50 -> District wide | D18: =Control!C50 -> Tararua districtDistrict wide | I18: 10673500 | J18: 15976500 | K18: 252
A19: Region wide | I19: =SUM(I10:I18) -> 165824077455 | J19: =SUM(J10:J18) -> 186517020914 | K19: =SUM(K10:K18) -> 4690801.632
A22: By TA & Category | P22: =SUMIF($H$23:$H$49,"remainder",J23:J49) -> 2.870533148e+10 | Q22: all busi ECV
A23: =Control!A67 -> Wellington city | B23: =Control!B67 -> Wellington city | C23: =Control!C67 -> Regional CBD | D23: =Control!D67 -> Wellington cityRegional CBD | E23: =INDEX(assessments,MATCH($D23,assessments_rows,0),MATCH(E$6&" "&year_current,assessments_header,0)) -> 3283 | F23: =INDEX(assessments_contiguous,MATCH($D23,assessments_contiguous_rows,0),MATCH(F$6&" "&year_current,assessments_contiguous_header,0)) -> 0 | G23: =E23-F23 -> 3283 | H23: =INDEX(WRS_value,MATCH($C23,WRS_categories,0),) -> Remainder | I23: =INDEX(capital_values,MATCH($D23,capital_values_rows,0),MATCH(I$6&" "&year_current,capital_values_header,0)) -> 9782829150 | J23: =INDEX($J$10:$J$18,MATCH(A23,$A$10:$A$18,0),)/INDEX($I$10:$I$18,MATCH(A23,$A$10:$A$18,0),)*I23 -> 1.161846221e+10 | K23: =IF(H23="Remainder", J23/(SUMIF($C$23:$C$49,"Business",$J$23:$J$49) +SUMIF($C$23:$C$49,"Regional CBD",$J$23:$J$49)) *($K$50-SUMPRODUCT($H$23:$H$49,$G$23:$G$49)), H23*G23) -> 733375.593 | L23: =K23/I23*100 -> 0.007496559346 | Q23: =(J24+J23)/P22 -> 0.5969888977 | R23: =Q23*O51 -> 1081699.486 | S23: remianing busi portion
A24: =Control!A68 -> Wellington city | B24: =Control!B68 -> Wellington city | C24: =Control!C68 -> Business | D24: =Control!D68 -> Wellington cityBusiness | E24: 1892 | F24: 0 | G24: =E24-F24 -> 1892 | H24: Remainder | I24: 4646450150 | J24: =INDEX($J$10:$J$18,MATCH(A24,$A$10:$A$18,0),)/INDEX($I$10:$I$18,MATCH(A24,$A$10:$A$18,0),)*I24 -> 5518301983 | K24: =IF(H24="Remainder", J24/(SUMIF($C$23:$C$49,"Business",$J$23:$J$49) +SUMIF($C$23:$C$49,"Regional CBD",$J$23:$J$49)) *($K$50-SUMPRODUCT($H$23:$H$49,$G$23:$G$49)), H24*G24) -> 348323.893 | L24: 0.007496559346 | Q24: =J24/P22 -> 0.1922396189 | R24: =Q24*O51 -> 348323.893 | S24: busi
A25: =Control!A69 -> Wellington city | B25: =Control!B69 -> Wellington city | C25: =Control!C69 -> Residential | D25: =Control!D69 -> Wellington cityResidential | E25: 72617 | F25: 0 | G25: 72617 | H25: 14 | I25: 58332994000 | J25: 6.927849564e+10 | K25: 1016638 | L25: 0.001742818138 | O25: =H25*G25 -> 1016638 | R25: =R23-R24 -> 733375.593 | S25: CBD
A26: =Control!A70 -> Wellington city | B26: =Control!B70 -> Wellington city | C26: =Control!C70 -> Rural | D26: =Control!D70 -> Wellington cityRural | E26: 803 | F26: 0 | G26: 803 | H26: 28 | I26: 814886100 | J26: 967789912 | K26: 22484 | L26: 0.002759158611 | O26: =H26*G26 -> 22484
A27: =Control!A71 -> Hutt city | B27: =Control!B71 -> Hutt city | C27: =Control!C71 -> Business | D27: =Control!D71 -> Hutt cityBusiness | E27: 2357 | F27: 0 | G27: 2357 | H27: Remainder | I27: 4807328500 | J27: 5455876251 | K27: 344383.4827 | L27: 0.007163718532
A28: =Control!A72 -> Hutt city | B28: =Control!B72 -> Hutt city | C28: =Control!C72 -> Residential | D28: =Control!D72 -> Hutt cityResidential | E28: 36859 | F28: 125 | G28: 36734 | H28: 14 | I28: =INDEX(capital_values,MATCH($D28,capital_values_rows,0),MATCH(I$6&" "&year_current,capital_values_header,0)) -> 23274334000 | J28: 2.641423113e+10 | K28: =IF(H28="Remainder", J28/(SUMIF($C$23:$C$49,"Business",$J$23:$J$49) +SUMIF($C$23:$C$49,"Regional CBD",$J$23:$J$49)) *($K$50-SUMPRODUCT($H$23:$H$49,$G$23:$G$49)), H28*G28) -> 514276 | L28: 0.002209627137 | O28: 514276
A29: =Control!A73 -> Hutt city | B29: =Control!B73 -> Hutt city | C29: =Control!C73 -> Rural | D29: =Control!D73 -> Hutt cityRural | E29: 484 | F29: 0 | G29: 484 | H29: 28 | I29: 419135000 | J29: 475679723.7 | K29: 13552 | L29: 0.003233325778 | O29: 13552
A30: =Control!A74 -> Upper Hutt city | B30: =Control!B74 -> Upper Hutt city | C30: =Control!C74 -> Business | D30: =Control!D74 -> Upper Hutt cityBusiness | E30: 748 | F30: 19 | G30: 729 | H30: Remainder | I30: 1423091700 | J30: 1624236582 | K30: 102524.3655 | L30: 0.007204340063
A31: =Control!A75 -> Upper Hutt city | B31: =Control!B75 -> Upper Hutt city | C31: =Control!C75 -> Residential | D31: =Control!D75 -> Upper Hutt cityResidential | E31: 15105 | F31: 29 | G31: 15076 | H31: 14 | I31: 8885002100 | J31: 1.014084015e+10 | K31: 211064 | L31: 0.002375508724 | O31: 211064
A32: =Control!A76 -> Upper Hutt city | B32: =Control!B76 -> Upper Hutt city | C32: =Control!C76 -> Rural | D32: =Control!D76 -> Upper Hutt cityRural | E32: 1319 | F32: 51 | G32: 1268 | H32: 28 | I32: 1146160000 | J32: 1308162363 | K32: 35504 | L32: 0.003097647798 | O32: 35504
A33: =Control!A77 -> Porirua city | B33: =Control!B77 -> Porirua city | C33: =Control!C77 -> Business | D33: =Control!D77 -> Porirua cityBusiness | E33: 805 | F33: 0 | G33: 805 | H33: Remainder | I33: 1437330000 | J33: 1572949928 | K33: 99287.07129 | L33: 0.006907743614
A34: =Control!A78 -> Porirua city | B34: =Control!B78 -> Porirua city | C34: =Control!C78 -> Residential | D34: =Control!D78 -> Porirua cityResidential | E34: 17908 | F34: 0 | G34: 17908 | H34: 14 | I34: 12059685950 | J34: 1.319758312e+10 | K34: 250712 | L34: 0.002078926442 | O34: 250712
A35: =Control!A79 -> Porirua city | B35: =Control!B79 -> Porirua city | C35: =Control!C79 -> Rural | D35: =Control!D79 -> Porirua cityRural | E35: 624 | F35: 0 | G35: 624 | H35: 28 | I35: 845020700 | J35: 924753013.7 | K35: 17472 | L35: 0.002067641657 | O35: 17472
A36: =Control!A80 -> Kāpiti Coast district | B36: =Control!B80 -> Kāpiti Coast district | C36: =Control!C80 -> Business | D36: =Control!D80 -> Kāpiti Coast districtBusiness | E36: 1317 | F36: 0 | G36: 1317 | H36: Remainder | I36: 1770722000 | J36: 1773561865 | K36: 111950.012 | L36: 0.006322280517 | Q36: =J36/P22 -> 0.06178510311 | R36: KCDC busi
A37: =Control!A81 -> Kāpiti Coast district | B37: =Control!B81 -> Kāpiti Coast district excl Ōtaki | C37: =Control!C81 -> Residential | D37: =Control!D81 -> Kāpiti Coast district excl Ōtaki Residential | E37: 18189 | F37: 146 | G37: 18043 | H37: 14 | I37: 13489357800 | J37: 1.351099189e+10 | K37: 252602 | L37: 0.001872602119 | O37: 252602 | Q37: =Q36*O51 -> 111950.012
A38: =Control!A82 -> Kāpiti Coast district | B38: =Control!B82 -> Ōtaki rating area | C38: =Control!C82 -> Residential | D38: =Control!D82 -> Ōtaki rating areaResidential | E38: 3193 | F38: 42 | G38: =E38-F38 -> 3151 | H38: 14 | I38: 1638768400 | J38: =INDEX($J$10:$J$18,MATCH(A38,$A$10:$A$18,0),)/INDEX($I$10:$I$18,MATCH(A38,$A$10:$A$18,0),)*I38 -> 1641396639 | K38: =IF(H38="Remainder", J38/(SUMIF($C$23:$C$49,"Business",$J$23:$J$49) +SUMIF($C$23:$C$49,"Regional CBD",$J$23:$J$49)) *($K$50-SUMPRODUCT($H$23:$H$49,$G$23:$G$49)), H38*G38) -> 44114 | L38: =K38/I38*100 -> 0.0026918996 | O38: 44114
A39: =Control!A83 -> Kāpiti Coast district | B39: =Control!B83 -> Kāpiti Coast district | C39: =Control!C83 -> Rural | D39: =Control!D83 -> Kāpiti Coast districtRural | E39: 2699 | F39: 151 | G39: 2548 | H39: 28 | I39: 2605985950 | J39: 2610165403 | K39: 71344 | L39: 0.002737697032 | O39: 71344
A40: =Control!A84 -> Masterton district | B40: =Control!B84 -> Masterton district | C40: =Control!C84 -> Business | D40: =Control!D84 -> Masterton districtBusiness | E40: 570 | F40: 0 | G40: 570 | H40: Remainder | I40: 734108600 | J40: 736751247.4 | K40: 46504.89652 | L40: 0.006334879678
A41: =Control!A85 -> Masterton district | B41: =Control!B85 -> Masterton district | C41: =Control!C85 -> Residential | D41: =Control!D85 -> Masterton districtResidential | E41: 8310 | F41: 31 | G41: 8279 | H41: 14 | I41: 3940904400 | J41: 3955090885 | K41: 115906 | L41: 0.00294110154 | O41: 115906
A42: =Control!A86 -> Masterton district | B42: =Control!B86 -> Masterton district | C42: =Control!C86 -> Rural | D42: =Control!D86 -> Masterton districtRural | E42: 3936 | F42: 434 | G42: 3502 | H42: 28 | I42: 3925894655 | J42: 3940027108 | K42: 98056 | L42: 0.002497672725 | O42: 98056
A43: =Control!A87 -> Carterton district | B43: =Control!B87 -> Carterton district | C43: =Control!C87 -> Business | D43: =Control!D87 -> Carterton districtBusiness | E43: 228 | F43: 0 | G43: 228 | H43: Remainder | I43: 126728500 | J43: 128147508.3 | K43: 8088.872105 | L43: 0.00638283583
A44: =Control!A88 -> Carterton district | B44: =Control!B88 -> Carterton district | C44: =Control!C88 -> Residential | D44: =Control!D88 -> Carterton districtResidential | E44: 2550 | F44: 64 | G44: 2486 | H44: 14 | I44: 1269163500 | J44: 1283374617 | K44: 34804 | L44: 0.002742278674 | O44: 34804
A45: =Control!A89 -> Carterton district | B45: =Control!B89 -> Carterton district | C45: =Control!C89 -> Rural | D45: =Control!D89 -> Carterton districtRural | E45: 2072 | F45: 273 | G45: 1799 | H45: 28 | I45: 2224085800 | J45: 2248989403 | K45: 50372 | L45: 0.002264840682 | O45: 50372
A46: =Control!A90 -> South Wairarapa district | B46: =Control!B90 -> South Wairarapa district | C46: =Control!C90 -> Business | D46: =Control!D90 -> South Wairarapa districtBusiness | E46: 313 | F46: 0 | G46: 313 | H46: Remainder | I46: 278760000 | J46: 277043897.6 | K46: 17487.44618 | L46: 0.006273298242
A47: =Control!A91 -> South Wairarapa district | B47: =Control!B91 -> South Wairarapa district | C47: =Control!C91 -> Residential | D47: =Control!D91 -> South Wairarapa districtResidential | E47: 3446 | F47: 90 | G47: 3356 | H47: 14 | I47: 2066686500 | J47: 2053963564 | K47: 46984 | L47: 0.002273397538 | O47: 46984
A48: =Control!A92 -> South Wairarapa district | B48: =Control!B92 -> South Wairarapa district | C48: =Control!C92 -> Rural | D48: =Control!D92 -> South Wairarapa districtRural | E48: 3251 | F48: 296 | G48: 2955 | H48: 28 | I48: 3867990500 | J48: 3844178376 | K48: 82740 | L48: 0.002139095223 | O48: 82740
A49: =Control!A93 -> Tararua district | B49: =Control!B93 -> Tararua district | C49: =Control!C93 -> Rural | D49: =Control!D93 -> Tararua districtRural | E49: 10 | F49: 1 | G49: 9 | H49: 28 | I49: 10673500 | J49: 15976500 | K49: 252 | L49: 0.002360987492 | O49: 252
A50: Region wide | E50: =SUM(E23:E49) -> 204888 | F50: =SUM(F23:F49) -> 1752 | G50: =SUM(G23:G49) -> 203136 | I50: =SUM(I23:I49) -> 165824077455 | J50: =SUM(J23:J49) -> 186517020914 | K50: =INDEX(ess_base_estract,MATCH(K6,ESSbase!$B$8:$B$25,0),MATCH(year_current,ESSbase!$F$6:$G$6,0)) -> 4690801.632 | O50: =SUM(O22:O49) -> 2878876 | P50: Resi or rural rates
O51: =K19-O50 -> 1811925.632 | P51: remaining busi rates
A52: Check TA totals | I52: =INDEX(capital_values,MATCH("Region wide",capital_values_rows,0),MATCH(I6&" "&year_current,capital_values_header,0))-SUM(I10:I18) -> 0 | J52: =INDEX(capital_values,MATCH("Region wide",capital_values_rows,0),MATCH(J6&" "&year_current,capital_values_header,0))-SUM(J10:J18) -> 0 | K52: =INDEX(ess_base_estract,MATCH(K6,ESSbase!$B$8:$B$25,0),MATCH(year_current,ESSbase!$F$6:$G$6,0))-SUM(K10:K18) -> 0
A53: Check category totals | E53: =INDEX(assessments,MATCH("region wide",assessments_rows,0),MATCH("CV assessments "&year_current,assessments_header,0))-SUM(E23:E49) -> 0 | F53: =INDEX(assessments_contiguous,MATCH("region wide",assessments_contiguous_rows,0),MATCH("Contiguous assements "&year_current,assessments_contiguous_header,0))-SUM(F23:F49) -> 0 | G53: =G50-SUM(G23:G49) -> 0 | I53: =INDEX(capital_values,MATCH("Region wide",capital_values_rows,0),MATCH(I6&" "&year_current,capital_values_header,0))-SUM(I23:I49) -> 0 | J53: =INDEX(capital_values,MATCH("Region wide",capital_values_rows,0),MATCH(J6&" "&year_current,capital_values_header,0))-SUM(J23:J49) -> 0 | K53: =INDEX(ess_base_estract,MATCH(K6,ESSbase!$B$8:$B$25,0),MATCH(year_current,ESSbase!$F$6:$G$6,0))-SUM(K23:K49) -> 0
A54: Category matches TA | I54: =I50-I19 -> 0 | J54: =J50-J19 -> 0 | K54: =K50-K19 -> 0

Sheet Public transport
A1: Wellington Regional Council | E1: =E23/$E$10 -> 0.1329601364 | P1: =P23/$P$10 -> 0.1333139042
A2: ="Public transport rate "&year_current -> Public transport rate 2021/22 | E2: =E24/$E$10 -> 0.063150714 | P2: =P24/$P$10 -> 0.06333878252
A3: Printed: | B3: =NOW() -> 2021-05-04T16:13:52.820 | E3: 0.7928138906 | P3: =P25/$P$10 -> 0.7923076444
A4: =check_total -> 0 | E4: =E26/$E$10 -> 0.01107525904 | P4: =P26/$P$10 -> 0.01103966882
A6: =Control!A41 -> TA full name | C6: =Control!B41 -> Category group | D6: =Control!C41 -> Concatenated row | E6: ="CV" -> CV | F6: ECV | G6: Differential | H6: ECV multiplied | I6: Public transport rate | J6: Rates sought | L6: TA full name | N6: Category group | O6: Concatenated row | P6: CV | Q6: ECV | R6: Differential | S6: ECV multiplied | T6: Public transport rate | U6: Rates sought
E7: $ | F7: $ | G7: # | H7: # | I7: $ | J7: Cents/$ | P7: $ | Q7: $ | R7: # | S7: # | T7: $ | U7: Cents/$
A9: By TA | L9: By TA
A10: =Control!A42 -> Wellington city | C10: =Control!B42 -> District wide | D10: =Control!C42 -> Wellington cityDistrict wide | E10: =INDEX(capital_values,MATCH($D10,capital_values_rows,0),MATCH(E$6&" "&year_current,capital_values_header,0)) -> 73577159400 | F10: 87383049753 | I10: =SUMIF($A$23:$A$49,$A10,$I$23:$I$49) -> 50163326.39 | L10: Wellington city | N10: District wide | O10: Wellington cityDistrict wide | P10: 73472412400 | Q10: 78916163129 | T10: 46190730.44
A11: =Control!A43 -> Hutt city | C11: =Control!B43 -> District wide | D11: =Control!C43 -> Hutt cityDistrict wide | E11: 28500797500 | F11: 32345787106 | I11: 12823188.52 | L11: Hutt city | N11: District wide | O11: Hutt cityDistrict wide | P11: 28322072500 | Q11: 28856396822 | T11: 12661872.11
A12: =Control!A44 -> Upper Hutt city | C12: =Control!B44 -> District wide | D12: =Control!C44 -> Upper Hutt cityDistrict wide | E12: 11454253800 | F12: 13073239090 | I12: 5049243.297 | L12: Upper Hutt city | N12: District wide | O12: Upper Hutt cityDistrict wide | P12: 11368717300 | Q12: 11490862745 | T12: 5026809.955
A13: =Control!A45 -> Porirua city | C13: =Control!B45 -> District wide | D13: =Control!C45 -> Porirua cityDistrict wide | E13: 14342036650 | F13: 15695286062 | I13: 6309996.486 | L13: Porirua city | N13: District wide | O13: Porirua cityDistrict wide | P13: 14056194050 | Q13: 14075045457 | T13: 6447637.429
A14: =Control!A46 -> Kāpiti Coast district | C14: =Control!B46 -> District wide | D14: =Control!C46 -> Kāpiti Coast districtDistrict wide | E14: 19504834150 | F14: 19536115796 | I14: 5333583.4 | L14: Kāpiti Coast district | N14: District wide | O14: Kāpiti Coast districtDistrict wide | P14: 15080860600 | Q14: 17343052084 | T14: 4742362.578
A15: =Control!A47 -> Masterton district | C15: =Control!B47 -> District wide | D15: =Control!C47 -> Masterton districtDistrict wide | E15: 8600907655 | F15: 8631869241 | I15: 997246.5373 | L15: Masterton district | N15: District wide | O15: Masterton districtDistrict wide | P15: 6087708500 | Q15: 7210237560 | T15: 751407.2085
A16: =Control!A48 -> Carterton district | C16: =Control!B48 -> District wide | D16: =Control!C48 -> Carterton districtDistrict wide | E16: 3619977800 | F16: 3660511529 | I16: 401657.4048 | L16: Carterton district | N16: District wide | O16: Carterton districtDistrict wide | P16: 2789361700 | Q16: 3247279141 | T16: 344023.3703
A17: =Control!A49 -> South Wairarapa district | C17: =Control!B49 -> District wide | D17: =Control!C49 -> South Wairarapa districtDistrict wide | E17: 6213437000 | F17: 6175185837 | I17: 732088.7925 | L17: South Wairarapa district | N17: District wide | O17: South Wairarapa districtDistrict wide | P17: 4666483900 | Q17: 5324430465 | T17: 632723.2599
A18: =Control!A50 -> Tararua district | C18: =Control!B50 -> District wide | D18: =Control!C50 -> Tararua districtDistrict wide | E18: 10673500 | F18: 15976500 | I18: 0 | L18: Tararua district | N18: District wide | O18: Tararua districtDistrict wide | P18: 10673500 | Q18: 12516025 | T18: 0
A19: Region wide | E19: =SUM(E10:E18) -> 165824077455 | F19: =SUM(F10:F18) -> 186517020914 | I19: =SUM(I10:I18) -> 81810330.83 | L19: Region wide | P19: =SUM(P10:P18) -> 155854484450 | Q19: =SUM(Q10:Q18) -> 166475983428 | T19: =SUM(T10:T18) -> 76797566.35
A22: By TA & Category | L22: By TA & Category
A23: =Control!A67 -> Wellington city | B23: =Control!B67 -> Wellington city | C23: =Control!C67 -> Regional CBD | D23: =Control!D67 -> Wellington cityRegional CBD | E23: =INDEX(capital_values,MATCH($D23,capital_values_rows,0),MATCH(E$6&" "&year_current,capital_values_header,0)) -> 9782829150 | F23: 1.161846221e+10 | G23: =INDEX(PT_differentials,MATCH($D23,Concat_rating_category,0),) -> 6.91440171 | H23: =F23*G23 -> 8.033471501e+10 | I23: =I$50*H23/H$50 -> 27161289.5 | J23: =I23/E23*100 -> 0.2776424804 | L23: Wellington city | M23: Wellington city | N23: Regional CBD | O23: Wellington cityRegional CBD | P23: 9794894150 | Q23: 1.052062181e+10 | R23: 6.871602565 | S23: 7.229353184e+10 | T23: 25774927.38 | U23: 0.2631465638
A24: =Control!A68 -> Wellington city | B24: =Control!B68 -> Wellington city | C24: =Control!C68 -> Business | D24: =Control!D68 -> Wellington cityBusiness | E24: 4646450150 | F24: 5518301983 | G24: =INDEX(PT_differentials,MATCH($D24,Concat_rating_category,0),) -> 1.153674074 | H24: =F24*G24 -> 6366321930 | I24: 2152463.141 | J24: 0.04632489474 | L24: Wellington city | M24: Wellington city | N24: Business | O24: Wellington cityBusiness | P24: 4653653150 | Q24: 4998453694 | R24: 1.030511111 | S24: 5150962069 | T24: 1836480.663 | U24: 0.03946320457
A25: =Control!A69 -> Wellington city | B25: =Control!B69 -> Wellington city | C25: =Control!C69 -> Residential | D25: =Control!D69 -> Wellington cityResidential | E25: 58332994000 | F25: 6.927849564e+10 | G25: 0.8870074073 | H25: 6.14505388e+10 | I25: 20776520.76 | J25: 0.03561709993 | L25: Wellington city | M25: Wellington city | N25: Residential | O25: Wellington cityResidential | P25: 58212754000 | Q25: 6.252587932e+10 | R25: 0.8305111109 | S25: 5.192843749e+10 | T25: 18514128.05 | U25: 0.03180424696
A26: =Control!A70 -> Wellington city | B26: =Control!B70 -> Wellington city | C26: =Control!C70 -> Rural | D26: =Control!D70 -> Wellington cityRural | E26: 814886100 | F26: 967789912 | G26: 0.2232594069 | H26: 216068201.8 | I26: 73052.98812 | J26: 0.008964809698 | L26: Wellington city | M26: Wellington city | N26: Rural | O26: Wellington cityRural | P26: 811111100 | Q26: 871208305.2 | R26: 0.2098891104 | S26: 182857136.2 | T26: 65194.3443 | U26: 0.008037658997
A27: =Control!A71 -> Hutt city | B27: =Control!B71 -> Hutt city | C27: =Control!C71 -> Business | D27: =Control!D71 -> Hutt cityBusiness | E27: 4807328500 | F27: 5455876251 | G27: 1.406777745 | H27: 7675205288 | I27: 2594998.598 | J27: 0.05398005561 | L27: Hutt city | M27: Hutt city | N27: Business | O27: Hutt cityBusiness | P27: 4808893500 | Q27: 4899618102 | R27: 1.410166617 | S27: 6909277884 | T27: 2463375.785 | U27: 0.05122541775
A28: =Control!A72 -> Hutt city | B28: =Control!B72 -> Hutt city | C28: =Control!C72 -> Residential | D28: =Control!D72 -> Hutt cityResidential | E28: 23274334000 | F28: 2.641423113e+10 | G28: 1.140111078 | H28: 3.011515753e+10 | I28: 10181980.63 | J28: 0.04374767772 | L28: Hutt city | M28: Hutt city | N28: Residential | O28: Hutt cityResidential | P28: 23093154000 | Q28: 2.352882953e+10 | R28: 1.210166617 | S28: 2.847380403e+10 | T28: 10151810.44 | U28: 0.04396025956
A29: =Control!A73 -> Hutt city | B29: =Control!B73 -> Hutt city | C29: =Control!C73 -> Rural | D29: =Control!D73 -> Hutt cityRural | E29: 419135000 | F29: 475679723.7 | G29: 0.2873211051 | H29: =F29*G29 -> 136672823.9 | I29: =I$50*H29/H$50 -> 46209.28992 | J29: =I29/E29*100 -> 0.01102491797 | L29: Hutt city | M29: Hutt city | N29: Rural | O29: Hutt cityRural | P29: 420025000 | Q29: 427949193.2 | R29: 0.3059816577 | S29: 130944603.5 | T29: 46685.88684 | U29: 0.01111502574
A30: =Control!A74 -> Upper Hutt city | B30: =Control!B74 -> Upper Hutt city | C30: =Control!C74 -> Business | D30: =Control!D74 -> Upper Hutt cityBusiness | E30: 1423091700 | F30: 1624236582 | G30: 1.465595546 | H30: 2380473900 | I30: 804841.8514 | J30: 0.05655586716 | L30: Upper Hutt city | M30: Upper Hutt city | N30: Business | O30: Upper Hutt cityBusiness | P30: 1403197700 | Q30: 1418273649 | R30: 1.498393319 | S30: 2125131761 | T30: 757676.5919 | U30: 0.05399642487
A31: =Control!A75 -> Upper Hutt city | B31: =Control!B75 -> Upper Hutt city | C31: =Control!C75 -> Residential | D31: =Control!D75 -> Upper Hutt cityResidential | E31: 8885002100 | F31: 1.014084015e+10 | G31: 1.198928879 | H31: 1.215814611e+10 | I31: 4110687.718 | J31: 0.04626546704 | L31: Upper Hutt city | M31: Upper Hutt city | N31: Residential | O31: Upper Hutt cityResidential | P31: 8839255600 | Q31: 8934224520 | R31: 1.298393319 | S31: 1.160013743e+10 | T31: 4135815.366 | U31: 0.04678918173
A32: =Control!A76 -> Upper Hutt city | B32: =Control!B76 -> Upper Hutt city | C32: =Control!C76 -> Rural | D32: =Control!D76 -> Upper Hutt cityRural | E32: 1146160000 | F32: 1308162363 | G32: 0.302320235 | H32: 395483952.9 | I32: 133713.7268 | J32: 0.01166623568 | L32: Upper Hutt city | M32: Upper Hutt city | N32: Rural | O32: Upper Hutt cityRural | P32: 1126264000 | Q32: 1138364575 | R32: 0.3284803525 | S32: 373930396.9 | T32: 133317.9965 | U32: 0.01183718884
A33: =Control!A77 -> Porirua city | B33: =Control!B77 -> Porirua city | C33: =Control!C77 -> Business | D33: =Control!D77 -> Porirua cityBusiness | E33: 1437330000 | F33: 1572949928 | G33: 1.482602772 | H33: 2332059924 | I33: 788473.0122 | J33: 0.05485678391 | L33: Porirua city | M33: Porirua city | N33: Business | O33: Porirua cityBusiness | P33: 1392206000 | Q33: 1394073151 | R33: 1.523904158 | S33: 2124433872 | T33: 757427.7725 | U33: 0.0544048634
A34: =Control!A78 -> Porirua city | B34: =Control!B78 -> Porirua city | C34: =Control!C78 -> Residential | D34: =Control!D78 -> Porirua cityResidential | E34: 12059685950 | F34: 1.319758312e+10 | G34: 1.215936106 | H34: 1.604741782e+10 | I34: 5425656.407 | J34: 0.04499003067 | L34: Porirua city | M34: Porirua city | N34: Residential | O34: Porirua cityResidential | P34: 11827388450 | Q34: 1.18432507e+10 | R34: 1.323904158 | S34: 1.567932885e+10 | T34: 5590175.944 | U34: 0.04726466851
A35: =Control!A79 -> Porirua city | B35: =Control!B79 -> Porirua city | C35: =Control!C79 -> Rural | D35: =Control!D79 -> Porirua cityRural | E35: 845020700 | F35: 924753013.7 | G35: 0.3066172301 | H35: 283545207.6 | I35: 95867.06656 | J35: 0.01134493706 | L35: Porirua city | M35: Porirua city | N35: Rural | O35: Porirua cityRural | P35: 836599600 | Q35: 837721602.1 | R35: 0.3349258452 | S35: 280574615.6 | T35: 100033.712 | U35: 0.01195717904
A36: =Control!A80 -> Kāpiti Coast district | B36: =Control!B80 -> Kāpiti Coast district | C36: =Control!C80 -> Business | D36: =Control!D80 -> Kāpiti Coast districtBusiness | E36: 1770722000 | F36: 1773561865 | G36: 1.16799219 | H36: 2071506407 | I36: 700379.4714 | J36: 0.03955332748 | L36: Kāpiti Coast district | M36: Kāpiti Coast district | N36: Business | O36: Kāpiti Coast districtBusiness | P36: 1470171000 | Q36: 1690702733 | R36: 1.051988285 | S36: 1778599469 | T36: 634126.8849 | U36: 0.04313286583
A37: =Control!A81 -> Kāpiti Coast district | B37: =Control!B81 -> Kāpiti Coast district excl Ōtaki | C37: =Control!C81 -> Residential | D37: =Control!D81 -> Kāpiti Coast district excl Ōtaki Residential | E37: 13489357800 | F37: 1.351099189e+10 | G37: 0.9013255235 | H37: 1.217780184e+10 | I37: 4117333.349 | J37: 0.03052282703 | L37: Kāpiti Coast district | M37: Kāpiti Coast district excl Ōtaki | N37: Residential | O37: Kāpiti Coast district excl Ōtaki Residential | P37: 10434968000 | Q37: 1.200025637e+10 | R37: 0.8519882853 | S37: 1.022407785e+10 | T37: 3645206.665 | U37: 0.03493260991
A38: =Control!A82 -> Kāpiti Coast district | B38: =Control!B82 -> Ōtaki rating area | C38: =Control!C82 -> Residential | D38: =Control!D82 -> Ōtaki rating areaResidential | E38: 1638768400 | F38: 1641396639 | G38: 0.5679921902 | H38: 932300472.2 | I38: 315212.2096 | J38: 0.01923470148 | L38: Kāpiti Coast district | M38: Ōtaki rating area | N38: Residential | O38: Ōtaki rating areaResidential | P38: 1148278900 | Q38: 1320525486 | R38: 0.6019882853 | S38: 794940872.9 | T38: 283421.5282 | U38: 0.02468229001
A39: =Control!A83 -> Kāpiti Coast district | B39: =Control!B83 -> Kāpiti Coast district | C39: =Control!C83 -> Rural | D39: =Control!D83 -> Kāpiti Coast districtRural | E39: 2605985950 | F39: 2610165403 | G39: 0.2273746917 | H39: 593485553.8 | I39: 200658.3697 | J39: 0.007699902206 | L39: Kāpiti Coast district | M39: Kāpiti Coast district | N39: Rural | O39: Kāpiti Coast districtRural | P39: 2027442700 | Q39: 2331567493 | R39: 0.2160620376 | S39: 503763223.3 | T39: 179607.4997 | U39: 0.008858820015
A40: =Control!A84 -> Masterton district | B40: =Control!B84 -> Masterton district | C40: =Control!C84 -> Business | D40: =Control!D84 -> Masterton districtBusiness | E40: 734108600 | F40: 736751247.4 | G40: 0.7496624742 | H40: 552314763 | I40: 186738.4626 | J40: 0.02543744381 | L40: Masterton district | M40: Masterton district | N40: Business | O40: Masterton districtBusiness | P40: 440782600 | Q40: 522059697.6 | R40: 0.6244937114 | S40: 326022998.1 | T40: 116237.4958 | U40: 0.02637070877
A41: =Control!A85 -> Masterton district | B41: =Control!B85 -> Masterton district | C41: =Control!C85 -> Residential | D41: =Control!D85 -> Masterton districtResidential | E41: 3940904400 | F41: 3955090885 | G41: 0.4163291409 | H41: 1646619590 | I41: 556724.5915 | J41: 0.01412682306 | L41: Masterton district | M41: Masterton district | N41: Residential | O41: Masterton districtResidential | P41: 2790174300 | Q41: 3304662097 | R41: 0.3744937114 | S41: 1237575173 | T41: 441234.6363 | U41: 0.01581387357
A42: =Control!A86 -> Masterton district | B42: =Control!B86 -> Masterton district | C42: =Control!C86 -> Rural | D42: =Control!D86 -> Masterton districtRural | E42: 3925894655 | F42: 3940027108 | G42: 0.1905096665 | H42: 750613250.3 | I42: 253783.4832 | J42: 0.00646434776 | L42: Masterton district | M42: Masterton district | N42: Rural | O42: Masterton districtRural | P42: 2856751600 | Q42: 3383515766 | R42: 0.1607644997 | S42: 543949219.4 | T42: 193935.0765 | U42: 0.006788657317
A43: =Control!A87 -> Carterton district | B43: =Control!B87 -> Carterton district | C43: =Control!C87 -> Business | D43: =Control!D87 -> Carterton districtBusiness | E43: 126728500 | F43: 128147508.3 | G43: 0.8155673748 | H43: 104512927 | I43: 35335.97979 | J43: 0.02788321474 | L43: Carterton district | M43: Carterton district | N43: Business | O43: Carterton districtBusiness | P43: 100561500 | Q43: 117070246.3 | R43: 0.7233510622 | S43: 84682887.04 | T43: 30192.12381 | U43: 0.03002354162
A44: =Control!A88 -> Carterton district | B44: =Control!B88 -> Carterton district | C44: =Control!C88 -> Residential | D44: =Control!D88 -> Carterton districtResidential | E44: 1269163500 | F44: 1283374617 | G44: 0.4822340415 | H44: 618886928.5 | I44: 209246.6131 | J44: 0.0164869706 | L44: Carterton district | M44: Carterton district | N44: Residential | O44: Carterton districtResidential | P44: 897977500 | Q44: 1045394581 | R44: 0.4733510622 | S44: 494838635.2 | T44: 176425.6022 | U44: 0.01964699585
A45: =Control!A89 -> Carterton district | B45: =Control!B89 -> Carterton district | C45: =Control!C89 -> Rural | D45: =Control!D89 -> Carterton districtRural | E45: 2224085800 | F45: 2248989403 | G45: 0.2065722652 | H45: 464578835.5 | I45: 157074.8119 | J45: 0.007062443898 | L45: Carterton district | M45: Carterton district | N45: Rural | O45: Carterton districtRural | P45: 1790822700 | Q45: 2084814314 | R45: 0.1848583978 | S45: 385395433.8 | T45: 137405.6443 | U45: 0.007672766505
A46: =Control!A90 -> South Wairarapa district | B46: =Control!B90 -> South Wairarapa district | C46: =Control!C90 -> Business | D46: =Control!D90 -> South Wairarapa districtBusiness | E46: 278760000 | F46: 277043897.6 | G46: 0.8634165756 | H46: 239204293.4 | I46: 80875.33592 | J46: 0.02901253261 | L46: South Wairarapa district | M46: South Wairarapa district | N46: Business | O46: South Wairarapa districtBusiness | P46: 211218600 | Q46: 240999170.4 | R46: 0.7951248635 | S46: 191624432.5 | T46: 68320.16234 | U46: 0.03234571309
A47: =Control!A91 -> South Wairarapa district | B47: =Control!B91 -> South Wairarapa district | C47: =Control!C91 -> Residential | D47: =Control!D91 -> South Wairarapa districtResidential | E47: 2066686500 | F47: 2053963564 | G47: 0.5300832423 | H47: 1088771666 | I47: 368115.3584 | J47: 0.01781186254 | L47: South Wairarapa district | M47: South Wairarapa district | N47: Residential | O47: South Wairarapa districtResidential | P47: 1423101100 | Q47: 1623749918 | R47: 0.5451248635 | S47: 885146452.5 | T47: 315582.6663 | U47: 0.02217570251
A48: =Control!A92 -> South Wairarapa district | B48: =Control!B92 -> South Wairarapa district | C48: =Control!C92 -> Rural | D48: =Control!D92 -> South Wairarapa districtRural | E48: 3867990500 | F48: 3844178376 | G48: 0.2178142521 | H48: 837316837.9 | I48: 283098.0982 | J48: 0.00731899673 | L48: South Wairarapa district | M48: South Wairarapa district | N48: Rural | O48: South Wairarapa districtRural | P48: 3032164200 | Q48: 3459681376 | R48: 0.2017213782 | S48: 697891695.3 | T48: 248820.4312 | U48: 0.008206034199
A49: =Control!A93 -> Tararua district | B49: =Control!B93 -> Tararua district | C49: =Control!C93 -> Rural | D49: =Control!D93 -> Tararua districtRural | E49: 10673500 | F49: 15976500 | G49: 0 | H49: 0 | I49: 0 | J49: 0 | L49: Tararua district | M49: Tararua district | N49: Rural | O49: Tararua districtRural | P49: 10673500 | Q49: 12516025 | R49: 0 | S49: 0 | T49: 0 | U49: 0
A50: Region wide | E50: =SUM(E23:E49) -> 165824077455 | F50: =SUM(F23:F49) -> 186517020914 | H50: =SUM(H23:H49) -> 2.419697199e+11 | I50: =INDEX(ess_base_estract,MATCH(I6,ESSbase!$B$8:$B$25,0),MATCH(year_current,ESSbase!$F$6:$G$6,0)) -> 81810330.83 | L50: Region wide | P50: =SUM(P23:P49) -> 155854484450 | Q50: =SUM(Q23:Q49) -> 166475983428 | S50: =SUM(S23:S49) -> 2.154018603e+11 | T50: =SUM(T23:T49) -> 76797566.35
A53: Upper Hutt breakdown | L53: Upper Hutt breakdown
A54: =$A$12 -> Upper Hutt city | B54: Trentham Military Camp | C54: Business | D54: =B54&C54 -> Trentham Military CampBusiness | E54: =SUMIFS('UHCC Adjustments'!$D$9:$D$27,'UHCC Adjustments'!$B$9:$B$27,C54,'UHCC Adjustments'!$C$9:$C$27,B54) -> 70490000 | I54: =SUMIFS($I$23:$I$49,$A$23:$A$49,A54,$C$23:$C$49,C54) * IF(B54="Trentham Military Camp", INDEX('UHCC Adjustments'!$E$30:$E$34,MATCH(C54,'UHCC Adjustments'!$B$30:$B$34,0),), 1-INDEX('UHCC Adjustments'!$E$30:$E$34,MATCH(C54,'UHCC Adjustments'!$B$30:$B$34,0),)) -> 58980.38547 | J54: =I54/E54*100 -> 0.0836719896 | L54: Upper Hutt city | M54: Trentham Military Camp | N54: Business | O54: Trentham Military CampBusiness | P54: 70490000 | T54: 55235.39302 | U54: 0.07835918998
A55: Upper Hutt city | B55: Rest of Upper Hutt City | C55: Business | D55: =B55&C55 -> Rest of Upper Hutt CityBusiness | E55: =SUMIFS('UHCC Adjustments'!$D$9:$D$27,'UHCC Adjustments'!$B$9:$B$27,C55,'UHCC Adjustments'!$C$9:$C$27,B55) -> 1352601700 | I55: =SUMIFS($I$23:$I$49,$A$23:$A$49,A55,$C$23:$C$49,C55) * IF(B55="Trentham Military Camp", INDEX('UHCC Adjustments'!$E$30:$E$34,MATCH(C55,'UHCC Adjustments'!$B$30:$B$34,0),), 1-INDEX('UHCC Adjustments'!$E$30:$E$34,MATCH(C55,'UHCC Adjustments'!$B$30:$B$34,0),)) -> 745861.4659 | J55: 0.05514272723 | L55: Upper Hutt city | M55: Rest of Upper Hutt City | N55: Business | O55: Rest of Upper Hutt CityBusiness | P55: 1332707700 | T55: 702441.1989 | U55: 0.05270782174
A56: Upper Hutt city | B56: Trentham Military Camp | C56: Residential | D56: Trentham Military CampResidential | E56: =SUMIFS('UHCC Adjustments'!$D$9:$D$27,'UHCC Adjustments'!$B$9:$B$27,C56,'UHCC Adjustments'!$C$9:$C$27,B56) -> 32750000 | I56: =SUMIFS($I$23:$I$49,$A$23:$A$49,A56,$C$23:$C$49,C56) * IF(B56="Trentham Military Camp", INDEX('UHCC Adjustments'!$E$30:$E$34,MATCH(C56,'UHCC Adjustments'!$B$30:$B$34,0),), 1-INDEX('UHCC Adjustments'!$E$30:$E$34,MATCH(C56,'UHCC Adjustments'!$B$30:$B$34,0),)) -> 12772.45402 | J56: 0.03899985959 | L56: Upper Hutt city | M56: Trentham Military Camp | N56: Residential | O56: Trentham Military CampResidential | P56: 32750000 | T56: 12806.64798 | U56: 0.03910426864
A57: Upper Hutt city | B57: Rest of Upper Hutt City | C57: Residential | D57: Rest of Upper Hutt CityResidential | E57: =SUMIFS('UHCC Adjustments'!$D$9:$D$27,'UHCC Adjustments'!$B$9:$B$27,C57,'UHCC Adjustments'!$C$9:$C$27,B57) -> 8852252100 | I57: =SUMIFS($I$23:$I$49,$A$23:$A$49,A57,$C$23:$C$49,C57) * IF(B57="Trentham Military Camp", INDEX('UHCC Adjustments'!$E$30:$E$34,MATCH(C57,'UHCC Adjustments'!$B$30:$B$34,0),), 1-INDEX('UHCC Adjustments'!$E$30:$E$34,MATCH(C57,'UHCC Adjustments'!$B$30:$B$34,0),)) -> 4097915.264 | J57: 0.04629234706 | L57: Upper Hutt city | M57: Rest of Upper Hutt City | N57: Residential | O57: Rest of Upper Hutt CityResidential | P57: 8806505600 | T57: 4123008.718 | U57: 0.04681776071
A58: Upper Hutt city | B58: Trentham Military Camp | C58: Rural | D58: Trentham Military CampRural | E58: =SUMIFS('UHCC Adjustments'!$D$9:$D$27,'UHCC Adjustments'!$B$9:$B$27,C58,'UHCC Adjustments'!$C$9:$C$27,B58) -> 6114000 | I58: =SUMIFS($I$23:$I$49,$A$23:$A$49,A58,$C$23:$C$49,C58) * IF(B58="Trentham Military Camp", INDEX('UHCC Adjustments'!$E$30:$E$34,MATCH(C58,'UHCC Adjustments'!$B$30:$B$34,0),), 1-INDEX('UHCC Adjustments'!$E$30:$E$34,MATCH(C58,'UHCC Adjustments'!$B$30:$B$34,0),)) -> 968.2532207 | J58: 0.01583665719 | L58: Upper Hutt city | M58: Trentham Military Camp | N58: Rural | O58: Trentham Military CampRural | P58: 6114000 | T58: 953.7388485 | U58: 0.01559926151
A59: Upper Hutt city | B59: Rest of Upper Hutt City | C59: Rural | D59: Rest of Upper Hutt CityRural | E59: =SUMIFS('UHCC Adjustments'!$D$9:$D$27,'UHCC Adjustments'!$B$9:$B$27,C59,'UHCC Adjustments'!$C$9:$C$27,B59) -> 1140046000 | I59: =SUMIFS($I$23:$I$49,$A$23:$A$49,A59,$C$23:$C$49,C59) * IF(B59="Trentham Military Camp", INDEX('UHCC Adjustments'!$E$30:$E$34,MATCH(C59,'UHCC Adjustments'!$B$30:$B$34,0),), 1-INDEX('UHCC Adjustments'!$E$30:$E$34,MATCH(C59,'UHCC Adjustments'!$B$30:$B$34,0),)) -> 132745.4736 | J59: 0.01164386995 | L59: Upper Hutt city | M59: Rest of Upper Hutt City | N59: Rural | O59: Rest of Upper Hutt CityRural | P59: 1120150000 | T59: 132364.2577 | U59: 0.0118166547
A60: Total | E60: =SUM(E54:E59) -> 11454253800 | I60: =SUM(I54:I59) -> 5049243.297 | L60: Total | P60: =SUM(P54:P59) -> 11368717300 | T60: =SUM(T54:T59) -> 5026809.955
A63: Check Upper Hutt total | E63: =E60-E12 -> 0 | I63: =I60-I12 -> 0 | L63: Check Upper Hutt total | P63: 0 | T63: 0
A64: Check TA totals | E64: =INDEX(capital_values,MATCH("Region wide",capital_values_rows,0),MATCH(E6&" "&year_current,capital_values_header,0))-SUM(E10:E18) -> 0 | F64: =INDEX(capital_values,MATCH("Region wide",capital_values_rows,0),MATCH(F6&" "&year_current,capital_values_header,0))-SUM(F10:F18) -> 0 | I64: =INDEX(ess_base_estract,MATCH(I6,ESSbase!$B$8:$B$25,0),MATCH(year_current,ESSbase!$F$6:$G$6,0))-SUM(I10:I18) -> 0 | L64: Check TA totals | P64: 0 | Q64: 0 | T64: 0
A65: Check category totals | E65: =INDEX(capital_values,MATCH("Region wide",capital_values_rows,0),MATCH(E6&" "&year_current,capital_values_header,0))-SUM(E23:E49) -> 0 | F65: =INDEX(capital_values,MATCH("Region wide",capital_values_rows,0),MATCH(F6&" "&year_current,capital_values_header,0))-SUM(F23:F49) -> 0 | H65: =H50-SUM(H23:H49) -> 0 | I65: =INDEX(ess_base_estract,MATCH(I6,ESSbase!$B$8:$B$25,0),MATCH(year_current,ESSbase!$F$6:$G$6,0))-SUM(I23:I49) -> 0 | L65: Check category totals | P65: 0 | Q65: 0 | S65: 0 | T65: 0
A66: Category matches TA | E66: =E50-E19 -> 0 | F66: =F50-F19 -> 0 | I66: =I50-I19 -> 0 | L66: Category matches TA | P66: 0 | Q66: 0 | T66: 0

Sheet >>Other rates & levies

Sheet Pest
A1: Wellington Regional Council
A2: ="Pest management rate "&year_current -> Pest management rate 2021/22
A3: Printed: | B3: =NOW() -> 2021-05-04T16:13:52.820
A4: =check_total -> 0
A6: TA full name | B6: Area ha | C6: $ per Hectare | D6: Pest management rate
B7: # | C7: $ | D7: Cents per $
A9: By TA
A10: =Control!A17 -> Wellington city | B10: =INDEX(Control!$D$164:$D$172,MATCH(Pest!A10,Control!$A$164:$A$172,0)) -> 16197.0445 | C10: =$C$19 -> 1.106684057 | D10: =B10*C10 -> 17925.01092
A11: =Control!A18 -> Hutt city | B11: =INDEX(Control!$D$164:$D$172,MATCH(Pest!A11,Control!$A$164:$A$172,0)) -> 15091.2191 | C11: 1.106684057 | D11: =B11*C11 -> 16701.21158
A12: =Control!A19 -> Upper Hutt city | B12: =INDEX(Control!$D$164:$D$172,MATCH(Pest!A12,Control!$A$164:$A$172,0)) -> 54346.1582 | C12: =$C$19 -> 1.106684057 | D12: 60144.02684
A13: =Control!A20 -> Porirua city | B13: =INDEX(Control!$D$164:$D$172,MATCH(Pest!A13,Control!$A$164:$A$172,0)) -> 12639 | C13: 1.106684057 | D13: 13987.3798
A14: =Control!A21 -> Kāpiti Coast district | B14: =INDEX(Control!$D$164:$D$172,MATCH(Pest!A14,Control!$A$164:$A$172,0)) -> 29020.7598 | C14: 1.106684057 | D14: 32116.81219
A15: =Control!A22 -> Masterton district | B15: =INDEX(Control!$D$164:$D$172,MATCH(Pest!A15,Control!$A$164:$A$172,0)) -> 206574.3888 | C15: 1.106684057 | D15: 228612.5827
A16: =Control!A23 -> Carterton district | B16: =INDEX(Control!$D$164:$D$172,MATCH(Pest!A16,Control!$A$164:$A$172,0)) -> 85878.6034 | C16: 1.106684057 | D16: 95040.48121
A17: =Control!A24 -> South Wairarapa district | B17: =INDEX(Control!$D$164:$D$172,MATCH(Pest!A17,Control!$A$164:$A$172,0)) -> 177467.1272 | C17: 1.106684057 | D17: 196400.0403
A18: =Control!A25 -> Tararua district | B18: =INDEX(Control!$D$164:$D$172,MATCH(Pest!A18,Control!$A$164:$A$172,0)) -> 5306.2972 | C18: 1.106684057 | D18: 5872.394513
A19: Region wide | B19: =SUM(B10:B18) -> 602520.5982 | C19: =D19/B19 -> 1.106684057 | D19: =INDEX(ess_base_estract,MATCH(D6,ESSbase!$B$8:$B$25,0),MATCH(year_current,ESSbase!$F$6:$G$6,0)) -> 666799.94
A21: Check | B21: =Control!D173-Pest!B19 -> 0 | D21: =D19-SUM(D10:D18) -> 0

Sheet Water levy
A1: Wellington Regional Council
A2: ="Water supply levy "&year_current -> Water supply levy 2021/22
A3: Printed : | B3: =NOW() -> 2021-05-04T16:13:52.820
A4: =check_total -> 0
B6: Share | C6: Bulk Water Levies
B7: % | C7: $
A9: By TA
A10: Wellington city | B10: =INDEX(Control!$B$179:$B$187,MATCH(A10,Control!$A$179:$A$187,0),) -> 0.51 | C10: =B10*$C$19 -> 20106162.78
A11: Hutt city | B11: =INDEX(Control!$B$179:$B$187,MATCH(A11,Control!$A$179:$A$187,0),) -> 0.2637 | C11: 10396068.87
A12: Upper Hutt city | B12: =INDEX(Control!$B$179:$B$187,MATCH(A12,Control!$A$179:$A$187,0),) -> 0.1087 | C12: 4285372.342
A13: Porirua city | B13: =INDEX(Control!$B$179:$B$187,MATCH(A13,Control!$A$179:$A$187,0),) -> 0.1176 | C13: =B13*$C$19 -> 4636244.594
A14: Kāpiti Coast district | B14: =INDEX(Control!$B$179:$B$187,MATCH(A14,Control!$A$179:$A$187,0),) -> 0 | C14: 0
A15: Masterton district | B15: =INDEX(Control!$B$179:$B$187,MATCH(A15,Control!$A$179:$A$187,0),) -> 0 | C15: 0
A16: Carterton district | B16: =INDEX(Control!$B$179:$B$187,MATCH(A16,Control!$A$179:$A$187,0),) -> 0 | C16: 0
A17: South Wairarapa district | B17: =INDEX(Control!$B$179:$B$187,MATCH(A17,Control!$A$179:$A$187,0),) -> 0 | C17: 0
A18: Tararua district | B18: =INDEX(Control!$B$179:$B$187,MATCH(A18,Control!$A$179:$A$187,0),) -> 0 | C18: =B18*$C$19 -> 0
A19: Region wide | B19: =SUM(B10:B18) -> 1 | C19: =INDEX(ess_base_estract,MATCH(C6,ESSbase!$B$8:$B$25,0),MATCH(year_current,ESSbase!$F$6:$G$6,0)) -> 39423848.59
A21: Checks | B21: =1-B19 -> 0 | C21: =C19-SUM(C10:C18) -> 0

Sheet >>Output tabs

Sheet Comparison - TA
A1: Comparison of proposed vs current
A2: =check_total -> 0
A4: =year_previous&" rates" -> 2020/21 rates
B5: TA
B6: Wellington city | C6: Hutt city | D6: Upper Hutt city | E6: Porirua city | F6: Kāpiti Coast district | G6: Masterton District | H6: Carterton District | I6: South Wairarapa District | J6: Tararua District | K6: Other | L6: Region wide
A7: General rate | B7: 23527455.88 | C7: 8603023.464 | D7: 3425797.144 | E7: 4196225.435 | F7: 5170523.712 | G7: 2149604.585 | H7: 968118.7438 | I7: 1587384.61 | J7: 3731.431107 | K7: 0 | L7: =INDEX(ess_base_estract,MATCH(A7,ESSbase!$B$8:$B$25,0),MATCH(year_previous,ESSbase!$F$6:$G$6,0)) -> 49631865 | M7: =ROUND(L7-SUM(B7:K7),-1) -> 0
A8: Remission of rates | B8: 0 | C8: 0 | D8: 0 | E8: 0 | F8: 0 | G8: 0 | H8: 0 | I8: 0 | J8: 0 | K8: 0 | L8: =INDEX(ess_base_estract,MATCH(A8,ESSbase!$B$8:$B$25,0),MATCH(year_previous,ESSbase!$F$6:$G$6,0)) -> 0 | M8: =ROUND(L8-SUM(B8:K8),-1) -> 0
A9: Public transport rate | B9: 46190730.44 | C9: 12661872.11 | D9: 5026809.955 | E9: 6447637.429 | F9: 4742362.578 | G9: 751407.2085 | H9: 344023.3703 | I9: 632723.2599 | J9: 0 | K9: 0 | L9: =INDEX(ess_base_estract,MATCH(A9,ESSbase!$B$8:$B$25,0),MATCH(year_previous,ESSbase!$F$6:$G$6,0)) -> 76797566.35 | M9: 0
A10: River management rate | B10: 67772.22208 | C10: 4619247.143 | D10: 857959.7199 | E10: 45531.83064 | F10: 1258244.044 | G10: 0 | H10: 24420.9 | I10: 0 | J10: 0 | K10: 0 | L10: =INDEX(ess_base_estract,MATCH(A10,ESSbase!$B$8:$B$25,0),MATCH(year_previous,ESSbase!$F$6:$G$6,0)) -> 6873175.86 | M10: =ROUND(L10-SUM(B10:K10),-1) -> 0
A11: Stadium purposes rate | B11: 0 | C11: 0 | D11: 0 | E11: 0 | F11: 0 | G11: 0 | H11: 0 | I11: 0 | J11: 0 | K11: 0 | L11: =INDEX(ess_base_estract,MATCH(A11,ESSbase!$B$8:$B$25,0),MATCH(year_previous,ESSbase!$F$6:$G$6,0)) -> 0 | M11: 0
A12: Wellington regional strategy rate | B12: 2326823.724 | C12: 934230.5462 | D12: 363512.5693 | E12: 380289.5757 | F12: 505878.6634 | G12: 256349.6992 | H12: 93378.20969 | I12: 147188.3563 | J12: 252 | K12: 0 | L12: =INDEX(ess_base_estract,MATCH(A12,ESSbase!$B$8:$B$25,0),MATCH(year_previous,ESSbase!$F$6:$G$6,0)) -> 5007903.344 | M12: 0
A13: District-Wide Rates | B13: =SUM(B7:B12) -> 72112782.26 | C13: 26818373.26 | D13: 9674079.388 | E13: 11069684.27 | F13: 11677009 | G13: 3157361.492 | H13: 1429941.224 | I13: 2367296.226 | J13: 3983.431107 | K13: 0 | L13: =INDEX(ess_base_estract,MATCH(A13,ESSbase!$B$8:$B$25,0),MATCH(year_previous,ESSbase!$F$6:$G$6,0)) -> 138310510.6 | M13: =ROUND(L13-SUM(B13:K13),-1) -> 0
A14: Rates Penalties | B14: 0 | C14: 0 | D14: 0 | E14: 0 | F14: 0 | G14: 0 | H14: 0 | I14: 0 | J14: 0 | K14: 0 | L14: =INDEX(ess_base_estract,MATCH(A14,ESSbase!$B$8:$B$25,0),MATCH(year_previous,ESSbase!$F$6:$G$6,0)) -> 0 | M14: 0
A15: Remission of Rates Penalties | B15: 0 | C15: 0 | D15: 0 | E15: 0 | F15: 0 | G15: 0 | H15: 0 | I15: 0 | J15: 0 | K15: 0 | L15: =INDEX(ess_base_estract,MATCH(A15,ESSbase!$B$8:$B$25,0),MATCH(year_previous,ESSbase!$F$6:$G$6,0)) -> 0 | M15: 0
A16: Pest management rate | B16: 16034.04215 | C16: 14939.34546 | D16: 53799.23427 | E16: 12511.80478 | F16: 28728.70331 | G16: 204495.4842 | H16: 85014.34611 | I16: 175681.1496 | J16: 5252.896168 | K16: 0 | L16: =INDEX(ess_base_estract,MATCH(A16,ESSbase!$B$8:$B$25,0),MATCH(year_previous,ESSbase!$F$6:$G$6,0)) -> 596457.0061 | M16: =ROUND(L16-SUM(B16:K16),-1) -> 0
A17: River management rate - Non district wide | B17: 0 | C17: 0 | D17: 0 | E17: 0 | F17: 0 | G17: 0 | H17: 0 | I17: 98037.65 | J17: 0 | K17: 0 | L17: =INDEX(ess_base_estract,MATCH(A17,ESSbase!$B$8:$B$25,0),MATCH(year_previous,ESSbase!$F$6:$G$6,0)) -> 98037.65 | M17: 0
A18: Special rates | B18: 0 | C18: 0 | D18: 0 | E18: 0 | F18: 0 | G18: 0 | H18: 0 | I18: 0 | J18: 0 | K18: 1561104.39 | L18: =INDEX(ess_base_estract,MATCH(A18,ESSbase!$B$8:$B$25,0),MATCH(year_previous,ESSbase!$F$6:$G$6,0)) -> 1561105.115 | M18: 0
A19: Total Other Rates | B19: =SUM(B14:B18) -> 16034.04215 | C19: 14939.34546 | D19: 53799.23427 | E19: 12511.80478 | F19: 28728.70331 | G19: 204495.4842 | H19: 85014.34611 | I19: 273718.7996 | J19: 5252.896168 | K19: 1561104.39 | L19: =INDEX(ess_base_estract,MATCH(A19,ESSbase!$B$8:$B$25,0),MATCH(year_previous,ESSbase!$F$6:$G$6,0)) -> 2255599.771 | M19: 0
A20: Total Regnl Rates | B20: =SUM(B19,B13) -> 72128816.3 | C20: 26833312.61 | D20: 9727878.622 | E20: 11082196.08 | F20: 11705737.7 | G20: 3361856.977 | H20: 1514955.57 | I20: 2641015.026 | J20: 9236.327275 | K20: 1561104.39 | L20: =INDEX(ess_base_estract,MATCH(A20,ESSbase!$B$8:$B$25,0),MATCH(year_previous,ESSbase!$F$6:$G$6,0)) -> 140566110.3 | M20: 0
A21: Bulk Water Levies | B21: 18470145.83 | C21: 9373092.12 | D21: 3797030.636 | E21: 4219304.755 | F21: 0 | G21: 0 | H21: 0 | I21: 0 | J21: 0 | K21: 0 | L21: =INDEX(ess_base_estract,MATCH(A21,ESSbase!$B$8:$B$25,0),MATCH(year_previous,ESSbase!$F$6:$G$6,0)) -> 35859573.34 | M21: 0
A22: Total Regnl Rates & levies | B22: =SUM(B20:B21) -> 90598962.13 | C22: =SUM(C20:C21) -> 36206404.73 | D22: 13524909.26 | E22: 15301500.83 | F22: 11705737.7 | G22: 3361856.977 | H22: 1514955.57 | I22: 2641015.026 | J22: 9236.327275 | K22: 1561104.39 | L22: =INDEX(ess_base_estract,MATCH(A22,ESSbase!$B$8:$B$25,0),MATCH(year_previous,ESSbase!$F$6:$G$6,0)) -> 176425683.7 | M22: 0
A23: Warm Greater Wellington rate | K23: 3391733.324 | L23: =INDEX(ess_base_estract,MATCH(A23,ESSbase!$B$8:$B$25,0),MATCH(year_previous,ESSbase!$F$6:$G$6,0)) -> 3391733.324 | M23: 0
A24: Total Rates & Levies | B24: =SUM(B22:B23) -> 90598962.13 | C24: 36206404.73 | D24: 13524909.26 | E24: 15301500.83 | F24: 11705737.7 | G24: 3361856.977 | H24: 1514955.57 | I24: 2641015.026 | J24: 9236.327275 | K24: 4952837.714 | L24: =INDEX(ess_base_estract,MATCH(A24,ESSbase!$B$8:$B$25,0),MATCH(year_previous,ESSbase!$F$6:$G$6,0)) -> 179817417 | M24: 0
A27: =year_current&" rates" -> 2021/22 rates
B28: TA
B29: Wellington city | C29: Hutt city | D29: Upper Hutt city | E29: Porirua city | F29: Kāpiti Coast district | G29: Masterton District | H29: Carterton District | I29: South Wairarapa district | J29: Tararua District | K29: Other | L29: Region wide
A30: General rate | B30: =IFERROR(INDEX(Gen!$D$10:$D$18,MATCH(B$29,Gen!$A$10:$A$18,0),),0) -> 29354845.78 | C30: =IFERROR(INDEX(Gen!$D$10:$D$18,MATCH(C$29,Gen!$A$10:$A$18,0),),0) -> 10866015.72 | D30: =IFERROR(INDEX(Gen!$D$10:$D$18,MATCH(D$29,Gen!$A$10:$A$18,0),),0) -> 4391731.789 | E30: =IFERROR(INDEX(Gen!$D$10:$D$18,MATCH(E$29,Gen!$A$10:$A$18,0),),0) -> 5272563.766 | F30: =IFERROR(INDEX(Gen!$D$10:$D$18,MATCH(F$29,Gen!$A$10:$A$18,0),),0) -> 6562825.034 | G30: =IFERROR(INDEX(Gen!$D$10:$D$18,MATCH(G$29,Gen!$A$10:$A$18,0),),0) -> 2899729.308 | H30: =IFERROR(INDEX(Gen!$D$10:$D$18,MATCH(H$29,Gen!$A$10:$A$18,0),),0) -> 1229686.441 | I30: =IFERROR(INDEX(Gen!$D$10:$D$18,MATCH(I$29,Gen!$A$10:$A$18,0),),0) -> 2074448.402 | J30: =IFERROR(INDEX(Gen!$D$10:$D$18,MATCH(J$29,Gen!$A$10:$A$18,0),),0) -> 5367.032794 | K30: =IFERROR(INDEX(Gen!$D$10:$D$18,MATCH(K$29,Gen!$A$10:$A$18,0),),0) -> 0 | L30: =INDEX(ess_base_estract,MATCH(A30,ESSbase!$B$8:$B$25,0),MATCH(year_current,ESSbase!$F$6:$G$6,0)) -> 62657213.28 | M30: =ROUND(L30-SUM(B30:K30),-1) -> 0
A31: Remission of rates | B31: 0 | C31: 0 | D31: 0 | E31: 0 | F31: 0 | G31: 0 | H31: 0 | I31: 0 | J31: 0 | K31: 0 | L31: =INDEX(ess_base_estract,MATCH(A31,ESSbase!$B$8:$B$25,0),MATCH(year_current,ESSbase!$F$6:$G$6,0)) -> 0 | M31: 0
A32: Public transport rate | B32: =IFERROR(INDEX('Public transport'!$I$10:$I$18,MATCH(B$29,'Public transport'!$A$10:$A$18,0),),0) -> 50163326.39 | C32: =IFERROR(INDEX('Public transport'!$I$10:$I$18,MATCH(C$29,'Public transport'!$A$10:$A$18,0),),0) -> 12823188.52 | D32: =IFERROR(INDEX('Public transport'!$I$10:$I$18,MATCH(D$29,'Public transport'!$A$10:$A$18,0),),0) -> 5049243.297 | E32: =IFERROR(INDEX('Public transport'!$I$10:$I$18,MATCH(E$29,'Public transport'!$A$10:$A$18,0),),0) -> 6309996.486 | F32: =IFERROR(INDEX('Public transport'!$I$10:$I$18,MATCH(F$29,'Public transport'!$A$10:$A$18,0),),0) -> 5333583.4 | G32: =IFERROR(INDEX('Public transport'!$I$10:$I$18,MATCH(G$29,'Public transport'!$A$10:$A$18,0),),0) -> 997246.5373 | H32: =IFERROR(INDEX('Public transport'!$I$10:$I$18,MATCH(H$29,'Public transport'!$A$10:$A$18,0),),0) -> 401657.4048 | I32: =IFERROR(INDEX('Public transport'!$I$10:$I$18,MATCH(I$29,'Public transport'!$A$10:$A$18,0),),0) -> 732088.7925 | J32: =IFERROR(INDEX('Public transport'!$I$10:$I$18,MATCH(J$29,'Public transport'!$A$10:$A$18,0),),0) -> 0 | K32: =IFERROR(INDEX('Public transport'!$I$10:$I$18,MATCH(K$29,'Public transport'!$A$10:$A$18,0),),0) -> 0 | L32: =INDEX(ess_base_estract,MATCH(A32,ESSbase!$B$8:$B$25,0),MATCH(year_current,ESSbase!$F$6:$G$6,0)) -> 81810330.83 | M32: 0
A33: River management rate | B33: =IFERROR(INDEX('River management'!$C$10:$C$18,MATCH(B$29,'River management'!$A$10:$A$18,0),),0) -> 56927.23 | C33: =IFERROR(INDEX('River management'!$C$10:$C$18,MATCH(C$29,'River management'!$A$10:$A$18,0),),0) -> 4310872.977 | D33: =IFERROR(INDEX('River management'!$C$10:$C$18,MATCH(D$29,'River management'!$A$10:$A$18,0),),0) -> 1070771.132 | E33: =IFERROR(INDEX('River management'!$C$10:$C$18,MATCH(E$29,'River management'!$A$10:$A$18,0),),0) -> 56420.49595 | F33: =IFERROR(INDEX('River management'!$C$10:$C$18,MATCH(F$29,'River management'!$A$10:$A$18,0),),0) -> 1282535.312 | G33: =IFERROR(INDEX('River management'!$C$10:$C$18,MATCH(G$29,'River management'!$A$10:$A$18,0),),0) -> 0 | H33: =IFERROR(INDEX('River management'!$C$10:$C$18,MATCH(H$29,'River management'!$A$10:$A$18,0),),0) -> 24909.32 | I33: =IFERROR(INDEX('River management'!$C$10:$C$18,MATCH(I$29,'River management'!$A$10:$A$18,0),),0) -> 0 | J33: =IFERROR(INDEX('River management'!$C$10:$C$18,MATCH(J$29,'River management'!$A$10:$A$18,0),),0) -> 0 | K33: =IFERROR(INDEX('River management'!$C$10:$C$18,MATCH(K$29,'River management'!$A$10:$A$18,0),),0) -> 0 | L33: =INDEX(ess_base_estract,MATCH(A33,ESSbase!$B$8:$B$25,0),MATCH(year_current,ESSbase!$F$6:$G$6,0)) -> 6802436.468 | M33: 0
A34: Stadium purposes rate | B34: =IFERROR(INDEX(Stadium!$G$10:$G$18,MATCH(B$29,Stadium!$A$10:$A$18,0),),0) -> 0 | C34: =IFERROR(INDEX(Stadium!$G$10:$G$18,MATCH(C$29,Stadium!$A$10:$A$18,0),),0) -> 0 | D34: =IFERROR(INDEX(Stadium!$G$10:$G$18,MATCH(D$29,Stadium!$A$10:$A$18,0),),0) -> 0 | E34: =IFERROR(INDEX(Stadium!$G$10:$G$18,MATCH(E$29,Stadium!$A$10:$A$18,0),),0) -> 0 | F34: =IFERROR(INDEX(Stadium!$G$10:$G$18,MATCH(F$29,Stadium!$A$10:$A$18,0),),0) -> 0 | G34: =IFERROR(INDEX(Stadium!$G$10:$G$18,MATCH(G$29,Stadium!$A$10:$A$18,0),),0) -> 0 | H34: =IFERROR(INDEX(Stadium!$G$10:$G$18,MATCH(H$29,Stadium!$A$10:$A$18,0),),0) -> 0 | I34: =IFERROR(INDEX(Stadium!$G$10:$G$18,MATCH(I$29,Stadium!$A$10:$A$18,0),),0) -> 0 | J34: =IFERROR(INDEX(Stadium!$G$10:$G$18,MATCH(J$29,Stadium!$A$10:$A$18,0),),0) -> 0 | K34: =IFERROR(INDEX(Stadium!$G$10:$G$18,MATCH(K$29,Stadium!$A$10:$A$18,0),),0) -> 0 | L34: =INDEX(ess_base_estract,MATCH(A34,ESSbase!$B$8:$B$25,0),MATCH(year_current,ESSbase!$F$6:$G$6,0)) -> 0 | M34: 0
A35: Wellington regional strategy rate | B35: =IFERROR(INDEX(WRS!$K$10:$K$18,MATCH(B$29,WRS!$A$10:$A$18,0),),0) -> 2120821.486 | C35: =IFERROR(INDEX(WRS!$K$10:$K$18,MATCH(C$29,WRS!$A$10:$A$18,0),),0) -> 872211.4827 | D35: =IFERROR(INDEX(WRS!$K$10:$K$18,MATCH(D$29,WRS!$A$10:$A$18,0),),0) -> 349092.3655 | E35: =IFERROR(INDEX(WRS!$K$10:$K$18,MATCH(E$29,WRS!$A$10:$A$18,0),),0) -> 367471.0713 | F35: =IFERROR(INDEX(WRS!$K$10:$K$18,MATCH(F$29,WRS!$A$10:$A$18,0),),0) -> 480010.012 | G35: =IFERROR(INDEX(WRS!$K$10:$K$18,MATCH(G$29,WRS!$A$10:$A$18,0),),0) -> 260466.8965 | H35: =IFERROR(INDEX(WRS!$K$10:$K$18,MATCH(H$29,WRS!$A$10:$A$18,0),),0) -> 93264.87211 | I35: =IFERROR(INDEX(WRS!$K$10:$K$18,MATCH(I$29,WRS!$A$10:$A$18,0),),0) -> 147211.4462 | J35: =IFERROR(INDEX(WRS!$K$10:$K$18,MATCH(J$29,WRS!$A$10:$A$18,0),),0) -> 252 | K35: =IFERROR(INDEX(WRS!$K$10:$K$18,MATCH(K$29,WRS!$A$10:$A$18,0),),0) -> 0 | L35: =INDEX(ess_base_estract,MATCH(A35,ESSbase!$B$8:$B$25,0),MATCH(year_current,ESSbase!$F$6:$G$6,0)) -> 4690801.632 | M35: 0
A36: District-Wide Rates | B36: =SUM(B30:B35) -> 81695920.89 | C36: 28872288.7 | D36: 10860838.58 | E36: 12006451.82 | F36: 13658953.76 | G36: 4157442.742 | H36: 1749518.038 | I36: =SUM(I30:I35) -> 2953748.641 | J36: 5619.032794 | K36: 0 | L36: =INDEX(ess_base_estract,MATCH(A36,ESSbase!$B$8:$B$25,0),MATCH(year_current,ESSbase!$F$6:$G$6,0)) -> 155960782.2 | M36: 0
A37: Rates Penalties | B37: 0 | C37: 0 | D37: 0 | E37: 0 | F37: 0 | G37: 0 | H37: 0 | I37: 0 | J37: 0 | K37: 0 | L37: =INDEX(ess_base_estract,MATCH(A37,ESSbase!$B$8:$B$25,0),MATCH(year_current,ESSbase!$F$6:$G$6,0)) -> 0 | M37: 0
A38: Remission of Rates Penalties | B38: 0 | C38: 0 | D38: 0 | E38: 0 | F38: 0 | G38: 0 | H38: 0 | I38: 0 | J38: 0 | K38: 0 | L38: =INDEX(ess_base_estract,MATCH(A38,ESSbase!$B$8:$B$25,0),MATCH(year_current,ESSbase!$F$6:$G$6,0)) -> 0 | M38: 0
A39: Pest management rate | B39: =IFERROR(INDEX(Pest!$D$10:$D$18,MATCH(B$29,Pest!$A$10:$A$18,0),),0) -> 17925.01092 | C39: =IFERROR(INDEX(Pest!$D$10:$D$18,MATCH(C$29,Pest!$A$10:$A$18,0),),0) -> 16701.21158 | D39: =IFERROR(INDEX(Pest!$D$10:$D$18,MATCH(D$29,Pest!$A$10:$A$18,0),),0) -> 60144.02684 | E39: =IFERROR(INDEX(Pest!$D$10:$D$18,MATCH(E$29,Pest!$A$10:$A$18,0),),0) -> 13987.3798 | F39: =IFERROR(INDEX(Pest!$D$10:$D$18,MATCH(F$29,Pest!$A$10:$A$18,0),),0) -> 32116.81219 | G39: =IFERROR(INDEX(Pest!$D$10:$D$18,MATCH(G$29,Pest!$A$10:$A$18,0),),0) -> 228612.5827 | H39: =IFERROR(INDEX(Pest!$D$10:$D$18,MATCH(H$29,Pest!$A$10:$A$18,0),),0) -> 95040.48121 | I39: =IFERROR(INDEX(Pest!$D$10:$D$18,MATCH(I$29,Pest!$A$10:$A$18,0),),0) -> 196400.0403 | J39: =IFERROR(INDEX(Pest!$D$10:$D$18,MATCH(J$29,Pest!$A$10:$A$18,0),),0) -> 5872.394513 | K39: =IFERROR(INDEX(Pest!$D$10:$D$18,MATCH(K$29,Pest!$A$10:$A$18,0),),0) -> 0 | L39: =INDEX(ess_base_estract,MATCH(A39,ESSbase!$B$8:$B$25,0),MATCH(year_current,ESSbase!$F$6:$G$6,0)) -> 666799.94 | M39: 0
A40: River management rate - Non district wide | B40: 0 | C40: 0 | D40: 0 | E40: 0 | F40: 0 | G40: 0 | H40: 0 | I40: ='River management'!C31 -> 99998.4 | J40: 0 | K40: 0 | L40: =INDEX(ess_base_estract,MATCH(A40,ESSbase!$B$8:$B$25,0),MATCH(year_current,ESSbase!$F$6:$G$6,0)) -> 99998.4 | M40: 0
A41: Special Rates | B41: 0 | C41: 0 | D41: 0 | E41: 0 | F41: 0 | G41: 0 | H41: 0 | I41: 0 | J41: 0 | K41: ='Class Rates'!B140 -> 1608957.749 | L41: =INDEX(ess_base_estract,MATCH(A41,ESSbase!$B$8:$B$25,0),MATCH(year_current,ESSbase!$F$6:$G$6,0)) -> 1608958.076 | M41: 0
A42: Total Other Rates | B42: =SUM(B37:B41) -> 17925.01092 | C42: 16701.21158 | D42: 60144.02684 | E42: 13987.3798 | F42: 32116.81219 | G42: 228612.5827 | H42: 95040.48121 | I42: 296398.4403 | J42: 5872.394513 | K42: 1608957.749 | L42: =INDEX(ess_base_estract,MATCH(A42,ESSbase!$B$8:$B$25,0),MATCH(year_current,ESSbase!$F$6:$G$6,0)) -> 2375756.416 | M42: 0
A43: Total Regnl Rates | B43: =SUM(B42,B36) -> 81713845.91 | C43: 28888989.91 | D43: 10920982.61 | E43: 12020439.2 | F43: 13691070.57 | G43: 4386055.325 | H43: 1844558.519 | I43: =SUM(I42,I36) -> 3250147.081 | J43: 11491.42731 | K43: 1608957.749 | L43: =INDEX(ess_base_estract,MATCH(A43,ESSbase!$B$8:$B$25,0),MATCH(year_current,ESSbase!$F$6:$G$6,0)) -> 158336538.6 | M43: 0
A44: Bulk Water Levies | B44: =IFERROR(INDEX('Water levy'!$C$10:$C$18,MATCH('Comparison - TA'!B29,'Water levy'!$A$10:$A$18,0),),0) -> 20106162.78 | C44: =IFERROR(INDEX('Water levy'!$C$10:$C$18,MATCH('Comparison - TA'!C29,'Water levy'!$A$10:$A$18,0),),0) -> 10396068.87 | D44: =IFERROR(INDEX('Water levy'!$C$10:$C$18,MATCH('Comparison - TA'!D29,'Water levy'!$A$10:$A$18,0),),0) -> 4285372.342 | E44: =IFERROR(INDEX('Water levy'!$C$10:$C$18,MATCH('Comparison - TA'!E29,'Water levy'!$A$10:$A$18,0),),0) -> 4636244.594 | F44: =IFERROR(INDEX('Water levy'!$C$10:$C$18,MATCH('Comparison - TA'!F29,'Water levy'!$A$10:$A$18,0),),0) -> 0 | G44: =IFERROR(INDEX('Water levy'!$C$10:$C$18,MATCH('Comparison - TA'!G29,'Water levy'!$A$10:$A$18,0),),0) -> 0 | H44: =IFERROR(INDEX('Water levy'!$C$10:$C$18,MATCH('Comparison - TA'!H29,'Water levy'!$A$10:$A$18,0),),0) -> 0 | I44: =IFERROR(INDEX('Water levy'!$C$10:$C$18,MATCH('Comparison - TA'!I29,'Water levy'!$A$10:$A$18,0),),0) -> 0 | J44: =IFERROR(INDEX('Water levy'!$C$10:$C$18,MATCH('Comparison - TA'!J29,'Water levy'!$A$10:$A$18,0),),0) -> 0 | K44: =IFERROR(INDEX('Water levy'!$C$10:$C$18,MATCH('Comparison - TA'!K29,'Water levy'!$A$10:$A$18,0),),0) -> 0 | L44: =INDEX(ess_base_estract,MATCH(A44,ESSbase!$B$8:$B$25,0),MATCH(year_current,ESSbase!$F$6:$G$6,0)) -> 39423848.59 | M44: =ROUND(L44-SUM(B44:K44),-1) -> 0
A45: Total Regnl Rates & levies | B45: =SUM(B43:B44) -> 101820008.7 | C45: =SUM(C43:C44) -> 39285058.78 | D45: =SUM(D43:D44) -> 15206354.95 | E45: =SUM(E43:E44) -> 16656683.79 | F45: =SUM(F43:F44) -> 13691070.57 | G45: =SUM(G43:G44) -> 4386055.325 | H45: =SUM(H43:H44) -> 1844558.519 | I45: =SUM(I43:I44) -> 3250147.081 | J45: =SUM(J43:J44) -> 11491.42731 | K45: =SUM(K43:K44) -> 1608957.749 | L45: =INDEX(ess_base_estract,MATCH(A45,ESSbase!$B$8:$B$25,0),MATCH(year_current,ESSbase!$F$6:$G$6,0)) -> 197760387.2 | M45: 0
A46: Warm Greater Wellington rate | K46: =L46 -> 2868617.589 | L46: =INDEX(ess_base_estract,MATCH(A46,ESSbase!$B$8:$B$25,0),MATCH(year_current,ESSbase!$F$6:$G$6,0)) -> 2868617.589 | M46: 0
A47: Total Rates & Levies | B47: =SUM(B45:B46) -> 101820008.7 | C47: =SUM(C45:C46) -> 39285058.78 | D47: 15206354.95 | E47: 16656683.79 | F47: 13691070.57 | G47: 4386055.325 | H47: 1844558.519 | I47: 3250147.081 | J47: 11491.42731 | K47: 4477575.338 | L47: =INDEX(ess_base_estract,MATCH(A47,ESSbase!$B$8:$B$25,0),MATCH(year_current,ESSbase!$F$6:$G$6,0)) -> 200629004.8 | M47: 0
A50: Delta
B51: TA
B52: Wellington city | C52: Hutt city | D52: Upper Hutt city | E52: Porirua city | F52: Kāpiti Coast district | G52: Masterton District | H52: Carterton District | I52: South Wairarapa District | J52: Tararua District | K52: Other | L52: Region wide
A53: General rate | B53: =B30-B7 -> 5827389.906 | C53: 2262992.257 | D53: 965934.645 | E53: 1076338.331 | F53: 1392301.322 | G53: 750124.7234 | H53: 261567.6969 | I53: 487063.792 | J53: 1635.601687 | K53: 0 | L53: 13025348.27 | M53: =ROUND(L53-SUM(B53:K53),-1) -> 0
A54: Remission of rates | B54: =B31-B8 -> 0 | C54: 0 | D54: 0 | E54: 0 | F54: 0 | G54: 0 | H54: 0 | I54: 0 | J54: 0 | K54: 0 | L54: 0 | M54: 0
A55: Public transport rate | B55: =B32-B9 -> 3972595.957 | C55: 161316.4065 | D55: 22433.34206 | E55: -137640.9428 | F55: 591220.8218 | G55: 245839.3288 | H55: 57634.03452 | I55: 99365.53264 | J55: 0 | K55: 0 | L55: 5012764.481 | M55: 0
A56: River management rate | B56: =B33-B10 -> -10844.99208 | C56: -308374.1659 | D56: 212811.4125 | E56: 10888.66531 | F56: 24291.26766 | G56: 0 | H56: 488.42 | I56: 0 | J56: 0 | K56: 0 | L56: -70739.39249 | M56: =ROUND(L56-SUM(B56:K56),-1) -> 0
A57: Stadium purposes rate | B57: =B34-B11 -> 0 | C57: 0 | D57: 0 | E57: 0 | F57: 0 | G57: 0 | H57: 0 | I57: 0 | J57: 0 | K57: 0 | L57: 0 | M57: =ROUND(L57-SUM(B57:K57),-1) -> 0
A58: Wellington regional strategy rate | B58: =B35-B12 -> -206002.2379 | C58: -62019.06354 | D58: -14420.20387 | E58: -12818.50443 | F58: -25868.65138 | G58: 4117.197326 | H58: -113.3375886 | I58: 23.08987578 | J58: 0 | K58: 0 | L58: -317101.7115 | M58: =ROUND(L58-SUM(B58:K58),-1) -> 0
A59: District-Wide Rates | B59: =B36-B13 -> 9583138.633 | C59: 2053915.434 | D59: 1186759.196 | E59: 936767.5488 | F59: 1981944.76 | G59: 1000081.25 | H59: 319576.8138 | I59: 586452.4145 | J59: 1635.601687 | K59: 0 | L59: 17650271.65 | M59: 0
A60: Rates Penalties | B60: =B37-B14 -> 0 | C60: 0 | D60: 0 | E60: 0 | F60: 0 | G60: 0 | H60: 0 | I60: 0 | J60: 0 | K60: 0 | L60: 0 | M60: 0
A61: Remission of Rates Penalties | B61: =B38-B15 -> 0 | C61: 0 | D61: 0 | E61: 0 | F61: 0 | G61: 0 | H61: 0 | I61: 0 | J61: 0 | K61: 0 | L61: 0 | M61: 0
A62: Pest management rate | B62: =B39-B16 -> 1890.968764 | C62: 1761.866118 | D62: 6344.792569 | E62: 1475.575016 | F62: 3388.108879 | G62: 24117.09844 | H62: 10026.13511 | I62: 20718.89067 | J62: 619.4983446 | K62: 0 | L62: 70342.9339 | M62: 0
A63: River management rate - Non district wide | B63: =B40-B17 -> 0 | C63: 0 | D63: 0 | E63: 0 | F63: 0 | G63: 0 | H63: 0 | I63: 1960.75 | J63: 0 | K63: 0 | L63: 1960.75 | M63: =ROUND(L63-SUM(B63:K63),-1) -> 0
A64: Special Rates | B64: =B41-B18 -> 0 | C64: 0 | D64: 0 | E64: 0 | F64: 0 | G64: 0 | H64: 0 | I64: 0 | J64: 0 | K64: 47853.35895 | L64: 47852.96136 | M64: =ROUND(L64-SUM(B64:K64),-1) -> 0
A65: Total Other Rates | B65: =B42-B19 -> 1890.968764 | C65: 1761.866118 | D65: 6344.792569 | E65: 1475.575016 | F65: 3388.108879 | G65: 24117.09844 | H65: 10026.13511 | I65: 22679.64067 | J65: 619.4983446 | K65: 47853.35895 | L65: 120156.6453 | M65: 0
A66: Total Regnl Rates | B66: =B43-B20 -> 9585029.602 | C66: 2055677.3 | D66: 1193103.988 | E66: 938243.1238 | F66: 1985332.869 | G66: 1024198.348 | H66: 329602.9489 | I66: 609132.0552 | J66: 2255.100032 | K66: 47853.35895 | L66: 17770428.3 | M66: =ROUND(L66-SUM(B66:K66),-1) -> 0
A67: Bulk Water Levies | B67: =B44-B21 -> 1636016.952 | C67: 1022976.754 | D67: 488341.7061 | E67: 416939.839 | F67: 0 | G67: 0 | H67: 0 | I67: 0 | J67: 0 | K67: 0 | L67: 3564275.251 | M67: 0
A68: Total Regnl Rates & levies | B68: =B45-B22 -> 11221046.55 | C68: 3078654.054 | D68: 1681445.694 | E68: 1355182.963 | F68: 1985332.869 | G68: 1024198.348 | H68: 329602.9489 | I68: 609132.0552 | J68: 2255.100032 | K68: 47853.35895 | L68: 21334703.55 | M68: =ROUND(L68-SUM(B68:K68),-1) -> 0
A69: Warm Greater Wellington rate | B69: =B46-B23 -> 0 | C69: 0 | D69: 0 | E69: 0 | F69: 0 | G69: 0 | H69: 0 | I69: 0 | J69: 0 | K69: -523115.7346 | L69: -523115.7346 | M69: 0
A70: Total Rates & Levies | B70: =B47-B24 -> 11221046.55 | C70: 3078654.054 | D70: 1681445.694 | E70: 1355182.963 | F70: 1985332.869 | G70: 1024198.348 | H70: 329602.9489 | I70: 609132.0552 | J70: 2255.100032 | K70: -475262.3756 | L70: 20811587.81 | M70: 0

Sheet Comparison - Category
A1: Comparison of proposed vs current
A2: =check_total -> 0
A5: =year_previous&" rates" -> 2020/21 rates
J6: Rates | Q6: Rates for average property | X6: Proposal | AE6: Cents/$ OR Regional Strategy Rate $/property
A7: =Control!A$66 -> TA full name | B7: =Control!B$66 -> Rating area | C7: =Control!C$66 -> Category group | D7: =Control!D$66 -> Concatenated name | F7: CV | G7: CV Assessments | H7: Average CV | J7: General rate | K7: River management rate | L7: Public transport rate | M7: Stadium purposes rate | N7: Wellington regional strategy rate | O7: District-Wide rates | Q7: General rate | R7: River management rate | S7: Public transport rate | T7: Stadium purposes rate | U7: Wellington regional strategy rate | V7: District-Wide rates | X7: General rate | Y7: River management rate | Z7: Public transport rate | AA7: Stadium purposes rate | AB7: Wellington regional strategy rate | AC7: District-Wide rates | AE7: General rate | AF7: River management rate | AG7: Public transport rate | AH7: Stadium purposes rate | AI7: Wellington regional strategy rate | AJ7: District-Wide rates
A9: By TA
A10: =Control!A42 -> Wellington city | C10: =Control!B42 -> District wide | D10: =Control!C42 -> Wellington cityDistrict wide | F10: 73472412400 | G10: 78507 | H10: 935870.8446 | J10: 23527455.88 | K10: 67772.22208 | L10: 46190730.44 | M10: 0 | N10: 2326823.724 | O10: 72112782.26 | Q10: =J10/$F10*$H10 -> 299.6860901 | R10: =K10/$F10*$H10 -> 0.8632634298 | S10: =L10/$F10*$H10 -> 588.3644826 | T10: =M10/$F10*$H10 -> 0 | U10: =N10/$F10*$H10 -> 29.63842363 | V10: =IF('Comparison - Category'!C10="Residential",SUM(Q10:T10,Control!$B$103),IF('Comparison - Category'!C10="Rural",SUM(Q10:T10,Control!$B$104),O10/$F10*$H10)) -> 918.5522598
A11: =Control!A43 -> Hutt city | C11: =Control!B43 -> District wide | D11: =Control!C43 -> Hutt cityDistrict wide | F11: 28322072500 | G11: 39650 | H11: 714301.9546 | J11: 8603023.464 | K11: 4619247.143 | L11: 12661872.11 | M11: 0 | N11: 934230.5462 | O11: 26818373.26 | Q11: 216.9741101 | R11: 116.5005585 | S11: 319.3410368 | T11: 0 | U11: 23.56193055 | V11: =IF('Comparison - Category'!C11="Residential",SUM(Q11:T11,Control!$B$103),IF('Comparison - Category'!C11="Rural",SUM(Q11:T11,Control!$B$104),O11/$F11*$H11)) -> 676.3776359
A12: =Control!A44 -> Upper Hutt city | C12: =Control!B44 -> District wide | D12: =Control!C44 -> Upper Hutt cityDistrict wide | F12: 11368717300 | G12: 17159 | H12: 662551.2734 | J12: 3425797.144 | K12: 857959.7199 | L12: 5026809.955 | M12: 0 | N12: 363512.5693 | O12: 9674079.388 | Q12: 199.6501628 | R12: 50.00056646 | S12: 292.954715 | T12: 0 | U12: 21.18495072 | V12: =IF('Comparison - Category'!C12="Residential",SUM(Q12:T12,Control!$B$103),IF('Comparison - Category'!C12="Rural",SUM(Q12:T12,Control!$B$104),O12/$F12*$H12)) -> 563.790395
A13: =Control!A45 -> Porirua city | C13: =Control!B45 -> District wide | D13: =Control!C45 -> Porirua cityDistrict wide | F13: 14056194050 | G13: 19075 | H13: 736890.9069 | J13: 4196225.435 | K13: 45531.83064 | L13: 6447637.429 | M13: 0 | N13: 380289.5757 | O13: 11069684.27 | Q13: 219.985606 | R13: 2.386989811 | S13: 338.0150684 | T13: 0 | U13: 19.93654394 | V13: =IF('Comparison - Category'!C13="Residential",SUM(Q13:T13,Control!$B$103),IF('Comparison - Category'!C13="Rural",SUM(Q13:T13,Control!$B$104),O13/$F13*$H13)) -> 580.3242082
A14: =Control!A46 -> Kāpiti Coast district | C14: =Control!B46 -> District wide | D14: =Control!C46 -> Kāpiti Coast districtDistrict wide | F14: 15080860600 | G14: 25234 | H14: 597640.5088 | J14: 5170523.712 | K14: 1258244.044 | L14: 4742362.578 | M14: 0 | N14: 505878.6634 | O14: 11677009 | Q14: 204.9030559 | R14: 49.86304369 | S14: 187.9354275 | T14: 0 | U14: 20.04750192 | V14: =IF('Comparison - Category'!C14="Residential",SUM(Q14:T14,Control!$B$103),IF('Comparison - Category'!C14="Rural",SUM(Q14:T14,Control!$B$104),O14/$F14*$H14)) -> 462.749029
A15: =Control!A47 -> Masterton district | C15: =Control!B47 -> District wide | D15: =Control!C47 -> Masterton districtDistrict wide | F15: 6087708500 | G15: 12750 | H15: 477467.3333 | J15: 2149604.585 | K15: 0 | L15: 751407.2085 | M15: 0 | N15: 256349.6992 | O15: 3157361.492 | Q15: 168.596438 | R15: 0 | S15: 58.93389871 | T15: 0 | U15: 20.10585876 | V15: =IF('Comparison - Category'!C15="Residential",SUM(Q15:T15,Control!$B$103),IF('Comparison - Category'!C15="Rural",SUM(Q15:T15,Control!$B$104),O15/$F15*$H15)) -> 247.6361955
A16: =Control!A48 -> Carterton district | C16: =Control!B48 -> District wide | D16: =Control!C48 -> Carterton districtDistrict wide | F16: 2789361700 | G16: 4848 | H16: 575363.387 | J16: 968118.7438 | K16: 24420.9 | L16: 344023.3703 | M16: 0 | N16: 93378.20969 | O16: 1429941.224 | Q16: 199.6944604 | R16: 5.037314356 | S16: 70.96191631 | T16: 0 | U16: 19.26118187 | V16: =IF('Comparison - Category'!C16="Residential",SUM(Q16:T16,Control!$B$103),IF('Comparison - Category'!C16="Rural",SUM(Q16:T16,Control!$B$104),O16/$F16*$H16)) -> 294.9548729
A17: =Control!A49 -> South Wairarapa district | C17: =Control!B49 -> District wide | D17: =Control!C49 -> South Wairarapa districtDistrict wide | F17: 4666483900 | G17: 6883 | H17: 677972.3812 | J17: 1587384.61 | K17: 0 | L17: 632723.2599 | M17: 0 | N17: 147188.3563 | O17: 2367296.226 | Q17: 230.6239445 | R17: 0 | S17: 91.92550631 | T17: 0 | U17: 21.38433188 | V17: =IF('Comparison - Category'!C17="Residential",SUM(Q17:T17,Control!$B$103),IF('Comparison - Category'!C17="Rural",SUM(Q17:T17,Control!$B$104),O17/$F17*$H17)) -> 343.9337827
A18: =Control!A50 -> Tararua district | C18: =Control!B50 -> District wide | D18: =Control!C50 -> Tararua districtDistrict wide | F18: 10673500 | G18: 10 | H18: 1067350 | J18: 3731.431107 | K18: 0 | L18: 0 | M18: 0 | N18: 252 | O18: 3983.431107 | Q18: 373.1431107 | R18: 0 | S18: 0 | T18: 0 | U18: 25.2 | V18: =IF('Comparison - Category'!C18="Residential",SUM(Q18:T18,Control!$B$103),IF('Comparison - Category'!C18="Rural",SUM(Q18:T18,Control!$B$104),O18/$F18*$H18)) -> 398.3431107
A19: =Control!A51 -> Region wide | C19: =Control!B51 -> 0 | D19: =Control!C51 -> Region wide | F19: 155854484450 | G19: 204116 | H19: 763558.3906 | J19: 49631865 | K19: 6873175.86 | L19: 76797566.35 | M19: 0 | N19: 5007903.344 | O19: 138310510.6 | Q19: 243.1551912 | R19: 33.6728912 | S19: 376.2447155 | T19: 0 | U19: 24.53459476 | V19: =IF('Comparison - Category'!C19="Residential",SUM(Q19:T19,Control!$B$103),IF('Comparison - Category'!C19="Rural",SUM(Q19:T19,Control!$B$104),O19/$F19*$H19)) -> 677.6073926
A21: By TA & Category
A22: =Control!A67 -> Wellington city | B22: =Control!B67 -> Wellington city | C22: =Control!C67 -> Regional CBD | D22: =Control!D67 -> Wellington cityRegional CBD | F22: 9794894150 | G22: 3324 | H22: 2946719.058 | J22: 4793680.185 | K22: 9034.979524 | L22: 25774927.38 | M22: 0 | N22: 874234.2168 | O22: 31451876.76 | Q22: =J22/$F22*$H22 -> 1442.142053 | R22: =K22/$F22*$H22 -> 2.71810455 | S22: =L22/$F22*$H22 -> 7754.189947 | T22: =M22/$F22*$H22 -> 0 | U22: =IF('Comparison - Category'!C22="Residential",Control!$B$103,IF('Comparison - Category'!C22="Rural",Control!$B$104,N22/$F22*$H22)) -> 263.0066837 | V22: =IF('Comparison - Category'!C22="Residential",SUM(Q22:T22,Control!$B$103),IF('Comparison - Category'!C22="Rural",SUM(Q22:T22,Control!$B$104),O22/$F22*$H22)) -> 9462.056788 | X22: 1044.101714 | Y22: 1.93340153 | Z22: 7643.940926 | AA22: 0 | AB22: 264.3983037 | AC22: 8954.374345 | AE22: =J22/$F22*100 -> 0.04894060223 | AF22: =K22/$F22*100 -> 9.224172702e-05 | AG22: =L22/$F22*100 -> 0.2631465638 | AH22: =M22/$F22*100 -> 0 | AI22: =IF(OR('Comparison - Category'!C22="Residential",'Comparison - Category'!C22="Rural"),U22,N22/$F22*100) -> 0.008925407497 | AJ22: =O22/$F22*100 -> 0.3211048152
A23: =Control!A68 -> Wellington city | B23: =Control!B68 -> Wellington city | C23: =Control!C68 -> Business | D23: =Control!D68 -> Wellington cityBusiness | F23: 4653653150 | G23: 1890 | H23: 2462250.344 | J23: 1741637.436 | K23: 4292.610035 | L23: 1836480.663 | M23: 0 | N23: 415357.5071 | O23: 3997768.216 | Q23: 921.5012887 | R23: 2.271222241 | S23: 971.6828903 | T23: 0 | U23: =IF('Comparison - Category'!C23="Residential",Control!$B$103,IF('Comparison - Category'!C23="Rural",Control!$B$104,N23/$F23*$H23)) -> 219.7658768 | V23: =IF('Comparison - Category'!C23="Residential",SUM(Q23:T23,Control!$B$103),IF('Comparison - Category'!C23="Rural",SUM(Q23:T23,Control!$B$104),O23/$F23*$H23)) -> 2115.221278 | X23: 909.494309 | Y23: 1.684144049 | Z23: 769.4475183 | AA23: 0 | AB23: 230.3116155 | AC23: 1910.937587 | AE23: 0.03742516641 | AF23: 9.224172702e-05 | AG23: 0.03946320457 | AH23: 0 | AI23: =IF(OR('Comparison - Category'!C23="Residential",'Comparison - Category'!C23="Rural"),U23,N23/$F23*100) -> 0.008925407497 | AJ23: 0.08590602021
A24: =Control!A69 -> Wellington city | B24: =Control!B69 -> Wellington city | C24: =Control!C69 -> Residential | D24: =Control!D69 -> Wellington cityResidential | F24: 58212754000 | G24: 72498 | H24: 802956.6885 | J24: 16758630.81 | K24: 53696.44963 | L24: 18514128.05 | M24: 0 | N24: 1014972 | O24: 36341427.31 | Q24: 231.1599053 | R24: 0.7406611166 | S24: 255.3743282 | T24: 0 | U24: =IF('Comparison - Category'!C24="Residential",Control!$B$103,IF('Comparison - Category'!C24="Rural",Control!$B$104,N24/$F24*$H24)) -> 14 | V24: =IF('Comparison - Category'!C24="Residential",SUM(Q24:T24,Control!$B$103),IF('Comparison - Category'!C24="Rural",SUM(Q24:T24,Control!$B$104),O24/$F24*$H24)) -> 501.2748946 | X24: 245.7883538 | Y24: 0.455135331 | Z24: 190.2632011 | AA24: 0 | AB24: 14 | AC24: 450.5066902 | AE24: 0.02878858955 | AF24: 9.224172702e-05 | AG24: 0.03180424696 | AH24: 0 | AI24: =IF(OR('Comparison - Category'!C24="Residential",'Comparison - Category'!C24="Rural"),U24,N24/$F24*100) -> 14 | AJ24: 0.0624286343
A25: =Control!A70 -> Wellington city | B25: =Control!B70 -> Wellington city | C25: =Control!C70 -> Rural | D25: =Control!D70 -> Wellington cityRural | F25: 811111100 | G25: 795 | H25: 1020265.535 | J25: 233507.4454 | K25: 748.1828867 | L25: 65194.3443 | M25: 0 | N25: 22260 | O25: 321709.9725 | Q25: 293.720057 | R25: 0.9411105493 | S25: 82.00546453 | T25: 0 | U25: =IF('Comparison - Category'!C25="Residential",Control!$B$103,IF('Comparison - Category'!C25="Rural",Control!$B$104,N25/$F25*$H25)) -> 28 | V25: =IF('Comparison - Category'!C25="Residential",SUM(Q25:T25,Control!$B$103),IF('Comparison - Category'!C25="Rural",SUM(Q25:T25,Control!$B$104),O25/$F25*$H25)) -> 404.6666321 | X25: 338.2571723 | Y25: 0.6263632417 | Z25: 66.83605466 | AA25: 0 | AB25: 28 | AC25: 433.7195902 | AE25: 0.02878858955 | AF25: 9.224172702e-05 | AG25: 0.008037658997 | AH25: 0 | AI25: =IF(OR('Comparison - Category'!C25="Residential",'Comparison - Category'!C25="Rural"),U25,N25/$F25*100) -> 28 | AJ25: 0.03966287387
A26: =Control!A71 -> Hutt city | B26: =Control!B71 -> Hutt city | C26: =Control!C71 -> Business | D26: =Control!D71 -> Hutt cityBusiness | F26: 4808893500 | G26: 2360 | H26: 2037666.737 | J26: 1460734.331 | K26: 784316.4571 | L26: 2463375.785 | M26: 0 | N26: 407144.5462 | O26: 5115571.119 | Q26: 618.9552248 | R26: 332.3374818 | S26: 1043.803299 | T26: 0 | U26: =IF('Comparison - Category'!C26="Residential",Control!$B$103,IF('Comparison - Category'!C26="Rural",Control!$B$104,N26/$F26*$H26)) -> 172.5188755 | V26: =IF('Comparison - Category'!C26="Residential",SUM(Q26:T26,Control!$B$103),IF('Comparison - Category'!C26="Rural",SUM(Q26:T26,Control!$B$104),O26/$F26*$H26)) -> 2167.614881 | X26: 601.7519361 | Y26: 325.2933664 | Z26: 919.8789438 | AA26: 0 | AB26: 152.3818886 | AC26: 1999.306135 | AE26: 0.03037568477 | AF26: 0.01630970736 | AG26: 0.05122541775 | AH26: 0 | AI26: =IF(OR('Comparison - Category'!C26="Residential",'Comparison - Category'!C26="Rural"),U26,N26/$F26*100) -> 0.008466491225 | AJ26: 0.1063773011
A27: =Control!A72 -> Hutt city | B27: =Control!B72 -> Hutt city | C27: =Control!C72 -> Residential | D27: =Control!D72 -> Hutt cityResidential | F27: 23093154000 | G27: 36806 | H27: 627429.0605 | J27: 7014703.663 | K27: 3766425.838 | L27: 10151810.44 | M27: 0 | N27: 513534 | O27: 21446473.94 | Q27: 190.5858736 | R27: 102.3318437 | S27: 275.8194435 | T27: 0 | U27: =IF('Comparison - Category'!C27="Residential",Control!$B$103,IF('Comparison - Category'!C27="Rural",Control!$B$104,N27/$F27*$H27)) -> 14 | V27: =IF('Comparison - Category'!C27="Residential",SUM(Q27:T27,Control!$B$103),IF('Comparison - Category'!C27="Rural",SUM(Q27:T27,Control!$B$104),O27/$F27*$H27)) -> 582.7371608 | X27: 178.8073938 | Y27: 96.65919721 | Z27: 260.4767419 | AA27: 0 | AB27: 14 | AC27: 549.9433329 | AE27: 0.03037568477 | AF27: 0.01630970736 | AG27: 0.04396025956 | AH27: 0 | AI27: =IF(OR('Comparison - Category'!C27="Residential",'Comparison - Category'!C27="Rural"),U27,N27/$F27*100) -> 14 | AJ27: 0.09286940164
A28: =Control!A73 -> Hutt city | B28: =Control!B73 -> Hutt city | C28: =Control!C73 -> Rural | D28: =Control!D73 -> Hutt cityRural | F28: 420025000 | G28: 484 | H28: 867820.2479 | J28: 127585.47 | K28: 68504.84834 | L28: 46685.88684 | M28: 0 | N28: 13552 | O28: 256328.2052 | Q28: 263.6063429 | R28: 141.5389429 | S28: 96.45844389 | T28: 0 | U28: =IF('Comparison - Category'!C28="Residential",Control!$B$103,IF('Comparison - Category'!C28="Rural",Control!$B$104,N28/$F28*$H28)) -> 28 | V28: =IF('Comparison - Category'!C28="Residential",SUM(Q28:T28,Control!$B$103),IF('Comparison - Category'!C28="Rural",SUM(Q28:T28,Control!$B$104),O28/$F28*$H28)) -> 529.6037297 | X28: 244.4028061 | Y28: 132.1185804 | Z28: 90.51985939 | AA28: 0 | AB28: 28 | AC28: 495.0412459 | AE28: 0.03037568477 | AF28: 0.01630970736 | AG28: 0.01111502574 | AH28: 0 | AI28: =IF(OR('Comparison - Category'!C28="Residential",'Comparison - Category'!C28="Rural"),U28,N28/$F28*100) -> 28 | AJ28: 0.06102689248
A29: =Control!A74 -> Upper Hutt city | B29: =Control!B74 -> Upper Hutt city | C29: =Control!C74 -> Business | D29: =Control!D74 -> Upper Hutt cityBusiness | F29: 1403197700 | G29: 748 | H29: 1875932.754 | J29: 422833.161 | K29: 105894.7174 | L29: 757676.5919 | M29: 0 | N29: 117854.5693 | O29: 1404259.04 | Q29: 565.2849746 | R29: 141.5704778 | S29: 1012.93662 | T29: 0 | U29: =IF('Comparison - Category'!C29="Residential",Control!$B$103,IF('Comparison - Category'!C29="Rural",Control!$B$104,N29/$F29*$H29)) -> 157.5595847 | V29: =IF('Comparison - Category'!C29="Residential",SUM(Q29:T29,Control!$B$103),IF('Comparison - Category'!C29="Rural",SUM(Q29:T29,Control!$B$104),O29/$F29*$H29)) -> 1877.351657 | X29: 614.2469735 | Y29: 133.684084 | Z29: 1036.423058 | AA29: 0 | AB29: 155.5460121 | AC29: 1939.900127 | AE29: 0.03013354148 | AF29: 0.007546671249 | AG29: 0.05399642487 | AH29: 0 | AI29: =IF(OR('Comparison - Category'!C29="Residential",'Comparison - Category'!C29="Rural"),U29,N29/$F29*100) -> 0.00839899961 | AJ29: 0.1000756372
A30: =Control!A75 -> Upper Hutt city | B30: =Control!B75 -> Upper Hutt city | C30: =Control!C75 -> Residential | D30: =Control!D75 -> Upper Hutt cityResidential | F30: 8839255600 | G30: 15106 | H30: 585148.6562 | J30: 2663580.753 | K30: 667069.561 | L30: 4135815.366 | M30: 0 | N30: 210854 | O30: 7677319.68 | Q30: 176.326013 | R30: 44.1592454 | S30: 273.7862681 | T30: 0 | U30: =IF('Comparison - Category'!C30="Residential",Control!$B$103,IF('Comparison - Category'!C30="Rural",Control!$B$104,N30/$F30*$H30)) -> 14 | V30: =IF('Comparison - Category'!C30="Residential",SUM(Q30:T30,Control!$B$103),IF('Comparison - Category'!C30="Rural",SUM(Q30:T30,Control!$B$104),O30/$F30*$H30)) -> 508.2715266 | X30: 155.5141802 | Y30: 33.84594736 | Z30: 251.2150435 | AA30: 0 | AB30: 14 | AC30: 454.5751711 | AE30: 0.03013354148 | AF30: 0.007546671249 | AG30: 0.04678918173 | AH30: 0 | AI30: =IF(OR('Comparison - Category'!C30="Residential",'Comparison - Category'!C30="Rural"),U30,N30/$F30*100) -> 14 | AJ30: 0.08685482158
A31: =Control!A76 -> Upper Hutt city | B31: =Control!B76 -> Upper Hutt city | C31: =Control!C76 -> Rural | D31: =Control!D76 -> Upper Hutt cityRural | F31: 1126264000 | G31: 1305 | H31: 863037.5479 | J31: 339383.2297 | K31: 84995.44148 | L31: 133317.9965 | M31: 0 | N31: 34804 | O31: 592500.6676 | Q31: 260.0637775 | R31: 65.1306065 | S31: 102.1593843 | T31: 0 | U31: =IF('Comparison - Category'!C31="Residential",Control!$B$103,IF('Comparison - Category'!C31="Rural",Control!$B$104,N31/$F31*$H31)) -> 28 | V31: =IF('Comparison - Category'!C31="Residential",SUM(Q31:T31,Control!$B$103),IF('Comparison - Category'!C31="Rural",SUM(Q31:T31,Control!$B$104),O31/$F31*$H31)) -> 455.3537683 | X31: 255.3916361 | Y31: 55.58317486 | Z31: 104.9215419 | AA31: 0 | AB31: 28 | AC31: 443.8963528 | AE31: 0.03013354148 | AF31: 0.007546671249 | AG31: 0.01183718884 | AH31: 0 | AI31: =IF(OR('Comparison - Category'!C31="Residential",'Comparison - Category'!C31="Rural"),U31,N31/$F31*100) -> 28 | AJ31: 0.05260761843
A32: =Control!A77 -> Porirua city | B32: =Control!B77 -> Porirua city | C32: =Control!C77 -> Business | D32: =Control!D77 -> Porirua cityBusiness | F32: 1392206000 | G32: 803 | H32: 1733755.915 | J32: 415618.2113 | K32: 4509.733402 | L32: 757427.7725 | M32: 0 | N32: 115843.5757 | O32: 1293399.293 | Q32: 517.5818322 | R32: 5.616106353 | S32: 943.2475374 | T32: 0 | U32: =IF('Comparison - Category'!C32="Residential",Control!$B$103,IF('Comparison - Category'!C32="Rural",Control!$B$104,N32/$F32*$H32)) -> 144.2634816 | V32: =IF('Comparison - Category'!C32="Residential",SUM(Q32:T32,Control!$B$103),IF('Comparison - Category'!C32="Rural",SUM(Q32:T32,Control!$B$104),O32/$F32*$H32)) -> 1610.708958 | X32: 512.9116478 | Y32: 4.510710068 | Z32: 888.9668154 | AA32: 0 | AB32: 129.8848261 | AC32: 1536.273999 | AE32: 0.02985321219 | AF32: 0.0003239271632 | AG32: 0.0544048634 | AH32: 0 | AI32: =IF(OR('Comparison - Category'!C32="Residential",'Comparison - Category'!C32="Rural"),U32,N32/$F32*100) -> 0.008320864564 | AJ32: 0.09290286731
A33: =Control!A78 -> Porirua city | B33: =Control!B78 -> Porirua city | C33: =Control!C78 -> Residential | D33: =Control!D78 -> Porirua cityResidential | F33: 11827388450 | G33: 17655 | H33: 669917.2161 | J33: 3530855.37 | K33: 38312.12389 | L33: 5590175.944 | M33: 0 | N33: 247170 | O33: 9406513.439 | Q33: 199.991808 | R33: 2.170043834 | S33: 316.6341515 | T33: 0 | U33: =IF('Comparison - Category'!C33="Residential",Control!$B$103,IF('Comparison - Category'!C33="Rural",Control!$B$104,N33/$F33*$H33)) -> 14 | V33: =IF('Comparison - Category'!C33="Residential",SUM(Q33:T33,Control!$B$103),IF('Comparison - Category'!C33="Rural",SUM(Q33:T33,Control!$B$104),O33/$F33*$H33)) -> 532.7960033 | X33: 184.1738724 | Y33: 1.619684295 | Z33: 305.9595935 | AA33: 0 | AB33: 14 | AC33: 505.7531502 | AE33: 0.02985321219 | AF33: 0.0003239271632 | AG33: 0.04726466851 | AH33: 0 | AI33: =IF(OR('Comparison - Category'!C33="Residential",'Comparison - Category'!C33="Rural"),U33,N33/$F33*100) -> 14 | AJ33: 0.07953161831
A34: =Control!A79 -> Porirua city | B34: =Control!B79 -> Porirua city | C34: =Control!C79 -> Rural | D34: =Control!D79 -> Porirua cityRural | F34: 836599600 | G34: 617 | H34: 1355915.073 | J34: 249751.8538 | K34: 2709.973352 | L34: 100033.712 | M34: 0 | N34: 17276 | O34: 369771.5391 | Q34: 404.7842038 | R34: 4.392177231 | S34: 162.1291929 | T34: 0 | U34: =IF('Comparison - Category'!C34="Residential",Control!$B$103,IF('Comparison - Category'!C34="Rural",Control!$B$104,N34/$F34*$H34)) -> 28 | V34: =IF('Comparison - Category'!C34="Residential",SUM(Q34:T34,Control!$B$103),IF('Comparison - Category'!C34="Rural",SUM(Q34:T34,Control!$B$104),O34/$F34*$H34)) -> 599.3055739 | X34: 373.3095292 | Y34: 3.283004119 | Z34: 157.6917627 | AA34: 0 | AB34: 28 | AC34: 562.2842961 | AE34: 0.02985321219 | AF34: 0.0003239271632 | AG34: 0.01195717904 | AH34: 0 | AI34: =IF(OR('Comparison - Category'!C34="Residential",'Comparison - Category'!C34="Rural"),U34,N34/$F34*100) -> 28 | AJ34: 0.04419934448
A35: =Control!A80 -> Kāpiti Coast district | B35: =Control!B80 -> Kāpiti Coast district | C35: =Control!C80 -> Business | D35: =Control!D80 -> Kāpiti Coast districtBusiness | F35: 1470171000 | G35: 1329 | H35: 1106223.476 | J35: 504053.0655 | K35: 122661.0307 | L35: 634126.8849 | M35: 0 | N35: 140492.6634 | O35: 1401333.644 | Q35: 379.2724346 | R35: 92.29573416 | S35: 477.1458878 | T35: 0 | U35: =IF('Comparison - Category'!C35="Residential",Control!$B$103,IF('Comparison - Category'!C35="Rural",Control!$B$104,N35/$F35*$H35)) -> 105.713065 | V35: =IF('Comparison - Category'!C35="Residential",SUM(Q35:T35,Control!$B$103),IF('Comparison - Category'!C35="Rural",SUM(Q35:T35,Control!$B$104),O35/$F35*$H35)) -> 1054.427122 | X35: 368.2133776 | Y35: 100.2466129 | Z35: 325.7342746 | AA35: 0 | AB35: 93.24282405 | AC35: 887.4370892 | AE35: 0.03428533589 | AF35: 0.008343317253 | AG35: 0.04313286583 | AH35: 0 | AI35: =IF(OR('Comparison - Category'!C35="Residential",'Comparison - Category'!C35="Rural"),U35,N35/$F35*100) -> 0.0095562124 | AJ35: 0.09531773137
A36: =Control!A81 -> Kāpiti Coast district | B36: =Control!B81 -> Kāpiti Coast district excl Ōtaki | C36: =Control!C81 -> Residential | D36: =Control!D81 -> Kāpiti Coast district excl Ōtaki Residential | F36: 10434968000 | G36: 18012 | H36: 579334.2216 | J36: 3577663.829 | K36: 870622.4855 | L36: 3645206.665 | M36: 0 | N36: 249984 | O36: 8343476.98 | Q36: 198.6266838 | R36: 48.33569207 | S36: 202.3765637 | T36: 0 | U36: =IF('Comparison - Category'!C36="Residential",Control!$B$103,IF('Comparison - Category'!C36="Rural",Control!$B$104,N36/$F36*$H36)) -> 14 | V36: =IF('Comparison - Category'!C36="Residential",SUM(Q36:T36,Control!$B$103),IF('Comparison - Category'!C36="Rural",SUM(Q36:T36,Control!$B$104),O36/$F36*$H36)) -> 463.3389396 | X36: 189.7602533 | Y36: 51.6624974 | Z36: 154.2203073 | AA36: 0 | AB36: 14 | AC36: 409.643058 | AE36: 0.03428533589 | AF36: 0.008343317253 | AG36: 0.03493260991 | AH36: 0 | AI36: =IF(OR('Comparison - Category'!C36="Residential",'Comparison - Category'!C36="Rural"),U36,N36/$F36*100) -> 14 | AJ36: 0.07995690049
A37: =Control!A82 -> Kāpiti Coast district | B37: =Control!B82 -> Ōtaki rating area | C37: =Control!C82 -> Residential | D37: =Control!D82 -> Ōtaki rating areaResidential | F37: 1148278900 | G37: 3193 | H37: 359623.8334 | J37: 393691.2778 | K37: 95804.55158 | L37: 283421.5282 | M37: 0 | N37: 44114 | O37: 817031.3576 | Q37: =J37/$F37*$H37 -> 123.2982392 | R37: =K37/$F37*$H37 -> 30.00455734 | S37: =L37/$F37*$H37 -> 88.76339749 | T37: =M37/$F37*$H37 -> 0 | U37: =IF('Comparison - Category'!C37="Residential",Control!$B$103,IF('Comparison - Category'!C37="Rural",Control!$B$104,N37/$F37*$H37)) -> 14 | V37: =IF('Comparison - Category'!C37="Residential",SUM(Q37:T37,Control!$B$103),IF('Comparison - Category'!C37="Rural",SUM(Q37:T37,Control!$B$104),O37/$F37*$H37)) -> 256.066194 | X37: 116.4295485 | Y37: 31.69810928 | Z37: 84.15612776 | AA37: 0 | AB37: 14 | AC37: 246.2837856 | AE37: =J37/$F37*100 -> 0.03428533589 | AF37: =K37/$F37*100 -> 0.008343317253 | AG37: =L37/$F37*100 -> 0.02468229001 | AH37: =M37/$F37*100 -> 0 | AI37: =IF(OR('Comparison - Category'!C37="Residential",'Comparison - Category'!C37="Rural"),U37,N37/$F37*100) -> 14 | AJ37: =O37/$F37*100 -> 0.07115269275
A38: =Control!A83 -> Kāpiti Coast district | B38: =Control!B83 -> Kāpiti Coast district | C38: =Control!C83 -> Rural | D38: =Control!D83 -> Kāpiti Coast districtRural | F38: 2027442700 | G38: 2700 | H38: 750904.7037 | J38: 695115.5397 | K38: 169155.9766 | L38: 179607.4997 | M38: 0 | N38: 71288 | O38: 1115167.016 | Q38: 257.4501999 | R38: 62.6503617 | S38: 66.52129619 | T38: 0 | U38: =IF('Comparison - Category'!C38="Residential",Control!$B$103,IF('Comparison - Category'!C38="Rural",Control!$B$104,N38/$F38*$H38)) -> 28 | V38: =IF('Comparison - Category'!C38="Residential",SUM(Q38:T38,Control!$B$103),IF('Comparison - Category'!C38="Rural",SUM(Q38:T38,Control!$B$104),O38/$F38*$H38)) -> 414.6218578 | X38: 247.0695832 | Y38: 67.26504354 | Z38: 51.56067654 | AA38: 0 | AB38: 28 | AC38: 393.8953033 | AE38: 0.03428533589 | AF38: 0.008343317253 | AG38: 0.008858820015 | AH38: 0 | AI38: =IF(OR('Comparison - Category'!C38="Residential",'Comparison - Category'!C38="Rural"),U38,N38/$F38*100) -> 28 | AJ38: 0.05500362678
A39: =Control!A84 -> Masterton district | B39: =Control!B84 -> Masterton district | C39: =Control!C84 -> Business | D39: =Control!D84 -> Masterton districtBusiness | F39: 440782600 | G39: 576 | H39: 765247.5694 | J39: 155642.8495 | K39: 0 | L39: 116237.4958 | M39: 0 | N39: 43381.69919 | O39: 315262.0444 | Q39: 270.2132804 | R39: 0 | S39: 201.8012079 | T39: 0 | U39: =IF('Comparison - Category'!C39="Residential",Control!$B$103,IF('Comparison - Category'!C39="Rural",Control!$B$104,N39/$F39*$H39)) -> 75.31544998 | V39: =IF('Comparison - Category'!C39="Residential",SUM(Q39:T39,Control!$B$103),IF('Comparison - Category'!C39="Rural",SUM(Q39:T39,Control!$B$104),O39/$F39*$H39)) -> 547.3299383 | X39: 265.3248822 | Y39: 0 | Z39: 107.1004495 | AA39: 0 | AB39: 67.18832833 | AC39: 439.6136601 | AE39: 0.03531057022 | AF39: 0 | AG39: 0.02637070877 | AH39: 0 | AI39: =IF(OR('Comparison - Category'!C39="Residential",'Comparison - Category'!C39="Rural"),U39,N39/$F39*100) -> 0.0098419718 | AJ39: 0.07152325079
A40: =Control!A85 -> Masterton district | B40: =Control!B85 -> Masterton district | C40: =Control!C85 -> Residential | D40: =Control!D85 -> Masterton districtResidential | F40: 2790174300 | G40: 8227 | H40: 339148.4502 | J40: 985226.4555 | K40: 0 | L40: 441234.6363 | M40: 0 | N40: 114800 | O40: 1541261.092 | Q40: 119.7552517 | R40: 0 | S40: 53.63250714 | T40: 0 | U40: =IF('Comparison - Category'!C40="Residential",Control!$B$103,IF('Comparison - Category'!C40="Rural",Control!$B$104,N40/$F40*$H40)) -> 14 | V40: =IF('Comparison - Category'!C40="Residential",SUM(Q40:T40,Control!$B$103),IF('Comparison - Category'!C40="Rural",SUM(Q40:T40,Control!$B$104),O40/$F40*$H40)) -> 187.3877588 | X40: 110.8373419 | Y40: 0 | Z40: 34.77563073 | AA40: 0 | AB40: 14 | AC40: 159.6129726 | AE40: 0.03531057022 | AF40: 0 | AG40: 0.01581387357 | AH40: 0 | AI40: =IF(OR('Comparison - Category'!C40="Residential",'Comparison - Category'!C40="Rural"),U40,N40/$F40*100) -> 14 | AJ40: 0.05523888209
A41: =Control!A86 -> Masterton district | B41: =Control!B86 -> Masterton district | C41: =Control!C86 -> Rural | D41: =Control!D86 -> Masterton districtRural | F41: 2856751600 | G41: 3947 | H41: 723777.9579 | J41: 1008735.28 | K41: 0 | L41: 193935.0765 | M41: 0 | N41: 98168 | O41: 1300838.356 | Q41: 255.5701241 | R41: 0 | S41: 49.1348053 | T41: 0 | U41: =IF('Comparison - Category'!C41="Residential",Control!$B$103,IF('Comparison - Category'!C41="Rural",Control!$B$104,N41/$F41*$H41)) -> 28 | V41: =IF('Comparison - Category'!C41="Residential",SUM(Q41:T41,Control!$B$103),IF('Comparison - Category'!C41="Rural",SUM(Q41:T41,Control!$B$104),O41/$F41*$H41)) -> 332.7049294 | X41: 243.7769351 | Y41: 0 | Z41: 26.63493695 | AA41: 0 | AB41: 28 | AC41: 298.4118721 | AE41: 0.03531057022 | AF41: 0 | AG41: 0.006788657317 | AH41: 0 | AI41: =IF(OR('Comparison - Category'!C41="Residential",'Comparison - Category'!C41="Rural"),U41,N41/$F41*100) -> 28 | AJ41: 0.04553557811
A42: =Control!A87 -> Carterton district | B42: =Control!B87 -> Carterton district | C42: =Control!C87 -> Business | D42: =Control!D87 -> Carterton districtBusiness | F42: 100561500 | G42: 227 | H42: 443002.2026 | J42: 34902.41981 | K42: 880.4173139 | L42: 30192.12381 | M42: 0 | N42: 9728.209694 | O42: 75703.17063 | Q42: 153.7551534 | R42: 3.87849037 | S42: 133.0049507 | T42: 0 | U42: =IF('Comparison - Category'!C42="Residential",Control!$B$103,IF('Comparison - Category'!C42="Rural",Control!$B$104,N42/$F42*$H42)) -> 42.85554931 | V42: =IF('Comparison - Category'!C42="Residential",SUM(Q42:T42,Control!$B$103),IF('Comparison - Category'!C42="Rural",SUM(Q42:T42,Control!$B$104),O42/$F42*$H42)) -> 333.4941437 | X42: 143.9084922 | Y42: 3.759325104 | Z42: 83.67001533 | AA42: 0 | AB42: 36.44200627 | AC42: 267.7798389 | AE42: 0.03470753699 | AF42: 0.0008755013737 | AG42: 0.03002354162 | AH42: 0 | AI42: =IF(OR('Comparison - Category'!C42="Residential",'Comparison - Category'!C42="Rural"),U42,N42/$F42*100) -> 0.009673890797 | AJ42: 0.07528047079
A43: =Control!A88 -> Carterton district | B43: =Control!B88 -> Carterton district | C43: =Control!C88 -> Residential | D43: =Control!D88 -> Carterton districtResidential | F43: 897977500 | G43: 2529 | H43: 355072.1629 | J43: 311665.873 | K43: 7861.805348 | L43: 176425.6022 | M43: 0 | N43: 33838 | O43: 529791.2805 | Q43: 123.2368023 | R43: 3.108661664 | S43: 69.76101312 | T43: 0 | U43: =IF('Comparison - Category'!C43="Residential",Control!$B$103,IF('Comparison - Category'!C43="Rural",Control!$B$104,N43/$F43*$H43)) -> 14 | V43: =IF('Comparison - Category'!C43="Residential",SUM(Q43:T43,Control!$B$103),IF('Comparison - Category'!C43="Rural",SUM(Q43:T43,Control!$B$104),O43/$F43*$H43)) -> 210.1064771 | X43: 119.2438383 | Y43: 3.115009741 | Z43: 58.60920719 | AA43: 0 | AB43: 14 | AC43: 194.9680553 | AE43: 0.03470753699 | AF43: 0.0008755013737 | AG43: 0.01964699585 | AH43: 0 | AI43: =IF(OR('Comparison - Category'!C43="Residential",'Comparison - Category'!C43="Rural"),U43,N43/$F43*100) -> 14 | AJ43: 0.05899828008
A44: =Control!A89 -> Carterton district | B44: =Control!B89 -> Carterton district | C44: =Control!C89 -> Rural | D44: =Control!D89 -> Carterton districtRural | F44: 1790822700 | G44: 2092 | H44: 856033.7954 | J44: 621550.451 | K44: 15678.67734 | L44: 137405.6443 | M44: 0 | N44: 49812 | O44: 824446.7727 | Q44: 297.1082462 | R44: 7.494587638 | S44: 65.68147432 | T44: 0 | U44: =IF('Comparison - Category'!C44="Residential",Control!$B$103,IF('Comparison - Category'!C44="Rural",Control!$B$104,N44/$F44*$H44)) -> 28 | V44: =IF('Comparison - Category'!C44="Residential",SUM(Q44:T44,Control!$B$103),IF('Comparison - Category'!C44="Rural",SUM(Q44:T44,Control!$B$104),O44/$F44*$H44)) -> 398.2843082 | X44: 288.5651204 | Y44: 7.538193784 | Z44: 44.02990994 | AA44: 0 | AB44: 28 | AC44: 368.1332241 | AE44: 0.03470753699 | AF44: 0.0008755013737 | AG44: 0.007672766505 | AH44: 0 | AI44: =IF(OR('Comparison - Category'!C44="Residential",'Comparison - Category'!C44="Rural"),U44,N44/$F44*100) -> 28 | AJ44: 0.04603731976
A45: =Control!A90 -> South Wairarapa district | B45: =Control!B90 -> South Wairarapa district | C45: =Control!C90 -> Business | D45: =Control!D90 -> South Wairarapa districtBusiness | F45: 211218600 | G45: 314 | H45: 672670.7006 | J45: 71849.63287 | K45: 0 | L45: 68320.16234 | M45: 0 | N45: 20026.3563 | O45: 160196.1515 | Q45: 228.8204869 | R45: 0 | S45: 217.5801348 | T45: 0 | U45: =IF('Comparison - Category'!C45="Residential",Control!$B$103,IF('Comparison - Category'!C45="Rural",Control!$B$104,N45/$F45*$H45)) -> 63.77820479 | V45: =IF('Comparison - Category'!C45="Residential",SUM(Q45:T45,Control!$B$103),IF('Comparison - Category'!C45="Rural",SUM(Q45:T45,Control!$B$104),O45/$F45*$H45)) -> 510.1788265 | X45: 227.2990543 | Y45: 0 | Z45: 161.4883218 | AA45: 0 | AB45: 57.55903239 | AC45: 446.3464085 | AE45: 0.03401671674 | AF45: 0 | AG45: 0.03234571309 | AH45: 0 | AI45: =IF(OR('Comparison - Category'!C45="Residential",'Comparison - Category'!C45="Rural"),U45,N45/$F45*100) -> 0.009481341276 | AJ45: 0.07584377111
A46: =Control!A91 -> South Wairarapa district | B46: =Control!B91 -> South Wairarapa district | C46: =Control!C91 -> Residential | D46: =Control!D91 -> South Wairarapa districtResidential | F46: 1423101100 | G46: 3373 | H46: 421909.6057 | J46: 484092.2702 | K46: 0 | L46: 315582.6663 | M46: 0 | N46: 45906 | O46: 845580.9365 | Q46: 143.5197955 | R46: 0 | S46: 93.56141901 | T46: 0 | U46: =IF('Comparison - Category'!C46="Residential",Control!$B$103,IF('Comparison - Category'!C46="Rural",Control!$B$104,N46/$F46*$H46)) -> 14 | V46: =IF('Comparison - Category'!C46="Residential",SUM(Q46:T46,Control!$B$103),IF('Comparison - Category'!C46="Rural",SUM(Q46:T46,Control!$B$104),O46/$F46*$H46)) -> 251.0812145 | X46: 136.6796515 | Y46: 0 | Z46: 84.81823765 | AA46: 0 | AB46: 14 | AC46: 235.4978891 | AE46: 0.03401671674 | AF46: 0 | AG46: 0.02217570251 | AH46: 0 | AI46: =IF(OR('Comparison - Category'!C46="Residential",'Comparison - Category'!C46="Rural"),U46,N46/$F46*100) -> 14 | AJ46: 0.05941819148
A47: =Control!A92 -> South Wairarapa district | B47: =Control!B92 -> South Wairarapa district | C47: =Control!C92 -> Rural | D47: =Control!D92 -> South Wairarapa districtRural | F47: 3032164200 | G47: 3196 | H47: 948737.234 | J47: 1031442.707 | K47: 0 | L47: 248820.4312 | M47: 0 | N47: 81256 | O47: 1361519.138 | Q47: 322.7292576 | R47: 0 | S47: 77.85370189 | T47: 0 | U47: =IF('Comparison - Category'!C47="Residential",Control!$B$103,IF('Comparison - Category'!C47="Rural",Control!$B$104,N47/$F47*$H47)) -> 28 | V47: =IF('Comparison - Category'!C47="Residential",SUM(Q47:T47,Control!$B$103),IF('Comparison - Category'!C47="Rural",SUM(Q47:T47,Control!$B$104),O47/$F47*$H47)) -> 428.5829594 | X47: 319.4504844 | Y47: 0 | Z47: 58.42852469 | AA47: 0 | AB47: 28 | AC47: 405.8790091 | AE47: 0.03401671674 | AF47: 0 | AG47: 0.008206034199 | AH47: 0 | AI47: =IF(OR('Comparison - Category'!C47="Residential",'Comparison - Category'!C47="Rural"),U47,N47/$F47*100) -> 28 | AJ47: 0.04490255305
A48: =Control!A93 -> Tararua district | B48: =Control!B93 -> Tararua district | C48: =Control!C93 -> Rural | D48: =Control!D93 -> Tararua districtRural | F48: 10673500 | G48: 10 | H48: 1067350 | J48: 3731.431107 | K48: 0 | L48: 0 | M48: 0 | N48: 252 | O48: 3983.431107 | Q48: 373.1431107 | R48: 0 | S48: 0 | T48: 0 | U48: =IF('Comparison - Category'!C48="Residential",Control!$B$103,IF('Comparison - Category'!C48="Rural",Control!$B$104,N48/$F48*$H48)) -> 28 | V48: =IF('Comparison - Category'!C48="Residential",SUM(Q48:T48,Control!$B$103),IF('Comparison - Category'!C48="Rural",SUM(Q48:T48,Control!$B$104),O48/$F48*$H48)) -> 401.1431107 | X48: 235.3024643 | Y48: 0 | Z48: 0 | AA48: 0 | AB48: 28 | AC48: 263.3024643 | AE48: 0.03495977053 | AF48: 0 | AG48: 0 | AH48: 0 | AI48: =IF(OR('Comparison - Category'!C48="Residential",'Comparison - Category'!C48="Rural"),U48,N48/$F48*100) -> 28 | AJ48: 0.03732075802
A49: =Control!A94 -> Region wide | C49: =Control!C94 -> 0 | D49: =Control!D94 -> Region wide | F49: 155854484450 | G49: 204116 | H49: 763558.3906 | J49: 49631865 | K49: 6873175.86 | L49: 76797566.35 | M49: 0 | N49: 5007903.344 | O49: 138310510.6 | Q49: 243.1551912 | R49: 33.6728912 | S49: 376.2447155 | T49: 0 | U49: =N49/$F49*$H49 -> 24.53459476 | V49: =IF('Comparison - Category'!C49="Residential",SUM(Q49:T49,Control!$B$103),IF('Comparison - Category'!C49="Rural",SUM(Q49:T49,Control!$B$104),O49/$F49*$H49)) -> 677.6073926 | X49: 235.4664624 | Y49: 32.16506895 | Z49: 339.1797985 | AA49: 0 | AB49: 24.44068594 | AC49: 631.2520157 | AE49: 0.03184500284 | AF49: 0.00440999557 | AG49: 0.04927517268 | AH49: 0 | AI49: =IF(OR(C49="Residential",C49="Rural"),"n/a",N49/$F49*100) -> 0.003213191691 | AJ49: 0.08874336279
A51: By category
A52: Region Wide | C52: =C22 -> Regional CBD | D52: =A52&C52 -> Region WideRegional CBD | F52: =SUMIF($C$22:$C$48,$C52,F$22:F$48) -> 9794894150 | G52: 3324 | H52: =F52/G52 -> 2946719.058 | J52: =SUMIF($C$22:$C$48,$C52,J$22:J$48) -> 4793680.185 | K52: 9034.979524 | L52: 25774927.38 | M52: 0 | N52: 874234.2168 | O52: 31451876.76 | Q52: =J52/$F52*$H52 -> 1442.142053 | R52: 2.71810455 | S52: 7754.189947 | T52: 0 | U52: 263.0066837 | V52: =IF('Comparison - Category'!C52="Residential",SUM(Q52:T52,Control!$B$103),IF('Comparison - Category'!C52="Rural",SUM(Q52:T52,Control!$B$104),O52/$F52*$H52)) -> 9462.056788
A53: Region Wide | C53: =C23 -> Business | D53: =A53&C53 -> Region WideBusiness | F53: 14480684050 | G53: 8247 | H53: 1755872.93 | J53: 4807271.106 | K53: 1022554.966 | L53: 6663837.479 | M53: 0 | N53: 1269829.127 | O53: 13763492.68 | Q53: 582.9114958 | R53: 123.9911442 | S53: 808.0317059 | T53: 0 | U53: 153.9746728 | V53: =IF('Comparison - Category'!C53="Residential",SUM(Q53:T53,Control!$B$103),IF('Comparison - Category'!C53="Rural",SUM(Q53:T53,Control!$B$104),O53/$F53*$H53)) -> 1668.909019
A54: Region Wide | C54: =C24 -> Residential | D54: =A54&C54 -> Region WideResidential | F54: 118667051850 | G54: 177399 | H54: 668927.4001 | J54: 35720110.31 | K54: 5499792.815 | L54: 43253800.9 | M54: 0 | N54: 2475172 | O54: 86948876.02 | Q54: 201.3546317 | R54: 31.00238905 | S54: 243.8221235 | T54: 0 | U54: 13.95257019 | V54: =IF('Comparison - Category'!C54="Residential",SUM(Q54:T54,Control!$B$103),IF('Comparison - Category'!C54="Rural",SUM(Q54:T54,Control!$B$104),O54/$F54*$H54)) -> 490.1791443
A55: Region Wide | C55: =C25 -> Rural | D55: =A55&C55 -> Region WideRural | F55: 12911854400 | G55: 15146 | H55: 852492.6977 | J55: 4310803.407 | K55: 341793.1 | L55: 1105000.591 | M55: 0 | N55: 388668 | O55: 6146265.099 | Q55: 284.6166253 | R55: 22.56655883 | S55: 72.95659523 | T55: 0 | U55: 25.66142876 | V55: =IF('Comparison - Category'!C55="Residential",SUM(Q55:T55,Control!$B$103),IF('Comparison - Category'!C55="Rural",SUM(Q55:T55,Control!$B$104),O55/$F55*$H55)) -> 408.1397794
A56: Region Wide | C56: Total | D56: =A56&C56 -> Region WideTotal | F56: =SUM(F52:F55) -> 155854484450 | G56: =SUM(G52:G55) -> 204116 | H56: 763558.3906 | J56: =SUM(J52:J55) -> 49631865 | K56: 6873175.86 | L56: 76797566.35 | M56: 0 | N56: 5007903.344 | O56: 138310510.6 | Q56: 243.1551912 | R56: 33.6728912 | S56: 376.2447155 | T56: 0 | U56: 24.53459476 | V56: =IF('Comparison - Category'!C56="Residential",SUM(Q56:T56,Control!$B$103),IF('Comparison - Category'!C56="Rural",SUM(Q56:T56,Control!$B$104),O56/$F56*$H56)) -> 677.6073926
J59: =IF(ABS(J19-SUM(J10:J18))>tolerance_dollar,1,0) -> 0 | K59: 0 | L59: 0 | M59: 0 | N59: 0 | O59: 0
J60: =J49-SUM(J22:J48) -> 0 | K60: =K49-SUM(K22:K48) -> 0 | L60: =L49-SUM(L22:L48) -> 0 | M60: =M49-SUM(M22:M48) -> 0 | N60: 0 | O60: 0
F61: =F49-F19 -> 0 | G61: =G49-G19 -> 0 | J61: =IF(ABS(J49-J19)>tolerance_dollar,1,0) -> 0 | K61: 0 | L61: 0 | M61: 0 | N61: 0 | O61: 0 | Q61: =IF(ABS(Q49-Q19)>tolerance_dollar,1,0) -> 0 | R61: 0 | S61: 0 | T61: 0 | U61: 0 | V61: 0
A64: =year_current&" rates" -> 2021/22 rates
J65: Rates | Q65: Rates / average CV | X65: Proposal | AE65: Cents/$ OR Regional Strategy Rate $/property
A66: =Control!A$66 -> TA full name | B66: =Control!B$66 -> Rating area | C66: =Control!C$66 -> Category group | D66: =Control!D$66 -> Concatenated name | F66: CV | G66: CV Assessments | H66: Average CV | J66: General rate | K66: River management rate | L66: Public transport rate | M66: Stadium purposes rate | N66: Wellington regional strategy rate | O66: District-Wide rates | Q66: General rate | R66: River management rate | S66: Public transport rate | T66: Stadium purposes rate | U66: Wellington regional strategy rate | V66: District-Wide rates | X66: General rate | Y66: River management rate | Z66: Public transport rate | AA66: Stadium purposes rate | AB66: Wellington regional strategy rate | AC66: District-Wide rates | AE66: General rate | AF66: River management rate | AG66: Public transport rate | AH66: Stadium purposes rate | AI66: Wellington regional strategy rate | AJ66: District-Wide rates
A68: By TA
A69: =Control!A42 -> Wellington city | C69: =Control!B42 -> District wide | D69: =Control!C42 -> Wellington cityDistrict wide | F69: =INDEX(capital_values,MATCH($D69,capital_values_rows,0),MATCH(F$66&" "&year_current,capital_values_header,0)) -> 73577159400 | G69: =INDEX(assessments,MATCH($D69,assessments_rows,0),MATCH(G$66&" "&year_current,assessments_header,0)) -> 78595 | H69: =F69/G69 -> 936155.7275 | J69: =INDEX(Gen!$D$10:$D$18,MATCH($A69,Gen!$A$10:$A$18,0),) -> 29354845.78 | K69: =INDEX('River management'!$C$10:$C$18,MATCH($A69,'River management'!$A$10:$A$18,0),) -> 56927.23 | L69: =INDEX('Public transport'!$I$10:$I$18,MATCH($A69,'Public transport'!$A$10:$A$18,0),) -> 50163326.39 | M69: =INDEX(Stadium!$G$10:$G$18,MATCH($A69,Stadium!$A$10:$A$18,0),) -> 0 | N69: =INDEX(WRS!$K$10:$K$18,MATCH($A69,WRS!$A$10:$A$18,0),) -> 2120821.486 | O69: =SUM(J69:N69) -> 81695920.89 | Q69: =J69/$F69*$H69 -> 373.4950796 | R69: =K69/$F69*$H69 -> 0.7243110885 | S69: =L69/$F69*$H69 -> 638.2508607 | T69: =M69/$F69*$H69 -> 0 | U69: =N69/$F69*$H69 -> 26.9841782 | V69: =IF('Comparison - Category'!C69="Residential",SUM(Q69:T69,Control!$B$103),IF('Comparison - Category'!C69="Rural",SUM(Q69:T69,Control!$B$104),O69/$F69*$H69)) -> 1039.45443
A70: =Control!A43 -> Hutt city | C70: =Control!B43 -> District wide | D70: =Control!C43 -> Hutt cityDistrict wide | F70: 28500797500 | G70: 39700 | H70: =F70/G70 -> 717904.2191 | J70: =INDEX(Gen!$D$10:$D$18,MATCH($A70,Gen!$A$10:$A$18,0),) -> 10866015.72 | K70: =INDEX('River management'!$C$10:$C$18,MATCH($A70,'River management'!$A$10:$A$18,0),) -> 4310872.977 | L70: =INDEX('Public transport'!$I$10:$I$18,MATCH($A70,'Public transport'!$A$10:$A$18,0),) -> 12823188.52 | M70: =INDEX(Stadium!$G$10:$G$18,MATCH($A70,Stadium!$A$10:$A$18,0),) -> 0 | N70: =INDEX(WRS!$K$10:$K$18,MATCH($A70,WRS!$A$10:$A$18,0),) -> 872211.4827 | O70: 28872288.7 | Q70: 273.7031668 | R70: 108.5862211 | S70: 323.0022297 | T70: 0 | U70: 21.97006254 | V70: =IF('Comparison - Category'!C70="Residential",SUM(Q70:T70,Control!$B$103),IF('Comparison - Category'!C70="Rural",SUM(Q70:T70,Control!$B$104),O70/$F70*$H70)) -> 727.26168
A71: =Control!A44 -> Upper Hutt city | C71: =Control!B44 -> District wide | D71: =Control!C44 -> Upper Hutt cityDistrict wide | F71: 11454253800 | G71: 17172 | H71: 667030.8526 | J71: =INDEX(Gen!$D$10:$D$18,MATCH($A71,Gen!$A$10:$A$18,0),) -> 4391731.789 | K71: =INDEX('River management'!$C$10:$C$18,MATCH($A71,'River management'!$A$10:$A$18,0),) -> 1070771.132 | L71: =INDEX('Public transport'!$I$10:$I$18,MATCH($A71,'Public transport'!$A$10:$A$18,0),) -> 5049243.297 | M71: =INDEX(Stadium!$G$10:$G$18,MATCH($A71,Stadium!$A$10:$A$18,0),) -> 0 | N71: =INDEX(WRS!$K$10:$K$18,MATCH($A71,WRS!$A$10:$A$18,0),) -> 349092.3655 | O71: 10860838.58 | Q71: 255.7495801 | R71: 62.35564479 | S71: 294.0393255 | T71: 0 | U71: 20.32916174 | V71: =IF('Comparison - Category'!C71="Residential",SUM(Q71:T71,Control!$B$103),IF('Comparison - Category'!C71="Rural",SUM(Q71:T71,Control!$B$104),O71/$F71*$H71)) -> 632.4737121
A72: =Control!A45 -> Porirua city | C72: =Control!B45 -> District wide | D72: =Control!C45 -> Porirua cityDistrict wide | F72: 14342036650 | G72: 19337 | H72: 741688.8168 | J72: =INDEX(Gen!$D$10:$D$18,MATCH($A72,Gen!$A$10:$A$18,0),) -> 5272563.766 | K72: =INDEX('River management'!$C$10:$C$18,MATCH($A72,'River management'!$A$10:$A$18,0),) -> 56420.49595 | L72: =INDEX('Public transport'!$I$10:$I$18,MATCH($A72,'Public transport'!$A$10:$A$18,0),) -> 6309996.486 | M72: =INDEX(Stadium!$G$10:$G$18,MATCH($A72,Stadium!$A$10:$A$18,0),) -> 0 | N72: =INDEX(WRS!$K$10:$K$18,MATCH($A72,WRS!$A$10:$A$18,0),) -> 367471.0713 | O72: 12006451.82 | Q72: 272.6671028 | R72: 2.917748149 | S72: 326.3172408 | T72: 0 | U72: 19.00352026 | V72: =IF('Comparison - Category'!C72="Residential",SUM(Q72:T72,Control!$B$103),IF('Comparison - Category'!C72="Rural",SUM(Q72:T72,Control!$B$104),O72/$F72*$H72)) -> 620.905612
A73: =Control!A46 -> Kāpiti Coast district | C73: =Control!B46 -> District wide | D73: =Control!C46 -> Kāpiti Coast districtDistrict wide | F73: 19504834150 | G73: 25398 | H73: 767967.3262 | J73: =INDEX(Gen!$D$10:$D$18,MATCH($A73,Gen!$A$10:$A$18,0),) -> 6562825.034 | K73: =INDEX('River management'!$C$10:$C$18,MATCH($A73,'River management'!$A$10:$A$18,0),) -> 1282535.312 | L73: =INDEX('Public transport'!$I$10:$I$18,MATCH($A73,'Public transport'!$A$10:$A$18,0),) -> 5333583.4 | M73: =INDEX(Stadium!$G$10:$G$18,MATCH($A73,Stadium!$A$10:$A$18,0),) -> 0 | N73: =INDEX(WRS!$K$10:$K$18,MATCH($A73,WRS!$A$10:$A$18,0),) -> 480010.012 | O73: 13658953.76 | Q73: 258.3992847 | R73: 50.4974924 | S73: 210.0001339 | T73: 0 | U73: 18.89952012 | V73: =IF('Comparison - Category'!C73="Residential",SUM(Q73:T73,Control!$B$103),IF('Comparison - Category'!C73="Rural",SUM(Q73:T73,Control!$B$104),O73/$F73*$H73)) -> 537.7964311
A74: =Control!A47 -> Masterton district | C74: =Control!B47 -> District wide | D74: =Control!C47 -> Masterton districtDistrict wide | F74: 8600907655 | G74: 12816 | H74: 671107.0268 | J74: =INDEX(Gen!$D$10:$D$18,MATCH($A74,Gen!$A$10:$A$18,0),) -> 2899729.308 | K74: =INDEX('River management'!$C$10:$C$18,MATCH($A74,'River management'!$A$10:$A$18,0),) -> 0 | L74: =INDEX('Public transport'!$I$10:$I$18,MATCH($A74,'Public transport'!$A$10:$A$18,0),) -> 997246.5373 | M74: =INDEX(Stadium!$G$10:$G$18,MATCH($A74,Stadium!$A$10:$A$18,0),) -> 0 | N74: =INDEX(WRS!$K$10:$K$18,MATCH($A74,WRS!$A$10:$A$18,0),) -> 260466.8965 | O74: 4157442.742 | Q74: 226.258529 | R74: 0 | S74: 77.81261995 | T74: 0 | U74: 20.32357183 | V74: =IF('Comparison - Category'!C74="Residential",SUM(Q74:T74,Control!$B$103),IF('Comparison - Category'!C74="Rural",SUM(Q74:T74,Control!$B$104),O74/$F74*$H74)) -> 324.3947208
A75: =Control!A48 -> Carterton district | C75: =Control!B48 -> District wide | D75: =Control!C48 -> Carterton districtDistrict wide | F75: 3619977800 | G75: 4850 | H75: 746387.1753 | J75: =INDEX(Gen!$D$10:$D$18,MATCH($A75,Gen!$A$10:$A$18,0),) -> 1229686.441 | K75: =INDEX('River management'!$C$10:$C$18,MATCH($A75,'River management'!$A$10:$A$18,0),) -> 24909.32 | L75: =INDEX('Public transport'!$I$10:$I$18,MATCH($A75,'Public transport'!$A$10:$A$18,0),) -> 401657.4048 | M75: =INDEX(Stadium!$G$10:$G$18,MATCH($A75,Stadium!$A$10:$A$18,0),) -> 0 | N75: =INDEX(WRS!$K$10:$K$18,MATCH($A75,WRS!$A$10:$A$18,0),) -> 93264.87211 | O75: 1749518.038 | Q75: 253.543596 | R75: 5.135942268 | S75: 82.81595975 | T75: 0 | U75: 19.22987054 | V75: =IF('Comparison - Category'!C75="Residential",SUM(Q75:T75,Control!$B$103),IF('Comparison - Category'!C75="Rural",SUM(Q75:T75,Control!$B$104),O75/$F75*$H75)) -> 360.7253686
A76: =Control!A49 -> South Wairarapa district | C76: =Control!B49 -> District wide | D76: =Control!C49 -> South Wairarapa districtDistrict wide | F76: 6213437000 | G76: 7010 | H76: 886367.6177 | J76: =INDEX(Gen!$D$10:$D$18,MATCH($A76,Gen!$A$10:$A$18,0),) -> 2074448.402 | K76: =INDEX('River management'!$C$10:$C$18,MATCH($A76,'River management'!$A$10:$A$18,0),) -> 0 | L76: =INDEX('Public transport'!$I$10:$I$18,MATCH($A76,'Public transport'!$A$10:$A$18,0),) -> 732088.7925 | M76: =INDEX(Stadium!$G$10:$G$18,MATCH($A76,Stadium!$A$10:$A$18,0),) -> 0 | N76: =INDEX(WRS!$K$10:$K$18,MATCH($A76,WRS!$A$10:$A$18,0),) -> 147211.4462 | O76: 2953748.641 | Q76: 295.9270189 | R76: 0 | S76: 104.4349205 | T76: 0 | U76: 21.0002063 | V76: =IF('Comparison - Category'!C76="Residential",SUM(Q76:T76,Control!$B$103),IF('Comparison - Category'!C76="Rural",SUM(Q76:T76,Control!$B$104),O76/$F76*$H76)) -> 421.3621456
A77: =Control!A50 -> Tararua district | C77: =Control!B50 -> District wide | D77: =Control!C50 -> Tararua districtDistrict wide | F77: 10673500 | G77: 10 | H77: 1067350 | J77: =INDEX(Gen!$D$10:$D$18,MATCH($A77,Gen!$A$10:$A$18,0),) -> 5367.032794 | K77: =INDEX('River management'!$C$10:$C$18,MATCH($A77,'River management'!$A$10:$A$18,0),) -> 0 | L77: =INDEX('Public transport'!$I$10:$I$18,MATCH($A77,'Public transport'!$A$10:$A$18,0),) -> 0 | M77: =INDEX(Stadium!$G$10:$G$18,MATCH($A77,Stadium!$A$10:$A$18,0),) -> 0 | N77: =INDEX(WRS!$K$10:$K$18,MATCH($A77,WRS!$A$10:$A$18,0),) -> 252 | O77: 5619.032794 | Q77: 536.7032794 | R77: 0 | S77: 0 | T77: 0 | U77: 25.2 | V77: =IF('Comparison - Category'!C77="Residential",SUM(Q77:T77,Control!$B$103),IF('Comparison - Category'!C77="Rural",SUM(Q77:T77,Control!$B$104),O77/$F77*$H77)) -> 561.9032794
A78: Region wide | D78: =Control!C51 -> Region wide | F78: =SUM(F69:F77) -> 165824077455 | G78: =SUM(G69:G77) -> 204888 | H78: =F78/G78 -> 809340.1149 | J78: =INDEX(ess_base_estract,MATCH(J66,ESSbase!$B$8:$B$25,0),MATCH(year_current,ESSbase!$F$6:$G$6,0)) -> 62657213.28 | K78: =INDEX(ess_base_estract,MATCH(K66,ESSbase!$B$8:$B$25,0),MATCH(year_current,ESSbase!$F$6:$G$6,0)) -> 6802436.468 | L78: =INDEX(ess_base_estract,MATCH(L66,ESSbase!$B$8:$B$25,0),MATCH(year_current,ESSbase!$F$6:$G$6,0)) -> 81810330.83 | M78: =INDEX(ess_base_estract,MATCH(M66,ESSbase!$B$8:$B$25,0),MATCH(year_current,ESSbase!$F$6:$G$6,0)) -> 0 | N78: =INDEX(ess_base_estract,MATCH(N66,ESSbase!$B$8:$B$25,0),MATCH(year_current,ESSbase!$F$6:$G$6,0)) -> 4690801.632 | O78: =INDEX(ess_base_estract,MATCH(O66,ESSbase!$B$8:$B$25,0),MATCH(year_current,ESSbase!$F$6:$G$6,0)) -> 155960782.2 | Q78: 305.8120206 | R78: 33.20075587 | S78: 399.2929348 | T78: 0 | U78: 22.89446738 | V78: =IF('Comparison - Category'!C78="Residential",SUM(Q78:T78,Control!$B$103),IF('Comparison - Category'!C78="Rural",SUM(Q78:T78,Control!$B$104),O78/$F78*$H78)) -> 761.2001787
A80: By TA & Category
A81: =Control!A67 -> Wellington city | B81: =Control!B67 -> Wellington city | C81: =Control!C67 -> Regional CBD | D81: =Control!D67 -> Wellington cityRegional CBD | F81: =INDEX(capital_values,MATCH($D81,capital_values_rows,0),MATCH(F$66&" "&year_current,capital_values_header,0)) -> 9782829150 | G81: =INDEX(assessments,MATCH($D81,assessments_rows,0),MATCH(G$66&" "&year_current,assessments_header,0)) -> 3283 | H81: =F81/G81 -> 2979844.395 | J81: =Gen!F24 -> 5966760.815 | K81: =($F81/INDEX($F$69:$F$77,MATCH($A81,$A$69:$A$77,0),)) * INDEX(K$69:K$77,MATCH($A81,$A$69:$A$77,0),) -> 7569.052266 | L81: =INDEX('Public transport'!$I$23:$I$49,MATCH($D81,'Public transport'!$D$23:$D$49,0),) -> 27161289.5 | M81: =INDEX(Stadium!$G$23:$G$49,MATCH($D81,Stadium!$D$23:$D$49,0),) -> 0 | N81: =INDEX(WRS!$K$23:$K$49,MATCH($D81,WRS!$D$23:$D$49,0),) -> 733375.593 | O81: =SUM(J81:N81) -> 33868994.96 | Q81: =J81/$F81*$H81 -> 1817.472073 | R81: =K81/$F81*$H81 -> 2.30552917 | S81: =L81/$F81*$H81 -> 8273.31389 | T81: =M81/$F81*$H81 -> 0 | U81: =IF('Comparison - Category'!C81="Residential",Control!$B$103,IF('Comparison - Category'!C81="Rural",Control!$B$104,N81/$F81*$H81)) -> 223.3858035 | V81: =IF('Comparison - Category'!C81="Residential",SUM(Q81:T81,Control!$B$103),IF('Comparison - Category'!C81="Rural",SUM(Q81:T81,Control!$B$104),O81/$F81*$H81)) -> 10316.4773 | X81: 1555.993213 | Y81: 2.601402129 | Z81: 7506.55107 | AA81: 0 | AB81: 232.3018413 | AC81: 9297.447526 | AE81: =J81/$F81*100 -> 0.06099218052 | AF81: =K81/$F81*100 -> 7.73707907e-05 | AG81: =L81/$F81*100 -> 0.2776424804 | AH81: =M81/$F81*100 -> 0 | AI81: =IF(OR('Comparison - Category'!C81="Residential",'Comparison - Category'!C81="Rural"),U81,N81/$F81*100) -> 0.007496559346 | AJ81: =O81/$F81*100 -> 0.346208591
A82: =Control!A68 -> Wellington city | B82: =Control!B68 -> Wellington city | C82: =Control!C68 -> Business | D82: =Control!D68 -> Wellington cityBusiness | F82: 4646450150 | G82: 1892 | H82: 2455840.46 | J82: =Gen!F25 -> 2167154.496 | K82: =($F82/INDEX($F$69:$F$77,MATCH($A82,$A$69:$A$77,0),)) * INDEX(K$69:K$77,MATCH($A82,$A$69:$A$77,0),) -> 3594.99522 | L82: =INDEX('Public transport'!$I$23:$I$49,MATCH($D82,'Public transport'!$D$23:$D$49,0),) -> 2152463.141 | M82: =INDEX(Stadium!$G$23:$G$49,MATCH($D82,Stadium!$D$23:$D$49,0),) -> 0 | N82: =INDEX(WRS!$K$23:$K$49,MATCH($D82,WRS!$D$23:$D$49,0),) -> 348323.893 | O82: =SUM(J82:N82) -> 4671536.525 | Q82: =J82/$F82*$H82 -> 1145.430494 | R82: 1.900103182 | S82: 1137.665508 | T82: 0 | U82: =IF('Comparison - Category'!C82="Residential",Control!$B$103,IF('Comparison - Category'!C82="Rural",Control!$B$104,N82/$F82*$H82)) -> 184.1035375 | V82: =IF('Comparison - Category'!C82="Residential",SUM(Q82:T82,Control!$B$103),IF('Comparison - Category'!C82="Rural",SUM(Q82:T82,Control!$B$104),O82/$F82*$H82)) -> 2469.099643 | X82: 979.4862293 | Y82: 2.141429084 | Z82: 821.0431746 | AA82: 0 | AB82: 191.226844 | AC82: 1993.897677 | AE82: 0.04664107922 | AF82: 7.73707907e-05 | AG82: 0.04632489474 | AH82: 0 | AI82: =IF(OR('Comparison - Category'!C82="Residential",'Comparison - Category'!C82="Rural"),U82,N82/$F82*100) -> 0.007496559346 | AJ82: 0.1005399041
A83: =Control!A69 -> Wellington city | B83: =Control!B69 -> Wellington city | C83: =Control!C69 -> Residential | D83: =Control!D69 -> Wellington cityResidential | F83: 58332994000 | G83: 72617 | H83: 803296.6661 | J83: =Gen!F26 -> 20928567.65 | K83: 45132.69869 | L83: =INDEX('Public transport'!$I$23:$I$49,MATCH($D83,'Public transport'!$D$23:$D$49,0),) -> 20776520.76 | M83: =INDEX(Stadium!$G$23:$G$49,MATCH($D83,Stadium!$D$23:$D$49,0),) -> 0 | N83: =INDEX(WRS!$K$23:$K$49,MATCH($D83,WRS!$D$23:$D$49,0),) -> 1016638 | O83: 42766859.11 | Q83: 288.2047957 | R83: 0.6215169822 | S83: 286.1109763 | T83: 0 | U83: =IF('Comparison - Category'!C83="Residential",Control!$B$103,IF('Comparison - Category'!C83="Rural",Control!$B$104,N83/$F83*$H83)) -> 14 | V83: =IF('Comparison - Category'!C83="Residential",SUM(Q83:T83,Control!$B$103),IF('Comparison - Category'!C83="Rural",SUM(Q83:T83,Control!$B$104),O83/$F83*$H83)) -> 588.937289 | X83: 246.6772959 | Y83: 0.7010966522 | Z83: 229.3060471 | AA83: 0 | AB83: 14 | AC83: 490.6844396 | AE83: 0.03587775325 | AF83: 7.73707907e-05 | AG83: 0.03561709993 | AH83: 0 | AI83: =IF(OR('Comparison - Category'!C83="Residential",'Comparison - Category'!C83="Rural"),U83,N83/$F83*100) -> 14 | AJ83: 0.0733150421
A84: =Control!A70 -> Wellington city | B84: =Control!B70 -> Wellington city | C84: =Control!C70 -> Rural | D84: =Control!D70 -> Wellington cityRural | F84: 814886100 | G84: 803 | H84: 1014802.117 | J84: =Gen!F27 -> 292362.8242 | K84: 630.4838188 | L84: =INDEX('Public transport'!$I$23:$I$49,MATCH($D84,'Public transport'!$D$23:$D$49,0),) -> 73052.98812 | M84: =INDEX(Stadium!$G$23:$G$49,MATCH($D84,Stadium!$D$23:$D$49,0),) -> 0 | N84: =INDEX(WRS!$K$23:$K$49,MATCH($D84,WRS!$D$23:$D$49,0),) -> 22484 | O84: 388530.2962 | Q84: 364.0881995 | R84: 0.785160422 | S84: 90.9750786 | T84: 0 | U84: =IF('Comparison - Category'!C84="Residential",Control!$B$103,IF('Comparison - Category'!C84="Rural",Control!$B$104,N84/$F84*$H84)) -> 28 | V84: =IF('Comparison - Category'!C84="Residential",SUM(Q84:T84,Control!$B$103),IF('Comparison - Category'!C84="Rural",SUM(Q84:T84,Control!$B$104),O84/$F84*$H84)) -> 483.8484385 | X84: 310.0564476 | Y84: 0.8812304215 | Z84: 73.17823944 | AA84: 0 | AB84: 28 | AC84: 412.1159174 | AE84: 0.03587775325 | AF84: 7.73707907e-05 | AG84: 0.008964809698 | AH84: 0 | AI84: =IF(OR('Comparison - Category'!C84="Residential",'Comparison - Category'!C84="Rural"),U84,N84/$F84*100) -> 28 | AJ84: 0.04767909235
A85: =Control!A71 -> Hutt city | B85: =Control!B71 -> Hutt city | C85: =Control!C71 -> Business | D85: =Control!D71 -> Hutt cityBusiness | F85: 4807328500 | G85: 2357 | H85: 2039596.309 | J85: =($F85/INDEX($F$69:$F$77,MATCH($A85,$A$69:$A$77,0),)) * INDEX(J$69:J$77,MATCH($A85,$A$69:$A$77,0),) -> 1832808.61 | K85: 727129.9171 | L85: =INDEX('Public transport'!$I$23:$I$49,MATCH($D85,'Public transport'!$D$23:$D$49,0),) -> 2594998.598 | M85: =INDEX(Stadium!$G$23:$G$49,MATCH($D85,Stadium!$D$23:$D$49,0),) -> 0 | N85: =INDEX(WRS!$K$23:$K$49,MATCH($D85,WRS!$D$23:$D$49,0),) -> 344383.4827 | O85: 5499320.608 | Q85: 777.6022953 | R85: 308.4980556 | S85: 1100.975222 | T85: 0 | U85: =IF('Comparison - Category'!C85="Residential",Control!$B$103,IF('Comparison - Category'!C85="Rural",Control!$B$104,N85/$F85*$H85)) -> 146.1109388 | V85: =IF('Comparison - Category'!C85="Residential",SUM(Q85:T85,Control!$B$103),IF('Comparison - Category'!C85="Rural",SUM(Q85:T85,Control!$B$104),O85/$F85*$H85)) -> 2333.186512 | X85: 646.0495731 | Y85: 351.0714268 | Z85: 984.1584801 | AA85: 0 | AB85: 147.1326297 | AC85: 2128.41211 | AE85: 0.03812530411 | AF85: 0.01512544685 | AG85: 0.05398005561 | AH85: 0 | AI85: =IF(OR('Comparison - Category'!C85="Residential",'Comparison - Category'!C85="Rural"),U85,N85/$F85*100) -> 0.007163718532 | AJ85: 0.1143945251
A86: =Control!A72 -> Hutt city | B86: =Control!B72 -> Hutt city | C86: =Control!C72 -> Residential | D86: =Control!D72 -> Hutt cityResidential | F86: 23274334000 | G86: 36859 | H86: 631442.3614 | J86: 8873410.617 | K86: 3520347.019 | L86: =INDEX('Public transport'!$I$23:$I$49,MATCH($D86,'Public transport'!$D$23:$D$49,0),) -> 10181980.63 | M86: =INDEX(Stadium!$G$23:$G$49,MATCH($D86,Stadium!$D$23:$D$49,0),) -> 0 | N86: =INDEX(WRS!$K$23:$K$49,MATCH($D86,WRS!$D$23:$D$49,0),) -> 514276 | O86: 23090014.26 | Q86: 240.7393206 | R86: 95.50847876 | S86: 276.2413693 | T86: 0 | U86: =IF('Comparison - Category'!C86="Residential",Control!$B$103,IF('Comparison - Category'!C86="Rural",Control!$B$104,N86/$F86*$H86)) -> 14 | V86: =IF('Comparison - Category'!C86="Residential",SUM(Q86:T86,Control!$B$103),IF('Comparison - Category'!C86="Rural",SUM(Q86:T86,Control!$B$104),O86/$F86*$H86)) -> 626.4891686 | X86: 190.2268407 | Y86: 103.371647 | Z86: 262.4481211 | AA86: 0 | AB86: 14 | AC86: 570.0466088 | AE86: 0.03812530411 | AF86: 0.01512544685 | AG86: 0.04374767772 | AH86: 0 | AI86: =IF(OR('Comparison - Category'!C86="Residential",'Comparison - Category'!C86="Rural"),U86,N86/$F86*100) -> 14 | AJ86: 0.09920805581
A87: =Control!A73 -> Hutt city | B87: =Control!B73 -> Hutt city | C87: =Control!C73 -> Rural | D87: =Control!D73 -> Hutt cityRural | F87: 419135000 | G87: 484 | H87: 865981.405 | J87: 159796.4934 | K87: 63396.04165 | L87: =INDEX('Public transport'!$I$23:$I$49,MATCH($D87,'Public transport'!$D$23:$D$49,0),) -> 46209.28992 | M87: =INDEX(Stadium!$G$23:$G$49,MATCH($D87,Stadium!$D$23:$D$49,0),) -> 0 | N87: =INDEX(WRS!$K$23:$K$49,MATCH($D87,WRS!$D$23:$D$49,0),) -> 13552 | O87: 282953.8249 | Q87: 330.1580442 | R87: 130.9835571 | S87: 95.47373951 | T87: 0 | U87: =IF('Comparison - Category'!C87="Residential",Control!$B$103,IF('Comparison - Category'!C87="Rural",Control!$B$104,N87/$F87*$H87)) -> 28 | V87: =IF('Comparison - Category'!C87="Residential",SUM(Q87:T87,Control!$B$103),IF('Comparison - Category'!C87="Rural",SUM(Q87:T87,Control!$B$104),O87/$F87*$H87)) -> 584.6153408 | X87: 259.2608627 | Y87: 140.8855988 | Z87: 90.70438478 | AA87: 0 | AB87: 28 | AC87: 518.8508463 | AE87: 0.03812530411 | AF87: 0.01512544685 | AG87: 0.01102491797 | AH87: 0 | AI87: =IF(OR('Comparison - Category'!C87="Residential",'Comparison - Category'!C87="Rural"),U87,N87/$F87*100) -> 28 | AJ87: 0.0675089947
A88: =Control!A74 -> Upper Hutt city | B88: =Control!B74 -> Upper Hutt city | C88: =Control!C74 -> Business | D88: =Control!D74 -> Upper Hutt cityBusiness | F88: 1423091700 | G88: 748 | H88: 1902529.011 | J88: 545634.5884 | K88: 133034.0272 | L88: =INDEX('Public transport'!$I$23:$I$49,MATCH($D88,'Public transport'!$D$23:$D$49,0),) -> 804841.8514 | M88: =INDEX(Stadium!$G$23:$G$49,MATCH($D88,Stadium!$D$23:$D$49,0),) -> 0 | N88: =INDEX(WRS!$K$23:$K$49,MATCH($D88,WRS!$D$23:$D$49,0),) -> 102524.3655 | O88: 1586034.832 | Q88: 729.4580058 | R88: 177.8529775 | S88: 1075.99178 | T88: 0 | U88: =IF('Comparison - Category'!C88="Residential",Control!$B$103,IF('Comparison - Category'!C88="Rural",Control!$B$104,N88/$F88*$H88)) -> 137.0646597 | V88: =IF('Comparison - Category'!C88="Residential",SUM(Q88:T88,Control!$B$103),IF('Comparison - Category'!C88="Rural",SUM(Q88:T88,Control!$B$104),O88/$F88*$H88)) -> 2120.367423 | X88: 649.2642004 | Y88: 154.3674599 | Z88: 1071.364334 | AA88: 0 | AB88: 147.8647354 | AC88: 2022.86073 | AE88: 0.03834149186 | AF88: 0.009348239973 | AG88: 0.05655586716 | AH88: 0 | AI88: =IF(OR('Comparison - Category'!C88="Residential",'Comparison - Category'!C88="Rural"),U88,N88/$F88*100) -> 0.007204340063 | AJ88: 0.1114499391
A89: =Control!A75 -> Upper Hutt city | B89: =Control!B75 -> Upper Hutt city | C89: =Control!C75 -> Residential | D89: =Control!D75 -> Upper Hutt cityResidential | F89: 8885002100 | G89: 15105 | H89: 588215.9616 | J89: 3406642.357 | K89: 830591.3179 | L89: =INDEX('Public transport'!$I$23:$I$49,MATCH($D89,'Public transport'!$D$23:$D$49,0),) -> 4110687.718 | M89: =INDEX(Stadium!$G$23:$G$49,MATCH($D89,Stadium!$D$23:$D$49,0),) -> 0 | N89: =INDEX(WRS!$K$23:$K$49,MATCH($D89,WRS!$D$23:$D$49,0),) -> 211064 | O89: 8558985.394 | Q89: 225.5307751 | R89: 54.98783965 | S89: 272.1408619 | T89: 0 | U89: =IF('Comparison - Category'!C89="Residential",Control!$B$103,IF('Comparison - Category'!C89="Rural",Control!$B$104,N89/$F89*$H89)) -> 14 | V89: =IF('Comparison - Category'!C89="Residential",SUM(Q89:T89,Control!$B$103),IF('Comparison - Category'!C89="Rural",SUM(Q89:T89,Control!$B$104),O89/$F89*$H89)) -> 566.6594766 | X89: 171.3655952 | Y89: 40.74346256 | Z89: 258.1504871 | AA89: 0 | AB89: 14 | AC89: 484.2595449 | AE89: 0.03834149186 | AF89: 0.009348239973 | AG89: 0.04626546704 | AH89: 0 | AI89: =IF(OR('Comparison - Category'!C89="Residential",'Comparison - Category'!C89="Rural"),U89,N89/$F89*100) -> 14 | AJ89: 0.09633070761
A90: =Control!A76 -> Upper Hutt city | B90: =Control!B76 -> Upper Hutt city | C90: =Control!C76 -> Rural | D90: =Control!D76 -> Upper Hutt cityRural | F90: 1146160000 | G90: 1319 | H90: 868961.3343 | J90: 439454.8431 | K90: 107145.7873 | L90: =INDEX('Public transport'!$I$23:$I$49,MATCH($D90,'Public transport'!$D$23:$D$49,0),) -> 133713.7268 | M90: =INDEX(Stadium!$G$23:$G$49,MATCH($D90,Stadium!$D$23:$D$49,0),) -> 0 | N90: =INDEX(WRS!$K$23:$K$49,MATCH($D90,WRS!$D$23:$D$49,0),) -> 35504 | O90: 715818.3573 | Q90: 333.1727393 | R90: 81.23259081 | S90: 101.3750772 | T90: 0 | U90: =IF('Comparison - Category'!C90="Residential",Control!$B$103,IF('Comparison - Category'!C90="Rural",Control!$B$104,N90/$F90*$H90)) -> 28 | V90: =IF('Comparison - Category'!C90="Residential",SUM(Q90:T90,Control!$B$103),IF('Comparison - Category'!C90="Rural",SUM(Q90:T90,Control!$B$104),O90/$F90*$H90)) -> 543.7804073 | X90: 278.7938471 | Y90: 66.28533959 | Z90: 106.5510693 | AA90: 0 | AB90: 28 | AC90: 479.630256 | AE90: 0.03834149186 | AF90: 0.009348239973 | AG90: 0.01166623568 | AH90: 0 | AI90: =IF(OR('Comparison - Category'!C90="Residential",'Comparison - Category'!C90="Rural"),U90,N90/$F90*100) -> 28 | AJ90: 0.06245361531
A91: =Control!A77 -> Porirua city | B91: =Control!B77 -> Porirua city | C91: =Control!C77 -> Business | D91: =Control!D77 -> Porirua cityBusiness | F91: 1437330000 | G91: 805 | H91: 1785503.106 | J91: 528405.7113 | K91: 5654.348362 | L91: =INDEX('Public transport'!$I$23:$I$49,MATCH($D91,'Public transport'!$D$23:$D$49,0),) -> 788473.0122 | M91: =INDEX(Stadium!$G$23:$G$49,MATCH($D91,Stadium!$D$23:$D$49,0),) -> 0 | N91: =INDEX(WRS!$K$23:$K$49,MATCH($D91,WRS!$D$23:$D$49,0),) -> 99287.07129 | O91: 1421820.143 | Q91: 656.4046103 | R91: 7.024035233 | S91: 979.4695803 | T91: 0 | U91: =IF('Comparison - Category'!C91="Residential",Control!$B$103,IF('Comparison - Category'!C91="Rural",Control!$B$104,N91/$F91*$H91)) -> 123.3379768 | V91: =IF('Comparison - Category'!C91="Residential",SUM(Q91:T91,Control!$B$103),IF('Comparison - Category'!C91="Rural",SUM(Q91:T91,Control!$B$104),O91/$F91*$H91)) -> 1766.236203 | X91: 547.2591415 | Y91: 6.423981317 | Z91: 923.1042195 | AA91: 0 | AB91: 124.633898 | AC91: 1601.42124 | AE91: 0.0367630058 | AF91: 0.000393392496 | AG91: 0.05485678391 | AH91: 0 | AI91: =IF(OR('Comparison - Category'!C91="Residential",'Comparison - Category'!C91="Rural"),U91,N91/$F91*100) -> 0.006907743614 | AJ91: 0.09892092582
A92: =Control!A78 -> Porirua city | B92: =Control!B78 -> Porirua city | C92: =Control!C78 -> Residential | D92: =Control!D78 -> Porirua cityResidential | F92: 12059685950 | G92: 17908 | H92: 673424.5002 | J92: 4433503.046 | K92: 47441.89956 | L92: =INDEX('Public transport'!$I$23:$I$49,MATCH($D92,'Public transport'!$D$23:$D$49,0),) -> 5425656.407 | M92: =INDEX(Stadium!$G$23:$G$49,MATCH($D92,Stadium!$D$23:$D$49,0),) -> 0 | N92: =INDEX(WRS!$K$23:$K$49,MATCH($D92,WRS!$D$23:$D$49,0),) -> 250712 | O92: 10157313.35 | Q92: 247.5710881 | R92: 2.64920145 | S92: 302.9738892 | T92: 0 | U92: =IF('Comparison - Category'!C92="Residential",Control!$B$103,IF('Comparison - Category'!C92="Rural",Control!$B$104,N92/$F92*$H92)) -> 14 | V92: =IF('Comparison - Category'!C92="Residential",SUM(Q92:T92,Control!$B$103),IF('Comparison - Category'!C92="Rural",SUM(Q92:T92,Control!$B$104),O92/$F92*$H92)) -> 567.1941787 | X92: 196.9408617 | Y92: 2.311783067 | Z92: 303.8970108 | AA92: 0 | AB92: 14 | AC92: 517.1496556 | AE92: 0.0367630058 | AF92: 0.000393392496 | AG92: 0.04499003067 | AH92: 0 | AI92: =IF(OR('Comparison - Category'!C92="Residential",'Comparison - Category'!C92="Rural"),U92,N92/$F92*100) -> 14 | AJ92: 0.08422535541
A93: =Control!A79 -> Porirua city | B93: =Control!B79 -> Porirua city | C93: =Control!C79 -> Rural | D93: =Control!D79 -> Porirua cityRural | F93: 845020700 | G93: 624 | H93: 1354199.84 | J93: 310655.009 | K93: 3324.248023 | L93: =INDEX('Public transport'!$I$23:$I$49,MATCH($D93,'Public transport'!$D$23:$D$49,0),) -> 95867.06656 | M93: =INDEX(Stadium!$G$23:$G$49,MATCH($D93,Stadium!$D$23:$D$49,0),) -> 0 | N93: =INDEX(WRS!$K$23:$K$49,MATCH($D93,WRS!$D$23:$D$49,0),) -> 17472 | O93: 427318.3236 | Q93: 497.8445657 | R93: 5.32732055 | S93: 153.6331195 | T93: 0 | U93: =IF('Comparison - Category'!C93="Residential",Control!$B$103,IF('Comparison - Category'!C93="Rural",Control!$B$104,N93/$F93*$H93)) -> 28 | V93: =IF('Comparison - Category'!C93="Residential",SUM(Q93:T93,Control!$B$103),IF('Comparison - Category'!C93="Rural",SUM(Q93:T93,Control!$B$104),O93/$F93*$H93)) -> 684.8050057 | X93: 401.2302302 | Y93: 4.70982631 | Z93: 157.0605176 | AA93: 0 | AB93: 28 | AC93: 591.0005741 | AE93: 0.0367630058 | AF93: 0.000393392496 | AG93: 0.01134493706 | AH93: 0 | AI93: =IF(OR('Comparison - Category'!C93="Residential",'Comparison - Category'!C93="Rural"),U93,N93/$F93*100) -> 28 | AJ93: 0.05056897702
A94: =Control!A80 -> Kāpiti Coast district | B94: =Control!B80 -> Kāpiti Coast district | C94: =Control!C80 -> Business | D94: =Control!D80 -> Kāpiti Coast districtBusiness | F94: 1770722000 | G94: 1317 | H94: 1344511.769 | J94: 595797.8714 | K94: 116433.366 | L94: =INDEX('Public transport'!$I$23:$I$49,MATCH($D94,'Public transport'!$D$23:$D$49,0),) -> 700379.4714 | M94: =INDEX(Stadium!$G$23:$G$49,MATCH($D94,Stadium!$D$23:$D$49,0),) -> 0 | N94: =INDEX(WRS!$K$23:$K$49,MATCH($D94,WRS!$D$23:$D$49,0),) -> 111950.012 | O94: 1524560.721 | Q94: 452.3901833 | R94: 88.40802276 | S94: 531.7991431 | T94: 0 | U94: =IF('Comparison - Category'!C94="Residential",Control!$B$103,IF('Comparison - Category'!C94="Rural",Control!$B$104,N94/$F94*$H94)) -> 85.00380563 | V94: =IF('Comparison - Category'!C94="Residential",SUM(Q94:T94,Control!$B$103),IF('Comparison - Category'!C94="Rural",SUM(Q94:T94,Control!$B$104),O94/$F94*$H94)) -> 1157.601155 | X94: 390.3989075 | Y94: 105.8575025 | Z94: 393.788953 | AA94: 0 | AB94: 88.91023271 | AC94: 978.9555957 | AE94: 0.03364717169 | AF94: 0.00657547407 | AG94: 0.03955332748 | AH94: 0 | AI94: =IF(OR('Comparison - Category'!C94="Residential",'Comparison - Category'!C94="Rural"),U94,N94/$F94*100) -> 0.006322280517 | AJ94: 0.08609825375
A95: =Control!A81 -> Kāpiti Coast district | B95: =Control!B81 -> Kāpiti Coast district excl Ōtaki | C95: =Control!C81 -> Residential | D95: =Control!D81 -> Kāpiti Coast district excl Ōtaki Residential | F95: 13489357800 | G95: 18189 | H95: 741621.7384 | J95: 4538787.378 | K95: 886989.2244 | L95: =INDEX('Public transport'!$I$23:$I$49,MATCH($D95,'Public transport'!$D$23:$D$49,0),) -> 4117333.349 | M95: =INDEX(Stadium!$G$23:$G$49,MATCH($D95,Stadium!$D$23:$D$49,0),) -> 0 | N95: =INDEX(WRS!$K$23:$K$49,MATCH($D95,WRS!$D$23:$D$49,0),) -> 252602 | O95: 9795711.952 | Q95: 249.5347396 | R95: 48.76514511 | S95: 226.3639205 | T95: 0 | U95: =IF('Comparison - Category'!C95="Residential",Control!$B$103,IF('Comparison - Category'!C95="Rural",Control!$B$104,N95/$F95*$H95)) -> 14 | V95: =IF('Comparison - Category'!C95="Residential",SUM(Q95:T95,Control!$B$103),IF('Comparison - Category'!C95="Rural",SUM(Q95:T95,Control!$B$104),O95/$F95*$H95)) -> 538.6638052 | X95: 202.4522388 | Y95: 54.89535948 | Z95: 175.119978 | AA95: 0 | AB95: 14 | AC95: 446.4675762 | AE95: 0.03364717169 | AF95: 0.00657547407 | AG95: 0.03052282703 | AH95: 0 | AI95: =IF(OR('Comparison - Category'!C95="Residential",'Comparison - Category'!C95="Rural"),U95,N95/$F95*100) -> 14 | AJ95: 0.07261807491
A96: =Control!A82 -> Kāpiti Coast district | B96: =Control!B82 -> Ōtaki rating area | C96: =Control!C82 -> Residential | D96: =Control!D82 -> Ōtaki rating areaResidential | F96: 1638768400 | G96: 3193 | H96: =F96/G96 -> 513237.8328 | J96: 551399.2171 | K96: 107756.7912 | L96: =INDEX('Public transport'!$I$23:$I$49,MATCH($D96,'Public transport'!$D$23:$D$49,0),) -> 315212.2096 | M96: =INDEX(Stadium!$G$23:$G$49,MATCH($D96,Stadium!$D$23:$D$49,0),) -> 0 | N96: =INDEX(WRS!$K$23:$K$49,MATCH($D96,WRS!$D$23:$D$49,0),) -> 44114 | O96: =SUM(J96:N96) -> 1018482.218 | Q96: =J96/$F96*$H96 -> 172.6900147 | R96: =K96/$F96*$H96 -> 33.74782061 | S96: =L96/$F96*$H96 -> 98.71976499 | T96: =M96/$F96*$H96 -> 0 | U96: =IF('Comparison - Category'!C96="Residential",Control!$B$103,IF('Comparison - Category'!C96="Rural",Control!$B$104,N96/$F96*$H96)) -> 14 | V96: =IF('Comparison - Category'!C96="Residential",SUM(Q96:T96,Control!$B$103),IF('Comparison - Category'!C96="Rural",SUM(Q96:T96,Control!$B$104),O96/$F96*$H96)) -> 319.1576004 | X96: 124.5783942 | Y96: 33.77969922 | Z96: 85.38380643 | AA96: 0 | AB96: 14 | AC96: 257.7418998 | AE96: =J96/$F96*100 -> 0.03364717169 | AF96: =K96/$F96*100 -> 0.00657547407 | AG96: =L96/$F96*100 -> 0.01923470148 | AH96: =M96/$F96*100 -> 0 | AI96: =IF(OR('Comparison - Category'!C96="Residential",'Comparison - Category'!C96="Rural"),U96,N96/$F96*100) -> 14 | AJ96: =O96/$F96*100 -> 0.06214924683
A97: =Control!A83 -> Kāpiti Coast district | B97: =Control!B83 -> Kāpiti Coast district | C97: =Control!C83 -> Rural | D97: =Control!D83 -> Kāpiti Coast districtRural | F97: 2605985950 | G97: 2699 | H97: 965537.588 | J97: 876840.5667 | K97: 171355.9304 | L97: =INDEX('Public transport'!$I$23:$I$49,MATCH($D97,'Public transport'!$D$23:$D$49,0),) -> 200658.3697 | M97: =INDEX(Stadium!$G$23:$G$49,MATCH($D97,Stadium!$D$23:$D$49,0),) -> 0 | N97: =INDEX(WRS!$K$23:$K$49,MATCH($D97,WRS!$D$23:$D$49,0),) -> 71344 | O97: 1320198.867 | Q97: 324.8760899 | R97: 63.48867374 | S97: 74.34545004 | T97: 0 | U97: =IF('Comparison - Category'!C97="Residential",Control!$B$103,IF('Comparison - Category'!C97="Rural",Control!$B$104,N97/$F97*$H97)) -> 28 | V97: =IF('Comparison - Category'!C97="Residential",SUM(Q97:T97,Control!$B$103),IF('Comparison - Category'!C97="Rural",SUM(Q97:T97,Control!$B$104),O97/$F97*$H97)) -> 490.7102137 | X97: 264.3123391 | Y97: 71.66885858 | Z97: 58.32118968 | AA97: 0 | AB97: 28 | AC97: 422.3023874 | AE97: 0.03364717169 | AF97: 0.00657547407 | AG97: 0.007699902206 | AH97: 0 | AI97: =IF(OR('Comparison - Category'!C97="Residential",'Comparison - Category'!C97="Rural"),U97,N97/$F97*100) -> 28 | AJ97: 0.05066024499
A98: =Control!A84 -> Masterton district | B98: =Control!B84 -> Masterton district | C98: =Control!C84 -> Business | D98: =Control!D84 -> Masterton districtBusiness | F98: =INDEX(capital_values,MATCH($D98,capital_values_rows,0),MATCH(F$66&" "&year_current,capital_values_header,0)) -> 734108600 | G98: 570 | H98: 1287909.825 | J98: 247499.0208 | K98: 0 | L98: =INDEX('Public transport'!$I$23:$I$49,MATCH($D98,'Public transport'!$D$23:$D$49,0),) -> 186738.4626 | M98: =INDEX(Stadium!$G$23:$G$49,MATCH($D98,Stadium!$D$23:$D$49,0),) -> 0 | N98: =INDEX(WRS!$K$23:$K$49,MATCH($D98,WRS!$D$23:$D$49,0),) -> 46504.89652 | O98: 480742.38 | Q98: 434.2088085 | R98: 0 | S98: 327.6113379 | T98: 0 | U98: =IF('Comparison - Category'!C98="Residential",Control!$B$103,IF('Comparison - Category'!C98="Rural",Control!$B$104,N98/$F98*$H98)) -> 81.58753775 | V98: =IF('Comparison - Category'!C98="Residential",SUM(Q98:T98,Control!$B$103),IF('Comparison - Category'!C98="Rural",SUM(Q98:T98,Control!$B$104),O98/$F98*$H98)) -> 843.4076841 | X98: 281.2310239 | Y98: 0 | Z98: 151.3327163 | AA98: 0 | AB98: 64.04811923 | AC98: 496.6118594 | AE98: 0.03371422441 | AF98: 0 | AG98: 0.02543744381 | AH98: 0 | AI98: =IF(OR('Comparison - Category'!C98="Residential",'Comparison - Category'!C98="Rural"),U98,N98/$F98*100) -> 0.006334879678 | AJ98: 0.0654865479
A99: =Control!A85 -> Masterton district | B99: =Control!B85 -> Masterton district | C99: =Control!C85 -> Residential | D99: =Control!D85 -> Masterton districtResidential | F99: =INDEX(capital_values,MATCH($D99,capital_values_rows,0),MATCH(F$66&" "&year_current,capital_values_header,0)) -> 3940904400 | G99: 8310 | H99: 474236.3899 | J99: 1328645.353 | K99: 0 | L99: =INDEX('Public transport'!$I$23:$I$49,MATCH($D99,'Public transport'!$D$23:$D$49,0),) -> 556724.5915 | M99: =INDEX(Stadium!$G$23:$G$49,MATCH($D99,Stadium!$D$23:$D$49,0),) -> 0 | N99: =INDEX(WRS!$K$23:$K$49,MATCH($D99,WRS!$D$23:$D$49,0),) -> 115906 | O99: 2001275.945 | Q99: 159.8851207 | R99: 0 | S99: 66.99453568 | T99: 0 | U99: =IF('Comparison - Category'!C99="Residential",Control!$B$103,IF('Comparison - Category'!C99="Rural",Control!$B$104,N99/$F99*$H99)) -> 14 | V99: =IF('Comparison - Category'!C99="Residential",SUM(Q99:T99,Control!$B$103),IF('Comparison - Category'!C99="Rural",SUM(Q99:T99,Control!$B$104),O99/$F99*$H99)) -> 240.8796564 | X99: 118.0711499 | Y99: 0 | Z99: 42.32806998 | AA99: 0 | AB99: 14 | AC99: 174.3992199 | AE99: 0.03371422441 | AF99: 0 | AG99: 0.01412682306 | AH99: 0 | AI99: =IF(OR('Comparison - Category'!C99="Residential",'Comparison - Category'!C99="Rural"),U99,N99/$F99*100) -> 14 | AJ99: 0.05078214901
A100: =Control!A86 -> Masterton district | B100: =Control!B86 -> Masterton district | C100: =Control!C86 -> Rural | D100: =Control!D86 -> Masterton districtRural | F100: 3925894655 | G100: 3936 | H100: 997432.5851 | J100: 1323584.934 | K100: 0 | L100: =INDEX('Public transport'!$I$23:$I$49,MATCH($D100,'Public transport'!$D$23:$D$49,0),) -> 253783.4832 | M100: =INDEX(Stadium!$G$23:$G$49,MATCH($D100,Stadium!$D$23:$D$49,0),) -> 0 | N100: =INDEX(WRS!$K$23:$K$49,MATCH($D100,WRS!$D$23:$D$49,0),) -> 98056 | O100: 1675424.417 | Q100: 336.2766601 | R100: 0 | S100: 64.47751097 | T100: 0 | U100: =IF('Comparison - Category'!C100="Residential",Control!$B$103,IF('Comparison - Category'!C100="Rural",Control!$B$104,N100/$F100*$H100)) -> 28 | V100: =IF('Comparison - Category'!C100="Residential",SUM(Q100:T100,Control!$B$103),IF('Comparison - Category'!C100="Rural",SUM(Q100:T100,Control!$B$104),O100/$F100*$H100)) -> 428.7541711 | X100: 256.9838515 | Y100: 0 | Z100: 36.28503543 | AA100: 0 | AB100: 28 | AC100: 321.2688869 | AE100: 0.03371422441 | AF100: 0 | AG100: 0.00646434776 | AH100: 0 | AI100: =IF(OR('Comparison - Category'!C100="Residential",'Comparison - Category'!C100="Rural"),U100,N100/$F100*100) -> 28 | AJ100: 0.0426762449
A101: =Control!A87 -> Carterton district | B101: =Control!B87 -> Carterton district | C101: =Control!C87 -> Business | D101: =Control!D87 -> Carterton districtBusiness | F101: 126728500 | G101: 228 | H101: 555826.7544 | J101: 43048.97066 | K101: 872.0276571 | L101: =INDEX('Public transport'!$I$23:$I$49,MATCH($D101,'Public transport'!$D$23:$D$49,0),) -> 35335.97979 | M101: =INDEX(Stadium!$G$23:$G$49,MATCH($D101,Stadium!$D$23:$D$49,0),) -> 0 | N101: =INDEX(WRS!$K$23:$K$49,MATCH($D101,WRS!$D$23:$D$49,0),) -> 8088.872105 | O101: 87345.85021 | Q101: 188.8112748 | R101: 3.824682706 | S101: 154.9823675 | T101: 0 | U101: =IF('Comparison - Category'!C101="Residential",Control!$B$103,IF('Comparison - Category'!C101="Rural",Control!$B$104,N101/$F101*$H101)) -> 35.47750923 | V101: =IF('Comparison - Category'!C101="Residential",SUM(Q101:T101,Control!$B$103),IF('Comparison - Category'!C101="Rural",SUM(Q101:T101,Control!$B$104),O101/$F101*$H101)) -> 383.0958343 | X101: 153.7271333 | Y101: 3.841324689 | Z101: 104.5584062 | AA101: 0 | AB101: 35.01012664 | AC101: 297.1369908 | AE101: 0.03396944701 | AF101: 0.0006881069823 | AG101: 0.02788321474 | AH101: 0 | AI101: =IF(OR('Comparison - Category'!C101="Residential",'Comparison - Category'!C101="Rural"),U101,N101/$F101*100) -> 0.00638283583 | AJ101: 0.06892360456
A102: =Control!A88 -> Carterton district | B102: =Control!B88 -> Carterton district | C102: =Control!C88 -> Residential | D102: =Control!D88 -> Carterton districtResidential | F102: 1269163500 | G102: 2550 | H102: 497711.1765 | J102: 431127.8227 | K102: 8733.20266 | L102: =INDEX('Public transport'!$I$23:$I$49,MATCH($D102,'Public transport'!$D$23:$D$49,0),) -> 209246.6131 | M102: =INDEX(Stadium!$G$23:$G$49,MATCH($D102,Stadium!$D$23:$D$49,0),) -> 0 | N102: =INDEX(WRS!$K$23:$K$49,MATCH($D102,WRS!$D$23:$D$49,0),) -> 34804 | O102: 683911.6384 | Q102: 169.0697344 | R102: 3.424785357 | S102: 82.05749535 | T102: 0 | U102: =IF('Comparison - Category'!C102="Residential",Control!$B$103,IF('Comparison - Category'!C102="Rural",Control!$B$104,N102/$F102*$H102)) -> 14 | V102: =IF('Comparison - Category'!C102="Residential",SUM(Q102:T102,Control!$B$103),IF('Comparison - Category'!C102="Rural",SUM(Q102:T102,Control!$B$104),O102/$F102*$H102)) -> 268.5520151 | X102: 128.1721065 | Y102: 3.202757162 | Z102: 64.15577141 | AA102: 0 | AB102: 14 | AC102: 209.530635 | AE102: 0.03396944701 | AF102: 0.0006881069823 | AG102: 0.0164869706 | AH102: 0 | AI102: =IF(OR('Comparison - Category'!C102="Residential",'Comparison - Category'!C102="Rural"),U102,N102/$F102*100) -> 14 | AJ102: 0.05388680327
A103: =Control!A89 -> Carterton district | B103: =Control!B89 -> Carterton district | C103: =Control!C89 -> Rural | D103: =Control!D89 -> Carterton districtRural | F103: 2224085800 | G103: 2072 | H103: 1073400.483 | J103: 755509.6474 | K103: 15304.08968 | L103: =INDEX('Public transport'!$I$23:$I$49,MATCH($D103,'Public transport'!$D$23:$D$49,0),) -> 157074.8119 | M103: =INDEX(Stadium!$G$23:$G$49,MATCH($D103,Stadium!$D$23:$D$49,0),) -> 0 | N103: =INDEX(WRS!$K$23:$K$49,MATCH($D103,WRS!$D$23:$D$49,0),) -> 50372 | O103: 978260.5489 | Q103: 364.6282082 | R103: 7.386143669 | S103: 75.80830689 | T103: 0 | U103: =IF('Comparison - Category'!C103="Residential",Control!$B$103,IF('Comparison - Category'!C103="Rural",Control!$B$104,N103/$F103*$H103)) -> 28 | V103: =IF('Comparison - Category'!C103="Residential",SUM(Q103:T103,Control!$B$103),IF('Comparison - Category'!C103="Rural",SUM(Q103:T103,Control!$B$104),O103/$F103*$H103)) -> 475.8226588 | X103: 305.497967 | Y103: 7.63376548 | Z103: 53.71148705 | AA103: 0 | AB103: 28 | AC103: 394.8432196 | AE103: 0.03396944701 | AF103: 0.0006881069823 | AG103: 0.007062443898 | AH103: 0 | AI103: =IF(OR('Comparison - Category'!C103="Residential",'Comparison - Category'!C103="Rural"),U103,N103/$F103*100) -> 28 | AJ103: 0.04398483858
A104: =Control!A90 -> South Wairarapa district | B104: =Control!B90 -> South Wairarapa district | C104: =Control!C90 -> Business | D104: =Control!D90 -> South Wairarapa districtBusiness | F104: 278760000 | G104: 313 | H104: 890607.0288 | J104: 93068.17412 | K104: 0 | L104: =INDEX('Public transport'!$I$23:$I$49,MATCH($D104,'Public transport'!$D$23:$D$49,0),) -> 80875.33592 | M104: =INDEX(Stadium!$G$23:$G$49,MATCH($D104,Stadium!$D$23:$D$49,0),) -> 0 | N104: =INDEX(WRS!$K$23:$K$49,MATCH($D104,WRS!$D$23:$D$49,0),) -> 17487.44618 | O104: 191430.9562 | Q104: 297.3424093 | R104: 0 | S104: 258.3876547 | T104: 0 | U104: =IF('Comparison - Category'!C104="Residential",Control!$B$103,IF('Comparison - Category'!C104="Rural",Control!$B$104,N104/$F104*$H104)) -> 55.87043508 | V104: =IF('Comparison - Category'!C104="Residential",SUM(Q104:T104,Control!$B$103),IF('Comparison - Category'!C104="Rural",SUM(Q104:T104,Control!$B$104),O104/$F104*$H104)) -> 611.6004991 | X104: 238.9515401 | Y104: 0 | Z104: 187.1676964 | AA104: 0 | AB104: 54.41930453 | AC104: 480.538541 | AE104: 0.03338648806 | AF104: 0 | AG104: 0.02901253261 | AH104: 0 | AI104: =IF(OR('Comparison - Category'!C104="Residential",'Comparison - Category'!C104="Rural"),U104,N104/$F104*100) -> 0.006273298242 | AJ104: 0.06867231892
A105: =Control!A91 -> South Wairarapa district | B105: =Control!B91 -> South Wairarapa district | C105: =Control!C91 -> Residential | D105: =Control!D91 -> South Wairarapa districtResidential | F105: 2066686500 | G105: 3446 | H105: 599734.91 | J105: 689994.0416 | K105: 0 | L105: =INDEX('Public transport'!$I$23:$I$49,MATCH($D105,'Public transport'!$D$23:$D$49,0),) -> 368115.3584 | M105: =INDEX(Stadium!$G$23:$G$49,MATCH($D105,Stadium!$D$23:$D$49,0),) -> 0 | N105: =INDEX(WRS!$K$23:$K$49,MATCH($D105,WRS!$D$23:$D$49,0),) -> 46984 | O105: 1105093.4 | Q105: 200.2304241 | R105: 0 | S105: 106.8239578 | T105: 0 | U105: =IF('Comparison - Category'!C105="Residential",Control!$B$103,IF('Comparison - Category'!C105="Rural",Control!$B$104,N105/$F105*$H105)) -> 14 | V105: =IF('Comparison - Category'!C105="Residential",SUM(Q105:T105,Control!$B$103),IF('Comparison - Category'!C105="Rural",SUM(Q105:T105,Control!$B$104),O105/$F105*$H105)) -> 321.0543819 | X105: 146.5304359 | Y105: 0 | Z105: 88.45681462 | AA105: 0 | AB105: 14 | AC105: 248.9872505 | AE105: 0.03338648806 | AF105: 0 | AG105: 0.01781186254 | AH105: 0 | AI105: =IF(OR('Comparison - Category'!C105="Residential",'Comparison - Category'!C105="Rural"),U105,N105/$F105*100) -> 14 | AJ105: 0.05347174813
A106: =Control!A92 -> South Wairarapa district | B106: =Control!B92 -> South Wairarapa district | C106: =Control!C92 -> Rural | D106: =Control!D92 -> South Wairarapa districtRural | F106: 3867990500 | G106: 3251 | H106: 1189784.835 | J106: 1291386.186 | K106: 0 | L106: =INDEX('Public transport'!$I$23:$I$49,MATCH($D106,'Public transport'!$D$23:$D$49,0),) -> 283098.0982 | M106: =INDEX(Stadium!$G$23:$G$49,MATCH($D106,Stadium!$D$23:$D$49,0),) -> 0 | N106: =INDEX(WRS!$K$23:$K$49,MATCH($D106,WRS!$D$23:$D$49,0),) -> 82740 | O106: 1657224.285 | Q106: 397.227372 | R106: 0 | S106: 87.0803132 | T106: 0 | U106: =IF('Comparison - Category'!C106="Residential",Control!$B$103,IF('Comparison - Category'!C106="Rural",Control!$B$104,N106/$F106*$H106)) -> 28 | V106: =IF('Comparison - Category'!C106="Residential",SUM(Q106:T106,Control!$B$103),IF('Comparison - Category'!C106="Rural",SUM(Q106:T106,Control!$B$104),O106/$F106*$H106)) -> 512.3076852 | X106: 335.1549244 | Y106: 0 | Z106: 67.04657599 | AA106: 0 | AB106: 28 | AC106: 430.2015004 | AE106: 0.03338648806 | AF106: 0 | AG106: 0.00731899673 | AH106: 0 | AI106: =IF(OR('Comparison - Category'!C106="Residential",'Comparison - Category'!C106="Rural"),U106,N106/$F106*100) -> 28 | AJ106: 0.04284458001
A107: =Control!A93 -> Tararua district | B107: =Control!B93 -> Tararua district | C107: =Control!C93 -> Rural | D107: =Control!D93 -> Tararua districtRural | F107: 10673500 | G107: 10 | H107: 1067350 | J107: 5367.032794 | K107: 0 | L107: =INDEX('Public transport'!$I$23:$I$49,MATCH($D107,'Public transport'!$D$23:$D$49,0),) -> 0 | M107: =INDEX(Stadium!$G$23:$G$49,MATCH($D107,Stadium!$D$23:$D$49,0),) -> 0 | N107: =INDEX(WRS!$K$23:$K$49,MATCH($D107,WRS!$D$23:$D$49,0),) -> 252 | O107: 5619.032794 | Q107: 536.7032794 | R107: 0 | S107: 0 | T107: 0 | U107: =IF('Comparison - Category'!C107="Residential",Control!$B$103,IF('Comparison - Category'!C107="Rural",Control!$B$104,N107/$F107*$H107)) -> 28 | V107: =IF('Comparison - Category'!C107="Residential",SUM(Q107:T107,Control!$B$103),IF('Comparison - Category'!C107="Rural",SUM(Q107:T107,Control!$B$104),O107/$F107*$H107)) -> 564.7032794 | X107: 392.7413879 | Y107: 0 | Z107: 0 | AA107: 0 | AB107: 28 | AC107: 420.7413879 | AE107: 0.05028371944 | AF107: 0 | AG107: 0 | AH107: 0 | AI107: =IF(OR('Comparison - Category'!C107="Residential",'Comparison - Category'!C107="Rural"),U107,N107/$F107*100) -> 28 | AJ107: 0.05264470693
A108: Region wide | D108: =Control!D94 -> Region wide | F108: =SUM(F81:F107) -> 165824077455 | G108: =SUM(G81:G107) -> 204888 | H108: 809340.1149 | J108: =SUM(J81:J107) -> 62657213.28 | K108: =SUM(K81:K107) -> 6802436.468 | L108: 81810330.83 | M108: 0 | N108: 4690801.632 | O108: 155960782.2 | Q108: 305.8120206 | R108: 33.20075587 | S108: 399.2929348 | T108: 0 | U108: =N108/$F108*$H108 -> 22.89446738 | V108: =IF('Comparison - Category'!C108="Residential",SUM(Q108:T108,Control!$B$103),IF('Comparison - Category'!C108="Rural",SUM(Q108:T108,Control!$B$104),O108/$F108*$H108)) -> 761.2001787 | X108: 252.7307689 | Y108: 34.85130346 | Z108: 354.0241136 | AA108: 0 | AB108: 23.29214468 | AC108: 664.8983306 | AE108: 0.03778535315 | AF108: 0.004102200701 | AG108: 0.04933561645 | AH108: 0 | AI108: =IF(OR(C108="Residential",C108="Rural"),U108,N108/$F108*100) -> 0.002828781986 | AJ108: 0.09405195229
A110: By category
A111: Region Wide | C111: =C81 -> Regional CBD | D111: =A111&C111 -> Region WideRegional CBD | F111: =SUMIF($C$81:$C$107,$C111,F$81:F$107) -> 9782829150 | G111: 3283 | H111: =F111/G111 -> 2979844.395 | J111: =SUMIF($C$81:$C$107,$C111,J$81:J$107) -> 5966760.815 | K111: 7569.052266 | L111: 27161289.5 | M111: 0 | N111: 733375.593 | O111: 33868994.96 | Q111: =J111/$F111*$H111 -> 1817.472073 | R111: 2.30552917 | S111: 8273.31389 | T111: 0 | U111: 223.3858035 | V111: =IF('Comparison - Category'!C111="Residential",SUM(Q111:T111,Control!$B$103),IF('Comparison - Category'!C111="Rural",SUM(Q111:T111,Control!$B$104),O111/$F111*$H111)) -> 10316.4773
A112: Region Wide | C112: =C82 -> Business | D112: Region WideBusiness | F112: 15224519450 | G112: 8230 | H112: 1849880.857 | J112: 6053417.442 | K112: 986718.6815 | L112: 7344105.852 | M112: 0 | N112: 1078550.039 | O112: 15462792.02 | Q112: 735.5306734 | R112: 119.8929139 | S112: 892.3579407 | T112: 0 | U112: 131.0510376 | V112: =IF('Comparison - Category'!C112="Residential",SUM(Q112:T112,Control!$B$103),IF('Comparison - Category'!C112="Rural",SUM(Q112:T112,Control!$B$104),O112/$F112*$H112)) -> 1878.832566
A113: Region Wide | C113: =C83 -> Residential | D113: Region WideResidential | F113: 124956896650 | G113: 178177 | H113: 701307.6696 | J113: 45182077.48 | K113: 5446992.153 | L113: 46061477.64 | M113: 0 | N113: 2487100 | O113: 99177647.28 | Q113: 253.5797408 | R113: 30.57068058 | S113: 258.5152833 | T113: 0 | U113: 13.95859174 | V113: =IF('Comparison - Category'!C113="Residential",SUM(Q113:T113,Control!$B$103),IF('Comparison - Category'!C113="Rural",SUM(Q113:T113,Control!$B$104),O113/$F113*$H113)) -> 556.6657048
A114: Region Wide | C114: =C84 -> Rural | D114: Region WideRural | F114: 15859832205 | G114: 15198 | H114: 1043547.322 | J114: 5454957.537 | K114: 361156.5809 | L114: 1243457.834 | M114: 0 | N114: 391776 | O114: 7451347.952 | Q114: 358.9260124 | R114: 23.76342814 | S114: 81.81720189 | T114: 0 | U114: 25.7781287 | V114: =IF('Comparison - Category'!C114="Residential",SUM(Q114:T114,Control!$B$103),IF('Comparison - Category'!C114="Rural",SUM(Q114:T114,Control!$B$104),O114/$F114*$H114)) -> 492.5066425
A115: Region Wide | C115: Total | D115: Region WideTotal | F115: =SUM(F111:F114) -> 165824077455 | G115: =SUM(G111:G114) -> 204888 | H115: 809340.1149 | J115: =SUM(J111:J114) -> 62657213.28 | K115: =SUM(K111:K114) -> 6802436.468 | L115: 81810330.83 | M115: 0 | N115: 4690801.632 | O115: 155960782.2 | Q115: 305.8120206 | R115: 33.20075587 | S115: 399.2929348 | T115: 0 | U115: 22.89446738 | V115: =IF('Comparison - Category'!C115="Residential",SUM(Q115:T115,Control!$B$103),IF('Comparison - Category'!C115="Rural",SUM(Q115:T115,Control!$B$104),O115/$F115*$H115)) -> 761.2001787
J118: =IF(ABS(J78-SUM(J69:J77))>tolerance_dollar,1,0) -> 0 | K118: =IF(ABS(K78-SUM(K69:K77))>tolerance_dollar,1,0) -> 0 | L118: 0 | M118: 0 | N118: =IF(ABS(N78-SUM(N69:N77))>tolerance_dollar,1,0) -> 0 | O118: 0
J119: =J108-SUM(J81:J107) -> 0 | K119: =K108-SUM(K81:K107) -> 0 | L119: =L108-SUM(L81:L107) -> 0 | M119: =M108-SUM(M81:M107) -> 0 | N119: =N108-SUM(N81:N107) -> 0 | O119: 0
F120: =F108-F78 -> 0 | G120: =G108-G78 -> 0 | J120: =IF(ABS(J108-J78)>tolerance_dollar,1,0) -> 0 | K120: =IF(ABS(K108-K78)>tolerance_dollar,1,0) -> 0 | L120: 0 | M120: 0 | N120: =IF(ABS(N108-N78)>tolerance_dollar,1,0) -> 0 | O120: 0 | Q120: =IF(ABS(Q108-Q78)>tolerance_dollar,1,0) -> 0 | R120: 0 | S120: 0 | T120: 0 | U120: 0 | V120: 0
A123: Delta
J124: Rates | Q124: Rates / average CV | X124: Proposal | AE124: Cents/$ OR Regional Strategy Rate $/property
A125: =Control!A$66 -> TA full name | B125: =Control!B$66 -> Rating area | C125: =Control!C$66 -> Category group | D125: =Control!D$66 -> Concatenated name | F125: CV | G125: CV Assessments | H125: Average CV | J125: General rate | K125: River management rate | L125: Public transport rate | M125: Stadium purposes rate | N125: Wellington regional strategy rate | O125: District-Wide rates | Q125: General rate | R125: River management rate | S125: Public transport rate | T125: Stadium purposes rate | U125: Wellington regional strategy rate | V125: District-Wide rates | X125: General rate | Y125: River management rate | Z125: Public transport rate | AA125: Stadium purposes rate | AB125: Wellington regional strategy rate | AC125: District-Wide rates | AE125: General rate | AF125: River management rate | AG125: Public transport rate | AH125: Stadium purposes rate | AI125: Wellington regional strategy rate | AJ125: District-Wide rates
A127: By TA
A128: =Control!A42 -> Wellington city | C128: =Control!B42 -> District wide | D128: =Control!C42 -> Wellington cityDistrict wide | F128: =F69-F10 -> 104747000 | G128: 88 | H128: 284.8828255 | J128: =J69-J10 -> 5827389.906 | K128: =K69-K10 -> -10844.99208 | L128: =L69-L10 -> 3972595.957 | M128: 0 | N128: -206002.2379 | O128: 9583138.633 | Q128: =Q69-Q10 -> 73.8089895 | R128: -0.1389523413 | S128: 49.88637805 | T128: 0 | U128: -2.654245425 | V128: 120.9021698
A129: =Control!A43 -> Hutt city | C129: =Control!B43 -> District wide | D129: =Control!C43 -> Hutt cityDistrict wide | F129: 178725000 | G129: 50 | H129: 3602.264541 | J129: 2262992.257 | K129: =K70-K11 -> -308374.1659 | L129: 161316.4065 | M129: 0 | N129: -62019.06354 | O129: 2053915.434 | Q129: 56.7290567 | R129: -7.914337375 | S129: 3.661192814 | T129: 0 | U129: -1.591868012 | V129: 50.88404413
A130: =Control!A44 -> Upper Hutt city | C130: =Control!B44 -> District wide | D130: =Control!C44 -> Upper Hutt cityDistrict wide | F130: 85536500 | G130: 13 | H130: 4479.579166 | J130: 965934.645 | K130: =K71-K12 -> 212811.4125 | L130: 22433.34206 | M130: 0 | N130: -14420.20387 | O130: 1186759.196 | Q130: 56.09941724 | R130: 12.35507833 | S130: 1.084610457 | T130: 0 | U130: -0.8557889719 | V130: 68.68331706
A131: =Control!A45 -> Porirua city | C131: =Control!B45 -> District wide | D131: =Control!C45 -> Porirua cityDistrict wide | F131: 285842600 | G131: 262 | H131: 4797.90983 | J131: 1076338.331 | K131: =K72-K13 -> 10888.66531 | L131: -137640.9428 | M131: 0 | N131: -12818.50443 | O131: 936767.5488 | Q131: 52.68149671 | R131: 0.5307583378 | S131: -11.69782752 | T131: 0 | U131: -0.9330236821 | V131: 40.58140385
A132: =Control!A46 -> Kāpiti Coast district | C132: =Control!B46 -> District wide | D132: =Control!C46 -> Kāpiti Coast districtDistrict wide | F132: 4423973550 | G132: 164 | H132: 170326.8173 | J132: 1392301.322 | K132: =K73-K14 -> 24291.26766 | L132: 591220.8218 | M132: 0 | N132: -25868.65138 | O132: 1981944.76 | Q132: 53.49622885 | R132: 0.6344487161 | S132: 22.06470634 | T132: 0 | U132: -1.147981798 | V132: 75.04740211
A133: =Control!A47 -> Masterton district | C133: =Control!B47 -> District wide | D133: =Control!C47 -> Masterton districtDistrict wide | F133: 2513199155 | G133: 66 | H133: 193639.6934 | J133: 750124.7234 | K133: =K74-K15 -> 0 | L133: 245839.3288 | M133: 0 | N133: 4117.197326 | O133: 1000081.25 | Q133: 57.66209102 | R133: 0 | S133: 18.87872124 | T133: 0 | U133: 0.2177130655 | V133: 76.75852533
A134: =Control!A48 -> Carterton district | C134: =Control!B48 -> District wide | D134: =Control!C48 -> Carterton districtDistrict wide | F134: 830616100 | G134: 2 | H134: 171023.7883 | J134: 261567.6969 | K134: =K75-K16 -> 488.42 | L134: 57634.03452 | M134: 0 | N134: -113.3375886 | O134: 319576.8138 | Q134: 53.84913566 | R134: 0.09862791161 | S134: 11.85404344 | T134: 0 | U134: -0.03131133038 | V134: 65.77049568
A135: =Control!A49 -> South Wairarapa district | C135: =Control!B49 -> District wide | D135: =Control!C49 -> South Wairarapa districtDistrict wide | F135: 1546953100 | G135: 127 | H135: 208395.2365 | J135: 487063.792 | K135: =K76-K17 -> 0 | L135: 99365.53264 | M135: 0 | N135: 23.08987578 | O135: 586452.4145 | Q135: 65.30307433 | R135: 0 | S135: 12.50941417 | T135: 0 | U135: -0.3841255738 | V135: 77.42836293
A136: =Control!A50 -> Tararua district | C136: =Control!B50 -> District wide | D136: =Control!C50 -> Tararua districtDistrict wide | F136: 0 | G136: 0 | H136: 0 | J136: 1635.601687 | K136: =K77-K18 -> 0 | L136: 0 | M136: 0 | N136: 0 | O136: 1635.601687 | Q136: 163.5601687 | R136: 0 | S136: 0 | T136: 0 | U136: 0 | V136: 163.5601687
A137: Region wide | D137: =Control!C51 -> Region wide | F137: 9969593005 | G137: 772 | H137: 45781.7243 | J137: 13025348.27 | K137: =K78-K19 -> -70739.39249 | L137: 5012764.481 | M137: 0 | N137: -317101.7115 | O137: 17650271.65 | Q137: 62.65682942 | R137: -0.4721353349 | S137: 23.04821932 | T137: 0 | U137: -1.64012738 | V137: 83.59278603
A139: By TA & Category
A140: =Control!A67 -> Wellington city | B140: =Control!B67 -> Wellington city | C140: =Control!C67 -> Regional CBD | D140: =Control!D67 -> Wellington cityRegional CBD | F140: =F81-F22 -> -12065000 | G140: -41 | H140: 33125.33701 | J140: =J81-J22 -> 1173080.631 | K140: =K81-K22 -> -1465.927258 | L140: =L81-L22 -> 1386362.118 | M140: 0 | N140: -140858.6238 | O140: 2417118.198 | Q140: =Q81-Q22 -> 375.3300197 | R140: -0.4125753796 | S140: 519.1239434 | T140: 0 | U140: -39.62088022 | V140: 854.4205075 | W140: =V140/V22 -> 0.09029965964 | X140: 511.8914984 | Y140: 0.6680005987 | Z140: -137.3898557 | AA140: 0 | AB140: -32.0964624 | AC140: 343.0731809 | AD140: =AC140/AC22 -> 0.03831347313 | AE140: =AE81-AE22 -> 0.01205157829 | AF140: -1.487093632e-05 | AG140: 0.01449591656 | AH140: 0 | AI140: -0.00142884815 | AJ140: 0.02510377577
A141: =Control!A68 -> Wellington city | B141: =Control!B68 -> Wellington city | C141: =Control!C68 -> Business | D141: =Control!D68 -> Wellington cityBusiness | F141: -7203000 | G141: 2 | H141: -6409.884084 | J141: 425517.0599 | K141: =K82-K23 -> -697.6148146 | L141: 315982.4784 | M141: 0 | N141: -67033.61413 | O141: 673768.3093 | Q141: 223.9292058 | R141: -0.3711190587 | S141: 165.9826176 | T141: 0 | U141: -35.66233926 | V141: 353.8783651 | W141: =V141/V23 -> 0.1673008724 | X141: 69.99192035 | Y141: 0.4572850348 | Z141: 51.59565624 | AA141: 0 | AB141: -39.08477141 | AC141: 82.96009021 | AD141: =AC141/AC23 -> 0.04341329135 | AE141: 0.009215912812 | AF141: -1.487093632e-05 | AG141: 0.006861690166 | AH141: 0 | AI141: -0.00142884815 | AJ141: 0.01463388389
A142: =Control!A69 -> Wellington city | B142: =Control!B69 -> Wellington city | C142: =Control!C69 -> Residential | D142: =Control!D69 -> Wellington cityResidential | F142: 120240000 | G142: 119 | H142: 339.9776096 | J142: 4169936.837 | K142: =K83-K24 -> -8563.75094 | L142: 2262392.717 | M142: 0 | N142: 1666 | O142: 6425431.802 | Q142: 57.04489042 | R142: -0.1191441345 | S142: 30.73664805 | T142: 0 | U142: 0 | V142: 87.66239434 | W142: 0.1748788844 | X142: 0.8889420194 | Y142: 0.2459613212 | Z142: 39.04284602 | AA142: 0 | AB142: 0 | AC142: 40.17774936 | AD142: 0.08918346881 | AE142: 0.007089163701 | AF142: -1.487093632e-05 | AG142: 0.003812852963 | AH142: 0 | AI142: 0 | AJ142: 0.01088640781
A143: =Control!A70 -> Wellington city | B143: =Control!B70 -> Wellington city | C143: =Control!C70 -> Rural | D143: =Control!D70 -> Wellington cityRural | F143: 3775000 | G143: 8 | H143: -5463.41753 | J143: 58855.37886 | K143: =K84-K25 -> -117.6990678 | L143: 7858.643815 | M143: 0 | N143: 224 | O143: 66820.32361 | Q143: 70.36814247 | R143: -0.1559501273 | S143: 8.96961407 | T143: 0 | U143: 0 | V143: 79.18180642 | W143: 0.1956716965 | X143: -28.20072475 | Y143: 0.2548671797 | Z143: 6.342184786 | AA143: 0 | AB143: 0 | AC143: -21.60367278 | AD143: -0.04981023055 | AE143: 0.007089163701 | AF143: -1.487093632e-05 | AG143: 0.0009271507009 | AH143: 0 | AI143: 0 | AJ143: 0.008016218478
A144: =Control!A71 -> Hutt city | B144: =Control!B71 -> Hutt city | C144: =Control!C71 -> Business | D144: =Control!D71 -> Hutt cityBusiness | F144: -1565000 | G144: -3 | H144: 1929.571579 | J144: 372074.2795 | K144: =K85-K26 -> -57186.54002 | L144: 131622.8131 | M144: 0 | N144: -62761.06354 | O144: 383749.4891 | Q144: 158.6470705 | R144: -23.83942621 | S144: 57.17192321 | T144: 0 | U144: -26.40793675 | V144: 165.5716308 | W144: 0.07638424714 | X144: 44.29763699 | Y144: 25.77806037 | Z144: 64.27953629 | AA144: 0 | AB144: -5.24925897 | AC144: 129.1059747 | AD144: 0.06457539064 | AE144: 0.007749619336 | AF144: -0.001184260512 | AG144: 0.00275463786 | AH144: 0 | AI144: -0.001302772693 | AJ144: 0.008017223991
A145: =Control!A72 -> Hutt city | B145: =Control!B72 -> Hutt city | C145: =Control!C72 -> Residential | D145: =Control!D72 -> Hutt cityResidential | F145: 181180000 | G145: 53 | H145: 4013.300952 | J145: 1858706.954 | K145: =K86-K27 -> -246078.8191 | L145: 30170.19035 | M145: 0 | N145: 742 | O145: 1643540.325 | Q145: 50.15344698 | R145: -6.8233649 | S145: 0.4219257127 | T145: 0 | U145: 0 | V145: 43.75200779 | W145: 0.07508017463 | X145: 11.41944695 | Y145: 6.71244975 | Z145: 1.971379141 | AA145: 0 | AB145: 0 | AC145: 20.10327584 | AD145: 0.03655517693 | AE145: 0.007749619336 | AF145: -0.001184260512 | AG145: -0.000212581842 | AH145: 0 | AI145: 0 | AJ145: 0.006338654171
A146: =Control!A73 -> Hutt city | B146: =Control!B73 -> Hutt city | C146: =Control!C73 -> Rural | D146: =Control!D73 -> Hutt cityRural | F146: -890000 | G146: 0 | H146: -1838.842975 | J146: 32211.02341 | K146: =K87-K28 -> -5108.806692 | L146: -476.5969233 | M146: 0 | N146: 0 | O146: 26625.61979 | Q146: 66.55170126 | R146: -10.55538573 | S146: -0.9847043869 | T146: 0 | U146: 0 | V146: 55.01161114 | W146: 0.1038731566 | X146: 14.85805661 | Y146: 8.767018422 | Z146: 0.1845253921 | AA146: 0 | AB146: 0 | AC146: 23.80960042 | AD146: 0.04809619526 | AE146: 0.007749619336 | AF146: -0.001184260512 | AG146: -9.01077682e-05 | AH146: 0 | AI146: 0 | AJ146: 0.006482102219
A147: =Control!A74 -> Upper Hutt city | B147: =Control!B74 -> Upper Hutt city | C147: =Control!C74 -> Business | D147: =Control!D74 -> Upper Hutt cityBusiness | F147: 19894000 | G147: 0 | H147: 26596.25668 | J147: 122801.4273 | K147: =K88-K29 -> 27139.30976 | L147: 47165.25951 | M147: 0 | N147: -15330.20387 | O147: 181775.7927 | Q147: 164.1730312 | R147: 36.28249968 | S147: 63.05515977 | T147: 0 | U147: -20.49492495 | V147: 243.0157657 | W147: 0.1294460549 | X147: 35.01722692 | Y147: 20.68337583 | Z147: 34.94127675 | AA147: 0 | AB147: -7.6812767 | AC147: 82.9606028 | AD147: 0.04276539892 | AE147: 0.008207950379 | AF147: 0.001801568724 | AG147: 0.002559442287 | AH147: 0 | AI147: -0.001194659546 | AJ147: 0.01137430184
A148: =Control!A75 -> Upper Hutt city | B148: =Control!B75 -> Upper Hutt city | C148: =Control!C75 -> Residential | D148: =Control!D75 -> Upper Hutt cityResidential | F148: 45746500 | G148: -1 | H148: 3067.305439 | J148: 743061.6041 | K148: =K89-K30 -> 163521.7569 | L148: -25127.64778 | M148: 0 | N148: 210 | O148: 881665.7133 | Q148: 49.20476201 | R148: 10.82859425 | S148: -1.645406257 | T148: 0 | U148: 0 | V148: 58.38795 | W148: 0.1148755084 | X148: 15.85141506 | Y148: 6.897515204 | Z148: 6.935443565 | AA148: 0 | AB148: 0 | AC148: 29.68437382 | AD148: 0.06530135325 | AE148: 0.008207950379 | AF148: 0.001801568724 | AG148: -0.0005237146855 | AH148: 0 | AI148: 0 | AJ148: 0.009475886025
A149: =Control!A76 -> Upper Hutt city | B149: =Control!B76 -> Upper Hutt city | C149: =Control!C76 -> Rural | D149: =Control!D76 -> Upper Hutt cityRural | F149: 19896000 | G149: 14 | H149: 5923.786451 | J149: 100071.6135 | K149: =K90-K31 -> 22150.3458 | L149: 395.7303355 | M149: 0 | N149: 700 | O149: 123317.6896 | Q149: 73.10896179 | R149: 16.10198431 | S149: -0.7843070847 | T149: 0 | U149: 0 | V149: 88.42663902 | W149: 0.1941932738 | X149: 23.40221108 | Y149: 10.70216473 | Z149: 1.629527387 | AA149: 0 | AB149: 0 | AC149: 35.7339032 | AD149: 0.08050055598 | AE149: 0.008207950379 | AF149: 0.001801568724 | AG149: -0.0001709531615 | AH149: 0 | AI149: 0 | AJ149: 0.009845996881
A150: =Control!A77 -> Porirua city | B150: =Control!B77 -> Porirua city | C150: =Control!C77 -> Business | D150: =Control!D77 -> Porirua cityBusiness | F150: 45124000 | G150: 2 | H150: 51747.19027 | J150: 112787.5 | K150: =K91-K32 -> 1144.614961 | L150: 31045.23966 | M150: 0 | N150: -16556.50443 | O150: 128420.8502 | Q150: 138.8227781 | R150: 1.407928879 | S150: 36.22204296 | T150: 0 | U150: -20.92550483 | V150: 155.5272451 | W150: 0.0965582543 | X150: 34.34749372 | Y150: 1.913271249 | Z150: 34.13740413 | AA150: 0 | AB150: -5.250928123 | AC150: 65.14724098 | AD150: 0.04240600375 | AE150: 0.006909793616 | AF150: 6.946533276e-05 | AG150: 0.0004519205122 | AH150: 0 | AI150: -0.00141312095 | AJ150: 0.006018058511
A151: =Control!A78 -> Porirua city | B151: =Control!B78 -> Porirua city | C151: =Control!C78 -> Residential | D151: =Control!D78 -> Porirua cityResidential | F151: 232297500 | G151: 253 | H151: 3507.284137 | J151: 902647.6754 | K151: =K92-K33 -> 9129.775677 | L151: -164519.537 | M151: 0 | N151: 3542 | O151: 750799.9141 | Q151: 47.5792801 | R151: 0.479157616 | S151: -13.6602623 | T151: 0 | U151: 0 | V151: 34.39817541 | W151: 0.06456162433 | X151: 12.76698933 | Y151: 0.6920987717 | Z151: -2.06258273 | AA151: 0 | AB151: 0 | AC151: 11.39650538 | AD151: 0.02253373087 | AE151: 0.006909793616 | AF151: 6.946533276e-05 | AG151: -0.002274637843 | AH151: 0 | AI151: 0 | AJ151: 0.004693737096
A152: =Control!A79 -> Porirua city | B152: =Control!B79 -> Porirua city | C152: =Control!C79 -> Rural | D152: =Control!D79 -> Porirua cityRural | F152: =F93-F34 -> 8421100 | G152: 7 | H152: -1715.23319 | J152: 60903.15523 | K152: =K93-K34 -> 614.2746715 | L152: -4166.645433 | M152: 0 | N152: 196 | O152: 57546.78447 | Q152: 93.06036187 | R152: 0.9351433187 | S152: -8.49607337 | T152: 0 | U152: 0 | V152: 85.49943182 | W152: 0.1426641692 | X152: 27.920701 | Y152: 1.426822191 | Z152: -0.6312451626 | AA152: 0 | AB152: 0 | AC152: 28.71627802 | AD152: 0.05107074522 | AE152: 0.006909793616 | AF152: 6.946533276e-05 | AG152: -0.0006122419767 | AH152: 0 | AI152: 0 | AJ152: 0.00636963254
A153: =Control!A80 -> Kāpiti Coast district | B153: =Control!B80 -> Kāpiti Coast district | C153: =Control!C80 -> Business | D153: =Control!D80 -> Kāpiti Coast districtBusiness | F153: 300551000 | G153: -12 | H153: 238288.2929 | J153: 91744.80591 | K153: =K94-K35 -> -6227.664724 | L153: 66252.58653 | M153: 0 | N153: -28542.65138 | O153: 123227.0763 | Q153: 73.11774876 | R153: -3.8877114 | S153: 54.65325526 | T153: 0 | U153: -20.70925938 | V153: 103.1740332 | W153: 0.09784842512 | X153: 22.18552993 | Y153: 5.610889562 | Z153: 68.05467839 | AA153: 0 | AB153: -4.332591342 | AC153: 91.51850654 | AD153: 0.1031267542 | AE153: -0.0006381642047 | AF153: -0.001767843183 | AG153: -0.003579538349 | AH153: 0 | AI153: -0.003233931883 | AJ153: -0.009219477619
A154: =Control!A81 -> Kāpiti Coast district | B154: =Control!B81 -> Kāpiti Coast district excl Ōtaki | C154: =Control!C81 -> Residential | D154: =Control!D81 -> Kāpiti Coast district excl Ōtaki Residential | F154: =F95-F36 -> 3054389800 | G154: 177 | H154: 162287.5168 | J154: =J95-J36 -> 961123.5494 | K154: 16366.73891 | L154: 472126.6838 | M154: 0 | N154: 2618 | O154: 1452234.972 | Q154: =Q95-Q36 -> 50.90805577 | R154: 0.4294530436 | S154: 23.98735676 | T154: 0 | U154: 0 | V154: 75.32486557 | W154: 0.1625696852 | X154: 12.69198546 | Y154: 3.232862082 | Z154: 20.89967069 | AA154: 0 | AB154: 0 | AC154: 36.82451824 | AD154: 0.08989415913 | AE154: =AE95-AE36 -> -0.0006381642047 | AF154: -0.001767843183 | AG154: -0.004409782874 | AH154: 0 | AI154: 0 | AJ154: -0.00733882558
A155: =Control!A82 -> Kāpiti Coast district | B155: =Control!B82 -> Ōtaki rating area | C155: =Control!C82 -> Residential | D155: =Control!D82 -> Ōtaki rating areaResidential | F155: =F96-F37 -> 490489500 | G155: 0 | H155: 153613.9994 | J155: 157707.9393 | K155: 11952.23964 | L155: 31790.68145 | M155: 0 | N155: 0 | O155: 201450.8603 | Q155: =Q96-Q37 -> 49.39177553 | R155: 3.743263276 | S155: 9.956367507 | T155: 0 | U155: 0 | V155: 63.09140631 | W155: 0.2463870975 | X155: 8.148845685 | Y155: 2.08158994 | Z155: 1.227678664 | AA155: 0 | AB155: 0 | AC155: 11.45811429 | AD155: 0.04652403025 | AE155: =AE96-AE37 -> -0.0006381642047 | AF155: -0.001767843183 | AG155: -0.00544758853 | AH155: 0 | AI155: 0 | AJ155: -0.009003445913
A156: =Control!A83 -> Kāpiti Coast district | B156: =Control!B83 -> Kāpiti Coast district | C156: =Control!C83 -> Rural | D156: =Control!D83 -> Kāpiti Coast districtRural | F156: =F97-F38 -> 578543250 | G156: -1 | H156: 214632.8843 | J156: 181725.027 | K156: 2199.953835 | L156: 21050.86995 | M156: 0 | N156: 56 | O156: 205031.8508 | Q156: =Q97-Q38 -> 67.42589004 | R156: 0.8383120403 | S156: 7.824153852 | T156: 0 | U156: 0 | V156: 76.08835594 | W156: 0.1835126502 | X156: 17.24275588 | Y156: 4.403815043 | Z156: 6.760513134 | AA156: 0 | AB156: 0 | AC156: 28.40708405 | AD156: 0.07211836194 | AE156: =AE97-AE38 -> -0.0006381642047 | AF156: -0.001767843183 | AG156: -0.001158917809 | AH156: 0 | AI156: 0 | AJ156: -0.00434338179
A157: =Control!A84 -> Masterton district | B157: =Control!B84 -> Masterton district | C157: =Control!C84 -> Business | D157: =Control!D84 -> Masterton districtBusiness | F157: =F98-F39 -> 293326000 | G157: -6 | H157: 522662.2551 | J157: 91856.17133 | K157: 0 | L157: 70500.96686 | M157: 0 | N157: 3123.197326 | O157: 165480.3355 | Q157: =Q98-Q39 -> 163.9955281 | R157: 0 | S157: 125.81013 | T157: 0 | U157: 6.272087765 | V157: 296.0777459 | W157: 0.540949298 | X157: 15.90614164 | Y157: 0 | Z157: 44.2322668 | AA157: 0 | AB157: -3.1402091 | AC157: 56.99819934 | AD157: 0.1296552053 | AE157: =AE98-AE39 -> -0.00159634581 | AF157: 0 | AG157: -0.0009332649618 | AH157: 0 | AI157: -0.003507092122 | AJ157: -0.006036702893
A158: =Control!A85 -> Masterton district | B158: =Control!B85 -> Masterton district | C158: =Control!C85 -> Residential | D158: =Control!D85 -> Masterton districtResidential | F158: =F99-F40 -> 1150730100 | G158: 83 | H158: 135087.9397 | J158: =J99-J40 -> 343418.8977 | K158: 0 | L158: 115489.9552 | M158: 0 | N158: 1106 | O158: 460014.853 | Q158: =Q99-Q40 -> 40.12986906 | R158: 0 | S158: 13.36202854 | T158: 0 | U158: 0 | V158: 53.49189759 | W158: =V158/V40 -> 0.2854610031 | X158: 7.233808039 | Y158: 0 | Z158: 7.552439258 | AA158: 0 | AB158: 0 | AC158: 14.7862473 | AD158: =AC158/AC40 -> 0.09263812995 | AE158: =AE99-AE40 -> -0.00159634581 | AF158: 0 | AG158: -0.001687050514 | AH158: 0 | AI158: 0 | AJ158: -0.004456733082
A159: =Control!A86 -> Masterton district | B159: =Control!B86 -> Masterton district | C159: =Control!C86 -> Rural | D159: =Control!D86 -> Masterton districtRural | F159: 1069143055 | G159: -11 | H159: 273654.6272 | J159: 314849.6544 | K159: 0 | L159: 59848.40668 | M159: 0 | N159: -112 | O159: 374586.061 | Q159: 80.70653601 | R159: 0 | S159: 15.34270567 | T159: 0 | U159: 0 | V159: 96.04924168 | W159: 0.2886919706 | X159: 13.20691639 | Y159: 0 | Z159: 9.650098477 | AA159: 0 | AB159: 0 | AC159: 22.85701487 | AD159: 0.07659552788 | AE159: -0.00159634581 | AF159: 0 | AG159: -0.0003243095566 | AH159: 0 | AI159: 0 | AJ159: -0.002859333216
A160: =Control!A87 -> Carterton district | B160: =Control!B87 -> Carterton district | C160: =Control!C87 -> Business | D160: =Control!D87 -> Carterton districtBusiness | F160: 26167000 | G160: 1 | H160: 112824.5517 | J160: 8146.550848 | K160: -8.389656797 | L160: 5143.855979 | M160: 0 | N160: -1639.337589 | O160: 11642.67958 | Q160: 35.05612147 | R160: -0.05380766301 | S160: 21.97741679 | T160: 0 | U160: -7.378040079 | V160: 49.60169052 | W160: 0.148733318 | X160: 9.818641098 | Y160: 0.08199958541 | Z160: 20.8883909 | AA160: 0 | AB160: -1.43187963 | AC160: 29.35715195 | AD160: 0.1096316738 | AE160: -0.0007380899767 | AF160: -0.0001873943914 | AG160: -0.002140326886 | AH160: 0 | AI160: -0.003291054967 | AJ160: -0.006356866221
A161: =Control!A88 -> Carterton district | B161: =Control!B88 -> Carterton district | C161: =Control!C88 -> Residential | D161: =Control!D88 -> Carterton districtResidential | F161: 371186000 | G161: 21 | H161: 142639.0136 | J161: 119461.9497 | K161: 871.3973128 | L161: 32821.01096 | M161: 0 | N161: 966 | O161: 154120.3579 | Q161: 45.83293209 | R161: 0.3161236933 | S161: 12.29648223 | T161: 0 | U161: 0 | V161: 58.44553801 | W161: 0.2781710437 | X161: 8.928268146 | Y161: 0.08774742114 | Z161: 5.546564216 | AA161: 0 | AB161: 0 | AC161: 14.56257978 | AD161: 0.07469213232 | AE161: -0.0007380899767 | AF161: -0.0001873943914 | AG161: -0.00316002525 | AH161: 0 | AI161: 0 | AJ161: -0.005111476808
A162: =Control!A89 -> Carterton district | B162: =Control!B89 -> Carterton district | C162: =Control!C89 -> Rural | D162: =Control!D89 -> Carterton districtRural | F162: 433263100 | G162: -20 | H162: 217366.6872 | J162: 133959.1963 | K162: -374.587656 | L162: 19669.16759 | M162: 0 | N162: 560 | O162: 153813.7763 | Q162: 67.519962 | R162: -0.1084439687 | S162: 10.12683256 | T162: 0 | U162: 0 | V162: 77.53835059 | W162: 0.1946809076 | X162: 16.93284664 | Y162: 0.09557169566 | Z162: 9.68157711 | AA162: 0 | AB162: 0 | AC162: 26.70999544 | AD162: 0.07255524276 | AE162: -0.0007380899767 | AF162: -0.0001873943914 | AG162: -0.0006103226065 | AH162: 0 | AI162: 0 | AJ162: -0.00205248118
A163: =Control!A90 -> South Wairarapa district | B163: =Control!B90 -> South Wairarapa district | C163: =Control!C90 -> Business | D163: =Control!D90 -> South Wairarapa districtBusiness | F163: 67541400 | G163: -1 | H163: 217936.3281 | J163: 21218.54125 | K163: 0 | L163: 12555.17358 | M163: 0 | N163: -2538.910124 | O163: 31234.8047 | Q163: 68.52192247 | R163: 0 | S163: 40.80751985 | T163: 0 | U163: -7.907769711 | V163: 101.4216726 | W163: 0.1987963187 | X163: 11.6524858 | Y163: 0 | Z163: 25.67937455 | AA163: 0 | AB163: -3.139727862 | AC163: 34.19213248 | AD163: 0.07660447542 | AE163: -0.0006302286834 | AF163: 0 | AG163: -0.003333180471 | AH163: 0 | AI163: -0.003208043034 | AJ163: -0.007171452188
A164: =Control!A91 -> South Wairarapa district | B164: =Control!B91 -> South Wairarapa district | C164: =Control!C91 -> Residential | D164: =Control!D91 -> South Wairarapa districtResidential | F164: 643585400 | G164: 73 | H164: 177825.3043 | J164: 205901.7714 | K164: 0 | L164: 52532.69208 | M164: 0 | N164: 1078 | O164: 259512.4635 | Q164: 56.71062865 | R164: 0 | S164: 13.26253874 | T164: 0 | U164: 0 | V164: 69.97316739 | W164: 0.2786873862 | X164: 9.85078439 | Y164: 0 | Z164: 3.638576975 | AA164: 0 | AB164: 0 | AC164: 13.48936136 | AD164: 0.05728017951 | AE164: -0.0006302286834 | AF164: 0 | AG164: -0.004363839974 | AH164: 0 | AI164: 0 | AJ164: -0.005946443343
A165: =Control!A92 -> South Wairarapa district | B165: =Control!B92 -> South Wairarapa district | C165: =Control!C92 -> Rural | D165: =Control!D92 -> South Wairarapa districtRural | F165: 835826300 | G165: 55 | H165: 241047.6014 | J165: 259943.4793 | K165: 0 | L165: 34277.66699 | M165: 0 | N165: 1484 | O165: 295705.1463 | Q165: 74.49811448 | R165: 0 | S165: 9.226611314 | T165: 0 | U165: 0 | V165: 83.7247258 | W165: 0.1953524375 | X165: 15.70443995 | Y165: 0 | Z165: 8.618051306 | AA165: 0 | AB165: 0 | AC165: 24.32249125 | AD165: 0.05992547213 | AE165: -0.0006302286834 | AF165: 0 | AG165: -0.0008870374692 | AH165: 0 | AI165: 0 | AJ165: -0.002057973033
A166: =Control!A93 -> Tararua district | B166: =Control!B93 -> Tararua district | C166: =Control!C93 -> Rural | D166: =Control!D93 -> Tararua districtRural | F166: 0 | G166: 0 | H166: 0 | J166: 1635.601687 | K166: 0 | L166: 0 | M166: 0 | N166: 0 | O166: 1635.601687 | Q166: 163.5601687 | R166: 0 | S166: 0 | T166: 0 | U166: 0 | V166: 163.5601687 | W166: 0.4077352055 | X166: 157.4389236 | Y166: 0 | Z166: 0 | AA166: 0 | AB166: 0 | AC166: 157.4389236 | AD166: 0.597939423 | AE166: 0.01532394891 | AF166: 0 | AG166: 0 | AH166: 0 | AI166: 0 | AJ166: 0.01532394891
A167: Region wide | D167: =Control!D94 -> Region wide | F167: 9969593005 | G167: 772 | H167: 45781.7243 | J167: 13025348.27 | K167: -70739.39249 | L167: 5012764.481 | M167: 0 | N167: -317101.7115 | O167: 17650271.65 | Q167: 62.65682942 | R167: -0.4721353349 | S167: 23.04821932 | T167: 0 | U167: -1.64012738 | V167: 83.59278603 | X167: 17.26430655 | Y167: 2.686234509 | Z167: 14.84431509 | AA167: 0 | AB167: -1.148541253 | AC167: 33.6463149 | AE167: 0.005940350309 | AF167: -0.0003077948692 | AG167: 6.044376258e-05 | AH167: 0 | AI167: -0.0003844097041 | AJ167: 0.005308589498
A169: By category
A170: Region Wide | C170: =C140 -> Regional CBD | D170: =A170&C170 -> Region WideRegional CBD | F170: =F111-F52 -> -12065000 | G170: -41 | H170: 33125.33701 | J170: =J111-J52 -> 1173080.631 | K170: -1465.927258 | L170: 1386362.118 | M170: 0 | N170: -140858.6238 | O170: 2417118.198 | Q170: =Q111-Q52 -> 375.3300197 | R170: -0.4125753796 | S170: 519.1239434 | T170: 0 | U170: -39.62088022 | V170: 854.4205075 | AE170: driven by % decrease of busi ECV in WCC
A171: Region Wide | C171: =C141 -> Business | D171: Region WideBusiness | F171: 743835400 | G171: -17 | H171: 94007.92707 | J171: 1246146.336 | K171: -35836.28449 | L171: 680268.3736 | M171: 0 | N171: -191279.0877 | O171: 1699299.337 | Q171: 152.6191776 | R171: -4.09823026 | S171: 84.32623482 | T171: 0 | U171: -22.92363527 | V171: 209.9235469
A172: Region Wide | C172: =C142 -> Residential | D172: Region WideResidential | F172: 6289844800 | G172: 778 | H172: 32380.26952 | J172: 9461967.177 | K172: -52800.66163 | L172: 2807676.746 | M172: 0 | N172: 11928 | O172: 12228771.26 | Q172: 52.22510915 | R172: -0.4317084714 | S172: 14.6931598 | T172: 0 | U172: 0.006021542558 | V172: 66.48656048
A173: Region Wide | C173: =C143 -> Rural | D173: Region WideRural | F173: 2947977805 | G173: 52 | H173: 191054.6246 | J173: 1144154.13 | K173: 19363.48089 | L173: 138457.243 | M173: 0 | N173: 3108 | O173: 1305082.854 | Q173: 74.30938711 | R173: 1.196869314 | S173: 8.860606662 | T173: 0 | U173: 0.1166999411 | V173: 84.36686308
A174: Region Wide | C174: Total | D174: Region WideTotal | F174: 9969593005 | G174: 772 | H174: 45781.7243 | J174: 13025348.27 | K174: -70739.39249 | L174: 5012764.481 | M174: 0 | N174: -317101.7115 | O174: 17650271.65 | Q174: 62.65682942 | R174: -0.4721353349 | S174: 23.04821932 | T174: 0 | U174: -1.64012738 | V174: 83.59278603
J177: =IF(ABS(J137-SUM(J128:J136))>tolerance_dollar,1,0) -> 0 | K177: 0 | L177: 0 | M177: 0 | N177: 0 | O177: 0
J178: =IF(ABS(J167-SUM(J140:J166))>tolerance_dollar,1,0) -> 0 | K178: 0 | L178: 0 | M178: 0 | N178: 0 | O178: 0
F179: =F167-F137 -> 0 | G179: =G167-G137 -> 0 | J179: =IF(ABS(J167-J137)>tolerance_dollar,1,0) -> 0 | K179: 0 | L179: 0 | M179: 0 | N179: 0 | O179: 0 | Q179: =IF(ABS(Q167-Q137)>tolerance_dollar,1,0) -> 0 | R179: 0 | S179: 0 | T179: 0 | U179: 0 | V179: 0

Sheet Rates Check - ex-KCDC & UHC
A1: Wellington Regional Council
A2: =B5&" Check "&year_current -> Masterton district Check 2021/22
A3: =check_total -> 0
A4: Printed: | B4: =NOW() -> 2021-05-04T16:13:52.820
A5: TA to view | B5: Masterton district
D7: Excluding GST | H7: Including GST
A9: Total
A10: Rate | B10: Categories | D10: Rateable Capital Value | E10: Cents in Dollar | F10: Rates Set | H10: Cents in Dollar | I10: Rates Set
D11: $ | E11: Cents / $ | F11: $ | H11: Cents / $ | I11: $
A12: General rate | B12: District wide | D12: =INDEX(capital_values,MATCH($B$5&B12,capital_values_rows,0),MATCH("CV "&year_current,capital_values_header,0)) -> 8600907655 | E12: =INDEX(Gen!$E$10:$E$19,MATCH(B5,Gen!$A$10:$A$19,0),) -> 0.03371422441 | F12: =+E12*D12/100 -> 2899729.308 | H12: =+E12*(1+GST) -> 0.03877135807 | I12: =+F12*(1+GST) -> 3334688.704
A13: River management rate | B13: District wide | D13: =INDEX(capital_values,MATCH($B$5&B13,capital_values_rows,0),MATCH("CV "&year_current,capital_values_header,0)) -> 8600907655 | E13: =INDEX('River management'!$D$10:$D$19,MATCH(B5,'River management'!$A$10:$A$19,0),) -> 0 | F13: =+E13*D13/100 -> 0 | H13: 0 | I13: 0
A14: Public transport rate | B14: Regional CBD | D14: =IFERROR(INDEX(capital_values,MATCH($B$5&B14,capital_values_rows,0),MATCH("CV "&year_current,capital_values_header,0)),0) -> 0 | E14: =IFERROR(INDEX('Public transport'!$J$23:$J$50,MATCH($B$5&B14,'Public transport'!$D$23:$D$50,0),),0) -> 0 | F14: 0 | H14: 0 | I14: 0
B15: Business | D15: 734108600 | E15: =IFERROR(INDEX('Public transport'!$J$23:$J$50,MATCH($B$5&B15,'Public transport'!$D$23:$D$50,0),),0) -> 0.02543744381 | F15: 186738.4626 | H15: 0.02925306038 | I15: 214749.232
B16: Residential | D16: 3940904400 | E16: =IFERROR(INDEX('Public transport'!$J$23:$J$50,MATCH($B$5&B16,'Public transport'!$D$23:$D$50,0),),0) -> 0.01412682306 | F16: 556724.5915 | H16: 0.01624584652 | I16: 640233.2802
B17: Rural | D17: 3925894655 | E17: =IFERROR(INDEX('Public transport'!$J$23:$J$50,MATCH($B$5&B17,'Public transport'!$D$23:$D$50,0),),0) -> 0.00646434776 | F17: 253783.4832 | H17: 0.007433999924 | I17: 291851.0057
A18: Stadium purposes rate | B18: Regional CBD | D18: 0 | E18: =IFERROR(INDEX(Stadium!$H$23:$H$49,MATCH($B$5&B18,Stadium!$D$23:$D$49,0),),0) -> 0 | F18: 0 | H18: 0 | I18: 0
B19: Business | D19: 734108600 | E19: =IFERROR(INDEX(Stadium!$H$23:$H$49,MATCH($B$5&B19,Stadium!$D$23:$D$49,0),),0) -> 0 | F19: 0 | H19: 0 | I19: 0
B20: Residential | D20: 3940904400 | E20: =IFERROR(INDEX(Stadium!$H$23:$H$49,MATCH($B$5&B20,Stadium!$D$23:$D$49,0),),0) -> 0 | F20: 0 | H20: 0 | I20: 0
B21: Rural | D21: 3925894655 | E21: =IFERROR(INDEX(Stadium!$H$23:$H$49,MATCH($B$5&B21,Stadium!$D$23:$D$49,0),),0) -> 0 | F21: 0 | H21: 0 | I21: 0
A22: Wellington regional strategy rate | B22: Regional CBD | D22: 0 | E22: =IFERROR(INDEX(WRS!$L$23:$L$49,MATCH($B$5&B22,WRS!$D$23:$D$49,0),),0) -> 0 | F22: 0 | H22: 0 | I22: 0
B23: Business | D23: 734108600 | E23: =IFERROR(INDEX(WRS!$L$23:$L$49,MATCH($B$5&B23,WRS!$D$23:$D$49,0),),0) -> 0.006334879678 | F23: 46504.89652 | H23: 0.00728511163 | I23: 53480.63099
A25: Rate | B25: Categories | D25: Number of assessments | E25: Amount per rating unit | F25: Rates Set | H25: Amount per rating unit | I25: Rates Set
D26: # | E26: $ | F26: $ | H26: $ | I26: $
A27: =+A22 -> Wellington regional strategy rate | B27: Residential | D27: =IFERROR(INDEX(WRS!$G$23:$G$49,MATCH($B$5&B27,WRS!$D$23:$D$49,0),),0) -> 8279 | E27: =INDEX(WRS_value,MATCH(B27,WRS_categories,0),) -> 14 | F27: =D27*E27 -> 115906 | H27: =+E27*(1+GST) -> 16.1 | I27: =+F27*(1+GST) -> 133291.9
B28: Rural | D28: =IFERROR(INDEX(WRS!$G$23:$G$49,MATCH($B$5&B28,WRS!$D$23:$D$49,0),),0) -> 3502 | E28: =INDEX(WRS_value,MATCH(B28,WRS_categories,0),) -> 28 | F28: =D28*E28 -> 98056 | H28: =+E28*(1+GST) -> 32.2 | I28: =+F28*(1+GST) -> 112764.4
A31: District-Wide Rates | F31: =SUM(F12:F29) -> 4157442.742 | I31: =SUM(I12:I29) -> 4781059.153
A34: Rate | B34: Categories | D34: No of Hectares | E34: Cents Per | F34: Rates | H34: Cents Per | I34: Rates
D35: # | E35: $ | F35: $ | H35: $ | I35: $
